Workbook

Sheet Poisson (hidden)
B5: Пуасон Делюкс
D6: Команда | E6: Забито | F6: Пропущено | G6: Игры | I6: Средний
C7: Дом | D7: =SVOD!A1 -> Everton | E7: =SVOD!F5 -> 5 | F7: =SVOD!G5 -> 3 | G7: =SVOD!B5 -> 4 | I7: =(E7+F8)/(G8+G7) -> 1.5
C8: Гости | D8: =SVOD!A7 -> Colo Colo | E8: =SVOD!F11 -> 5 | F8: =SVOD!G11 -> 7 | G8: =SVOD!B11 -> 4 | I8: =(E8+F7)/(G7+G8) -> 1
H10: 0 | I10: 1 | J10: 2 | K10: 3 | L10: 4 | M10: 5 | N10: 6 | O10: 7 | P10: 8 | Q10: 9
G11: 0 | H11: =POISSON(G11,I7,0)*POISSON(H10,I8,0) -> 0.08208499862 | I11: =POISSON(G11,I7,0)*POISSON(I10,I8,0) -> 0.08208499862 | J11: =POISSON(G11,I7,0)*POISSON(J10,I8,0) -> 0.04104249931 | K11: =POISSON(G11,I7,0)*POISSON(K10,I8,0) -> 0.0136808331 | L11: =POISSON(G11,I7,0)*POISSON(L10,I8,0) -> 0.003420208276 | M11: =POISSON(G11,I7,0)*POISSON(M10,I8,0) -> 0.0006840416552 | N11: =POISSON(G11,I7,0)*POISSON(N10,I8,0) -> 0.0001140069425 | O11: =POISSON(G11,I7,0)*POISSON(O10,I8,0) -> 1.628670608e-05 | P11: =POISSON(G11,I7,0)*POISSON(P10,I8,0) -> 2.03583826e-06 | Q11: =POISSON(G11,I7,0)*POISSON(Q10,I8,0) -> 2.262042511e-07
B12: ="1" -> 1 | C12: ="X" -> X | D12: ="2" -> 2 | G12: 1 | H12: =POISSON(G12,I7,0)*POISSON(H10,I8,0) -> 0.1231274979 | I12: =POISSON(G12,I7,0)*POISSON(I10,I8,0) -> 0.1231274979 | J12: =POISSON(G12,I7,0)*POISSON(J10,I8,0) -> 0.06156374897 | K12: =POISSON(G12,I7,0)*POISSON(K10,I8,0) -> 0.02052124966 | L12: =POISSON(G12,I7,0)*POISSON(L10,I8,0) -> 0.005130312414 | M12: =POISSON(G12,I7,0)*POISSON(M10,I8,0) -> 0.001026062483 | N12: =POISSON(G12,I7,0)*POISSON(N10,I8,0) -> 0.0001710104138 | O12: =POISSON(G12,I7,0)*POISSON(O10,I8,0) -> 2.443005911e-05 | P12: =POISSON(G12,I7,0)*POISSON(P10,I8,0) -> 3.053757389e-06 | Q12: =POISSON(G12,I7,0)*POISSON(Q10,I8,0) -> 3.393063766e-07
B13: =SUM(H12:H20,I13:I20,J14:J20,K15:K20,L16:L20,M17:M20,N18:N20,O19:O20,P20) -> 0.4879415858 | C13: =SUM(H11,I12,J13,K14,L15,M16,N17,O18,P19,Q20) -> 0.2598473743 | D13: =1-C13-B13 -> 0.2522110399 | G13: 2 | H13: =POISSON(G13,I7,0)*POISSON(H10,I8,0) -> 0.09234562345 | I13: =POISSON(G13,I7,0)*POISSON(I10,I8,0) -> 0.09234562345 | J13: =POISSON(G13,I7,0)*POISSON(J10,I8,0) -> 0.04617281173 | K13: =POISSON(G13,I7,0)*POISSON(K10,I8,0) -> 0.01539093724 | L13: =POISSON(G13,I7,0)*POISSON(L10,I8,0) -> 0.00384773431 | M13: =POISSON(G13,I7,0)*POISSON(M10,I8,0) -> 0.0007695468621 | N13: =POISSON(G13,I7,0)*POISSON(N10,I8,0) -> 0.0001282578103 | O13: =POISSON(G13,I7,0)*POISSON(O10,I8,0) -> 1.832254434e-05 | P13: =POISSON(G13,I7,0)*POISSON(P10,I8,0) -> 2.290318042e-06 | Q13: =POISSON(G13,I7,0)*POISSON(Q10,I8,0) -> 2.544797824e-07
B14: =1/B13 -> 2.049425647 | C14: =1/C13 -> 3.84841295 | D14: =1/D13 -> 3.964933495 | G14: 3 | H14: =POISSON(G14,I7,0)*POISSON(H10,I8,0) -> 0.04617281173 | I14: =POISSON(G14,I7,0)*POISSON(I10,I8,0) -> 0.04617281173 | J14: =POISSON(G14,I7,0)*POISSON(J10,I8,0) -> 0.02308640586 | K14: =POISSON(G14,I7,0)*POISSON(K10,I8,0) -> 0.007695468621 | L14: =POISSON(G14,I7,0)*POISSON(L10,I8,0) -> 0.001923867155 | M14: =POISSON(G14,I7,0)*POISSON(M10,I8,0) -> 0.000384773431 | N14: =POISSON(G14,I7,0)*POISSON(N10,I8,0) -> 6.412890517e-05 | O14: =POISSON(G14,I7,0)*POISSON(O10,I8,0) -> 9.161272168e-06 | P14: =POISSON(G14,I7,0)*POISSON(P10,I8,0) -> 1.145159021e-06 | Q14: =POISSON(G14,I7,0)*POISSON(Q10,I8,0) -> 1.272398912e-07
G15: 4 | H15: =POISSON(G15,I7,0)*POISSON(H10,I8,0) -> 0.0173148044 | I15: =POISSON(G15,I7,0)*POISSON(I10,I8,0) -> 0.0173148044 | J15: =POISSON(G15,I7,0)*POISSON(J10,I8,0) -> 0.008657402199 | K15: =POISSON(G15,I7,0)*POISSON(K10,I8,0) -> 0.002885800733 | L15: =POISSON(G15,I7,0)*POISSON(L10,I8,0) -> 0.0007214501832 | M15: =POISSON(G15,I7,0)*POISSON(M10,I8,0) -> 0.0001442900366 | N15: =POISSON(G15,I7,0)*POISSON(N10,I8,0) -> 2.404833944e-05 | O15: =POISSON(G15,I7,0)*POISSON(O10,I8,0) -> 3.435477063e-06 | P15: =POISSON(G15,I7,0)*POISSON(P10,I8,0) -> 4.294346329e-07 | Q15: =POISSON(G15,I7,0)*POISSON(Q10,I8,0) -> 4.771495921e-08
G16: 5 | H16: =POISSON(G16,I7,0)*POISSON(H10,I8,0) -> 0.005194441319 | I16: =POISSON(G16,I7,0)*POISSON(I10,I8,0) -> 0.005194441319 | J16: =POISSON(G16,I7,0)*POISSON(J10,I8,0) -> 0.00259722066 | K16: =POISSON(G16,I7,0)*POISSON(K10,I8,0) -> 0.0008657402199 | L16: =POISSON(G16,I7,0)*POISSON(L10,I8,0) -> 0.000216435055 | M16: =POISSON(G16,I7,0)*POISSON(M10,I8,0) -> 4.328701099e-05 | N16: =POISSON(G16,I7,0)*POISSON(N10,I8,0) -> 7.214501832e-06 | O16: =POISSON(G16,I7,0)*POISSON(O10,I8,0) -> 1.030643119e-06 | P16: =POISSON(G16,I7,0)*POISSON(P10,I8,0) -> 1.288303899e-07 | Q16: =POISSON(G16,I7,0)*POISSON(Q10,I8,0) -> 1.431448776e-08
G17: 6 | H17: =POISSON(G17,I7,0)*POISSON(H10,I8,0) -> 0.00129861033 | I17: =POISSON(G17,I7,0)*POISSON(I10,I8,0) -> 0.00129861033 | J17: =POISSON(G17,I7,0)*POISSON(J10,I8,0) -> 0.0006493051649 | K17: =POISSON(G17,I7,0)*POISSON(K10,I8,0) -> 0.000216435055 | L17: =POISSON(G17,I7,0)*POISSON(L10,I8,0) -> 5.410876374e-05 | M17: =POISSON(G17,I7,0)*POISSON(M10,I8,0) -> 1.082175275e-05 | N17: =POISSON(G17,I7,0)*POISSON(N10,I8,0) -> 1.803625458e-06 | O17: =POISSON(G17,I7,0)*POISSON(O10,I8,0) -> 2.576607797e-07 | P17: =POISSON(G17,I7,0)*POISSON(P10,I8,0) -> 3.220759747e-08 | Q17: =POISSON(G17,I7,0)*POISSON(Q10,I8,0) -> 3.578621941e-09
B18: ТБ 0.5 | C18: =SUM(H11:Q20)-H11 -> 0.9179107925 | D18: =1/C18 -> 1.089430485 | G18: 7 | H18: =POISSON(G18,I7,0)*POISSON(H10,I8,0) -> 0.0002782736421 | I18: =POISSON(G18,I7,0)*POISSON(I10,I8,0) -> 0.0002782736421 | J18: =POISSON(G18,I7,0)*POISSON(J10,I8,0) -> 0.000139136821 | K18: =POISSON(G18,I7,0)*POISSON(K10,I8,0) -> 4.637894035e-05 | L18: =POISSON(G18,I7,0)*POISSON(L10,I8,0) -> 1.159473509e-05 | M18: =POISSON(G18,I7,0)*POISSON(M10,I8,0) -> 2.318947017e-06 | N18: =POISSON(G18,I7,0)*POISSON(N10,I8,0) -> 3.864911696e-07 | O18: =POISSON(G18,I7,0)*POISSON(O10,I8,0) -> 5.521302423e-08 | P18: =POISSON(G18,I7,0)*POISSON(P10,I8,0) -> 6.901628028e-09 | Q18: =POISSON(G18,I7,0)*POISSON(Q10,I8,0) -> 7.668475587e-10
B19: ТБ 1.5 | C19: =SUM(H13:H20,I12:I20,J11:J20,K11:Q20) -> 0.7126982959 | D19: =1/C19 -> 1.40311827 | G19: 8 | H19: =POISSON(G19,I7,0)*POISSON(H10,I8,0) -> 5.217630789e-05 | I19: =POISSON(G19,I7,0)*POISSON(I10,I8,0) -> 5.217630789e-05 | J19: =POISSON(G19,I7,0)*POISSON(J10,I8,0) -> 2.608815395e-05 | K19: =POISSON(G19,I7,0)*POISSON(K10,I8,0) -> 8.696051316e-06 | L19: =POISSON(G19,I7,0)*POISSON(L10,I8,0) -> 2.174012829e-06 | M19: =POISSON(G19,I7,0)*POISSON(M10,I8,0) -> 4.348025658e-07 | N19: =POISSON(G19,I7,0)*POISSON(N10,I8,0) -> 7.24670943e-08 | O19: =POISSON(G19,I7,0)*POISSON(O10,I8,0) -> 1.035244204e-08 | P19: =POISSON(G19,I7,0)*POISSON(P10,I8,0) -> 1.294055255e-09 | Q19: =POISSON(G19,I7,0)*POISSON(Q10,I8,0) -> 1.437839173e-10
B20: ТБ 2.5 | C20: =SUM(H14:H20,I13:I20,J12:J20,K11:Q20) -> 0.4561826752 | D20: =1/C20 -> 2.192104292 | G20: 9 | H20: =POISSON(G20,I7,0)*POISSON(H10,I8,0) -> 8.696051316e-06 | I20: =POISSON(G20,I7,0)*POISSON(I10,I8,0) -> 8.696051316e-06 | J20: =POISSON(G20,I7,0)*POISSON(J10,I8,0) -> 4.348025658e-06 | K20: =POISSON(G20,I7,0)*POISSON(K10,I8,0) -> 1.449341886e-06 | L20: =POISSON(G20,I7,0)*POISSON(L10,I8,0) -> 3.623354715e-07 | M20: =POISSON(G20,I7,0)*POISSON(M10,I8,0) -> 7.24670943e-08 | N20: =POISSON(G20,I7,0)*POISSON(N10,I8,0) -> 1.207784905e-08 | O20: =POISSON(G20,I7,0)*POISSON(O10,I8,0) -> 1.725407007e-09 | P20: =POISSON(G20,I7,0)*POISSON(P10,I8,0) -> 2.156758759e-10 | Q20: =POISSON(G20,I7,0)*POISSON(Q10,I8,0) -> 2.396398621e-11
B21: ТБ 3.5 | C21: =SUM(H15:H20,I14:I20,J13:J20,K12:K20,L11:Q20) -> 0.2424196579 | D21: =1/C21 -> 4.125078009
B22: ТБ 4.5 | C22: =SUM(H16:H20,I15:I20,J14:J20,K13:K20,L12:L20,M11:Q20) -> 0.1088177722 | D22: 9.189675364
B23: ТБ 5.5 | C23: =SUM(H17:H20,I16:I20,J15:J20,K14:K20,L13:L20,M12:M20,N11:Q20) -> 0.04201682927 | D23: 23.79998723
B25: ТМ 0.5 | C25: =1-C18 -> 0.08208920755 | D25: 12.18186933 | F25: ОЗ | G25: =SUM(I12:Q20) -> 0.4910727206 | H25: =1/G25 -> 2.036358279
B26: ТМ 1.5 | C26: 0.2873017041 | D26: 3.480661568 | F26: НЕ ОЗ | G26: =1-G25 -> 0.5089272794 | H26: =1/G26 -> 1.964917269
B27: ТМ 2.5 | C27: 0.5438173248 | D27: 1.838852781
B28: ТМ 3.5 | C28: 0.7575803421 | D28: 1.319992012 | F28: P | G28: =SUM(H11,H13,H15,H17,H19,I12,I14,I16,I18,I20,J11,J13,J15,J17,J19,K12,K14,K16,K18,K20,L11,L13,L15,L17,L19,M12,M14,M16,M18,M20)+SUM(N11,N13,N15,N17,N19,O12,O14,O16,O18,O20,P11,P13,P15,P17,P19,Q12,Q14,Q16,Q18,Q20) -> 0.5033666558 | H28: =1/G28 -> 1.986623445
B29: ТМ 4.5 | C29: 0.8911822278 | D29: 1.122104962 | F29: D | G29: =1-G28 -> 0.4966333442 | H29: =1/G29 -> 2.013557913
B30: ТМ 5.5 | C30: 0.9579831707 | D30: 1.043859674
B32: Пуасон Дом-Гости
D33: Команда | E33: Забито | F33: Пропущено | G33: Игры | I33: Средний
C34: Дом | D34: =SVOD!A1 -> Everton | E34: =SVOD!F6 -> 5 | F34: =SVOD!G6 -> 5 | G34: =SVOD!B6 -> 4 | I34: =(E34+F35)/(G35+G34) -> 1.375
C35: Гости | D35: =SVOD!A7 -> Colo Colo | E35: =SVOD!F12 -> 5 | F35: =SVOD!G12 -> 6 | G35: =SVOD!B12 -> 4 | I35: =(E35+F34)/(G34+G35) -> 1.25
H37: 0 | I37: 1 | J37: 2 | K37: 3 | L37: 4 | M37: 5 | N37: 6 | O37: 7 | P37: 8 | Q37: 9
G38: 0 | H38: =POISSON(G38,I34,0)*POISSON(H37,I35,0) -> 0.07243975703 | I38: =POISSON(G38,I34,0)*POISSON(I37,I35,0) -> 0.09054969629 | J38: =POISSON(G38,I34,0)*POISSON(J37,I35,0) -> 0.05659356018 | K38: =POISSON(G38,I34,0)*POISSON(K37,I35,0) -> 0.02358065008 | L38: =POISSON(G38,I34,0)*POISSON(L37,I35,0) -> 0.007368953149 | M38: =POISSON(G38,I34,0)*POISSON(M37,I35,0) -> 0.001842238287 | N38: =POISSON(G38,I34,0)*POISSON(N37,I35,0) -> 0.0003837996432 | O38: =POISSON(G38,I34,0)*POISSON(O37,I35,0) -> 6.853565057e-05 | P38: =POISSON(G38,I34,0)*POISSON(P37,I35,0) -> 1.07086954e-05 | Q38: =POISSON(G38,I34,0)*POISSON(Q37,I35,0) -> 1.487318806e-06
B39: ="1" -> 1 | C39: ="X" -> X | D39: ="2" -> 2 | G39: 1 | H39: =POISSON(G39,I34,0)*POISSON(H37,I35,0) -> 0.09960466592 | I39: =POISSON(G39,I34,0)*POISSON(I37,I35,0) -> 0.1245058324 | J39: =POISSON(G39,I34,0)*POISSON(J37,I35,0) -> 0.07781614525 | K39: =POISSON(G39,I34,0)*POISSON(K37,I35,0) -> 0.03242339385 | L39: =POISSON(G39,I34,0)*POISSON(L37,I35,0) -> 0.01013231058 | M39: =POISSON(G39,I34,0)*POISSON(M37,I35,0) -> 0.002533077645 | N39: =POISSON(G39,I34,0)*POISSON(N37,I35,0) -> 0.0005277245094 | O39: =POISSON(G39,I34,0)*POISSON(O37,I35,0) -> 9.423651953e-05 | P39: =POISSON(G39,I34,0)*POISSON(P37,I35,0) -> 1.472445618e-05 | Q39: =POISSON(G39,I34,0)*POISSON(Q37,I35,0) -> 2.045063358e-06 | S39: ="1" -> 1 | T39: ="X" -> X | U39: ="2" -> 2
B40: =SUM(H39:H47,I40:I47,J41:J47,K42:K47,L43:L47,M44:M47,N45:N47,O46:O47,P47) -> 0.3982231248 | C40: =SUM(H38,I39,J40,K41,L42,M43,N44,O45,P46,Q47) -> 0.2618376233 | D40: =1-C40-B40 -> 0.3399392519 | G40: 2 | H40: =POISSON(G40,I34,0)*POISSON(H37,I35,0) -> 0.06847820782 | I40: =POISSON(G40,I34,0)*POISSON(I37,I35,0) -> 0.08559775978 | J40: =POISSON(G40,I34,0)*POISSON(J37,I35,0) -> 0.05349859986 | K40: =POISSON(G40,I34,0)*POISSON(K37,I35,0) -> 0.02229108328 | L40: =POISSON(G40,I34,0)*POISSON(L37,I35,0) -> 0.006965963524 | M40: =POISSON(G40,I34,0)*POISSON(M37,I35,0) -> 0.001741490881 | N40: =POISSON(G40,I34,0)*POISSON(N37,I35,0) -> 0.0003628106002 | O40: =POISSON(G40,I34,0)*POISSON(O37,I35,0) -> 6.478760718e-05 | P40: =POISSON(G40,I34,0)*POISSON(P37,I35,0) -> 1.012306362e-05 | Q40: =POISSON(G40,I34,0)*POISSON(Q37,I35,0) -> 1.405981058e-06 | S40: =SUM(H39:H47,I40:I47,J41:J47,K42:K47,L43:L47,M44:M47,N45:N47,O46:O47,P47) -> 0.3982231248 | T40: =SUM(H38,I39,J40,K41,L42,M43,N44,O45,P46,Q47) -> 0.2618376233 | U40: =1-T40-S40 -> 0.3399392519
B41: =1/B40 -> 2.511155023 | C41: =1/C40 -> 3.81916085 | D41: =1/D40 -> 2.941702067 | G41: 3 | H41: =POISSON(G41,I34,0)*POISSON(H37,I35,0) -> 0.03138584525 | I41: =POISSON(G41,I34,0)*POISSON(I37,I35,0) -> 0.03923230656 | J41: =POISSON(G41,I34,0)*POISSON(J37,I35,0) -> 0.0245201916 | K41: =POISSON(G41,I34,0)*POISSON(K37,I35,0) -> 0.0102167465 | L41: =POISSON(G41,I34,0)*POISSON(L37,I35,0) -> 0.003192733282 | M41: =POISSON(G41,I34,0)*POISSON(M37,I35,0) -> 0.0007981833204 | N41: =POISSON(G41,I34,0)*POISSON(N37,I35,0) -> 0.0001662881918 | O41: =POISSON(G41,I34,0)*POISSON(O37,I35,0) -> 2.969431996e-05 | P41: =POISSON(G41,I34,0)*POISSON(P37,I35,0) -> 4.639737493e-06 | Q41: =POISSON(G41,I34,0)*POISSON(Q37,I35,0) -> 6.444079851e-07 | S41: =1/S40 -> 2.511155023 | T41: =1/T40 -> 3.81916085 | U41: =1/U40 -> 2.941702067
G42: 4 | H42: =POISSON(G42,I34,0)*POISSON(H37,I35,0) -> 0.01078888431 | I42: =POISSON(G42,I34,0)*POISSON(I37,I35,0) -> 0.01348610538 | J42: =POISSON(G42,I34,0)*POISSON(J37,I35,0) -> 0.008428815863 | K42: =POISSON(G42,I34,0)*POISSON(K37,I35,0) -> 0.00351200661 | L42: =POISSON(G42,I34,0)*POISSON(L37,I35,0) -> 0.001097502066 | M42: =POISSON(G42,I34,0)*POISSON(M37,I35,0) -> 0.0002743755164 | N42: =POISSON(G42,I34,0)*POISSON(N37,I35,0) -> 5.716156591e-05 | O42: =POISSON(G42,I34,0)*POISSON(O37,I35,0) -> 1.020742248e-05 | P42: =POISSON(G42,I34,0)*POISSON(P37,I35,0) -> 1.594909763e-06 | Q42: =POISSON(G42,I34,0)*POISSON(Q37,I35,0) -> 2.215152449e-07 | S42: =S40+SVOD!H91+SVOD!H92+SVOD!H93 -> 0.4177231248 | T42: =100%-S42-U42 -> 0.2258376233 | U42: =U40+SVOD!J91+SVOD!J92+SVOD!J93 -> 0.3564392519
G43: 5 | H43: =POISSON(G43,I34,0)*POISSON(H37,I35,0) -> 0.002966943184 | I43: =POISSON(G43,I34,0)*POISSON(I37,I35,0) -> 0.00370867898 | J43: =POISSON(G43,I34,0)*POISSON(J37,I35,0) -> 0.002317924362 | K43: =POISSON(G43,I34,0)*POISSON(K37,I35,0) -> 0.0009658018177 | L43: =POISSON(G43,I34,0)*POISSON(L37,I35,0) -> 0.000301813068 | M43: =POISSON(G43,I34,0)*POISSON(M37,I35,0) -> 7.545326701e-05 | N43: =POISSON(G43,I34,0)*POISSON(N37,I35,0) -> 1.571943063e-05 | O43: =POISSON(G43,I34,0)*POISSON(O37,I35,0) -> 2.807041183e-06 | P43: =POISSON(G43,I34,0)*POISSON(P37,I35,0) -> 4.386001849e-07 | Q43: =POISSON(G43,I34,0)*POISSON(Q37,I35,0) -> 6.091669235e-08
G44: 6 | H44: =POISSON(G44,I34,0)*POISSON(H37,I35,0) -> 0.0006799244797 | I44: =POISSON(G44,I34,0)*POISSON(I37,I35,0) -> 0.0008499055996 | J44: =POISSON(G44,I34,0)*POISSON(J37,I35,0) -> 0.0005311909997 | K44: =POISSON(G44,I34,0)*POISSON(K37,I35,0) -> 0.0002213295832 | L44: =POISSON(G44,I34,0)*POISSON(L37,I35,0) -> 6.916549476e-05 | M44: =POISSON(G44,I34,0)*POISSON(M37,I35,0) -> 1.729137369e-05 | N44: =POISSON(G44,I34,0)*POISSON(N37,I35,0) -> 3.602369519e-06 | O44: =POISSON(G44,I34,0)*POISSON(O37,I35,0) -> 6.432802712e-07 | P44: =POISSON(G44,I34,0)*POISSON(P37,I35,0) -> 1.005125424e-07 | Q44: =POISSON(G44,I34,0)*POISSON(Q37,I35,0) -> 1.396007533e-08
B45: ТБ 0.5 | C45: =SUM(H38:Q47)-H38 -> 0.9275574941 | D45: =1/C45 -> 1.078100286 | G45: 7 | H45: =POISSON(G45,I34,0)*POISSON(H37,I35,0) -> 0.0001335565942 | I45: =POISSON(G45,I34,0)*POISSON(I37,I35,0) -> 0.0001669457428 | J45: =POISSON(G45,I34,0)*POISSON(J37,I35,0) -> 0.0001043410892 | K45: =POISSON(G45,I34,0)*POISSON(K37,I35,0) -> 4.347545385e-05 | L45: =POISSON(G45,I34,0)*POISSON(L37,I35,0) -> 1.358607933e-05 | M45: =POISSON(G45,I34,0)*POISSON(M37,I35,0) -> 3.396519832e-06 | N45: =POISSON(G45,I34,0)*POISSON(N37,I35,0) -> 7.076082983e-07 | O45: =POISSON(G45,I34,0)*POISSON(O37,I35,0) -> 1.263586247e-07 | P45: =POISSON(G45,I34,0)*POISSON(P37,I35,0) -> 1.974353511e-08 | Q45: =POISSON(G45,I34,0)*POISSON(Q37,I35,0) -> 2.742157654e-09
B46: ТБ 1.5 | C46: =SUM(H40:H47,I39:I47,J38:J47,K38:Q47) -> 0.7374031318 | D46: 1.356110324 | G46: 8 | H46: =POISSON(G46,I34,0)*POISSON(H37,I35,0) -> 2.295503963e-05 | I46: =POISSON(G46,I34,0)*POISSON(I37,I35,0) -> 2.869379954e-05 | J46: =POISSON(G46,I34,0)*POISSON(J37,I35,0) -> 1.793362471e-05 | K46: =POISSON(G46,I34,0)*POISSON(K37,I35,0) -> 7.47234363e-06 | L46: =POISSON(G46,I34,0)*POISSON(L37,I35,0) -> 2.335107384e-06 | M46: =POISSON(G46,I34,0)*POISSON(M37,I35,0) -> 5.837768461e-07 | N46: =POISSON(G46,I34,0)*POISSON(N37,I35,0) -> 1.216201763e-07 | O46: =POISSON(G46,I34,0)*POISSON(O37,I35,0) -> 2.171788862e-08 | P46: =POISSON(G46,I34,0)*POISSON(P37,I35,0) -> 3.393420097e-09 | Q46: =POISSON(G46,I34,0)*POISSON(Q37,I35,0) -> 4.713083468e-10
B47: ТБ 2.5 | C47: =SUM(H41:H47,I40:I47,J39:J47,K38:Q47) -> 0.4878255314 | D47: 2.049913208 | G47: 9 | H47: =POISSON(G47,I34,0)*POISSON(H37,I35,0) -> 3.507019944e-06 | I47: =POISSON(G47,I34,0)*POISSON(I37,I35,0) -> 4.38377493e-06 | J47: =POISSON(G47,I34,0)*POISSON(J37,I35,0) -> 2.739859331e-06 | K47: =POISSON(G47,I34,0)*POISSON(K37,I35,0) -> 1.141608055e-06 | L47: =POISSON(G47,I34,0)*POISSON(L37,I35,0) -> 3.567525171e-07 | M47: =POISSON(G47,I34,0)*POISSON(M37,I35,0) -> 8.918812926e-08 | N47: =POISSON(G47,I34,0)*POISSON(N37,I35,0) -> 1.858086026e-08 | O47: =POISSON(G47,I34,0)*POISSON(O37,I35,0) -> 3.318010761e-09 | P47: =POISSON(G47,I34,0)*POISSON(P37,I35,0) -> 5.184391814e-10 | Q47: =POISSON(G47,I34,0)*POISSON(Q37,I35,0) -> 7.200544187e-11
B48: ТБ 3.5 | C48: =SUM(H42:H47,I41:I47,J40:J47,K39:K47,L38:Q47) -> 0.2694451311 | D48: 3.711330748
B49: ТБ 4.5 | C49: =SUM(H43:H47,I42:I47,J41:J47,K40:K47,L39:L47,M38:Q47) -> 0.1261329934 | D49: 7.928139763
B50: ТБ 5.5 | C50: =SUM(H44:H47,I43:I47,J42:J47,K41:K47,L40:L47,M39:M47,N38:Q47) -> 0.05089412104 | D50: 19.64863484
B52: ТМ 0.5 | C52: =1-C45 -> 0.07244250594 | D52: =1/C52 -> 13.80405036 | F52: ОЗ | G52: =SUM(I39:Q47) -> 0.5330933752 | H52: =1/G52 -> 1.875843983
B53: ТМ 1.5 | C53: 0.2625968682 | D53: 3.808118532 | F53: НЕ ОЗ | G53: =1-G52 -> 0.4669066248 | H53: =1/G53 -> 2.14175586
B54: ТМ 2.5 | C54: 0.5121744686 | D54: 1.952459682
B55: ТМ 3.5 | C55: 0.7305548689 | D55: 1.368822579 | F55: P | G55: =SUM(H38,H40,H42,H44,H46,I39,I41,I43,I45,I47,J38,J40,J42,J44,J46,K39,K41,K43,K45,K47,L38,L40,L42,L44,L46,M39,M41,M43,M45,M47)+SUM(N38,N40,N42,N44,N46,O39,O41,O43,O45,O47,P38,P40,P42,P44,P46,Q39,Q41,Q43,Q45,Q47) -> 0.5026223023 | H55: =1/G55 -> 1.989565515
B56: ТМ 4.5 | C56: 0.8738670066 | D56: 1.14433889 | F56: D | G56: =1-G55 -> 0.4973776977 | H56: =1/G56 -> 2.010544511
B57: ТМ 5.5 | C57: 0.949105879 | D57: 1.053623228

Sheet Лист3 (hidden)
A1: =Q1 -> 1.085714286 | E1: =W1 -> 1.314285714 | J1: =TREND(J2:J15) -> 1.085714286 | K1: =TREND(K2:K15) -> 1.314285714 | L1: =TREND(L2:L15) -> 2.4 | Q1: =J1 -> 1.085714286 | W1: =K1 -> 1.314285714 | AE1: =L1 -> 2.4
A2: =Дома!L2 -> 1 | B2: =Дома!M2 -> 1 | E2: =Гости!L2 -> 1 | F2: =Гости!M2 -> 2 | H2: =A2+E2 -> 2 | J2: =AVERAGE(A2,F2) -> 1.5 | K2: =AVERAGE(E2,B2) -> 1 | L2: =J2+K2 -> 2.5 | M2: =AVEDEV(A2:A6) -> 0.4 | N2: =O2+M2 -> 1.4 | O2: =AVERAGE(A2:A6) -> 1 | P2: =O2-M2 -> 0.6 | Q2: =A2 -> 1 | S2: =AVEDEV(E2:E6) -> 0.64 | T2: =U2+S2 -> 1.84 | U2: =AVERAGE(E2:E6) -> 1.2 | V2: =U2-S2 -> 0.56 | W2: =E2 -> 1 | Y2: =M2 -> 0.4 | Z2: =S2 -> 0.64 | AA2: =AVERAGE(Y2:Z2) -> 0.52 | AB2: =AC2+AA2 -> 2.72 | AC2: =AVERAGE(H2:H6) -> 2.2 | AD2: =AC2-AA2 -> 1.68 | AE2: =H2 -> 2
A3: =Дома!L3 -> 2 | B3: =Дома!M3 -> 1 | E3: =Гости!L3 -> 2 | F3: =Гости!M3 -> 1 | H3: =A3+E3 -> 4 | J3: =AVERAGE(A3,F3) -> 1.5 | K3: =AVERAGE(E3,B3) -> 1.5 | L3: =J3+K3 -> 3 | M3: =AVEDEV(A3:A7) -> 0.4 | N3: =O3+M3 -> 1.4 | O3: =AVERAGE(A3:A7) -> 1 | P3: =O3-M3 -> 0.6 | Q3: =A3 -> 2 | S3: =AVEDEV(E3:E7) -> 0.64 | T3: =U3+S3 -> 1.84 | U3: =AVERAGE(E3:E7) -> 1.2 | V3: =U3-S3 -> 0.56 | W3: =E3 -> 2 | Y3: =M3 -> 0.4 | Z3: =S3 -> 0.64 | AA3: =AVERAGE(Y3:Z3) -> 0.52 | AB3: =AC3+AA3 -> 2.72 | AC3: =AVERAGE(H3:H7) -> 2.2 | AD3: =AC3-AA3 -> 1.68 | AE3: =H3 -> 4
A4: =Дома!L4 -> 1 | B4: =Дома!M4 -> 1 | E4: =Гости!L4 -> 0 | F4: =Гости!M4 -> 0 | H4: 1 | J4: =AVERAGE(A4,F4) -> 0.5 | K4: 0.5 | L4: 1 | M4: 0.32 | N4: =O4+M4 -> 1.12 | O4: =AVERAGE(A4:A8) -> 0.8 | P4: 0.48 | Q4: =A4 -> 1 | S4: 0.64 | T4: =U4+S4 -> 1.44 | U4: 0.8 | V4: 0.16 | W4: 0 | Y4: =M4 -> 0.32 | Z4: 0.64 | AA4: 0.48 | AB4: 2.08 | AC4: 1.6 | AD4: 1.12 | AE4: =H4 -> 1
A5: =Дома!L5 -> 1 | B5: =Дома!M5 -> 0 | E5: =Гости!L5 -> 2 | F5: =Гости!M5 -> 4 | H5: 3 | J5: 2.5 | K5: 1 | L5: 3.5 | M5: 0.4 | N5: 1.4 | O5: =AVERAGE(A5:A9) -> 1 | P5: 0.6 | Q5: =A5 -> 1 | S5: 0.64 | T5: 1.44 | U5: 0.8 | V5: 0.16 | W5: 2 | Y5: 0.4 | Z5: 0.64 | AA5: 0.52 | AB5: 2.32 | AC5: 1.8 | AD5: 1.28 | AE5: 3
A6: =Дома!L6 -> 0 | B6: =Дома!M6 -> 3 | E6: =Гости!L6 -> 1 | F6: =Гости!M6 -> 0 | H6: 1 | J6: 0 | K6: 2 | L6: 2 | M6: 0.64 | N6: 1.44 | O6: =AVERAGE(A6:A10) -> 0.8 | P6: 0.16 | Q6: 0 | S6: 0.64 | T6: 1.44 | U6: 0.8 | V6: 0.16 | W6: 1 | Y6: 0.64 | Z6: 0.64 | AA6: 0.64 | AB6: 2.24 | AC6: 1.6 | AD6: 0.96 | AE6: 1
A7: =Дома!L7 -> 1 | B7: =Дома!M7 -> 3 | E7: =Гости!L7 -> 1 | F7: =Гости!M7 -> 1 | H7: 2 | J7: 1 | K7: 2 | L7: 3 | M7: 0.4 | N7: 1.4 | O7: 1 | P7: 0.6 | Q7: 1 | S7: 0.8 | T7: 1.8 | U7: 1 | V7: 0.2 | W7: 1 | Y7: 0.4 | Z7: 0.8 | AA7: 0.6 | AB7: 2.6 | AC7: 2 | AD7: 1.4 | AE7: 2
A8: =Дома!L8 -> 1 | B8: =Дома!M8 -> 1 | E8: =Гости!L8 -> 0 | F8: =Гости!M8 -> 0 | H8: 1 | J8: 0.5 | K8: 0.5 | L8: 1 | M8: 0.4 | N8: 1.4 | O8: 1 | P8: 0.6 | Q8: 1 | S8: 0.96 | T8: 1.76 | U8: 0.8 | V8: -0.16 | W8: 0 | Y8: 0.4 | Z8: 0.96 | AA8: 0.68 | AB8: 2.48 | AC8: 1.8 | AD8: 1.12 | AE8: 1
A9: =Дома!L9 -> 2 | B9: =Дома!M9 -> 1 | E9: =Гости!L9 -> 0 | F9: =Гости!M9 -> 0 | H9: 2 | J9: =AVERAGE(A9,F9) -> 1 | K9: 0.5 | L9: 1.5 | M9: 0.64 | N9: 1.44 | O9: 0.8 | P9: 0.16 | Q9: 2 | S9: 0.8 | T9: 1.8 | U9: 1 | V9: 0.2 | W9: 0 | Y9: 0.64 | Z9: 0.8 | AA9: 0.72 | AB9: 2.52 | AC9: 1.8 | AD9: 1.08 | AE9: 2
A10: =Дома!L10 -> 0 | B10: =Дома!M10 -> 1 | E10: =Гости!L10 -> 2 | F10: =Гости!M10 -> 1 | H10: 2 | J10: =AVERAGE(A10,F10) -> 0.5 | K10: 1.5 | L10: 2 | M10: 0.8 | N10: 1.8 | O10: 1 | P10: 0.2 | Q10: 0 | S10: 0.64 | T10: 1.84 | U10: 1.2 | V10: 0.56 | W10: 2 | Y10: 0.8 | Z10: 0.64 | AA10: 0.72 | AB10: 2.92 | AC10: 2.2 | AD10: 1.48 | AE10: 2
A11: =Дома!L11 -> 1 | B11: =Дома!M11 -> 1 | E11: =Гости!L11 -> 2 | F11: =Гости!M11 -> 1 | H11: 3 | J11: =AVERAGE(A11,F11) -> 1 | K11: 1.5 | L11: 2.5 | M11: 0.72 | N11: 1.92 | O11: 1.2 | P11: 0.48 | Q11: 1 | S11: 0.64 | T11: 1.44 | U11: 0.8 | V11: 0.16 | W11: 2 | Y11: 0.72 | Z11: 0.64 | AA11: 0.68 | AB11: 2.68 | AC11: 2 | AD11: 1.32 | AE11: 3
A12: =Дома!L12 -> 1 | B12: =Дома!M12 -> 0 | E12: =Гости!L12 -> 0 | F12: =Гости!M12 -> 0 | H12: 1 | J12: 0.5 | K12: 0 | L12: 0.5 | M12: =AVEDEV(A12:A16) -> 0.72 | N12: 1.92 | O12: 1.2 | P12: 0.48 | Q12: =A12 -> 1 | S12: 0.48 | T12: 1.08 | U12: 0.6 | V12: 0.12 | W12: 0 | Y12: 0.72 | Z12: 0.48 | AA12: 0.6 | AB12: 2.4 | AC12: 1.8 | AD12: 1.2 | AE12: 1
A13: =Дома!L13 -> 0 | B13: =Дома!M13 -> 0 | E13: =Гости!L13 -> 1 | F13: =Гости!M13 -> 1 | H13: 1 | J13: 0.5 | K13: 0.5 | L13: 1
A14: =Дома!L14 -> 3 | B14: =Дома!M14 -> 0 | E14: =Гости!L14 -> 1 | F14: =Гости!M14 -> 0 | H14: 4 | J14: 1.5 | K14: 0.5 | L14: 2
A15: =Дома!L15 -> 1 | B15: =Дома!M15 -> 2 | E15: =Гости!L15 -> 0 | F15: =Гости!M15 -> 3 | H15: 1 | J15: 2 | K15: 1 | L15: 3
A16: =Дома!L16 -> 1 | B16: =Дома!M16 -> 2 | E16: =Гости!L16 -> 1 | F16: =Гости!M16 -> 0 | H16: =A16+E16 -> 2
A17: =Дома!L17 -> 3 | B17: =Дома!M17 -> 1 | E17: =Гости!L17 -> 0 | F17: =Гости!M17 -> 0 | AE17: =AE2 -> 2
A18: =Дома!L18 -> 2 | B18: =Дома!M18 -> 6 | E18: =Гости!L18 -> 2 | F18: =Гости!M18 -> 1 | AE18: =AE1 -> 2.4
A19: =Дома!L19 -> 1 | B19: =Дома!M19 -> 1 | E19: =Гости!L19 -> 0 | F19: =Гости!M19 -> 2 | H19: К1 | J19: К2 | L19: Тотал | P19: =Q1-1 -> 0.08571428571 | Q19: =Q1+1 -> 2.085714286 | V19: =W1-1 -> 0.3142857143 | W19: =W1+1 -> 2.314285714 | AE19: =AE18-AE17 -> 0.4
A20: =Дома!L20 -> 1 | B20: =Дома!M20 -> 1 | E20: =Гости!L20 -> 2 | F20: =Гости!M20 -> 2 | H20: =Q2 -> 1 | I20: =Q1 -> 1.085714286 | J20: =W2 -> 1 | K20: =W1 -> 1.314285714 | L20: =AE2 -> 2 | M20: =AE1 -> 2.4
A21: =Дома!L21 -> 0 | B21: =Дома!M21 -> 1 | E21: =Гости!L21 -> 0 | F21: =Гости!M21 -> 2 | I21: =(H20+I20)/2 -> 1.042857143 | K21: =(J20+K20)/2 -> 1.157142857 | M21: =(L20+M20)/2 -> 2.2 | P21: =_xlfn.FLOOR.MATH(P19) -> 0 | Q21: =_xlfn.CEILING.MATH(Q19) -> 3 | V21: =_xlfn.FLOOR.MATH(V19) -> 0 | W21: =_xlfn.CEILING.MATH(W19) -> 3
A22: =Дома!L22 -> 2 | B22: =Дома!M22 -> 1 | E22: =Гости!L22 -> 1 | F22: =Гости!M22 -> 0
A23: =Дома!L23 -> 1 | B23: =Дома!M23 -> 1 | E23: =Гости!L23 -> 1 | F23: =Гости!M23 -> 3 | Q23: =CONCATENATE(P21,"-",Q21) -> 0-3 | S23: =(P21+V21) -> 0 | T23: =Q21+W21 -> 6 | W23: =CONCATENATE(V21,"-",W21) -> 0-3
A24: =Дома!L24 -> 0 | B24: =Дома!M24 -> 1 | E24: =Гости!L24 -> 1 | F24: =Гости!M24 -> 0 | S24: =CONCATENATE(S23,"-",T23) -> 0-6
A25: =Дома!L25 -> 2 | B25: =Дома!M25 -> 2 | E25: =Гости!L25 -> 0 | F25: =Гости!M25 -> 2
A26: =Дома!L26 -> 3 | B26: =Дома!M26 -> 1 | E26: =Гости!L26 -> 1 | F26: =Гости!M26 -> 1
A27: =Дома!L27 -> 2 | B27: =Дома!M27 -> 2 | E27: =Гости!L27 -> 0 | F27: =Гости!M27 -> 1
A28: =Дома!L28 -> 2 | B28: =Дома!M28 -> 1 | E28: =Гости!L28 -> 3 | F28: =Гости!M28 -> 5
A29: =Дома!L29 -> 0 | B29: =Дома!M29 -> 0 | E29: =Гости!L29 -> 2 | F29: =Гости!M29 -> 2
A30: =Дома!L30 -> 0 | B30: =Дома!M30 -> 1 | E30: =Гости!L30 -> 0 | F30: =Гости!M30 -> 1
A31: =Дома!L31 -> 0 | B31: =Дома!M31 -> 0 | E31: =Гости!L31 -> 0 | F31: =Гости!M31 -> 3

Sheet Лист2 (hidden)
A1: =Список!C2 -> Boca Juniors | B1: =Список!D2 -> Atl. Tucuman | C1: =Список!A2 -> ARGENTINA: Copa de la Liga Profesional | D1: =Список!B2 -> 2021.04.17 23:00 | H1: Hobart Huskies | I1: =VLOOKUP(H1,A1:C2966,3,FALSE) -> 
A2: =Список!C3 -> Delfines Del Este | B2: =Список!D3 -> Atl. San Francisco | C2: =Список!A3 -> DOMINICAN REPUBLIC: LDF | D2: =Список!B3 -> 2021.04.17 23:00 | I2: =VLOOKUP(H1,A1:D2967,4,FALSE) -> 
A3: =Список!C4 -> Santa Lucia | B3: =Список!D4 -> Coban Imperial | C3: =Список!A4 -> GUATEMALA: Liga Nacional - Clausura | D3: =Список!B4 -> 2021.04.17 23:00
A4: =Список!C5 -> Cosmopolites | B4: =Список!D5 -> Fica | C4: =Список!A5 -> HAITI: Championnat National - Serie de Cloture | D4: =Список!B5 -> 2021.04.17 23:00
A5: =Список!C6 -> Cafetaleros de Chiapas 2 | B5: =Список!D6 -> Alacranes de Durango | C5: =Список!A6 -> MEXICO: Liga Premier Serie A - Play Offs | D5: =Список!B6 -> 2021.04.17 23:00
A6: =Список!C7 -> Managua FC U20 | B6: =Список!D7 -> Juventus Managua U20 | C6: =Список!A7 -> NICARAGUA: Liga Primera U20 - Clausura | D6: =Список!B7 -> 2021.04.17 23:00
A7: =Список!C8 -> New England II | B7: =Список!D8 -> Richmond Kickers | C7: =Список!A8 -> USA: USL League One | D7: =Список!B8 -> 2021.04.17 23:00
A8: =Список!C9 -> Real Sociedad | B8: =Список!D9 -> Marathon | C8: =Список!A9 -> HONDURAS: Liga Nacional - Clausura - 1st Phase | D8: =Список!B9 -> 2021.04.17 23:15
A9: =Список!C10 -> Nouakchott King's | B9: =Список!D10 -> Madine Trarza | C9: =Список!A10 -> MAURITANIA: Ligue 1 | D9: =Список!B10 -> 2021.04.17 23:15
A10: =Список!C11 -> JSM Tiaret | B10: =Список!D11 -> Remchi | C10: =Список!A11 -> ALGERIA: Ligue 2 | D10: =Список!B11 -> 2021.04.17 23:30
A11: =Список!C12 -> Atletico GO | B11: =Список!D12 -> CRAC | C11: =Список!A12 -> BRAZIL: Campeonato Goiano | D11: =Список!B12 -> 2021.04.17 23:30
A12: =Список!C13 -> Vitoria | B12: =Список!D13 -> AE Altos | C12: =Список!A13 -> BRAZIL: Copa do Nordeste - Play Offs | D12: =Список!B13 -> 2021.04.17 23:30
A13: =Список!C14 -> Nacional Asuncion | B13: =Список!D14 -> Sp. Luqueno | C13: =Список!A14 -> PARAGUAY: Primera Division - Apertura | D13: =Список!B14 -> 2021.04.17 23:45
A14: =Список!C15 -> Caldense | B14: =Список!D15 -> Athletic Club | C14: =Список!A15 -> BRAZIL: Campeonato Mineiro | D14: =Список!B15 -> 2021.04.18 00:00
A15: =Список!C16 -> O'Higgins | B15: =Список!D16 -> La Serena | C15: =Список!A16 -> CHILE: Primera Division | D15: =Список!B16 -> 2021.04.18 00:00
A16: =Список!C17 -> UPNFM | B16: =Список!D17 -> Platense | C16: =Список!A17 -> HONDURAS: Liga Nacional - Clausura - 1st Phase | D16: =Список!B17 -> 2021.04.18 00:00
A17: =Список!C18 -> Atl. San Luis | B17: =Список!D18 -> Puebla | C17: =Список!A18 -> MEXICO: Liga MX - Clausura | D17: =Список!B18 -> 2021.04.18 00:00
A18: =Список!C19 -> Gavilanes de Matamoros | B18: =Список!D19 -> Cruz Azul Hidalgo | C18: =Список!A19 -> MEXICO: Liga Premier Serie A - Play Offs | D18: =Список!B19 -> 2021.04.18 00:00
A19: =Список!C20 -> FUS Rabat | B19: =Список!D20 -> Renaissance Zemamra | C19: =Список!A20 -> MOROCCO: Botola Pro | D19: =Список!B20 -> 2021.04.18 00:00
A20: =Список!C21 -> Olympique de Safi | B20: =Список!D21 -> Rapide Oued Zem | C20: =Список!A21 -> MOROCCO: Botola Pro | D20: =Список!B21 -> 2021.04.18 00:00
A21: =Список!C22 -> Dcheira | B21: =Список!D22 -> Salmi | C21: =Список!A22 -> MOROCCO: Botola 2 | D21: =Список!B22 -> 2021.04.18 00:00
A22: =Список!C23 -> Kawkab Marrakech | B22: =Список!D23 -> Chabab Benguerir | C22: =Список!A23 -> MOROCCO: Botola 2 | D22: =Список!B23 -> 2021.04.18 00:00
A23: =Список!C24 -> Wydad Fes | B23: =Список!D24 -> RAC Casablanca | C23: =Список!A24 -> MOROCCO: Botola 2 | D23: =Список!B24 -> 2021.04.18 00:00
A24: =Список!C25 -> Diriangen U20 | B24: =Список!D25 -> Ferretti U20 | C24: =Список!A25 -> NICARAGUA: Liga Primera U20 - Clausura | D24: =Список!B25 -> 2021.04.18 00:00
A25: =Список!C26 -> Ocotal U20 | B25: =Список!D26 -> Real Madriz U20 | C25: =Список!A26 -> NICARAGUA: Liga Primera U20 - Clausura | D25: =Список!B26 -> 2021.04.18 00:00
A26: =Список!C27 -> Los Angeles FC | B26: =Список!D27 -> Austin FC | C26: =Список!A27 -> USA: MLS | D26: =Список!B27 -> 2021.04.18 00:00
A27: =Список!C28 -> Aucas | B27: =Список!D28 -> Olmedo | C27: =Список!A28 -> ECUADOR: Liga Pro - First stage | D27: =Список!B28 -> 2021.04.18 00:30
A28: =Список!C29 -> Wallidan | B28: =Список!D29 -> Hawks | C28: =Список!A29 -> GAMBIA: GFA League | D28: =Список!B29 -> 2021.04.18 00:30
A29: =Список!C30 -> Lara | B29: =Список!D30 -> Yaracuyanos | C29: =Список!A30 -> VENEZUELA: Primera Division - First stage | D29: =Список!B30 -> 2021.04.18 00:30
A30: =Список!C31 -> Huila | B30: =Список!D31 -> Fortaleza | C30: =Список!A31 -> COLOMBIA: Primera B - Apertura - Quadrangular | D30: =Список!B31 -> 2021.04.18 00:40
A31: =Список!C32 -> Bragantino | B31: =Список!D32 -> Mirassol | C31: =Список!A32 -> BRAZIL: Campeonato Paulista | D31: =Список!B32 -> 2021.04.18 01:00
A32: =Список!C33 -> Corinthians W | B32: =Список!D33 -> Napoli W | C32: =Список!A33 -> BRAZIL: Brasileiro Women | D32: =Список!B33 -> 2021.04.18 01:00
A33: =Список!C34 -> Internacional W | B33: =Список!D34 -> Santos W | C33: =Список!A34 -> BRAZIL: Brasileiro Women | D33: =Список!B34 -> 2021.04.18 01:00
A34: =Список!C35 -> Sao Paulo W | B34: =Список!D35 -> Gremio W | C34: =Список!A35 -> BRAZIL: Brasileiro Women | D34: =Список!B35 -> 2021.04.18 01:00
A35: =Список!C36 -> Zeledon | B35: =Список!D36 -> Limon | C35: =Список!A36 -> COSTA RICA: Primera Division - Clausura | D35: =Список!B36 -> 2021.04.18 01:00
A36: =Список!C37 -> Real de Minas | B36: =Список!D37 -> Vida | C36: =Список!A37 -> HONDURAS: Liga Nacional - Clausura - 1st Phase | D36: =Список!B37 -> 2021.04.18 01:00
A37: =Список!C38 -> Alianza | B37: =Список!D38 -> Herrera | C37: =Список!A38 -> PANAMA: LPF - Apertura | D37: =Список!B38 -> 2021.04.18 01:00
A38: =Список!C39 -> Tormenta | B38: =Список!D39 -> Fort Lauderdale | C38: =Список!A39 -> USA: USL League One | D38: =Список!B39 -> 2021.04.18 01:00
A39: =Список!C40 -> Newells Old Boys | B39: =Список!D40 -> Patronato | C39: =Список!A40 -> ARGENTINA: Copa de la Liga Profesional | D39: =Список!B40 -> 2021.04.18 01:15
A40: =Список!C41 -> Inter Nouakchott | B40: =Список!D41 -> ASAC Concorde | C40: =Список!A41 -> MAURITANIA: Ligue 1 | D40: =Список!B41 -> 2021.04.18 01:15
A41: =Список!C42 -> Sporting San Jose | B41: =Список!D42 -> Guadalupe | C41: =Список!A42 -> COSTA RICA: Primera Division - Clausura | D41: =Список!B42 -> 2021.04.18 02:00
A42: =Список!C43 -> Chalatenango | B42: =Список!D43 -> Sonsonate | C42: =Список!A43 -> EL SALVADOR: Primera Division - Clausura - 2nd Phase | D42: =Список!B43 -> 2021.04.18 02:00
A43: =Список!C44 -> Comunicaciones | B43: =Список!D44 -> Sanarate | C43: =Список!A44 -> GUATEMALA: Liga Nacional - Clausura | D43: =Список!B44 -> 2021.04.18 02:00
A44: =Список!C45 -> Guadalajara Chivas | B44: =Список!D45 -> Club Tijuana | C44: =Список!A45 -> MEXICO: Liga MX - Clausura | D44: =Список!B45 -> 2021.04.18 02:00
A45: =Список!C46 -> Colima FC | B45: =Список!D46 -> Inter Playa Del Carmen | C45: =Список!A46 -> MEXICO: Liga Premier Serie A - Play Offs | D45: =Список!B46 -> 2021.04.18 02:00
A46: =Список!C47 -> River Plate | B46: =Список!D47 -> Sol de America | C46: =Список!A47 -> PARAGUAY: Primera Division - Apertura | D46: =Список!B47 -> 2021.04.18 02:00
A47: =Список!C48 -> DC United | B47: =Список!D48 -> New York City | C47: =Список!A48 -> USA: MLS | D47: =Список!B48 -> 2021.04.18 02:00
A48: =Список!C49 -> FC Dallas | B48: =Список!D49 -> Colorado Rapids | C48: =Список!A49 -> USA: MLS | D48: =Список!B49 -> 2021.04.18 02:00
A49: =Список!C50 -> New York Red Bulls | B49: =Список!D50 -> Sporting Kansas City | C49: =Список!A50 -> USA: MLS | D49: =Список!B50 -> 2021.04.18 02:00
A50: =Список!C51 -> Portuguesa RJ | B50: =Список!D51 -> Flamengo RJ | C50: =Список!A51 -> BRAZIL: Campeonato Carioca - Taca Guanabara | D50: =Список!B51 -> 2021.04.18 02:05
A51: =Список!C52 -> Union La Calera | B51: =Список!D52 -> A. Italiano | C51: =Список!A52 -> CHILE: Primera Division | D51: =Список!B52 -> 2021.04.18 02:30
A52: =Список!C53 -> Chicago Fire | B52: =Список!D53 -> New England Revolution | C52: =Список!A53 -> USA: MLS | D52: =Список!B53 -> 2021.04.18 02:30
A53: =Список!C54 -> Nashville SC | B53: =Список!D54 -> FC Cincinnati | C53: =Список!A54 -> USA: MLS | D53: =Список!B54 -> 2021.04.18 02:30
A54: =Список!C55 -> Guayaquil City | B54: =Список!D55 -> LDU Quito | C54: =Список!A55 -> ECUADOR: Liga Pro - First stage | D54: =Список!B55 -> 2021.04.18 03:00
A55: =Список!C56 -> Ba | B55: =Список!D56 -> Rewa | C55: =Список!A56 -> FIJI: Premier League | D55: =Список!B56 -> 2021.04.18 03:00
A56: =Список!C57 -> Diriangen | B56: =Список!D57 -> Ferretti | C56: =Список!A57 -> NICARAGUA: Liga Primera - Clausura | D56: =Список!B57 -> 2021.04.18 03:00
A57: =Список!C58 -> Ocotal | B57: =Список!D58 -> Real Madriz | C57: =Список!A58 -> NICARAGUA: Liga Primera - Clausura | D57: =Список!B58 -> 2021.04.18 03:00
A58: =Список!C59 -> Novorizontino | B58: =Список!D59 -> Ferroviaria | C58: =Список!A59 -> BRAZIL: Campeonato Paulista | D58: =Список!B59 -> 2021.04.18 03:15
A59: =Список!C60 -> Alianza FC | B59: =Список!D60 -> Jocoro | C59: =Список!A60 -> EL SALVADOR: Primera Division - Clausura - 2nd Phase | D59: =Список!B60 -> 2021.04.18 03:15
A60: =Список!C61 -> Metapan | B60: =Список!D61 -> Aguila | C60: =Список!A61 -> EL SALVADOR: Primera Division - Clausura - 2nd Phase | D60: =Список!B61 -> 2021.04.18 03:15
A61: =Список!C62 -> Honduras Progreso | B61: =Список!D62 -> Olimpia | C61: =Список!A62 -> HONDURAS: Liga Nacional - Clausura - 1st Phase | D61: =Список!B62 -> 2021.04.18 03:15
A62: =Список!C63 -> Herediano | B62: =Список!D63 -> Cartagines | C62: =Список!A63 -> COSTA RICA: Primera Division - Clausura | D62: =Список!B63 -> 2021.04.18 04:00
A63: =Список!C64 -> Puntarenas FC | B63: =Список!D64 -> Municipal San Ramon | C63: =Список!A64 -> COSTA RICA: Liga de Ascenso - Clausura - Play Offs | D63: =Список!B64 -> 2021.04.18 04:00
A64: =Список!C65 -> Motagua | B64: =Список!D65 -> Real Espana | C64: =Список!A65 -> HONDURAS: Liga Nacional - Clausura - 1st Phase | D64: =Список!B65 -> 2021.04.18 04:00
A65: =Список!C66 -> Club America | B65: =Список!D66 -> Cruz Azul | C65: =Список!A66 -> MEXICO: Liga MX - Clausura | D65: =Список!B66 -> 2021.04.18 04:05
A66: =Список!C67 -> Lautoka | B66: =Список!D67 -> Nadroga | C66: =Список!A67 -> FIJI: Premier League | D66: =Список!B67 -> 2021.04.18 05:00
A67: =Список!C68 -> Navua | B67: =Список!D68 -> Nadi | C67: =Список!A68 -> FIJI: Premier League | D67: =Список!B68 -> 2021.04.18 05:00
A68: =Список!C69 -> Suva | B68: =Список!D69 -> Labasa | C68: =Список!A69 -> FIJI: Premier League | D68: =Список!B69 -> 2021.04.18 05:00
A69: =Список!C70 -> Sagamihara | B69: =Список!D70 -> Iwata | C69: =Список!A70 -> JAPAN: J2 League | D69: =Список!B70 -> 2021.04.18 06:00
A70: =Список!C71 -> Harima Albion W | B70: =Список!D71 -> Ehime W | C70: =Список!A71 -> JAPAN: Nadeshiko League Women | D70: =Список!B71 -> 2021.04.18 06:00
A71: =Список!C72 -> Nittaidai W | B71: =Список!D72 -> C-Osaka W | C71: =Список!A72 -> JAPAN: Nadeshiko League Women | D71: =Список!B72 -> 2021.04.18 06:00
A72: =Список!C73 -> Broadmeadow | B72: =Список!D73 -> Weston Workers | C72: =Список!A73 -> AUSTRALIA: NPL Northern NSW | D72: =Список!B73 -> 2021.04.18 06:30
A73: =Список!C74 -> Wollongong Wolves | B73: =Список!D74 -> Blacktown City | C73: =Список!A74 -> AUSTRALIA: NPL NSW | D73: =Список!B74 -> 2021.04.18 06:30
A74: =Список!C75 -> Anyang | B74: =Список!D75 -> Asan | C74: =Список!A75 -> SOUTH KOREA: K League 2 | D74: =Список!B75 -> 2021.04.18 06:30
A75: =Список!C76 -> Canberra Croatia | B75: =Список!D76 -> Tuggeranong Utd | C75: =Список!A76 -> AUSTRALIA: NPL ACT | D75: =Список!B76 -> 2021.04.18 07:00
A76: =Список!C77 -> Gungahlin | B76: =Список!D77 -> Tigers FC | C76: =Список!A77 -> AUSTRALIA: NPL ACT | D76: =Список!B77 -> 2021.04.18 07:00
A77: =Список!C78 -> Kawasaki Frontale | B77: =Список!D78 -> Sanfrecce Hiroshima | C77: =Список!A78 -> JAPAN: J1 League | D77: =Список!B78 -> 2021.04.18 07:00
A78: =Список!C79 -> NGU Nagoya W | B78: =Список!D79 -> Kunoichi W | C78: =Список!A79 -> JAPAN: Nadeshiko League Women | D78: =Список!B79 -> 2021.04.18 07:00
A79: =Список!C80 -> Setagaya Sfida FC W | B79: =Список!D80 -> Yokohama FC Seagulls W | C79: =Список!A80 -> JAPAN: Nadeshiko League Women | D79: =Список!B80 -> 2021.04.18 07:00
A80: =Список!C81 -> Suwon Bluewings | B80: =Список!D81 -> Ulsan Hyundai | C80: =Список!A81 -> SOUTH KOREA: K League 1 | D80: =Список!B81 -> 2021.04.18 07:00
A81: =Список!C82 -> Hwaseong | B81: =Список!D82 -> Pyeongtaek Citizen | C81: =Список!A82 -> SOUTH KOREA: K3 League | D81: =Список!B82 -> 2021.04.18 07:00
A82: =Список!C83 -> Cerezo Osaka | B82: =Список!D83 -> Urawa Reds | C82: =Список!A83 -> JAPAN: J1 League | D82: =Список!B83 -> 2021.04.18 08:00
A83: =Список!C84 -> Nagoya Grampus | B83: =Список!D84 -> Sagan Tosu | C83: =Список!A84 -> JAPAN: J1 League | D83: =Список!B84 -> 2021.04.18 08:00
A84: =Список!C85 -> Gimhae | B84: =Список!D85 -> Paju Citizen | C84: =Список!A85 -> SOUTH KOREA: K3 League | D84: =Список!B85 -> 2021.04.18 08:00
A85: =Список!C86 -> Sydney FC | B85: =Список!D86 -> Adelaide United | C85: =Список!A86 -> AUSTRALIA: A-League | D85: =Список!B86 -> 2021.04.18 08:05
A86: =Список!C87 -> Maitland | B86: =Список!D87 -> Charlestown Azzurri | C86: =Список!A87 -> AUSTRALIA: NPL Northern NSW | D86: =Список!B87 -> 2021.04.18 08:30
A87: =Список!C88 -> Brisbane K. | B87: =Список!D88 -> Bayside | C87: =Список!A88 -> AUSTRALIA: Brisbane Premier League | D87: =Список!B88 -> 2021.04.18 09:00
A88: =Список!C89 -> Gravatt | B88: =Список!D89 -> Toowong | C88: =Список!A89 -> AUSTRALIA: Brisbane Premier League | D88: =Список!B89 -> 2021.04.18 09:00
A89: =Список!C90 -> St. George Willawong | B89: =Список!D90 -> Centenary Stormers | C89: =Список!A90 -> AUSTRALIA: Brisbane Premier League | D89: =Список!B90 -> 2021.04.18 09:00
A90: =Список!C91 -> Hong Kong Rangers | B90: =Список!D91 -> Southern District | C90: =Список!A91 -> HONG KONG: Premier League | D90: =Список!B91 -> 2021.04.18 09:00
A91: =Список!C92 -> Jeonnam | B91: =Список!D92 -> Gimcheon Sangmu | C91: =Список!A92 -> SOUTH KOREA: K League 2 | D91: =Список!B92 -> 2021.04.18 09:00
A92: =Список!C93 -> Kaizer Chiefs U23 | B92: =Список!D93 -> Black Leopards U23 | C92: =Список!A93 -> SOUTH AFRICA: Diski Challenge | D92: =Список!B93 -> 2021.04.18 09:30
A93: =Список!C94 -> Jeonbuk | B93: =Список!D94 -> Seongnam | C93: =Список!A94 -> SOUTH KOREA: K League 1 | D93: =Список!B94 -> 2021.04.18 09:30
A94: =Список!C95 -> Olympic FC | B94: =Список!D95 -> Sunshine Coast Wanderers | C94: =Список!A95 -> AUSTRALIA: NPL Queensland | D94: =Список!B95 -> 2021.04.18 10:00
A95: =Список!C96 -> Gamba Osaka | B95: =Список!D96 -> Shimizu S-Pulse | C95: =Список!A96 -> JAPAN: J1 League | D95: =Список!B96 -> 2021.04.18 10:00
A96: =Список!C97 -> Ripensia Timisoara | B96: =Список!D97 -> U. Cluj | C96: =Список!A97 -> ROMANIA: Liga 2 - Relegation Group | D96: =Список!B97 -> 2021.04.18 10:00
A97: =Список!C98 -> Heniu Prundu Bargaului W | B97: =Список!D98 -> Piros Security W | C97: =Список!A98 -> ROMANIA: Superliga Women - Championship Group | D97: =Список!B98 -> 2021.04.18 10:00
A98: =Список!C99 -> Universitatea Galati W | B98: =Список!D99 -> Ol. Cluj W | C98: =Список!A99 -> ROMANIA: Superliga Women - Championship Group | D98: =Список!B99 -> 2021.04.18 10:00
A99: =Список!C100 -> Vasas Odorhei W | B99: =Список!D100 -> Fortuna Becicherecu Mic W | C99: =Список!A100 -> ROMANIA: Superliga Women - Championship Group | D99: =Список!B100 -> 2021.04.18 10:00
A100: =Список!C101 -> Banat W | B100: =Список!D101 -> Carmen Bucuresti W | C100: =Список!A101 -> ROMANIA: Superliga Women - Relegation Group | D100: =Список!B101 -> 2021.04.18 10:00
A101: =Список!C102 -> Fairplay Bucuresti W | B101: =Список!D102 -> Universitatea Alexandria W | C101: =Список!A102 -> ROMANIA: Superliga Women - Relegation Group | D101: =Список!B102 -> 2021.04.18 10:00
A102: =Список!C103 -> SN Constanta W | B102: =Список!D103 -> Baia Mare W | C102: =Список!A103 -> ROMANIA: Superliga Women - Relegation Group | D102: =Список!B103 -> 2021.04.18 10:00
A103: =Список!C104 -> Zvezda 2005 W | B103: =Список!D104 -> Lokomotiv Moscow W | C103: =Список!A104 -> RUSSIA: Supreme Division Women | D103: =Список!B104 -> 2021.04.18 10:00
A104: =Список!C105 -> Chippa Utd. U23 | B104: =Список!D105 -> Amazulu U23 | C104: =Список!A105 -> SOUTH AFRICA: Diski Challenge | D104: =Список!B105 -> 2021.04.18 10:00
A105: =Список!C106 -> CPC | B105: =Список!D106 -> NTUS | C105: =Список!A106 -> TAIWAN: Premier League | D105: =Список!B106 -> 2021.04.18 10:00
A106: =Список!C107 -> Hang Yuen | B106: =Список!D107 -> Taichung | C106: =Список!A107 -> TAIWAN: Premier League | D106: =Список!B107 -> 2021.04.18 10:00
A107: =Список!C108 -> Taipei Tatung | B107: =Список!D108 -> Taipower | C107: =Список!A108 -> TAIWAN: Premier League | D107: =Список!B108 -> 2021.04.18 10:00
A108: =Список!C109 -> Taiwan Steel | B108: =Список!D109 -> Red Lions | C108: =Список!A109 -> TAIWAN: Premier League | D108: =Список!B109 -> 2021.04.18 10:00
A109: =Список!C110 -> Macarthur FC | B109: =Список!D110 -> Newcastle Jets | C109: =Список!A110 -> AUSTRALIA: A-League | D109: =Список!B110 -> 2021.04.18 10:10
A110: =Список!C111 -> Brisbane U21 | B110: =Список!D111 -> Capalaba FC | C110: =Список!A111 -> AUSTRALIA: NPL Queensland | D110: =Список!B111 -> 2021.04.18 10:15
A111: =Список!C112 -> Zizkov | B111: =Список!D112 -> Usti nad Labem | C111: =Список!A112 -> CZECH REPUBLIC: Division 2 | D111: =Список!B112 -> 2021.04.18 10:15
A112: =Список!C113 -> Sydney FC U21 | B112: =Список!D113 -> APIA Tigers | C112: =Список!A113 -> AUSTRALIA: NPL NSW | D112: =Список!B113 -> 2021.04.18 10:30
A113: =Список!C114 -> A. Klagenfurt | B113: =Список!D114 -> Grazer | C113: =Список!A114 -> AUSTRIA: 2. Liga | D113: =Список!B114 -> 2021.04.18 10:30
A114: =Список!C115 -> Empoli U19 | B114: =Список!D115 -> Sampdoria U19 | C114: =Список!A115 -> ITALY: Primavera 1 | D114: =Список!B115 -> 2021.04.18 10:30
A115: =Список!C116 -> Genoa U19 | B115: =Список!D116 -> Inter U19 | C115: =Список!A116 -> ITALY: Primavera 1 | D115: =Список!B116 -> 2021.04.18 10:30
A116: =Список!C117 -> Samorin | B116: =Список!D117 -> Petrzalka | C116: =Список!A117 -> SLOVAKIA: 2. liga | D116: =Список!B117 -> 2021.04.18 10:30
A117: =Список!C118 -> Altenmarkt W | B117: =Список!D118 -> Wacker Innsbruck W | C117: =Список!A118 -> AUSTRIA: Bundesliga Women | D117: =Список!B118 -> 2021.04.18 11:00
A118: =Список!C119 -> Trnje | B118: =Список!D119 -> Dugo Selo | C118: =Список!A119 -> CROATIA: 3. HNL Center | D118: =Список!B119 -> 2021.04.18 11:00
A119: =Список!C120 -> Zestafoni | B119: =Список!D120 -> Dusheti | C119: =Список!A120 -> GEORGIA: Georgian Cup | D119: =Список!B120 -> 2021.04.18 11:00
A120: =Список!C121 -> Bayern Munich 2 W | B120: =Список!D121 -> Eintracht Frankfurt 2 W | C120: =Список!A121 -> GERMANY: 2. Bundesliga Women | D120: =Список!B121 -> 2021.04.18 11:00
A121: =Список!C122 -> Honved II | B121: =Список!D122 -> Ferencvaros II | C121: =Список!A122 -> HUNGARY: NB III - Centre | D121: =Список!B122 -> 2021.04.18 11:00
A122: =Список!C123 -> Szabadkikoto | B122: =Список!D123 -> Komaromi VSE | C122: =Список!A123 -> HUNGARY: NB III - West | D122: =Список!B123 -> 2021.04.18 11:00
A123: =Список!C124 -> Tatabanya | B123: =Список!D124 -> Puskas Academy II | C123: =Список!A124 -> HUNGARY: NB III - West | D123: =Список!B124 -> 2021.04.18 11:00
A124: =Список!C125 -> Zalaegerszegi II | B124: =Список!D125 -> Papai Perutz | C124: =Список!A125 -> HUNGARY: NB III - West | D124: =Список!B125 -> 2021.04.18 11:00
A125: =Список!C126 -> Taraz | B125: =Список!D126 -> FK Akzhayik | C125: =Список!A126 -> KAZAKHSTAN: Premier League | D125: =Список!B126 -> 2021.04.18 11:00
A126: =Список!C127 -> Ural | B126: =Список!D127 -> Rubin Kazan | C126: =Список!A127 -> RUSSIA: Premier League | D126: =Список!B127 -> 2021.04.18 11:00
A127: =Список!C128 -> Radnicki S. | B127: =Список!D128 -> Toplicanin | C127: =Список!A128 -> SERBIA: Srpska Liga - East | D127: =Список!B128 -> 2021.04.18 11:00
A128: =Список!C129 -> SFS Borac | B128: =Список!D129 -> Buducnost Popovac | C128: =Список!A129 -> SERBIA: Srpska Liga - East | D128: =Список!B129 -> 2021.04.18 11:00
A129: =Список!C130 -> Cerklje W | B129: =Список!D130 -> Olimpija W | C129: =Список!A130 -> SLOVENIA: 1. SZNL Women | D129: =Список!B130 -> 2021.04.18 11:00
A130: =Список!C131 -> Hue | B130: =Список!D131 -> Khanh Hoa | C130: =Список!A131 -> VIETNAM: V.League 2 | D130: =Список!B131 -> 2021.04.18 11:00
A131: =Список!C132 -> UE Santa Coloma | B131: =Список!D132 -> Penya | C131: =Список!A132 -> ANDORRA: Primera Divisió | D131: =Список!B132 -> 2021.04.18 11:30
A132: =Список!C133 -> Sant Julia | B132: =Список!D133 -> Atletic Escaldes | C132: =Список!A133 -> ANDORRA: Primera Divisió - Championship Group | D132: =Список!B133 -> 2021.04.18 11:30
A133: =Список!C134 -> SK Rapid Vienna (Am) | B133: =Список!D134 -> Horn | C133: =Список!A134 -> AUSTRIA: 2. Liga | D133: =Список!B134 -> 2021.04.18 11:30
A134: =Список!C135 -> Pegasus | B134: =Список!D135 -> Resources Capital | C134: =Список!A135 -> HONG KONG: Premier League | D134: =Список!B135 -> 2021.04.18 11:30
A135: =Список!C136 -> Revilla | B135: =Список!D136 -> Guarnizo | C135: =Список!A136 -> SPAIN: Tercera Division - Group 3 - Relegation Group | D135: =Список!B136 -> 2021.04.18 11:30
A136: =Список!C137 -> Basconia | B136: =Список!D137 -> Santuxu | C136: =Список!A137 -> SPAIN: Tercera Division - Group 4 - Second stage | D136: =Список!B137 -> 2021.04.18 11:30
A137: =Список!C138 -> Recambios Colon | B137: =Список!D138 -> Beniganim | C137: =Список!A138 -> SPAIN: Tercera Division - Group 6 - Second stage | D137: =Список!B138 -> 2021.04.18 11:30
A138: =Список!C139 -> Complutense | B138: =Список!D139 -> Real Aranjuez | C138: =Список!A139 -> SPAIN: Tercera Division - Group 7 - Relegation Group | D138: =Список!B139 -> 2021.04.18 11:30
A139: =Список!C140 -> RSD Alcala | B139: =Список!D140 -> El Alamo | C139: =Список!A140 -> SPAIN: Tercera Division - Group 7 - Relegation Group | D139: =Список!B140 -> 2021.04.18 11:30
A140: =Список!C141 -> San Fernando | B140: =Список!D141 -> Atletico Pinto | C140: =Список!A141 -> SPAIN: Tercera Division - Group 7 - Relegation Group | D140: =Список!B141 -> 2021.04.18 11:30
A141: =Список!C142 -> AD Torrejon | B141: =Список!D142 -> Trival Valderas | C141: =Список!A142 -> SPAIN: Tercera Division - Group 7 - Second stage | D141: =Список!B142 -> 2021.04.18 11:30
A142: =Список!C143 -> La Union | B142: =Список!D143 -> Bullense | C142: =Список!A143 -> SPAIN: Tercera Division - Group 13 - Second stage | D142: =Список!B143 -> 2021.04.18 11:30
A143: =Список!C144 -> Zaragoza B | B143: =Список!D144 -> Borja | C143: =Список!A144 -> SPAIN: Tercera Division - Group 17 - Second stage | D143: =Список!B144 -> 2021.04.18 11:30
A144: =Список!C145 -> Almansa | B144: =Список!D145 -> Illescas | C144: =Список!A145 -> SPAIN: Tercera Division - Group 18 - Relegation Group | D144: =Список!B145 -> 2021.04.18 11:30
A145: =Список!C146 -> Sevilla FC W | B145: =Список!D146 -> Atl. Madrid W | C145: =Список!A146 -> SPAIN: Primera Division Women | D145: =Список!B146 -> 2021.04.18 11:30
A146: =Список!C147 -> Siete Villas | B146: =Список!D147 -> Escobedo | C146: =Список!A147 -> SPAIN: Tercera Division - Group 3 - Promotion Group | D146: =Список!B147 -> 2021.04.18 11:45
A147: =Список!C148 -> Grama | B147: =Список!D148 -> Castelldefels | C147: =Список!A148 -> SPAIN: Tercera Division - Group 5 - Second stage | D147: =Список!B148 -> 2021.04.18 11:45
A148: =Список!C149 -> FC Astana | B148: =Список!D149 -> Kyzylzhar | C148: =Список!A149 -> KAZAKHSTAN: Premier League | D148: =Список!B149 -> 2021.04.18 12:00
A149: =Список!C150 -> Korona Kielce 2 | B149: =Список!D150 -> Avia Swidnik | C149: =Список!A150 -> POLAND: III Liga - Group IV | D149: =Список!B150 -> 2021.04.18 12:00
A150: =Список!C151 -> Sporting W | B150: =Список!D151 -> Maritimo W | C150: =Список!A151 -> PORTUGAL: Liga BPI Women - Championship Group | D150: =Список!B151 -> 2021.04.18 12:00
A151: =Список!C152 -> FK Strogino Moscow | B151: =Список!D152 -> Khimki 2 | C151: =Список!A152 -> RUSSIA: PFL - Group 3 | D151: =Список!B152 -> 2021.04.18 12:00
A152: =Список!C153 -> Mamelodi Sundowns U23 | B152: =Список!D153 -> Swallows U23 | C152: =Список!A153 -> SOUTH AFRICA: Diski Challenge | D152: =Список!B153 -> 2021.04.18 12:00
A153: =Список!C154 -> Celta Vigo B | B153: =Список!D154 -> Burgos CF | C153: =Список!A154 -> SPAIN: Segunda Division B - Group 1 - Promotion Group | D153: =Список!B154 -> 2021.04.18 12:00
A154: =Список!C155 -> Guijuelo | B154: =Список!D155 -> Gijon B | C154: =Список!A155 -> SPAIN: Segunda Division B - Group 1 - Relegation Group | D154: =Список!B155 -> 2021.04.18 12:00
A155: =Список!C156 -> Gimnastic | B155: =Список!D156 -> Ibiza | C155: =Список!A156 -> SPAIN: Segunda Division B - Group 3 - Promotion Group | D155: =Список!B156 -> 2021.04.18 12:00
A156: =Список!C157 -> Espanyol B | B156: =Список!D157 -> Pena Deportiva | C156: =Список!A157 -> SPAIN: Segunda Division B - Group 3 - Relegation Group | D156: =Список!B157 -> 2021.04.18 12:00
A157: =Список!C158 -> Prat | B157: =Список!D158 -> Valencia B | C157: =Список!A158 -> SPAIN: Segunda Division B - Group 3 - Relegation Group | D157: =Список!B158 -> 2021.04.18 12:00
A158: =Список!C159 -> Lleida | B158: =Список!D159 -> Levante B | C158: =Список!A159 -> SPAIN: Segunda Division B - Group 3 - Second stage | D158: =Список!B159 -> 2021.04.18 12:00
A159: =Список!C160 -> Algeciras | B159: =Список!D160 -> UCAM Murcia | C159: =Список!A160 -> SPAIN: Segunda Division B - Group 4 - Promotion Group | D159: =Список!B160 -> 2021.04.18 12:00
A160: =Список!C161 -> Cadiz CF B | B160: =Список!D161 -> Cordoba | C160: =Список!A161 -> SPAIN: Segunda Division B - Group 4 - Second stage | D160: =Список!B161 -> 2021.04.18 12:00
A161: =Список!C162 -> San Sebastian Reyes | B161: =Список!D162 -> CD Badajoz | C161: =Список!A162 -> SPAIN: Segunda Division B - Group 5 - Promotion Group | D161: =Список!B162 -> 2021.04.18 12:00
A162: =Список!C163 -> Atl. Madrid B | B162: =Список!D163 -> Melilla | C162: =Список!A163 -> SPAIN: Segunda Division B - Group 5 - Relegation Group | D162: =Список!B163 -> 2021.04.18 12:00
A163: =Список!C164 -> Getafe B | B163: =Список!D164 -> Socuellamos | C163: =Список!A164 -> SPAIN: Segunda Division B - Group 5 - Relegation Group | D163: =Список!B164 -> 2021.04.18 12:00
A164: =Список!C165 -> Las Rozas | B164: =Список!D165 -> Villarrubia | C164: =Список!A165 -> SPAIN: Segunda Division B - Group 5 - Relegation Group | D164: =Список!B165 -> 2021.04.18 12:00
A165: =Список!C166 -> Poblense | B165: =Список!D166 -> Villarrobledo | C165: =Список!A166 -> SPAIN: Segunda Division B - Group 5 - Relegation Group | D165: =Список!B166 -> 2021.04.18 12:00
A166: =Список!C167 -> Baleares | B166: =Список!D167 -> Merida AD | C166: =Список!A167 -> SPAIN: Segunda Division B - Group 5 - Second stage | D166: =Список!B167 -> 2021.04.18 12:00
A167: =Список!C168 -> Real Aviles | B167: =Список!D168 -> Llanes | C167: =Список!A168 -> SPAIN: Tercera Division - Group 2 - Promotion Group | D167: =Список!B168 -> 2021.04.18 12:00
A168: =Список!C169 -> Union Club Ceares | B168: =Список!D169 -> L'Entregu | C168: =Список!A169 -> SPAIN: Tercera Division - Group 2 - Promotion Group | D168: =Список!B169 -> 2021.04.18 12:00
A169: =Список!C170 -> Aviles Stadium | B169: =Список!D170 -> Valdesoto | C169: =Список!A170 -> SPAIN: Tercera Division - Group 2 - Relegation Group | D169: =Список!B170 -> 2021.04.18 12:00
A170: =Список!C171 -> SD Navarro CF | B170: =Список!D171 -> CD Colunga | C170: =Список!A171 -> SPAIN: Tercera Division - Group 2 - Relegation Group | D170: =Список!B171 -> 2021.04.18 12:00
A171: =Список!C172 -> Lenense | B171: =Список!D172 -> Real Titanico | C171: =Список!A172 -> SPAIN: Tercera Division - Group 2 - Second stage | D171: =Список!B172 -> 2021.04.18 12:00
A172: =Список!C173 -> Ariznabarra | B172: =Список!D173 -> Tolosa FC | C172: =Список!A173 -> SPAIN: Tercera Division - Group 4 - Relegation Group | D172: =Список!B173 -> 2021.04.18 12:00
A173: =Список!C174 -> Cerdanyola | B173: =Список!D174 -> Vilafranca | C173: =Список!A174 -> SPAIN: Tercera Division - Group 5 - Promotion Group | D173: =Список!B174 -> 2021.04.18 12:00
A174: =Список!C175 -> Girona B | B174: =Список!D175 -> CE Europa | C174: =Список!A175 -> SPAIN: Tercera Division - Group 5 - Promotion Group | D174: =Список!B175 -> 2021.04.18 12:00
A175: =Список!C176 -> Horta | B175: =Список!D176 -> Pobla Mafumet | C175: =Список!A176 -> SPAIN: Tercera Division - Group 5 - Relegation Group | D175: =Список!B176 -> 2021.04.18 12:00
A176: =Список!C177 -> Vilassar de Mar | B176: =Список!D177 -> San Cristobal CP | C176: =Список!A177 -> SPAIN: Tercera Division - Group 5 - Second stage | D176: =Список!B177 -> 2021.04.18 12:00
A177: =Список!C178 -> Torrent | B177: =Список!D178 -> Hercules B | C177: =Список!A178 -> SPAIN: Tercera Division - Group 6 - Relegation Group | D177: =Список!B178 -> 2021.04.18 12:00
A178: =Список!C179 -> Silla CF | B178: =Список!D179 -> Jove | C178: =Список!A179 -> SPAIN: Tercera Division - Group 6 - Second stage | D178: =Список!B179 -> 2021.04.18 12:00
A179: =Список!C180 -> Rayo Vallecano B | B179: =Список!D180 -> CD Mostoles | C179: =Список!A180 -> SPAIN: Tercera Division - Group 7 - Promotion Group | D179: =Список!B180 -> 2021.04.18 12:00
A180: =Список!C181 -> Union Adarve | B180: =Список!D181 -> Leganes B | C180: =Список!A181 -> SPAIN: Tercera Division - Group 7 - Promotion Group | D180: =Список!B181 -> 2021.04.18 12:00
A181: =Список!C182 -> Santa Ana | B181: =Список!D182 -> Mostoles | C181: =Список!A182 -> SPAIN: Tercera Division - Group 7 - Relegation Group | D181: =Список!B182 -> 2021.04.18 12:00
A182: =Список!C183 -> Pozuelo de Alarcon | B182: =Список!D183 -> Parla | C182: =Список!A183 -> SPAIN: Tercera Division - Group 7 - Second stage | D182: =Список!B183 -> 2021.04.18 12:00
A183: =Список!C184 -> CP Almeria | B183: =Список!D184 -> Motril | C183: =Список!A184 -> SPAIN: Tercera Division - Group 9 - Relegation Group | D183: =Список!B184 -> 2021.04.18 12:00
A184: =Список!C185 -> Maracena | B184: =Список!D185 -> CD Alhaurino | C184: =Список!A185 -> SPAIN: Tercera Division - Group 9 - Relegation Group | D184: =Список!B185 -> 2021.04.18 12:00
A185: =Список!C186 -> Huetor Vega | B185: =Список!D186 -> Malaga B | C185: =Список!A186 -> SPAIN: Tercera Division - Group 9 - Second stage | D185: =Список!B186 -> 2021.04.18 12:00
A186: =Список!C187 -> Ceuta | B186: =Список!D187 -> Ciudad de Lucena | C186: =Список!A187 -> SPAIN: Tercera Division - Group 10 - Promotion Group | D186: =Список!B187 -> 2021.04.18 12:00
A187: =Список!C188 -> Arcos CF | B187: =Список!D188 -> Sevilla FC C | C187: =Список!A188 -> SPAIN: Tercera Division - Group 10 - Relegation Group | D187: =Список!B188 -> 2021.04.18 12:00
A188: =Список!C189 -> Cabecense | B188: =Список!D189 -> CD Gerena | C188: =Список!A189 -> SPAIN: Tercera Division - Group 10 - Relegation Group | D188: =Список!B189 -> 2021.04.18 12:00
A189: =Список!C190 -> Antoniano | B189: =Список!D190 -> CD Utrera | C189: =Список!A190 -> SPAIN: Tercera Division - Group 10 - Second stage | D189: =Список!B190 -> 2021.04.18 12:00
A190: =Список!C191 -> Rota | B190: =Список!D191 -> Pozoblanco | C190: =Список!A191 -> SPAIN: Tercera Division - Group 10 - Second stage | D190: =Список!B191 -> 2021.04.18 12:00
A191: =Список!C192 -> Constancia | B191: =Список!D192 -> Platges de Calvia | C191: =Список!A192 -> SPAIN: Tercera Division - Group 11 - Promotion Group | D191: =Список!B192 -> 2021.04.18 12:00
A192: =Список!C193 -> Ibiza Islas Pitiusas | B192: =Список!D193 -> Formentera | C192: =Список!A193 -> SPAIN: Tercera Division - Group 11 - Promotion Group | D192: =Список!B193 -> 2021.04.18 12:00
A193: =Список!C194 -> Felanitx | B193: =Список!D194 -> Santa Catalina Atletico | C193: =Список!A194 -> SPAIN: Tercera Division - Group 11 - Relegation Group | D193: =Список!B194 -> 2021.04.18 12:00
A194: =Список!C195 -> Ferriolense | B194: =Список!D195 -> Alcudia | C194: =Список!A195 -> SPAIN: Tercera Division - Group 11 - Relegation Group | D194: =Список!B195 -> 2021.04.18 12:00
A195: =Список!C196 -> Montijo | B195: =Список!D196 -> Diocesano | C195: =Список!A196 -> SPAIN: Tercera Division - Group 14 - Promotion Group | D195: =Список!B196 -> 2021.04.18 12:00
A196: =Список!C197 -> Fuente de Cantos | B196: =Список!D197 -> Chinato | C196: =Список!A197 -> SPAIN: Tercera Division - Group 14 - Relegation Group | D196: =Список!B197 -> 2021.04.18 12:00
A197: =Список!C198 -> Olivenza | B197: =Список!D198 -> CD Calamonte | C197: =Список!A198 -> SPAIN: Tercera Division - Group 14 - Relegation Group | D197: =Список!B198 -> 2021.04.18 12:00
A198: =Список!C199 -> Azuaga | B198: =Список!D199 -> Extremadura UD B | C198: =Список!A199 -> SPAIN: Tercera Division - Group 14 - Second stage | D198: =Список!B199 -> 2021.04.18 12:00
A199: =Список!C200 -> Miajadas | B199: =Список!D200 -> Aceuchal | C199: =Список!A200 -> SPAIN: Tercera Division - Group 14 - Second stage | D199: =Список!B200 -> 2021.04.18 12:00
A200: =Список!C201 -> Varea | B200: =Список!D201 -> Logrones Promesas | C200: =Список!A201 -> SPAIN: Tercera Division - Group 16 - Promotion Group | D200: =Список!B201 -> 2021.04.18 12:00
... 800 more rows

Sheet Лист4 (hidden)
A1: =Список!C2 -> Boca Juniors | B1: =Список!A2 -> ARGENTINA: Copa de la Liga Profesional
A2: =Список!C3 -> Delfines Del Este | B2: =Список!A3 -> DOMINICAN REPUBLIC: LDF
A3: =Список!C4 -> Santa Lucia | B3: =Список!A4 -> GUATEMALA: Liga Nacional - Clausura
A4: =Список!C5 -> Cosmopolites | B4: =Список!A5 -> HAITI: Championnat National - Serie de Cloture
A5: =Список!C6 -> Cafetaleros de Chiapas 2 | B5: =Список!A6 -> MEXICO: Liga Premier Serie A - Play Offs
A6: =Список!C7 -> Managua FC U20 | B6: =Список!A7 -> NICARAGUA: Liga Primera U20 - Clausura
A7: =Список!C8 -> New England II | B7: =Список!A8 -> USA: USL League One
A8: =Список!C9 -> Real Sociedad | B8: =Список!A9 -> HONDURAS: Liga Nacional - Clausura - 1st Phase
A9: =Список!C10 -> Nouakchott King's | B9: =Список!A10 -> MAURITANIA: Ligue 1
A10: =Список!C11 -> JSM Tiaret | B10: =Список!A11 -> ALGERIA: Ligue 2
A11: =Список!C12 -> Atletico GO | B11: =Список!A12 -> BRAZIL: Campeonato Goiano
A12: =Список!C13 -> Vitoria | B12: =Список!A13 -> BRAZIL: Copa do Nordeste - Play Offs
A13: =Список!C14 -> Nacional Asuncion | B13: =Список!A14 -> PARAGUAY: Primera Division - Apertura
A14: =Список!C15 -> Caldense | B14: =Список!A15 -> BRAZIL: Campeonato Mineiro
A15: =Список!C16 -> O'Higgins | B15: =Список!A16 -> CHILE: Primera Division
A16: =Список!C17 -> UPNFM | B16: =Список!A17 -> HONDURAS: Liga Nacional - Clausura - 1st Phase
A17: =Список!C18 -> Atl. San Luis | B17: =Список!A18 -> MEXICO: Liga MX - Clausura
A18: =Список!C19 -> Gavilanes de Matamoros | B18: =Список!A19 -> MEXICO: Liga Premier Serie A - Play Offs
A19: =Список!C20 -> FUS Rabat | B19: =Список!A20 -> MOROCCO: Botola Pro
A20: =Список!C21 -> Olympique de Safi | B20: =Список!A21 -> MOROCCO: Botola Pro
A21: =Список!C22 -> Dcheira | B21: =Список!A22 -> MOROCCO: Botola 2
A22: =Список!C23 -> Kawkab Marrakech | B22: =Список!A23 -> MOROCCO: Botola 2
A23: =Список!C24 -> Wydad Fes | B23: =Список!A24 -> MOROCCO: Botola 2
A24: =Список!C25 -> Diriangen U20 | B24: =Список!A25 -> NICARAGUA: Liga Primera U20 - Clausura
A25: =Список!C26 -> Ocotal U20 | B25: =Список!A26 -> NICARAGUA: Liga Primera U20 - Clausura
A26: =Список!C27 -> Los Angeles FC | B26: =Список!A27 -> USA: MLS
A27: =Список!C28 -> Aucas | B27: =Список!A28 -> ECUADOR: Liga Pro - First stage
A28: =Список!C29 -> Wallidan | B28: =Список!A29 -> GAMBIA: GFA League
A29: =Список!C30 -> Lara | B29: =Список!A30 -> VENEZUELA: Primera Division - First stage
A30: =Список!C31 -> Huila | B30: =Список!A31 -> COLOMBIA: Primera B - Apertura - Quadrangular
A31: =Список!C32 -> Bragantino | B31: =Список!A32 -> BRAZIL: Campeonato Paulista
A32: =Список!C33 -> Corinthians W | B32: =Список!A33 -> BRAZIL: Brasileiro Women
A33: =Список!C34 -> Internacional W | B33: =Список!A34 -> BRAZIL: Brasileiro Women
A34: =Список!C35 -> Sao Paulo W | B34: =Список!A35 -> BRAZIL: Brasileiro Women
A35: =Список!C36 -> Zeledon | B35: =Список!A36 -> COSTA RICA: Primera Division - Clausura
A36: =Список!C37 -> Real de Minas | B36: =Список!A37 -> HONDURAS: Liga Nacional - Clausura - 1st Phase
A37: =Список!C38 -> Alianza | B37: =Список!A38 -> PANAMA: LPF - Apertura
A38: =Список!C39 -> Tormenta | B38: =Список!A39 -> USA: USL League One
A39: =Список!C40 -> Newells Old Boys | B39: =Список!A40 -> ARGENTINA: Copa de la Liga Profesional
A40: =Список!C41 -> Inter Nouakchott | B40: =Список!A41 -> MAURITANIA: Ligue 1
A41: =Список!C42 -> Sporting San Jose | B41: =Список!A42 -> COSTA RICA: Primera Division - Clausura
A42: =Список!C43 -> Chalatenango | B42: =Список!A43 -> EL SALVADOR: Primera Division - Clausura - 2nd Phase
A43: =Список!C44 -> Comunicaciones | B43: =Список!A44 -> GUATEMALA: Liga Nacional - Clausura
A44: =Список!C45 -> Guadalajara Chivas | B44: =Список!A45 -> MEXICO: Liga MX - Clausura
A45: =Список!C46 -> Colima FC | B45: =Список!A46 -> MEXICO: Liga Premier Serie A - Play Offs
A46: =Список!C47 -> River Plate | B46: =Список!A47 -> PARAGUAY: Primera Division - Apertura
A47: =Список!C48 -> DC United | B47: =Список!A48 -> USA: MLS
A48: =Список!C49 -> FC Dallas | B48: =Список!A49 -> USA: MLS
A49: =Список!C50 -> New York Red Bulls | B49: =Список!A50 -> USA: MLS
A50: =Список!C51 -> Portuguesa RJ | B50: =Список!A51 -> BRAZIL: Campeonato Carioca - Taca Guanabara
A51: =Список!C52 -> Union La Calera | B51: =Список!A52 -> CHILE: Primera Division
A52: =Список!C53 -> Chicago Fire | B52: =Список!A53 -> USA: MLS
A53: =Список!C54 -> Nashville SC | B53: =Список!A54 -> USA: MLS
A54: =Список!C55 -> Guayaquil City | B54: =Список!A55 -> ECUADOR: Liga Pro - First stage
A55: =Список!C56 -> Ba | B55: =Список!A56 -> FIJI: Premier League
A56: =Список!C57 -> Diriangen | B56: =Список!A57 -> NICARAGUA: Liga Primera - Clausura
A57: =Список!C58 -> Ocotal | B57: =Список!A58 -> NICARAGUA: Liga Primera - Clausura
A58: =Список!C59 -> Novorizontino | B58: =Список!A59 -> BRAZIL: Campeonato Paulista
A59: =Список!C60 -> Alianza FC | B59: =Список!A60 -> EL SALVADOR: Primera Division - Clausura - 2nd Phase
A60: =Список!C61 -> Metapan | B60: =Список!A61 -> EL SALVADOR: Primera Division - Clausura - 2nd Phase
A61: =Список!C62 -> Honduras Progreso | B61: =Список!A62 -> HONDURAS: Liga Nacional - Clausura - 1st Phase
A62: =Список!C63 -> Herediano | B62: =Список!A63 -> COSTA RICA: Primera Division - Clausura
A63: =Список!C64 -> Puntarenas FC | B63: =Список!A64 -> COSTA RICA: Liga de Ascenso - Clausura - Play Offs
A64: =Список!C65 -> Motagua | B64: =Список!A65 -> HONDURAS: Liga Nacional - Clausura - 1st Phase
A65: =Список!C66 -> Club America | B65: =Список!A66 -> MEXICO: Liga MX - Clausura
A66: =Список!C67 -> Lautoka | B66: =Список!A67 -> FIJI: Premier League
A67: =Список!C68 -> Navua | B67: =Список!A68 -> FIJI: Premier League
A68: =Список!C69 -> Suva | B68: =Список!A69 -> FIJI: Premier League
A69: =Список!C70 -> Sagamihara | B69: =Список!A70 -> JAPAN: J2 League
A70: =Список!C71 -> Harima Albion W | B70: =Список!A71 -> JAPAN: Nadeshiko League Women
A71: =Список!C72 -> Nittaidai W | B71: =Список!A72 -> JAPAN: Nadeshiko League Women
A72: =Список!C73 -> Broadmeadow | B72: =Список!A73 -> AUSTRALIA: NPL Northern NSW
A73: =Список!C74 -> Wollongong Wolves | B73: =Список!A74 -> AUSTRALIA: NPL NSW
A74: =Список!C75 -> Anyang | B74: =Список!A75 -> SOUTH KOREA: K League 2
A75: =Список!C76 -> Canberra Croatia | B75: =Список!A76 -> AUSTRALIA: NPL ACT
A76: =Список!C77 -> Gungahlin | B76: =Список!A77 -> AUSTRALIA: NPL ACT
A77: =Список!C78 -> Kawasaki Frontale | B77: =Список!A78 -> JAPAN: J1 League
A78: =Список!C79 -> NGU Nagoya W | B78: =Список!A79 -> JAPAN: Nadeshiko League Women
A79: =Список!C80 -> Setagaya Sfida FC W | B79: =Список!A80 -> JAPAN: Nadeshiko League Women
A80: =Список!C81 -> Suwon Bluewings | B80: =Список!A81 -> SOUTH KOREA: K League 1
A81: =Список!C82 -> Hwaseong | B81: =Список!A82 -> SOUTH KOREA: K3 League
A82: =Список!C83 -> Cerezo Osaka | B82: =Список!A83 -> JAPAN: J1 League
A83: =Список!C84 -> Nagoya Grampus | B83: =Список!A84 -> JAPAN: J1 League
A84: =Список!C85 -> Gimhae | B84: =Список!A85 -> SOUTH KOREA: K3 League
A85: =Список!C86 -> Sydney FC | B85: =Список!A86 -> AUSTRALIA: A-League
A86: =Список!C87 -> Maitland | B86: =Список!A87 -> AUSTRALIA: NPL Northern NSW
A87: =Список!C88 -> Brisbane K. | B87: =Список!A88 -> AUSTRALIA: Brisbane Premier League
A88: =Список!C89 -> Gravatt | B88: =Список!A89 -> AUSTRALIA: Brisbane Premier League
A89: =Список!C90 -> St. George Willawong | B89: =Список!A90 -> AUSTRALIA: Brisbane Premier League
A90: =Список!C91 -> Hong Kong Rangers | B90: =Список!A91 -> HONG KONG: Premier League
A91: =Список!C92 -> Jeonnam | B91: =Список!A92 -> SOUTH KOREA: K League 2
A92: =Список!C93 -> Kaizer Chiefs U23 | B92: =Список!A93 -> SOUTH AFRICA: Diski Challenge
A93: =Список!C94 -> Jeonbuk | B93: =Список!A94 -> SOUTH KOREA: K League 1
A94: =Список!C95 -> Olympic FC | B94: =Список!A95 -> AUSTRALIA: NPL Queensland
A95: =Список!C96 -> Gamba Osaka | B95: =Список!A96 -> JAPAN: J1 League
A96: =Список!C97 -> Ripensia Timisoara | B96: =Список!A97 -> ROMANIA: Liga 2 - Relegation Group
A97: =Список!C98 -> Heniu Prundu Bargaului W | B97: =Список!A98 -> ROMANIA: Superliga Women - Championship Group
A98: =Список!C99 -> Universitatea Galati W | B98: =Список!A99 -> ROMANIA: Superliga Women - Championship Group
A99: =Список!C100 -> Vasas Odorhei W | B99: =Список!A100 -> ROMANIA: Superliga Women - Championship Group
A100: =Список!C101 -> Banat W | B100: =Список!A101 -> ROMANIA: Superliga Women - Relegation Group
A101: =Список!C102 -> Fairplay Bucuresti W | B101: =Список!A102 -> ROMANIA: Superliga Women - Relegation Group
A102: =Список!C103 -> SN Constanta W | B102: =Список!A103 -> ROMANIA: Superliga Women - Relegation Group
A103: =Список!C104 -> Zvezda 2005 W | B103: =Список!A104 -> RUSSIA: Supreme Division Women
A104: =Список!C105 -> Chippa Utd. U23 | B104: =Список!A105 -> SOUTH AFRICA: Diski Challenge
A105: =Список!C106 -> CPC | B105: =Список!A106 -> TAIWAN: Premier League
A106: =Список!C107 -> Hang Yuen | B106: =Список!A107 -> TAIWAN: Premier League
A107: =Список!C108 -> Taipei Tatung | B107: =Список!A108 -> TAIWAN: Premier League
A108: =Список!C109 -> Taiwan Steel | B108: =Список!A109 -> TAIWAN: Premier League
A109: =Список!C110 -> Macarthur FC | B109: =Список!A110 -> AUSTRALIA: A-League
A110: =Список!C111 -> Brisbane U21 | B110: =Список!A111 -> AUSTRALIA: NPL Queensland
A111: =Список!C112 -> Zizkov | B111: =Список!A112 -> CZECH REPUBLIC: Division 2
A112: =Список!C113 -> Sydney FC U21 | B112: =Список!A113 -> AUSTRALIA: NPL NSW
A113: =Список!C114 -> A. Klagenfurt | B113: =Список!A114 -> AUSTRIA: 2. Liga
A114: =Список!C115 -> Empoli U19 | B114: =Список!A115 -> ITALY: Primavera 1
A115: =Список!C116 -> Genoa U19 | B115: =Список!A116 -> ITALY: Primavera 1
A116: =Список!C117 -> Samorin | B116: =Список!A117 -> SLOVAKIA: 2. liga
A117: =Список!C118 -> Altenmarkt W | B117: =Список!A118 -> AUSTRIA: Bundesliga Women
A118: =Список!C119 -> Trnje | B118: =Список!A119 -> CROATIA: 3. HNL Center
A119: =Список!C120 -> Zestafoni | B119: =Список!A120 -> GEORGIA: Georgian Cup
A120: =Список!C121 -> Bayern Munich 2 W | B120: =Список!A121 -> GERMANY: 2. Bundesliga Women
A121: =Список!C122 -> Honved II | B121: =Список!A122 -> HUNGARY: NB III - Centre
A122: =Список!C123 -> Szabadkikoto | B122: =Список!A123 -> HUNGARY: NB III - West
A123: =Список!C124 -> Tatabanya | B123: =Список!A124 -> HUNGARY: NB III - West
A124: =Список!C125 -> Zalaegerszegi II | B124: =Список!A125 -> HUNGARY: NB III - West
A125: =Список!C126 -> Taraz | B125: =Список!A126 -> KAZAKHSTAN: Premier League
A126: =Список!C127 -> Ural | B126: =Список!A127 -> RUSSIA: Premier League
A127: =Список!C128 -> Radnicki S. | B127: =Список!A128 -> SERBIA: Srpska Liga - East
A128: =Список!C129 -> SFS Borac | B128: =Список!A129 -> SERBIA: Srpska Liga - East
A129: =Список!C130 -> Cerklje W | B129: =Список!A130 -> SLOVENIA: 1. SZNL Women
A130: =Список!C131 -> Hue | B130: =Список!A131 -> VIETNAM: V.League 2
A131: =Список!C132 -> UE Santa Coloma | B131: =Список!A132 -> ANDORRA: Primera Divisió
A132: =Список!C133 -> Sant Julia | B132: =Список!A133 -> ANDORRA: Primera Divisió - Championship Group
A133: =Список!C134 -> SK Rapid Vienna (Am) | B133: =Список!A134 -> AUSTRIA: 2. Liga
A134: =Список!C135 -> Pegasus | B134: =Список!A135 -> HONG KONG: Premier League
A135: =Список!C136 -> Revilla | B135: =Список!A136 -> SPAIN: Tercera Division - Group 3 - Relegation Group
A136: =Список!C137 -> Basconia | B136: =Список!A137 -> SPAIN: Tercera Division - Group 4 - Second stage
A137: =Список!C138 -> Recambios Colon | B137: =Список!A138 -> SPAIN: Tercera Division - Group 6 - Second stage
A138: =Список!C139 -> Complutense | B138: =Список!A139 -> SPAIN: Tercera Division - Group 7 - Relegation Group
A139: =Список!C140 -> RSD Alcala | B139: =Список!A140 -> SPAIN: Tercera Division - Group 7 - Relegation Group
A140: =Список!C141 -> San Fernando | B140: =Список!A141 -> SPAIN: Tercera Division - Group 7 - Relegation Group
A141: =Список!C142 -> AD Torrejon | B141: =Список!A142 -> SPAIN: Tercera Division - Group 7 - Second stage
A142: =Список!C143 -> La Union | B142: =Список!A143 -> SPAIN: Tercera Division - Group 13 - Second stage
A143: =Список!C144 -> Zaragoza B | B143: =Список!A144 -> SPAIN: Tercera Division - Group 17 - Second stage
A144: =Список!C145 -> Almansa | B144: =Список!A145 -> SPAIN: Tercera Division - Group 18 - Relegation Group
A145: =Список!C146 -> Sevilla FC W | B145: =Список!A146 -> SPAIN: Primera Division Women
A146: =Список!C147 -> Siete Villas | B146: =Список!A147 -> SPAIN: Tercera Division - Group 3 - Promotion Group
A147: =Список!C148 -> Grama | B147: =Список!A148 -> SPAIN: Tercera Division - Group 5 - Second stage
A148: =Список!C149 -> FC Astana | B148: =Список!A149 -> KAZAKHSTAN: Premier League
A149: =Список!C150 -> Korona Kielce 2 | B149: =Список!A150 -> POLAND: III Liga - Group IV
A150: =Список!C151 -> Sporting W | B150: =Список!A151 -> PORTUGAL: Liga BPI Women - Championship Group
A151: =Список!C152 -> FK Strogino Moscow | B151: =Список!A152 -> RUSSIA: PFL - Group 3
A152: =Список!C153 -> Mamelodi Sundowns U23 | B152: =Список!A153 -> SOUTH AFRICA: Diski Challenge
A153: =Список!C154 -> Celta Vigo B | B153: =Список!A154 -> SPAIN: Segunda Division B - Group 1 - Promotion Group
A154: =Список!C155 -> Guijuelo | B154: =Список!A155 -> SPAIN: Segunda Division B - Group 1 - Relegation Group
A155: =Список!C156 -> Gimnastic | B155: =Список!A156 -> SPAIN: Segunda Division B - Group 3 - Promotion Group
A156: =Список!C157 -> Espanyol B | B156: =Список!A157 -> SPAIN: Segunda Division B - Group 3 - Relegation Group
A157: =Список!C158 -> Prat | B157: =Список!A158 -> SPAIN: Segunda Division B - Group 3 - Relegation Group
A158: =Список!C159 -> Lleida | B158: =Список!A159 -> SPAIN: Segunda Division B - Group 3 - Second stage
A159: =Список!C160 -> Algeciras | B159: =Список!A160 -> SPAIN: Segunda Division B - Group 4 - Promotion Group
A160: =Список!C161 -> Cadiz CF B | B160: =Список!A161 -> SPAIN: Segunda Division B - Group 4 - Second stage
A161: =Список!C162 -> San Sebastian Reyes | B161: =Список!A162 -> SPAIN: Segunda Division B - Group 5 - Promotion Group
A162: =Список!C163 -> Atl. Madrid B | B162: =Список!A163 -> SPAIN: Segunda Division B - Group 5 - Relegation Group
A163: =Список!C164 -> Getafe B | B163: =Список!A164 -> SPAIN: Segunda Division B - Group 5 - Relegation Group
A164: =Список!C165 -> Las Rozas | B164: =Список!A165 -> SPAIN: Segunda Division B - Group 5 - Relegation Group
A165: =Список!C166 -> Poblense | B165: =Список!A166 -> SPAIN: Segunda Division B - Group 5 - Relegation Group
A166: =Список!C167 -> Baleares | B166: =Список!A167 -> SPAIN: Segunda Division B - Group 5 - Second stage
A167: =Список!C168 -> Real Aviles | B167: =Список!A168 -> SPAIN: Tercera Division - Group 2 - Promotion Group
A168: =Список!C169 -> Union Club Ceares | B168: =Список!A169 -> SPAIN: Tercera Division - Group 2 - Promotion Group
A169: =Список!C170 -> Aviles Stadium | B169: =Список!A170 -> SPAIN: Tercera Division - Group 2 - Relegation Group
A170: =Список!C171 -> SD Navarro CF | B170: =Список!A171 -> SPAIN: Tercera Division - Group 2 - Relegation Group
A171: =Список!C172 -> Lenense | B171: =Список!A172 -> SPAIN: Tercera Division - Group 2 - Second stage
A172: =Список!C173 -> Ariznabarra | B172: =Список!A173 -> SPAIN: Tercera Division - Group 4 - Relegation Group
A173: =Список!C174 -> Cerdanyola | B173: =Список!A174 -> SPAIN: Tercera Division - Group 5 - Promotion Group
A174: =Список!C175 -> Girona B | B174: =Список!A175 -> SPAIN: Tercera Division - Group 5 - Promotion Group
A175: =Список!C176 -> Horta | B175: =Список!A176 -> SPAIN: Tercera Division - Group 5 - Relegation Group
A176: =Список!C177 -> Vilassar de Mar | B176: =Список!A177 -> SPAIN: Tercera Division - Group 5 - Second stage
A177: =Список!C178 -> Torrent | B177: =Список!A178 -> SPAIN: Tercera Division - Group 6 - Relegation Group
A178: =Список!C179 -> Silla CF | B178: =Список!A179 -> SPAIN: Tercera Division - Group 6 - Second stage
A179: =Список!C180 -> Rayo Vallecano B | B179: =Список!A180 -> SPAIN: Tercera Division - Group 7 - Promotion Group
A180: =Список!C181 -> Union Adarve | B180: =Список!A181 -> SPAIN: Tercera Division - Group 7 - Promotion Group
A181: =Список!C182 -> Santa Ana | B181: =Список!A182 -> SPAIN: Tercera Division - Group 7 - Relegation Group
A182: =Список!C183 -> Pozuelo de Alarcon | B182: =Список!A183 -> SPAIN: Tercera Division - Group 7 - Second stage
A183: =Список!C184 -> CP Almeria | B183: =Список!A184 -> SPAIN: Tercera Division - Group 9 - Relegation Group
A184: =Список!C185 -> Maracena | B184: =Список!A185 -> SPAIN: Tercera Division - Group 9 - Relegation Group
A185: =Список!C186 -> Huetor Vega | B185: =Список!A186 -> SPAIN: Tercera Division - Group 9 - Second stage
A186: =Список!C187 -> Ceuta | B186: =Список!A187 -> SPAIN: Tercera Division - Group 10 - Promotion Group
A187: =Список!C188 -> Arcos CF | B187: =Список!A188 -> SPAIN: Tercera Division - Group 10 - Relegation Group
A188: =Список!C189 -> Cabecense | B188: =Список!A189 -> SPAIN: Tercera Division - Group 10 - Relegation Group
A189: =Список!C190 -> Antoniano | B189: =Список!A190 -> SPAIN: Tercera Division - Group 10 - Second stage
A190: =Список!C191 -> Rota | B190: =Список!A191 -> SPAIN: Tercera Division - Group 10 - Second stage
A191: =Список!C192 -> Constancia | B191: =Список!A192 -> SPAIN: Tercera Division - Group 11 - Promotion Group
A192: =Список!C193 -> Ibiza Islas Pitiusas | B192: =Список!A193 -> SPAIN: Tercera Division - Group 11 - Promotion Group
A193: =Список!C194 -> Felanitx | B193: =Список!A194 -> SPAIN: Tercera Division - Group 11 - Relegation Group
A194: =Список!C195 -> Ferriolense | B194: =Список!A195 -> SPAIN: Tercera Division - Group 11 - Relegation Group
A195: =Список!C196 -> Montijo | B195: =Список!A196 -> SPAIN: Tercera Division - Group 14 - Promotion Group
A196: =Список!C197 -> Fuente de Cantos | B196: =Список!A197 -> SPAIN: Tercera Division - Group 14 - Relegation Group
A197: =Список!C198 -> Olivenza | B197: =Список!A198 -> SPAIN: Tercera Division - Group 14 - Relegation Group
A198: =Список!C199 -> Azuaga | B198: =Список!A199 -> SPAIN: Tercera Division - Group 14 - Second stage
A199: =Список!C200 -> Miajadas | B199: =Список!A200 -> SPAIN: Tercera Division - Group 14 - Second stage
A200: =Список!C201 -> Varea | B200: =Список!A201 -> SPAIN: Tercera Division - Group 16 - Promotion Group
... 2300 more rows

Sheet Старт
S2: GMT +0 | T2: 3 | U2: =TODAY()-7 -> 2021-04-11 | V2: 8 | W2: flashscore.com (EN) | X2: 2
S3: GMT +1 | U3: =TODAY()-6 -> 2021-04-12 | W3: soccerstand.com (EN)
S4: GMT +2 | U4: =TODAY()-5 -> 2021-04-13 | W4: soccerstand.com (RU)
S5: GMT +3 | U5: =TODAY()-4 -> 2021-04-14 | W5: myscore.ru (RU)
S6: GMT +4 | U6: =TODAY()-3 -> 2021-04-15 | W6: myscore.com.ua (RU)
S7: GMT +5 | U7: =TODAY() -2 -> 2021-04-16
S8: GMT +6 | U8: Вчера
S9: GMT +7 | U9: Сегодня
S10: GMT +8 | U10: Завтра
S11: GMT +9 | U11: =TODAY()+2 -> 2021-04-20
S12: GMT +10 | U12: =TODAY()+3 -> 2021-04-21
S13: GMT +11 | U13: =TODAY()+4 -> 2021-04-22
S14: GMT +12 | U14: =TODAY()+5 -> 2021-04-23
S15: GMT +13 | U15: =TODAY()+6 -> 2021-04-24
U16: =TODAY()+7 -> 2021-04-25
V19: 7
V20: 8

Sheet Список
A1: Чемпионат | B1: Дата/Время | C1: Дома | D1: Гости | E1: Match_ID | F1: Country_ID | G1: home_ID | H1: away_ID | I1: Загрузить | J1: К1 | K1: К2 | L1: П1 текущий | M1: Х текущий | N1: П2 текущий | O1: П1 старт | P1: Х старт | Q1: П2 старт | R1: П1 прогруз | S1: Х прогруз | T1: П2 прогруз | Y1: riOHlhkg
A2: ARGENTINA: Copa de la Liga Profesional | B2: 2021.04.17 23:00 | C2: Boca Juniors | D2: Atl. Tucuman | E2: t8eC7CNi | F2: 22 | I2: Загрузить | J2: 3 | K2: 1 | L2: 1.55 | M2: 3.8 | N2: 5.25 | O2: 1.6 | P2: 3.75 | Q2: 4.75 | R2: =IF(L2="","",L2-O2) -> -0.05 | S2: 0.05 | T2: 0.5
A3: DOMINICAN REPUBLIC: LDF | B3: 2021.04.17 23:00 | C3: Delfines Del Este | D3: Atl. San Francisco | E3: zDux6ner | F3: 66 | I3: Загрузить | J3: 5 | K3: 1 | L3: 1.75 | M3: 3.58 | N3: 4.36 | O3: 2.33 | P3: 3.26 | Q3: 2.9 | R3: -0.58 | S3: 0.32 | T3: 1.46
A4: GUATEMALA: Liga Nacional - Clausura | B4: 2021.04.17 23:00 | C4: Santa Lucia | D4: Coban Imperial | E4: WA7Telwk | F4: 85 | I4: Загрузить | J4: 1 | K4: 1 | L4: 2.29 | M4: 2.93 | N4: 3.3 | O4: 2.47 | P4: 3.1 | Q4: 2.87 | R4: -0.18 | S4: -0.17 | T4: 0.43
A5: HAITI: Championnat National - Serie de Cloture | B5: 2021.04.17 23:00 | C5: Cosmopolites | D5: Fica | E5: WOYIyJdC | F5: 89 | I5: Загрузить | J5: 2 | K5: 0 | L5: 2.78 | M5: 2.74 | N5: 2.76 | O5: 2.7 | P5: 2.8 | Q5: 2.7 | R5: 0.08 | S5: -0.06 | T5: 0.06
A6: MEXICO: Liga Premier Serie A - Play Offs | B6: 2021.04.17 23:00 | C6: Cafetaleros de Chiapas 2 | D6: Alacranes de Durango | E6: AsY0zNQM | F6: 128 | I6: Загрузить | J6: 0 | K6: 0
A7: NICARAGUA: Liga Primera U20 - Clausura | B7: 2021.04.17 23:00 | C7: Managua FC U20 | D7: Juventus Managua U20 | E7: SEWZ7juH | F7: 141 | I7: Загрузить | J7: 5 | K7: 1 | L7: 1.6 | M7: 4 | N7: 4 | O7: 1.8 | P7: 3.75 | Q7: 3.4
A8: USA: USL League One | B8: 2021.04.17 23:00 | C8: New England II | D8: Richmond Kickers | E8: 8tbxmuOl | F8: 200 | I8: Загрузить | J8: 0 | K8: 3 | L8: 2.59 | M8: 3.28 | N8: 2.52 | O8: 2.5 | P8: 3.2 | Q8: 2.5
A9: HONDURAS: Liga Nacional - Clausura - 1st Phase | B9: 2021.04.17 23:15 | C9: Real Sociedad | D9: Marathon | E9: 2N127uVM | F9: 90 | I9: Загрузить | J9: 1 | K9: 1 | L9: 2.75 | M9: 3.45 | N9: 2.41 | O9: 3.9 | P9: 3.82 | Q9: 1.79
A10: MAURITANIA: Ligue 1 | B10: 2021.04.17 23:15 | C10: Nouakchott King's | D10: Madine Trarza | E10: 6kgsrixr | F10: 126 | I10: Загрузить | J10: 0 | K10: 0 | L10: 2.23 | M10: 3.22 | N10: 3.22 | O10: 2.4 | P10: 3 | Q10: 2.75
A11: ALGERIA: Ligue 2 | B11: 2021.04.17 23:30 | C11: JSM Tiaret | D11: Remchi | E11: j3CAK4Sl | F11: 18 | I11: Загрузить | J11: 1 | K11: 3
A12: BRAZIL: Campeonato Goiano | B12: 2021.04.17 23:30 | C12: Atletico GO | D12: CRAC | E12: EuzadQYl | F12: 39 | I12: Загрузить | J12: 3 | K12: 1 | L12: 1.36 | M12: 4.33 | N12: 7 | O12: 1.33 | P12: 4.5 | Q12: 7
A13: BRAZIL: Copa do Nordeste - Play Offs | B13: 2021.04.17 23:30 | C13: Vitoria | D13: AE Altos | E13: tp55MraQ | F13: 39 | I13: Загрузить | J13: 2 | K13: 1 | L13: 1.57 | M13: 3.76 | N13: 6.01 | O13: 1.69 | P13: 3.5 | Q13: 4.56
A14: PARAGUAY: Primera Division - Apertura | B14: 2021.04.17 23:45 | C14: Nacional Asuncion | D14: Sp. Luqueno | E14: E1aN35qp | F14: 151 | I14: Загрузить | J14: 1 | K14: 0 | L14: 1.75 | M14: 3.6 | N14: 4 | O14: 1.66 | P14: 3.6 | Q14: 4.5
A15: BRAZIL: Campeonato Mineiro | B15: 2021.04.18 00:00 | C15: Caldense | D15: Athletic Club | E15: AwKfEFl2 | F15: 39 | I15: Загрузить | J15: 0 | K15: 0 | L15: 1.75 | M15: 3.3 | N15: 4 | O15: 1.83 | P15: 3.25 | Q15: 3.8
A16: CHILE: Primera Division | B16: 2021.04.18 00:00 | C16: O'Higgins | D16: La Serena | E16: 0SIMmC4a | F16: 51 | I16: Загрузить | J16: 0 | K16: 0 | L16: 1.9 | M16: 3.4 | N16: 4 | O16: 2.1 | P16: 3.2 | Q16: 3.2
A17: HONDURAS: Liga Nacional - Clausura - 1st Phase | B17: 2021.04.18 00:00 | C17: UPNFM | D17: Platense | E17: bgmY1Jhp | F17: 90 | I17: Загрузить | J17: 0 | K17: 0 | L17: 2.05 | M17: 3.44 | N17: 3.36 | O17: 2.02 | P17: 3.64 | Q17: 3.26
A18: MEXICO: Liga MX - Clausura | B18: 2021.04.18 00:00 | C18: Atl. San Luis | D18: Puebla | E18: CzG8lDMG | F18: 128 | I18: Загрузить | J18: 1 | K18: 4 | L18: 2.8 | M18: 3.1 | N18: 2.5 | O18: 2.7 | P18: 3.3 | Q18: 2.37
A19: MEXICO: Liga Premier Serie A - Play Offs | B19: 2021.04.18 00:00 | C19: Gavilanes de Matamoros | D19: Cruz Azul Hidalgo | E19: UREXU0lp | F19: 128 | I19: Загрузить | J19: 0 | K19: 0
A20: MOROCCO: Botola Pro | B20: 2021.04.18 00:00 | C20: FUS Rabat | D20: Renaissance Zemamra | E20: jFnjS2IA | F20: 134 | I20: Загрузить | J20: 1 | K20: 2 | L20: 1.65 | M20: 2.9 | N20: 6.5 | O20: 1.61 | P20: 3.2 | Q20: 5.5
A21: MOROCCO: Botola Pro | B21: 2021.04.18 00:00 | C21: Olympique de Safi | D21: Rapide Oued Zem | E21: 8jcoTr34 | F21: 134 | I21: Загрузить | J21: 2 | K21: 1 | L21: 2.05 | M21: 2.7 | N21: 4 | O21: 1.66 | P21: 3.2 | Q21: 5
A22: MOROCCO: Botola 2 | B22: 2021.04.18 00:00 | C22: Dcheira | D22: Salmi | E22: z34fq1h9 | F22: 134 | I22: Загрузить | J22: 1 | K22: 2
A23: MOROCCO: Botola 2 | B23: 2021.04.18 00:00 | C23: Kawkab Marrakech | D23: Chabab Benguerir | E23: 8G22suNL | F23: 134 | I23: Загрузить | J23: 1 | K23: 2
A24: MOROCCO: Botola 2 | B24: 2021.04.18 00:00 | C24: Wydad Fes | D24: RAC Casablanca | E24: Eg3brL7F | F24: 134 | I24: Загрузить | J24: 1 | K24: 0 | R24: =IF(L24="","",L24-O24) ->  | S24: =IF(M24="","",M24-P24) ->  | T24: =IF(N24="","",N24-Q24) -> 
A25: NICARAGUA: Liga Primera U20 - Clausura | B25: 2021.04.18 00:00 | C25: Diriangen U20 | D25: Ferretti U20 | E25: dlyv7AfN | F25: 141 | I25: Загрузить | J25: 1 | K25: 1 | L25: 2.15 | M25: 3.6 | N25: 2.75 | O25: 2.15 | P25: 3.6 | Q25: 2.7 | R25: 0 | S25: 0 | T25: 0.05
A26: NICARAGUA: Liga Primera U20 - Clausura | B26: 2021.04.18 00:00 | C26: Ocotal U20 | D26: Real Madriz U20 | E26: tMCA1lIp | F26: 141 | I26: Загрузить | J26: 3 | K26: 0 | L26: 2.05 | M26: 3.75 | N26: 2.8 | O26: 2.05 | P26: 3.75 | Q26: 2.8 | R26: 0 | S26: 0 | T26: 0
A27: USA: MLS | B27: 2021.04.18 00:00 | C27: Los Angeles FC | D27: Austin FC | E27: QmZTSJ0P | F27: 200 | I27: Загрузить | J27: 2 | K27: 0 | L27: 1.33 | M27: 5.5 | N27: 7.5 | O27: 1.72 | P27: 3.6 | Q27: 4.75 | R27: -0.39 | S27: 1.9 | T27: 2.75
A28: ECUADOR: Liga Pro - First stage | B28: 2021.04.18 00:30 | C28: Aucas | D28: Olmedo | E28: KnfOOQHD | F28: 68 | I28: Загрузить | J28: 1 | K28: 3 | L28: 2.06 | M28: 3.52 | N28: 3.34 | O28: 1.89 | P28: 3.7 | Q28: 3.7 | R28: 0.17 | S28: -0.18 | T28: -0.36
A29: GAMBIA: GFA League | B29: 2021.04.18 00:30 | C29: Wallidan | D29: Hawks | E29: na7XNBQd | F29: 79 | I29: Загрузить | J29: 0 | K29: 3 | L29: 2.91 | M29: 2.86 | N29: 2.65 | O29: 2.75 | P29: 2.88 | Q29: 2.5 | R29: 0.16 | S29: -0.02 | T29: 0.15
A30: VENEZUELA: Primera Division - First stage | B30: 2021.04.18 00:30 | C30: Lara | D30: Yaracuyanos | E30: 23RWXH4s | F30: 205 | I30: Загрузить | J30: 1 | K30: 2 | L30: 1.69 | M30: 3.46 | N30: 5.45 | O30: 1.65 | P30: 3.66 | Q30: 5.35 | R30: 0.04 | S30: -0.2 | T30: 0.1
A31: COLOMBIA: Primera B - Apertura - Quadrangular | B31: 2021.04.18 00:40 | C31: Huila | D31: Fortaleza | E31: r7fPOC94 | F31: 53 | I31: Загрузить | J31: 3 | K31: 0 | L31: 1.66 | M31: 3.7 | N31: 4.88 | O31: 1.75 | P31: 3.4 | Q31: 4.28 | R31: -0.09 | S31: 0.3 | T31: 0.6
A32: BRAZIL: Campeonato Paulista | B32: 2021.04.18 01:00 | C32: Bragantino | D32: Mirassol | E32: WWvQjXLJ | F32: 39 | I32: Загрузить | J32: 2 | K32: 1 | L32: 1.89 | M32: 3.44 | N32: 4.24 | O32: 1.62 | P32: 3.8 | Q32: 5.7 | R32: 0.27 | S32: -0.36 | T32: -1.46
A33: BRAZIL: Brasileiro Women | B33: 2021.04.18 01:00 | C33: Corinthians W | D33: Napoli W | E33: ht2a88oO | F33: 39 | I33: Загрузить | J33: 3 | K33: 0 | L33: 1.03 | M33: 21 | N33: 37 | O33: 1.04 | P33: 11 | Q33: 20 | R33: -0.01 | S33: 10 | T33: 17
A34: BRAZIL: Brasileiro Women | B34: 2021.04.18 01:00 | C34: Internacional W | D34: Santos W | E34: bJ2e9lWH | F34: 39 | I34: Загрузить | J34: 1 | K34: 1 | L34: 2.72 | M34: 3.76 | N34: 2.3 | O34: 2.68 | P34: 3.74 | Q34: 2.17 | R34: 0.04 | S34: 0.02 | T34: 0.13
A35: BRAZIL: Brasileiro Women | B35: 2021.04.18 01:00 | C35: Sao Paulo W | D35: Gremio W | E35: pGbiAUGB | F35: 39 | I35: Загрузить | J35: 1 | K35: 1 | L35: 1.57 | M35: 3.9 | N35: 5.64 | O35: 1.61 | P35: 3.74 | Q35: 5.2 | R35: -0.04 | S35: 0.16 | T35: 0.44
A36: COSTA RICA: Primera Division - Clausura | B36: 2021.04.18 01:00 | C36: Zeledon | D36: Limon | E36: 23u4wt3G | F36: 57 | I36: Загрузить | J36: 3 | K36: 2 | L36: 1.9 | M36: 3.1 | N36: 3.8 | O36: 2.25 | P36: 3 | Q36: 3 | R36: -0.35 | S36: 0.1 | T36: 0.8
A37: HONDURAS: Liga Nacional - Clausura - 1st Phase | B37: 2021.04.18 01:00 | C37: Real de Minas | D37: Vida | E37: tE066apT | F37: 90 | I37: Загрузить | J37: 2 | K37: 2 | L37: 2.69 | M37: 3.21 | N37: 2.59 | O37: 3.3 | P37: 3.1 | Q37: 2.12 | R37: -0.61 | S37: 0.11 | T37: 0.47
A38: PANAMA: LPF - Apertura | B38: 2021.04.18 01:00 | C38: Alianza | D38: Herrera | E38: 6NOBw26J | F38: 149 | I38: Загрузить | J38: 2 | K38: 3 | L38: 2.98 | M38: 3.37 | N38: 2.28 | O38: 2.65 | P38: 3 | Q38: 2.65 | R38: 0.33 | S38: 0.37 | T38: -0.37
A39: USA: USL League One | B39: 2021.04.18 01:00 | C39: Tormenta | D39: Fort Lauderdale | E39: 6RGunawe | F39: 200 | I39: Загрузить | J39: 0 | K39: 1 | L39: 2.19 | M39: 3.39 | N39: 3.13 | O39: 2.12 | P39: 3.24 | Q39: 3.07 | R39: 0.07 | S39: 0.15 | T39: 0.06
A40: ARGENTINA: Copa de la Liga Profesional | B40: 2021.04.18 01:15 | C40: Newells Old Boys | D40: Patronato | E40: ChHblkNT | F40: 22 | I40: Загрузить | J40: 2 | K40: 0 | L40: 1.72 | M40: 3.6 | N40: 4.2 | O40: 2.05 | P40: 3.2 | Q40: 3.3 | R40: -0.33 | S40: 0.4 | T40: 0.9
A41: MAURITANIA: Ligue 1 | B41: 2021.04.18 01:15 | C41: Inter Nouakchott | D41: ASAC Concorde | E41: IPdosBil | F41: 126 | I41: Загрузить | J41: 0 | K41: 0 | L41: 4.08 | M41: 3.24 | N41: 1.82 | O41: 4.08 | P41: 3.24 | Q41: 1.82 | R41: 0 | S41: 0 | T41: 0
A42: COSTA RICA: Primera Division - Clausura | B42: 2021.04.18 02:00 | C42: Sporting San Jose | D42: Guadalupe | E42: IZXoVHAd | F42: 57 | I42: Загрузить | J42: 0 | K42: 3 | L42: 2.55 | M42: 3.1 | N42: 2.55 | O42: 2 | P42: 3.2 | Q42: 3.3 | R42: 0.55 | S42: -0.1 | T42: -0.75
A43: EL SALVADOR: Primera Division - Clausura - 2nd Phase | B43: 2021.04.18 02:00 | C43: Chalatenango | D43: Sonsonate | E43: YVHCVylU | F43: 70 | I43: Загрузить | J43: 2 | K43: 1 | L43: 1.71 | M43: 3.5 | N43: 5.3 | O43: 1.72 | P43: 3.54 | Q43: 4.6 | R43: -0.01 | S43: -0.04 | T43: 0.7
A44: GUATEMALA: Liga Nacional - Clausura | B44: 2021.04.18 02:00 | C44: Comunicaciones | D44: Sanarate | E44: 4xLzfS71 | F44: 85 | I44: Загрузить | J44: 3 | K44: 0 | L44: 1.29 | M44: 5.1 | N44: 9.2 | O44: 1.37 | P44: 4.32 | Q44: 6.8 | R44: -0.08 | S44: 0.78 | T44: 2.4
A45: MEXICO: Liga MX - Clausura | B45: 2021.04.18 02:00 | C45: Guadalajara Chivas | D45: Club Tijuana | E45: hYTxXpiq | F45: 128 | I45: Загрузить | J45: 2 | K45: 0 | L45: 1.72 | M45: 3.5 | N45: 4.33 | O45: 2.15 | P45: 3.3 | Q45: 3.1 | R45: -0.43 | S45: 0.2 | T45: 1.23
A46: MEXICO: Liga Premier Serie A - Play Offs | B46: 2021.04.18 02:00 | C46: Colima FC | D46: Inter Playa Del Carmen | E46: dY6Jh4ti | F46: 128 | I46: Загрузить | J46: 2 | K46: 2
A47: PARAGUAY: Primera Division - Apertura | B47: 2021.04.18 02:00 | C47: River Plate | D47: Sol de America | E47: dQlS2Pbj | F47: 151 | I47: Загрузить | J47: 0 | K47: 2 | L47: 2.05 | M47: 3.2 | N47: 3.4 | O47: 2.7 | P47: 3.2 | Q47: 2.4 | R47: -0.65 | S47: 0 | T47: 1
A48: USA: MLS | B48: 2021.04.18 02:00 | C48: DC United | D48: New York City | E48: pYF0NcOn | F48: 200 | I48: Загрузить | J48: 2 | K48: 1 | L48: 4 | M48: 3.75 | N48: 1.83 | O48: 4.5 | P48: 3.75 | Q48: 1.72 | R48: -0.5 | S48: 0 | T48: 0.11
A49: USA: MLS | B49: 2021.04.18 02:00 | C49: FC Dallas | D49: Colorado Rapids | E49: 29QeOw9t | F49: 200 | I49: Загрузить | J49: 0 | K49: 0 | L49: 2.1 | M49: 3.6 | N49: 3.2 | O49: 2.15 | P49: 3.5 | Q49: 3.2 | R49: -0.05 | S49: 0.1 | T49: 0
A50: USA: MLS | B50: 2021.04.18 02:00 | C50: New York Red Bulls | D50: Sporting Kansas City | E50: Ygnr5G8I | F50: 200 | I50: Загрузить | J50: 1 | K50: 2 | L50: 2.05 | M50: 3.75 | N50: 3.2 | O50: 1.95 | P50: 3.6 | Q50: 3.6 | R50: 0.1 | S50: 0.15 | T50: -0.4
A51: BRAZIL: Campeonato Carioca - Taca Guanabara | B51: 2021.04.18 02:05 | C51: Portuguesa RJ | D51: Flamengo RJ | E51: IZFFpLob | F51: 39 | I51: Загрузить | J51: 2 | K51: 2 | L51: 6.5 | M51: 4 | N51: 1.44 | O51: 5 | P51: 3.6 | Q51: 1.57 | R51: 1.5 | S51: 0.4 | T51: -0.13
A52: CHILE: Primera Division | B52: 2021.04.18 02:30 | C52: Union La Calera | D52: A. Italiano | E52: YuHUojZB | F52: 51 | I52: Загрузить | J52: 1 | K52: 1 | L52: 2.05 | M52: 3.1 | N52: 4 | O52: 1.95 | P52: 3 | Q52: 4 | R52: 0.1 | S52: 0.1 | T52: 0
A53: USA: MLS | B53: 2021.04.18 02:30 | C53: Chicago Fire | D53: New England Revolution | E53: hbJ8Lyga | F53: 200 | I53: Загрузить | J53: 2 | K53: 2 | L53: 2.4 | M53: 3.6 | N53: 2.7 | O53: 2.5 | P53: 3.4 | Q53: 2.7 | R53: -0.1 | S53: 0.2 | T53: 0
A54: USA: MLS | B54: 2021.04.18 02:30 | C54: Nashville SC | D54: FC Cincinnati | E54: OOE4MHwg | F54: 200 | I54: Загрузить | J54: 2 | K54: 2 | L54: 1.7 | M54: 3.5 | N54: 5.25 | O54: 1.9 | P54: 3.5 | Q54: 4 | R54: -0.2 | S54: 0 | T54: 1.25
A55: ECUADOR: Liga Pro - First stage | B55: 2021.04.18 03:00 | C55: Guayaquil City | D55: LDU Quito | E55: INc7S8Il | F55: 68 | I55: Загрузить | J55: 2 | K55: 2 | L55: 5.5 | M55: 3.6 | N55: 1.57 | O55: 3.75 | P55: 3.2 | Q55: 1.9 | R55: 1.75 | S55: 0.4 | T55: -0.33
A56: FIJI: Premier League | B56: 2021.04.18 03:00 | C56: Ba | D56: Rewa | E56: 4AjZKZF3 | F56: 75 | I56: Загрузить | J56: 0 | K56: 2 | R56: =IF(L56="","",L56-O56) ->  | S56: =IF(M56="","",M56-P56) ->  | T56: =IF(N56="","",N56-Q56) -> 
A57: NICARAGUA: Liga Primera - Clausura | B57: 2021.04.18 03:00 | C57: Diriangen | D57: Ferretti | E57: EDTkv62T | F57: 141 | I57: Загрузить | J57: 1 | K57: 1 | L57: 1.14 | M57: 5 | N57: 21 | O57: 2.2 | P57: 3.1 | Q57: 3 | R57: -1.06 | S57: 1.9 | T57: 18
A58: NICARAGUA: Liga Primera - Clausura | B58: 2021.04.18 03:00 | C58: Ocotal | D58: Real Madriz | E58: YcAMYqQj | F58: 141 | I58: Загрузить | J58: 1 | K58: 1 | L58: 1.66 | M58: 3.75 | N58: 4 | O58: 1.66 | P58: 3.75 | Q58: 4 | R58: 0 | S58: 0 | T58: 0
A59: BRAZIL: Campeonato Paulista | B59: 2021.04.18 03:15 | C59: Novorizontino | D59: Ferroviaria | E59: vPxuTTTC | F59: 39 | I59: Загрузить | J59: 3 | K59: 1 | L59: 2.2 | M59: 3 | N59: 3.25 | O59: 2.45 | P59: 3 | Q59: 2.8 | R59: -0.25 | S59: 0 | T59: 0.45
A60: EL SALVADOR: Primera Division - Clausura - 2nd Phase | B60: 2021.04.18 03:15 | C60: Alianza FC | D60: Jocoro | E60: x4O3XcJH | F60: 70 | I60: Загрузить | J60: 4 | K60: 0 | L60: 1.24 | M60: 6.44 | N60: 10.1 | O60: 1.2 | P60: 5.95 | Q60: 9.8 | R60: 0.04 | S60: 0.49 | T60: 0.3
A61: EL SALVADOR: Primera Division - Clausura - 2nd Phase | B61: 2021.04.18 03:15 | C61: Metapan | D61: Aguila | E61: fuJ8WHYN | F61: 70 | I61: Загрузить | J61: 1 | K61: 1 | L61: 2.38 | M61: 3.17 | N61: 2.9 | O61: 2.57 | P61: 3.05 | Q61: 2.7 | R61: -0.19 | S61: 0.12 | T61: 0.2
A62: HONDURAS: Liga Nacional - Clausura - 1st Phase | B62: 2021.04.18 03:15 | C62: Honduras Progreso | D62: Olimpia | E62: bqpKPMpi | F62: 90 | I62: Загрузить | J62: 0 | K62: 5 | L62: 4.36 | M62: 4.58 | N62: 1.39 | O62: 6.8 | P62: 4.74 | Q62: 1.39 | R62: -2.44 | S62: -0.16 | T62: 0
A63: COSTA RICA: Primera Division - Clausura | B63: 2021.04.18 04:00 | C63: Herediano | D63: Cartagines | E63: pMZwXwtp | F63: 57 | I63: Загрузить | J63: 1 | K63: 2 | L63: 1.85 | M63: 3.1 | N63: 4.33 | O63: 1.9 | P63: 3 | Q63: 4 | R63: -0.05 | S63: 0.1 | T63: 0.33
A64: COSTA RICA: Liga de Ascenso - Clausura - Play Offs | B64: 2021.04.18 04:00 | C64: Puntarenas FC | D64: Municipal San Ramon | E64: IiFoAIWq | F64: 57 | I64: Загрузить | J64: 2 | K64: 1 | L64: 1.97 | M64: 3.61 | N64: 3.51 | O64: 2.02 | P64: 3.4 | Q64: 3.17 | R64: -0.05 | S64: 0.21 | T64: 0.34
A65: HONDURAS: Liga Nacional - Clausura - 1st Phase | B65: 2021.04.18 04:00 | C65: Motagua | D65: Real Espana | E65: dv6y1w8j | F65: 90 | I65: Загрузить | J65: 1 | K65: 0 | L65: 1.79 | M65: 3.49 | N65: 4.44 | O65: 1.59 | P65: 4.2 | Q65: 4.36 | R65: 0.2 | S65: -0.71 | T65: 0.08
A66: MEXICO: Liga MX - Clausura | B66: 2021.04.18 04:05 | C66: Club America | D66: Cruz Azul | E66: 6yYtW46k | F66: 128 | I66: Загрузить | J66: 1 | K66: 1 | L66: 2.62 | M66: 3 | N66: 2.7 | O66: 2.25 | P66: 3.3 | Q66: 2.87 | R66: 0.37 | S66: -0.3 | T66: -0.17
A67: FIJI: Premier League | B67: 2021.04.18 05:00 | C67: Lautoka | D67: Nadroga | E67: fu9rbC8j | F67: 75 | I67: Загрузить | J67: 0 | K67: 2
A68: FIJI: Premier League | B68: 2021.04.18 05:00 | C68: Navua | D68: Nadi | E68: dpmRMeoi | F68: 75 | I68: Загрузить | J68: 0 | K68: 2
A69: FIJI: Premier League | B69: 2021.04.18 05:00 | C69: Suva | D69: Labasa | E69: zynVLF0c | F69: 75 | I69: Загрузить | J69: 0 | K69: 1 | L69: 1.97 | M69: 3.74 | N69: 3.26 | O69: 1.93 | P69: 3.6 | Q69: 3.26 | R69: 0.04 | S69: 0.14 | T69: 0
A70: JAPAN: J2 League | B70: 2021.04.18 06:00 | C70: Sagamihara | D70: Iwata | E70: 6etO5oQ2 | F70: 100 | I70: Загрузить | J70: 1 | K70: 2 | L70: 6 | M70: 3.8 | N70: 1.5 | O70: 5.25 | P70: 3.4 | Q70: 1.65 | R70: 0.75 | S70: 0.4 | T70: -0.15
A71: JAPAN: Nadeshiko League Women | B71: 2021.04.18 06:00 | C71: Harima Albion W | D71: Ehime W | E71: WYFGbyM8 | F71: 100 | I71: Загрузить | J71: 0 | K71: 1 | L71: 2.13 | M71: 3.33 | N71: 3.33 | O71: 2.38 | P71: 3.2 | Q71: 2.63 | R71: -0.25 | S71: 0.13 | T71: 0.7
A72: JAPAN: Nadeshiko League Women | B72: 2021.04.18 06:00 | C72: Nittaidai W | D72: C-Osaka W | E72: hrHCaH62 | F72: 100 | I72: Загрузить | J72: 1 | K72: 0
A73: AUSTRALIA: NPL Northern NSW | B73: 2021.04.18 06:30 | C73: Broadmeadow | D73: Weston Workers | E73: WpdJOuLH | F73: 24 | I73: Загрузить | J73: 2 | K73: 0 | L73: 1.36 | M73: 5.05 | N73: 6.75 | O73: 1.44 | P73: 5.2 | Q73: 5.2 | R73: -0.08 | S73: -0.15 | T73: 1.55
A74: AUSTRALIA: NPL NSW | B74: 2021.04.18 06:30 | C74: Wollongong Wolves | D74: Blacktown City | E74: UXXekz3c | F74: 24 | I74: Загрузить | J74: 0 | K74: 5 | L74: 2.52 | M74: 3.66 | N74: 2.57 | O74: 2.12 | P74: 4.2 | Q74: 2.55 | R74: 0.4 | S74: -0.54 | T74: 0.02
A75: SOUTH KOREA: K League 2 | B75: 2021.04.18 06:30 | C75: Anyang | D75: Asan | E75: xxncxgNr | F75: 106 | I75: Загрузить | J75: 2 | K75: 1 | L75: 2.15 | M75: 3.25 | N75: 3.1 | O75: 2.4 | P75: 3.2 | Q75: 2.62 | R75: -0.25 | S75: 0.05 | T75: 0.48
A76: AUSTRALIA: NPL ACT | B76: 2021.04.18 07:00 | C76: Canberra Croatia | D76: Tuggeranong Utd | E76: fk4onjWr | F76: 24 | I76: Загрузить | J76: 4 | K76: 1 | L76: 1.03 | M76: 16.7 | N76: 27 | O76: 1.03 | P76: 14 | Q76: 27 | R76: 0 | S76: 2.7 | T76: 0
A77: AUSTRALIA: NPL ACT | B77: 2021.04.18 07:00 | C77: Gungahlin | D77: Tigers FC | E77: htIJjWNR | F77: 24 | I77: Загрузить | J77: 1 | K77: 2 | L77: 2.03 | M77: 4.06 | N77: 2.92 | O77: 1.64 | P77: 5 | Q77: 3.44 | R77: 0.39 | S77: -0.94 | T77: -0.52
A78: JAPAN: J1 League | B78: 2021.04.18 07:00 | C78: Kawasaki Frontale | D78: Sanfrecce Hiroshima | E78: nLWloyBg | F78: 100 | I78: Загрузить | J78: 1 | K78: 1 | L78: 1.4 | M78: 4.5 | N78: 7.5 | O78: 1.5 | P78: 4 | Q78: 7 | R78: -0.1 | S78: 0.5 | T78: 0.5
A79: JAPAN: Nadeshiko League Women | B79: 2021.04.18 07:00 | C79: NGU Nagoya W | D79: Kunoichi W | E79: vaJOdFjL | F79: 100 | I79: Загрузить | J79: 0 | K79: 2 | L79: 4.82 | M79: 4.5 | N79: 1.54 | O79: 2.81 | P79: 4.32 | Q79: 1.93 | R79: 2.01 | S79: 0.18 | T79: -0.39
A80: JAPAN: Nadeshiko League Women | B80: 2021.04.18 07:00 | C80: Setagaya Sfida FC W | D80: Yokohama FC Seagulls W | E80: QeFKceyF | F80: 100 | I80: Загрузить | J80: 1 | K80: 2 | L80: 2.36 | M80: 3.44 | N80: 2.67 | O80: 2.38 | P80: 3.6 | Q80: 2.38 | R80: -0.02 | S80: -0.16 | T80: 0.29
A81: SOUTH KOREA: K League 1 | B81: 2021.04.18 07:00 | C81: Suwon Bluewings | D81: Ulsan Hyundai | E81: YReiImrT | F81: 106 | I81: Загрузить | J81: 3 | K81: 0 | L81: 3.2 | M81: 3.25 | N81: 2 | O81: 3.25 | P81: 3.25 | Q81: 2 | R81: -0.05 | S81: 0 | T81: 0
A82: SOUTH KOREA: K3 League | B82: 2021.04.18 07:00 | C82: Hwaseong | D82: Pyeongtaek Citizen | E82: G6NqVdWn | F82: 106 | I82: Загрузить | J82: 1 | K82: 0 | L82: 1.15 | M82: 7.5 | N82: 13 | O82: 1.1 | P82: 8 | Q82: 15 | R82: 0.05 | S82: -0.5 | T82: -2
A83: JAPAN: J1 League | B83: 2021.04.18 08:00 | C83: Cerezo Osaka | D83: Urawa Reds | E83: IoSpnHem | F83: 100 | I83: Загрузить | J83: 1 | K83: 0 | L83: 2.2 | M83: 3.3 | N83: 3.25 | O83: 2.1 | P83: 3.3 | Q83: 3.5 | R83: 0.1 | S83: 0 | T83: -0.25
A84: JAPAN: J1 League | B84: 2021.04.18 08:00 | C84: Nagoya Grampus | D84: Sagan Tosu | E84: QBVhpeQa | F84: 100 | I84: Загрузить | J84: 1 | K84: 2 | L84: 1.9 | M84: 3.3 | N84: 4 | O84: 1.72 | P84: 3.5 | Q84: 5 | R84: 0.18 | S84: -0.2 | T84: -1
A85: SOUTH KOREA: K3 League | B85: 2021.04.18 08:00 | C85: Gimhae | D85: Paju Citizen | E85: fcMmUGog | F85: 106 | I85: Загрузить | J85: 0 | K85: 1 | L85: 2.09 | M85: 3.34 | N85: 3.36 | O85: 2.4 | P85: 3.2 | Q85: 2.63 | R85: -0.31 | S85: 0.14 | T85: 0.73
A86: AUSTRALIA: A-League | B86: 2021.04.18 08:05 | C86: Sydney FC | D86: Adelaide United | E86: 2JX5YYFg | F86: 24 | I86: Загрузить | J86: 2 | K86: 2 | L86: 1.65 | M86: 4 | N86: 5 | O86: 1.95 | P86: 3.6 | Q86: 3.5 | R86: -0.3 | S86: 0.4 | T86: 1.5
A87: AUSTRALIA: NPL Northern NSW | B87: 2021.04.18 08:30 | C87: Maitland | D87: Charlestown Azzurri | E87: E9oONazO | F87: 24 | I87: Загрузить | J87: 3 | K87: 1 | L87: 1.89 | M87: 3.99 | N87: 3.46 | O87: 1.72 | P87: 4.2 | Q87: 3.92 | R87: 0.17 | S87: -0.21 | T87: -0.46
A88: AUSTRALIA: Brisbane Premier League | B88: 2021.04.18 09:00 | C88: Brisbane K. | D88: Bayside | E88: 2aap5SHH | F88: 24 | I88: Загрузить | J88: 0 | K88: 1 | L88: 2.94 | M88: 4.02 | N88: 2.03 | O88: 3.62 | P88: 4.6 | Q88: 1.72 | R88: =IF(L88="","",L88-O88) -> -0.68 | S88: =IF(M88="","",M88-P88) -> -0.58 | T88: =IF(N88="","",N88-Q88) -> 0.31
A89: AUSTRALIA: Brisbane Premier League | B89: 2021.04.18 09:00 | C89: Gravatt | D89: Toowong | E89: b1godXYn | F89: 24 | I89: Загрузить | J89: 1 | K89: 5 | L89: 4.66 | M89: 4.5 | N89: 1.55 | O89: 9.3 | P89: 6.5 | Q89: 1.19 | R89: -4.64 | S89: -2 | T89: 0.36
A90: AUSTRALIA: Brisbane Premier League | B90: 2021.04.18 09:00 | C90: St. George Willawong | D90: Centenary Stormers | E90: QyBpvaD1 | F90: 24 | I90: Загрузить | J90: 4 | K90: 1 | L90: 1.43 | M90: 4.76 | N90: 5.8 | O90: 1.59 | P90: 4.5 | Q90: 4.04 | R90: -0.16 | S90: 0.26 | T90: 1.76
A91: HONG KONG: Premier League | B91: 2021.04.18 09:00 | C91: Hong Kong Rangers | D91: Southern District | E91: pW2yvIYa | F91: 222 | I91: Загрузить | J91: 1 | K91: 2 | L91: 2.63 | M91: 3.56 | N91: 2.38 | O91: 2.02 | P91: 4 | Q91: 2.8 | R91: 0.61 | S91: -0.44 | T91: -0.42
A92: SOUTH KOREA: K League 2 | B92: 2021.04.18 09:00 | C92: Jeonnam | D92: Gimcheon Sangmu | E92: Wbo1yDxk | F92: 106 | I92: Загрузить | J92: 2 | K92: 1 | L92: 2.8 | M92: 3.1 | N92: 2.4 | O92: 2.8 | P92: 3.1 | Q92: 2.4 | R92: 0 | S92: 0 | T92: 0
A93: SOUTH AFRICA: Diski Challenge | B93: 2021.04.18 09:30 | C93: Kaizer Chiefs U23 | D93: Black Leopards U23 | E93: zmUXnut4 | F93: 175 | I93: Загрузить | J93: 3 | K93: 2 | L93: 1.63 | M93: 3.54 | N93: 5.72 | O93: 1.59 | P93: 3.4 | Q93: 5.6 | R93: 0.04 | S93: 0.14 | T93: 0.12
A94: SOUTH KOREA: K League 1 | B94: 2021.04.18 09:30 | C94: Jeonbuk | D94: Seongnam | E94: fycmJTSM | F94: 106 | I94: Загрузить | J94: 1 | K94: 0 | L94: 1.75 | M94: 3.4 | N94: 4.75 | O94: 1.5 | P94: 3.6 | Q94: 6 | R94: 0.25 | S94: -0.2 | T94: -1.25
A95: AUSTRALIA: NPL Queensland | B95: 2021.04.18 10:00 | C95: Olympic FC | D95: Sunshine Coast Wanderers | E95: dx5KCNEr | F95: 24 | I95: Загрузить | J95: 0 | K95: 0 | L95: 1.4 | M95: 5 | N95: 5.5 | O95: 1.53 | P95: 4.5 | Q95: 4.2 | R95: -0.13 | S95: 0.5 | T95: 1.3
A96: JAPAN: J1 League | B96: 2021.04.18 10:00 | C96: Gamba Osaka | D96: Shimizu S-Pulse | E96: 8zLcqFu6 | F96: 100 | I96: Загрузить | J96: 0 | K96: 0 | L96: 2.15 | M96: 3.6 | N96: 3.1 | O96: 2.1 | P96: 3.2 | Q96: 3.6 | R96: 0.05 | S96: 0.4 | T96: -0.5
A97: ROMANIA: Liga 2 - Relegation Group | B97: 2021.04.18 10:00 | C97: Ripensia Timisoara | D97: U. Cluj | E97: zBGQc6G9 | F97: 157 | I97: Загрузить | J97: 2 | K97: 1 | L97: 3.1 | M97: 3.2 | N97: 2.15 | O97: 3.2 | P97: 3.1 | Q97: 2.1 | R97: -0.1 | S97: 0.1 | T97: 0.05
A98: ROMANIA: Superliga Women - Championship Group | B98: 2021.04.18 10:00 | C98: Heniu Prundu Bargaului W | D98: Piros Security W | E98: vJBJYImQ | F98: 157 | I98: Загрузить | J98: 3 | K98: 1 | L98: 1.78 | M98: 4.47 | N98: 3.51 | O98: 2.11 | P98: 3.92 | Q98: 2.85 | R98: -0.33 | S98: 0.55 | T98: 0.66
A99: ROMANIA: Superliga Women - Championship Group | B99: 2021.04.18 10:00 | C99: Universitatea Galati W | D99: Ol. Cluj W | E99: rmGvUxds | F99: 157 | I99: Загрузить | J99: 0 | K99: 0 | L99: 26 | M99: 21 | N99: 1.02 | O99: 25 | P99: 13 | Q99: 1.03 | R99: 1 | S99: 8 | T99: -0.01
A100: ROMANIA: Superliga Women - Championship Group | B100: 2021.04.18 10:00 | C100: Vasas Odorhei W | D100: Fortuna Becicherecu Mic W | E100: 0SCFZbYJ | F100: 157 | I100: Загрузить | J100: 0 | K100: 0 | L100: 3.9 | M100: 4.3 | N100: 1.69 | O100: 3.86 | P100: 4 | Q100: 1.69 | R100: 0.04 | S100: 0.3 | T100: 0
A101: ROMANIA: Superliga Women - Relegation Group | B101: 2021.04.18 10:00 | C101: Banat W | D101: Carmen Bucuresti W | E101: jJrgyXQL | F101: 157 | I101: Загрузить | J101: 2 | K101: 0
A102: ROMANIA: Superliga Women - Relegation Group | B102: 2021.04.18 10:00 | C102: Fairplay Bucuresti W | D102: Universitatea Alexandria W | E102: U3fpwgd9 | F102: 157 | I102: Загрузить | J102: 6 | K102: 4 | L102: 1.81 | M102: 3.36 | N102: 3.96 | O102: 16 | P102: 10 | Q102: 1.08 | R102: -14.19 | S102: -6.64 | T102: 2.88
A103: ROMANIA: Superliga Women - Relegation Group | B103: 2021.04.18 10:00 | C103: SN Constanta W | D103: Baia Mare W | E103: 8fglxDBF | F103: 157 | I103: Загрузить | J103: 1 | K103: 0
A104: RUSSIA: Supreme Division Women | B104: 2021.04.18 10:00 | C104: Zvezda 2005 W | D104: Lokomotiv Moscow W | E104: dGiZi1Un | F104: 158 | I104: Загрузить | J104: 0 | K104: 0 | L104: 5.1 | M104: 3.58 | N104: 1.65 | O104: 4.6 | P104: 3.6 | Q104: 1.64 | R104: 0.5 | S104: -0.02 | T104: 0.01
A105: SOUTH AFRICA: Diski Challenge | B105: 2021.04.18 10:00 | C105: Chippa Utd. U23 | D105: Amazulu U23 | E105: ljYynaeA | F105: 175 | I105: Загрузить | J105: 0 | K105: 0
A106: TAIWAN: Premier League | B106: 2021.04.18 10:00 | C106: CPC | D106: NTUS | E106: zouuKL5I | F106: 218 | I106: Загрузить | J106: 1 | K106: 1 | L106: 1.66 | M106: 4.04 | N106: 4.34 | O106: 1.99 | P106: 4.2 | Q106: 2.96 | R106: -0.33 | S106: -0.16 | T106: 1.38
A107: TAIWAN: Premier League | B107: 2021.04.18 10:00 | C107: Hang Yuen | D107: Taichung | E107: lUtXLsy6 | F107: 218 | I107: Загрузить | J107: 1 | K107: 0 | L107: 2.5 | M107: 3.26 | N107: 2.63 | O107: 2.55 | P107: 3.94 | Q107: 2.3 | R107: -0.05 | S107: -0.68 | T107: 0.33
A108: TAIWAN: Premier League | B108: 2021.04.18 10:00 | C108: Taipei Tatung | D108: Taipower | E108: SKuyL1jC | F108: 218 | I108: Загрузить | J108: 0 | K108: 1 | L108: 2.21 | M108: 3.5 | N108: 2.91 | O108: 2.6 | P108: 3.94 | Q108: 2.25 | R108: -0.39 | S108: -0.44 | T108: 0.66
A109: TAIWAN: Premier League | B109: 2021.04.18 10:00 | C109: Taiwan Steel | D109: Red Lions | E109: 65iSMNLa | F109: 218 | I109: Загрузить | J109: 3 | K109: 1 | L109: 1.11 | M109: 8.1 | N109: 17 | O109: 1.11 | P109: 7.6 | Q109: 17 | R109: 0 | S109: 0.5 | T109: 0
A110: AUSTRALIA: A-League | B110: 2021.04.18 10:10 | C110: Macarthur FC | D110: Newcastle Jets | E110: zsJfL4bQ | F110: 24 | I110: Загрузить | J110: 2 | K110: 2 | L110: 2.25 | M110: 3.6 | N110: 3 | O110: 1.8 | P110: 3.6 | Q110: 4.2 | R110: 0.45 | S110: 0 | T110: -1.2
A111: AUSTRALIA: NPL Queensland | B111: 2021.04.18 10:15 | C111: Brisbane U21 | D111: Capalaba FC | E111: ja4OBsUl | F111: 24 | I111: Загрузить | J111: 6 | K111: 1 | L111: 1.22 | M111: 5.75 | N111: 9 | O111: 1.22 | P111: 6 | Q111: 8 | R111: 0 | S111: -0.25 | T111: 1
A112: CZECH REPUBLIC: Division 2 | B112: 2021.04.18 10:15 | C112: Zizkov | D112: Usti nad Labem | E112: r5DlWedl | F112: 62 | I112: Загрузить | J112: 1 | K112: 0 | L112: 1.83 | M112: 3.5 | N112: 3.75 | O112: 1.95 | P112: 3.4 | Q112: 3.2 | R112: -0.12 | S112: 0.1 | T112: 0.55
A113: AUSTRALIA: NPL NSW | B113: 2021.04.18 10:30 | C113: Sydney FC U21 | D113: APIA Tigers | E113: CdN0lfI3 | F113: 24 | I113: Загрузить | J113: 2 | K113: 3 | L113: 2.75 | M113: 3.98 | N113: 2.2 | O113: 1.85 | P113: 4 | Q113: 3.17 | R113: 0.9 | S113: -0.02 | T113: -0.97
A114: AUSTRIA: 2. Liga | B114: 2021.04.18 10:30 | C114: A. Klagenfurt | D114: Grazer | E114: SfYqnxGt | F114: 25 | I114: Загрузить | J114: 3 | K114: 0 | L114: 1.61 | M114: 3.6 | N114: 5 | O114: 1.72 | P114: 3.5 | Q114: 4 | R114: -0.11 | S114: 0.1 | T114: 1
A115: ITALY: Primavera 1 | B115: 2021.04.18 10:30 | C115: Empoli U19 | D115: Sampdoria U19 | E115: tx31VEvj | F115: 98 | I115: Загрузить | J115: 2 | K115: 2 | L115: 3.95 | M115: 4.16 | N115: 1.73 | O115: 3.92 | P115: 4.2 | Q115: 1.72 | R115: 0.03 | S115: -0.04 | T115: 0.01
A116: ITALY: Primavera 1 | B116: 2021.04.18 10:30 | C116: Genoa U19 | D116: Inter U19 | E116: KS15UYgd | F116: 98 | I116: Загрузить | J116: 1 | K116: 1 | L116: 3.46 | M116: 3.77 | N116: 1.94 | O116: 3.94 | P116: 3.9 | Q116: 1.77 | R116: -0.48 | S116: -0.13 | T116: 0.17
A117: SLOVAKIA: 2. liga | B117: 2021.04.18 10:30 | C117: Samorin | D117: Petrzalka | E117: 4Get5395 | F117: 171 | I117: Загрузить | J117: 3 | K117: 1 | L117: 1.83 | M117: 3.66 | N117: 3.84 | O117: 2.22 | P117: 3.34 | Q117: 2.92 | R117: -0.39 | S117: 0.32 | T117: 0.92
A118: AUSTRIA: Bundesliga Women | B118: 2021.04.18 11:00 | C118: Altenmarkt W | D118: Wacker Innsbruck W | E118: 4I2uoHyq | F118: 25 | I118: Загрузить | J118: 1 | K118: 4 | L118: 4.5 | M118: 4.32 | N118: 1.6 | O118: 2.69 | P118: 3.8 | Q118: 2.12 | R118: 1.81 | S118: 0.52 | T118: -0.52
A119: CROATIA: 3. HNL Center | B119: 2021.04.18 11:00 | C119: Trnje | D119: Dugo Selo | E119: Sd3oenLK | F119: 59 | I119: Загрузить | J119: 2 | K119: 0 | L119: 1.7 | M119: 3.62 | N119: 4.56 | O119: 1.64 | P119: 4 | Q119: 4.08 | R119: 0.06 | S119: -0.38 | T119: 0.48
A120: GEORGIA: Georgian Cup | B120: 2021.04.18 11:00 | C120: Zestafoni | D120: Dusheti | E120: x02OvskM | F120: 80 | I120: Загрузить | J120: 1 | K120: 2 | R120: =IF(L120="","",L120-O120) ->  | S120: =IF(M120="","",M120-P120) ->  | T120: =IF(N120="","",N120-Q120) -> 
A121: GERMANY: 2. Bundesliga Women | B121: 2021.04.18 11:00 | C121: Bayern Munich 2 W | D121: Eintracht Frankfurt 2 W | E121: rqjWRqBJ | F121: 81 | I121: Загрузить | J121: 2 | K121: 0 | L121: 2.5 | M121: 3.68 | N121: 2.4 | O121: 2.93 | P121: 3.74 | Q121: 2.02 | R121: -0.43 | S121: -0.06 | T121: 0.38
A122: HUNGARY: NB III - Centre | B122: 2021.04.18 11:00 | C122: Honved II | D122: Ferencvaros II | E122: lIG4N8el | F122: 91 | I122: Загрузить | J122: 2 | K122: 2 | L122: 2.56 | M122: 3.52 | N122: 2.42 | O122: 2.5 | P122: 3.24 | Q122: 2.45 | R122: 0.06 | S122: 0.28 | T122: -0.03
A123: HUNGARY: NB III - West | B123: 2021.04.18 11:00 | C123: Szabadkikoto | D123: Komaromi VSE | E123: I1lm5h1O | F123: 91 | I123: Загрузить | J123: 0 | K123: 2
A124: HUNGARY: NB III - West | B124: 2021.04.18 11:00 | C124: Tatabanya | D124: Puskas Academy II | E124: 8AuZ9Gng | F124: 91 | I124: Загрузить | J124: 1 | K124: 0 | L124: 2.15 | M124: 3.72 | N124: 2.87 | O124: 2.12 | P124: 3.5 | Q124: 2.86 | R124: 0.03 | S124: 0.22 | T124: 0.01
A125: HUNGARY: NB III - West | B125: 2021.04.18 11:00 | C125: Zalaegerszegi II | D125: Papai Perutz | E125: xjXk6YoI | F125: 91 | I125: Загрузить | J125: 0 | K125: 3 | L125: 2.51 | M125: 2.9 | N125: 2.9 | O125: 2.12 | P125: 2.75 | Q125: 3.7 | R125: 0.39 | S125: 0.15 | T125: -0.8
A126: KAZAKHSTAN: Premier League | B126: 2021.04.18 11:00 | C126: Taraz | D126: FK Akzhayik | E126: nmL31nI0 | F126: 102 | I126: Загрузить | J126: 1 | K126: 0 | L126: 1.7 | M126: 3.5 | N126: 5.15 | O126: 1.79 | P126: 3.3 | Q126: 4.94 | R126: -0.09 | S126: 0.2 | T126: 0.21
A127: RUSSIA: Premier League | B127: 2021.04.18 11:00 | C127: Ural | D127: Rubin Kazan | E127: xlbtKFQj | F127: 158 | I127: Загрузить | J127: 0 | K127: 1 | L127: 4.5 | M127: 3.75 | N127: 1.75 | O127: 3.4 | P127: 3.25 | Q127: 2.15 | R127: 1.1 | S127: 0.5 | T127: -0.4
A128: SERBIA: Srpska Liga - East | B128: 2021.04.18 11:00 | C128: Radnicki S. | D128: Toplicanin | E128: hd0St1xq | F128: 167 | I128: Загрузить | J128: 2 | K128: 1
A129: SERBIA: Srpska Liga - East | B129: 2021.04.18 11:00 | C129: SFS Borac | D129: Buducnost Popovac | E129: zLkXuLik | F129: 167 | I129: Загрузить | J129: 2 | K129: 1
A130: SLOVENIA: 1. SZNL Women | B130: 2021.04.18 11:00 | C130: Cerklje W | D130: Olimpija W | E130: z93tFFvk | F130: 172 | I130: Загрузить | J130: 0 | K130: 6
A131: VIETNAM: V.League 2 | B131: 2021.04.18 11:00 | C131: Hue | D131: Khanh Hoa | E131: rP7Rpvlo | F131: 206 | I131: Загрузить | J131: 1 | K131: 1 | L131: 4.17 | M131: 3.65 | N131: 1.8 | O131: 4.16 | P131: 3.34 | Q131: 1.85 | R131: 0.01 | S131: 0.31 | T131: -0.05
A132: ANDORRA: Primera Divisió | B132: 2021.04.18 11:30 | C132: UE Santa Coloma | D132: Penya | E132: 4Y0GNmj7 | F132: 19 | I132: Загрузить | J132: 7 | K132: 0
A133: ANDORRA: Primera Divisió - Championship Group | B133: 2021.04.18 11:30 | C133: Sant Julia | D133: Atletic Escaldes | E133: WABrNIFa | F133: 19 | I133: Загрузить | J133: 2 | K133: 2
A134: AUSTRIA: 2. Liga | B134: 2021.04.18 11:30 | C134: SK Rapid Vienna (Am) | D134: Horn | E134: pbswP5Ep | F134: 25 | I134: Загрузить | J134: 1 | K134: 0 | L134: 2.2 | M134: 3.5 | N134: 2.8 | O134: 2.25 | P134: 3.5 | Q134: 2.6 | R134: -0.05 | S134: 0 | T134: 0.2
A135: HONG KONG: Premier League | B135: 2021.04.18 11:30 | C135: Pegasus | D135: Resources Capital | E135: QuBqxd3C | F135: 222 | I135: Загрузить | J135: 3 | K135: 2 | L135: 1.39 | M135: 4.74 | N135: 6.75 | O135: 1.26 | P135: 5.5 | Q135: 7.8 | R135: 0.13 | S135: -0.76 | T135: -1.05
A136: SPAIN: Tercera Division - Group 3 - Relegation Group | B136: 2021.04.18 11:30 | C136: Revilla | D136: Guarnizo | E136: 8AwgZc8T | F136: 176 | I136: Загрузить | J136: 0 | K136: 2 | L136: 3.1 | M136: 3.3 | N136: 2.1 | O136: 3.46 | P136: 3.4 | Q136: 1.93 | R136: -0.36 | S136: -0.1 | T136: 0.17
A137: SPAIN: Tercera Division - Group 4 - Second stage | B137: 2021.04.18 11:30 | C137: Basconia | D137: Santuxu | E137: lI2x4KWm | F137: 176 | I137: Загрузить | J137: 0 | K137: 1 | L137: 1.69 | M137: 3.4 | N137: 4.6 | O137: 1.69 | P137: 3.4 | Q137: 4.6 | R137: 0 | S137: 0 | T137: 0
A138: SPAIN: Tercera Division - Group 6 - Second stage | B138: 2021.04.18 11:30 | C138: Recambios Colon | D138: Beniganim | E138: Q5xmCO92 | F138: 176 | I138: Загрузить | J138: 2 | K138: 1 | L138: 1.69 | M138: 3.6 | N138: 4.28 | O138: 1.69 | P138: 3.6 | Q138: 4.28 | R138: 0 | S138: 0 | T138: 0
A139: SPAIN: Tercera Division - Group 7 - Relegation Group | B139: 2021.04.18 11:30 | C139: Complutense | D139: Real Aranjuez | E139: xAJKxPNG | F139: 176 | I139: Загрузить | J139: 2 | K139: 1
A140: SPAIN: Tercera Division - Group 7 - Relegation Group | B140: 2021.04.18 11:30 | C140: RSD Alcala | D140: El Alamo | E140: KY8PyqwN | F140: 176 | I140: Загрузить | J140: 2 | K140: 0 | L140: 1.62 | M140: 3.6 | N140: 4.82 | O140: 1.64 | P140: 3.6 | Q140: 4.68 | R140: -0.02 | S140: 0 | T140: 0.14
A141: SPAIN: Tercera Division - Group 7 - Relegation Group | B141: 2021.04.18 11:30 | C141: San Fernando | D141: Atletico Pinto | E141: llaeWM0p | F141: 176 | I141: Загрузить | J141: 0 | K141: 1
A142: SPAIN: Tercera Division - Group 7 - Second stage | B142: 2021.04.18 11:30 | C142: AD Torrejon | D142: Trival Valderas | E142: rgciGAAn | F142: 176 | I142: Загрузить | J142: 1 | K142: 0 | L142: 1.72 | M142: 3.6 | N142: 4.24 | O142: 1.69 | P142: 3.6 | Q142: 4.28
A143: SPAIN: Tercera Division - Group 13 - Second stage | B143: 2021.04.18 11:30 | C143: La Union | D143: Bullense | E143: 8QDoyR42 | F143: 176 | I143: Загрузить | J143: 4 | K143: 1
A144: SPAIN: Tercera Division - Group 17 - Second stage | B144: 2021.04.18 11:30 | C144: Zaragoza B | D144: Borja | E144: SQfrPvIQ | F144: 176 | I144: Загрузить | J144: 1 | K144: 0 | L144: 1.51 | M144: 3.74 | N144: 5.7 | O144: 1.75 | P144: 3.5 | Q144: 4.08
A145: SPAIN: Tercera Division - Group 18 - Relegation Group | B145: 2021.04.18 11:30 | C145: Almansa | D145: Illescas | E145: lWg4059m | F145: 176 | I145: Загрузить | J145: 2 | K145: 0
A146: SPAIN: Primera Division Women | B146: 2021.04.18 11:30 | C146: Sevilla FC W | D146: Atl. Madrid W | E146: Eu4hFXlh | F146: 176 | I146: Загрузить | J146: 3 | K146: 2 | L146: 6 | M146: 3.94 | N146: 1.51 | O146: 4.12 | P146: 3.7 | Q146: 1.73
A147: SPAIN: Tercera Division - Group 3 - Promotion Group | B147: 2021.04.18 11:45 | C147: Siete Villas | D147: Escobedo | E147: hpE8Q8O5 | F147: 176 | I147: Загрузить | J147: 3 | K147: 1
A148: SPAIN: Tercera Division - Group 5 - Second stage | B148: 2021.04.18 11:45 | C148: Grama | D148: Castelldefels | E148: 802OOaUd | F148: 176 | I148: Загрузить | J148: 1 | K148: 0 | L148: 1.87 | M148: 3.21 | N148: 4.49 | O148: 2.22 | P148: 3.24 | Q148: 2.93
A149: KAZAKHSTAN: Premier League | B149: 2021.04.18 12:00 | C149: FC Astana | D149: Kyzylzhar | E149: rFECaQnD | F149: 102 | I149: Загрузить | J149: 3 | K149: 1 | L149: 1.28 | M149: 5.1 | N149: 9.6 | O149: 1.34 | P149: 4.74 | Q149: 9.2
A150: POLAND: III Liga - Group IV | B150: 2021.04.18 12:00 | C150: Korona Kielce 2 | D150: Avia Swidnik | E150: jJ4QubPh | F150: 154 | I150: Загрузить | J150: 0 | K150: 3 | L150: 3.44 | M150: 3.82 | N150: 1.89 | O150: 3.36 | P150: 3.74 | Q150: 1.85
A151: PORTUGAL: Liga BPI Women - Championship Group | B151: 2021.04.18 12:00 | C151: Sporting W | D151: Maritimo W | E151: vmFgxqOg | F151: 155 | I151: Загрузить | J151: 2 | K151: 0 | L151: 1.23 | M151: 5.95 | N151: 10 | O151: 1.27 | P151: 5.45 | Q151: 9.1
A152: RUSSIA: PFL - Group 3 | B152: 2021.04.18 12:00 | C152: FK Strogino Moscow | D152: Khimki 2 | E152: WC25k9KE | F152: 158 | I152: Загрузить | J152: 2 | K152: 1 | L152: 1.64 | M152: 4.12 | N152: 4.42 | O152: 1.58 | P152: 3.98 | Q152: 5.1
A153: SOUTH AFRICA: Diski Challenge | B153: 2021.04.18 12:00 | C153: Mamelodi Sundowns U23 | D153: Swallows U23 | E153: rDXuoJAG | F153: 175 | I153: Загрузить | J153: 4 | K153: 0
A154: SPAIN: Segunda Division B - Group 1 - Promotion Group | B154: 2021.04.18 12:00 | C154: Celta Vigo B | D154: Burgos CF | E154: Mgu9Xt5l | F154: 176 | I154: Загрузить | J154: 1 | K154: 1 | L154: 3.41 | M154: 2.97 | N154: 2.27 | O154: 2.5 | P154: 3.2 | Q154: 2.5
A155: SPAIN: Segunda Division B - Group 1 - Relegation Group | B155: 2021.04.18 12:00 | C155: Guijuelo | D155: Gijon B | E155: h0pQNFUg | F155: 176 | I155: Загрузить | J155: 1 | K155: 0 | L155: 2.28 | M155: 2.83 | N155: 3.28 | O155: 2.5 | P155: 2.75 | Q155: 2.88
A156: SPAIN: Segunda Division B - Group 3 - Promotion Group | B156: 2021.04.18 12:00 | C156: Gimnastic | D156: Ibiza | E156: APIV9aEP | F156: 176 | I156: Загрузить | J156: 0 | K156: 1 | L156: 2.55 | M156: 3.12 | N156: 2.81 | O156: 2.32 | P156: 3 | Q156: 2.97
A157: SPAIN: Segunda Division B - Group 3 - Relegation Group | B157: 2021.04.18 12:00 | C157: Espanyol B | D157: Pena Deportiva | E157: QDbe49lK | F157: 176 | I157: Загрузить | L157: 2.34 | M157: 2.86 | N157: 3.15 | O157: 1.93 | P157: 3 | Q157: 3.98
A158: SPAIN: Segunda Division B - Group 3 - Relegation Group | B158: 2021.04.18 12:00 | C158: Prat | D158: Valencia B | E158: ddkRbmCs | F158: 176 | I158: Загрузить | J158: 1 | K158: 0 | L158: 2.14 | M158: 3.13 | N158: 3.55 | O158: 2.32 | P158: 3 | Q158: 2.97
A159: SPAIN: Segunda Division B - Group 3 - Second stage | B159: 2021.04.18 12:00 | C159: Lleida | D159: Levante B | E159: OEuGFO1o | F159: 176 | I159: Загрузить | J159: 0 | K159: 0 | L159: 1.92 | M159: 3.12 | N159: 4.37 | O159: 1.64 | P159: 3.2 | Q159: 5.6
A160: SPAIN: Segunda Division B - Group 4 - Promotion Group | B160: 2021.04.18 12:00 | C160: Algeciras | D160: UCAM Murcia | E160: KW1p23zl | F160: 176 | I160: Загрузить | J160: 1 | K160: 1 | L160: 3.5 | M160: 2.67 | N160: 2.44 | O160: 2.63 | P160: 2.9 | Q160: 2.6
A161: SPAIN: Segunda Division B - Group 4 - Second stage | B161: 2021.04.18 12:00 | C161: Cadiz CF B | D161: Cordoba | E161: SExbHZuh | F161: 176 | I161: Загрузить | J161: 2 | K161: 0 | L161: 3.66 | M161: 3.03 | N161: 2.14 | O161: 2.94 | P161: 2.88 | Q161: 2.42
A162: SPAIN: Segunda Division B - Group 5 - Promotion Group | B162: 2021.04.18 12:00 | C162: San Sebastian Reyes | D162: CD Badajoz | E162: pWhbG8Dl | F162: 176 | I162: Загрузить | J162: 0 | K162: 4 | L162: 3.86 | M162: 3.09 | N162: 2.06 | O162: 2.94 | P162: 2.88 | Q162: 2.42
A163: SPAIN: Segunda Division B - Group 5 - Relegation Group | B163: 2021.04.18 12:00 | C163: Atl. Madrid B | D163: Melilla | E163: A77LmEEO | F163: 176 | I163: Загрузить | L163: 2.39 | M163: 2.8 | N163: 3.16 | O163: 2.4 | P163: 2.8 | Q163: 3.07
A164: SPAIN: Segunda Division B - Group 5 - Relegation Group | B164: 2021.04.18 12:00 | C164: Getafe B | D164: Socuellamos | E164: 2s4DkzpC | F164: 176 | I164: Загрузить | J164: 0 | K164: 0 | L164: 2.8 | M164: 2.8 | N164: 2.5 | O164: 2.8 | P164: 2.8 | Q164: 2.5
A165: SPAIN: Segunda Division B - Group 5 - Relegation Group | B165: 2021.04.18 12:00 | C165: Las Rozas | D165: Villarrubia | E165: WG8HlfaI | F165: 176 | I165: Загрузить | J165: 1 | K165: 1 | L165: 1.69 | M165: 3.18 | N165: 5.15 | O165: 2.4 | P165: 3 | Q165: 2.75
A166: SPAIN: Segunda Division B - Group 5 - Relegation Group | B166: 2021.04.18 12:00 | C166: Poblense | D166: Villarrobledo | E166: CCo4CciP | F166: 176 | I166: Загрузить | J166: 4 | K166: 0 | L166: 1.64 | M166: 2.99 | N166: 5.95 | O166: 1.69 | P166: 3 | Q166: 5.6
A167: SPAIN: Segunda Division B - Group 5 - Second stage | B167: 2021.04.18 12:00 | C167: Baleares | D167: Merida AD | E167: MVrBrRds | F167: 176 | I167: Загрузить | J167: 2 | K167: 1 | L167: 1.84 | M167: 3.16 | N167: 4.74 | O167: 1.93 | P167: 3 | Q167: 3.98
A168: SPAIN: Tercera Division - Group 2 - Promotion Group | B168: 2021.04.18 12:00 | C168: Real Aviles | D168: Llanes | E168: v9AnYGS2 | F168: 176 | I168: Загрузить
A169: SPAIN: Tercera Division - Group 2 - Promotion Group | B169: 2021.04.18 12:00 | C169: Union Club Ceares | D169: L'Entregu | E169: Ia9jXzr9 | F169: 176 | I169: Загрузить | J169: 1 | K169: 0
A170: SPAIN: Tercera Division - Group 2 - Relegation Group | B170: 2021.04.18 12:00 | C170: Aviles Stadium | D170: Valdesoto | E170: dACk3BoJ | F170: 176 | I170: Загрузить | J170: 2 | K170: 0 | L170: 1.77 | M170: 3.76 | N170: 4.17 | O170: 1.62 | P170: 3.74 | Q170: 4.58
A171: SPAIN: Tercera Division - Group 2 - Relegation Group | B171: 2021.04.18 12:00 | C171: SD Navarro CF | D171: CD Colunga | E171: IJDo4iWC | F171: 176 | I171: Загрузить | J171: 0 | K171: 0 | L171: 2.25 | M171: 3 | N171: 3.16 | O171: 2.25 | P171: 3 | Q171: 3.16
A172: SPAIN: Tercera Division - Group 2 - Second stage | B172: 2021.04.18 12:00 | C172: Lenense | D172: Real Titanico | E172: AwrtW6KT | F172: 176 | I172: Загрузить | J172: 3 | K172: 1
A173: SPAIN: Tercera Division - Group 4 - Relegation Group | B173: 2021.04.18 12:00 | C173: Ariznabarra | D173: Tolosa FC | E173: EsidEEmP | F173: 176 | I173: Загрузить | J173: 1 | K173: 2 | L173: 2.92 | M173: 3.44 | N173: 2.29 | O173: 2.86 | P173: 3.3 | Q173: 2.22
A174: SPAIN: Tercera Division - Group 5 - Promotion Group | B174: 2021.04.18 12:00 | C174: Cerdanyola | D174: Vilafranca | E174: C0XehSgI | F174: 176 | I174: Загрузить | J174: 1 | K174: 1 | L174: 2.85 | M174: 3.21 | N174: 2.46 | O174: 2.17 | P174: 3.2 | Q174: 3.06
A175: SPAIN: Tercera Division - Group 5 - Promotion Group | B175: 2021.04.18 12:00 | C175: Girona B | D175: CE Europa | E175: fPxig8vC | F175: 176 | I175: Загрузить | J175: 0 | K175: 1
A176: SPAIN: Tercera Division - Group 5 - Relegation Group | B176: 2021.04.18 12:00 | C176: Horta | D176: Pobla Mafumet | E176: A7gimzDE | F176: 176 | I176: Загрузить | J176: 1 | K176: 1 | L176: 3.39 | M176: 3.39 | N176: 2.09 | O176: 3.56 | P176: 3.3 | Q176: 1.93
A177: SPAIN: Tercera Division - Group 5 - Second stage | B177: 2021.04.18 12:00 | C177: Vilassar de Mar | D177: San Cristobal CP | E177: ni1SNJq3 | F177: 176 | I177: Загрузить | J177: 3 | K177: 3 | L177: 2.61 | M177: 3.14 | N177: 2.72 | O177: 2.22 | P177: 3.1 | Q177: 3.06
A178: SPAIN: Tercera Division - Group 6 - Relegation Group | B178: 2021.04.18 12:00 | C178: Torrent | D178: Hercules B | E178: hKKWS7jB | F178: 176 | I178: Загрузить | J178: 2 | K178: 0 | L178: 2.6 | M178: 3.33 | N178: 2.6 | O178: 2.5 | P178: 3.2 | Q178: 2.5
A179: SPAIN: Tercera Division - Group 6 - Second stage | B179: 2021.04.18 12:00 | C179: Silla CF | D179: Jove | E179: nLQeA2vF | F179: 176 | I179: Загрузить | J179: 1 | K179: 0 | L179: 2.07 | M179: 2.9 | N179: 4.14 | O179: 1.93 | P179: 3.3 | Q179: 3.56
A180: SPAIN: Tercera Division - Group 7 - Promotion Group | B180: 2021.04.18 12:00 | C180: Rayo Vallecano B | D180: CD Mostoles | E180: zoq4PgW2 | F180: 176 | I180: Загрузить | J180: 1 | K180: 0 | L180: 2.63 | M180: 3.19 | N180: 2.4 | O180: 2.6 | P180: 3.2 | Q180: 2.4
A181: SPAIN: Tercera Division - Group 7 - Promotion Group | B181: 2021.04.18 12:00 | C181: Union Adarve | D181: Leganes B | E181: Eyr8ODo9 | F181: 176 | I181: Загрузить | J181: 3 | K181: 2 | L181: 2.13 | M181: 3.06 | N181: 3.32 | O181: 2.17 | P181: 3.1 | Q181: 3.17
A182: SPAIN: Tercera Division - Group 7 - Relegation Group | B182: 2021.04.18 12:00 | C182: Santa Ana | D182: Mostoles | E182: SvbaVtGj | F182: 176 | I182: Загрузить | J182: 0 | K182: 2 | L182: 5.65 | M182: 3.54 | N182: 1.56 | O182: 3.56 | P182: 3.3 | Q182: 1.93
A183: SPAIN: Tercera Division - Group 7 - Second stage | B183: 2021.04.18 12:00 | C183: Pozuelo de Alarcon | D183: Parla | E183: dd1eFUPh | F183: 176 | I183: Загрузить | J183: 1 | K183: 1 | L183: 2 | M183: 3.17 | N183: 3.5 | O183: 2.02 | P183: 3.24 | Q183: 3.36
A184: SPAIN: Tercera Division - Group 9 - Relegation Group | B184: 2021.04.18 12:00 | C184: CP Almeria | D184: Motril | E184: h4xGSHlE | F184: 176 | I184: Загрузить | J184: 0 | K184: 0
A185: SPAIN: Tercera Division - Group 9 - Relegation Group | B185: 2021.04.18 12:00 | C185: Maracena | D185: CD Alhaurino | E185: O4EnA9Yn | F185: 176 | I185: Загрузить | J185: 1 | K185: 1 | L185: 1.94 | M185: 3.06 | N185: 3.82 | O185: 1.69 | P185: 3.74 | Q185: 4.08
A186: SPAIN: Tercera Division - Group 9 - Second stage | B186: 2021.04.18 12:00 | C186: Huetor Vega | D186: Malaga B | E186: St97bIYs | F186: 176 | I186: Загрузить | J186: 2 | K186: 1 | L186: 3.24 | M186: 3.55 | N186: 2.09 | O186: 3.17 | P186: 3.4 | Q186: 2.02
A187: SPAIN: Tercera Division - Group 10 - Promotion Group | B187: 2021.04.18 12:00 | C187: Ceuta | D187: Ciudad de Lucena | E187: n3RSnegC | F187: 176 | I187: Загрузить | J187: 2 | K187: 3
A188: SPAIN: Tercera Division - Group 10 - Relegation Group | B188: 2021.04.18 12:00 | C188: Arcos CF | D188: Sevilla FC C | E188: jcyrJJZ7 | F188: 176 | I188: Загрузить | J188: 0 | K188: 0
A189: SPAIN: Tercera Division - Group 10 - Relegation Group | B189: 2021.04.18 12:00 | C189: Cabecense | D189: CD Gerena | E189: C6xvKaK1 | F189: 176 | I189: Загрузить | J189: 2 | K189: 2 | L189: 2.18 | M189: 3.18 | N189: 3.07 | O189: 2.12 | P189: 3.2 | Q189: 3.17
A190: SPAIN: Tercera Division - Group 10 - Second stage | B190: 2021.04.18 12:00 | C190: Antoniano | D190: CD Utrera | E190: 2gGqEXiB | F190: 176 | I190: Загрузить | J190: 2 | K190: 3 | L190: 3.58 | M190: 2.85 | N190: 2.11 | O190: 2.22 | P190: 3.24 | Q190: 2.93
A191: SPAIN: Tercera Division - Group 10 - Second stage | B191: 2021.04.18 12:00 | C191: Rota | D191: Pozoblanco | E191: 8hrHePyp | F191: 176 | I191: Загрузить | J191: 1 | K191: 4 | L191: 2.13 | M191: 3.23 | N191: 3.44 | O191: 2.12 | P191: 3.2 | Q191: 3.17 | R191: =IF(L191="","",L191-O191) -> 0.01 | S191: 0.03 | T191: 0.27
A192: SPAIN: Tercera Division - Group 11 - Promotion Group | B192: 2021.04.18 12:00 | C192: Constancia | D192: Platges de Calvia | E192: WITbiO7B | F192: 176 | I192: Загрузить | J192: 2 | K192: 1
A193: SPAIN: Tercera Division - Group 11 - Promotion Group | B193: 2021.04.18 12:00 | C193: Ibiza Islas Pitiusas | D193: Formentera | E193: A3ujgpwa | F193: 176 | I193: Загрузить | J193: 1 | K193: 1 | L193: 1.77 | M193: 3.44 | N193: 4.68 | O193: 1.51 | P193: 3.74 | Q193: 5.7 | R193: 0.26 | S193: -0.3 | T193: -1.02
A194: SPAIN: Tercera Division - Group 11 - Relegation Group | B194: 2021.04.18 12:00 | C194: Felanitx | D194: Santa Catalina Atletico | E194: I31S3ehA | F194: 176 | I194: Загрузить | J194: 3 | K194: 0 | L194: 1.52 | M194: 3.98 | N194: 6.28 | O194: 1.75 | P194: 3.5 | Q194: 4.08
A195: SPAIN: Tercera Division - Group 11 - Relegation Group | B195: 2021.04.18 12:00 | C195: Ferriolense | D195: Alcudia | E195: CQ0W2F7G | F195: 176 | I195: Загрузить | J195: 0 | K195: 0 | L195: 2.45 | M195: 3.41 | N195: 2.71 | O195: 2.81 | P195: 3.3 | Q195: 2.27
A196: SPAIN: Tercera Division - Group 14 - Promotion Group | B196: 2021.04.18 12:00 | C196: Montijo | D196: Diocesano | E196: WlYfYCVK | F196: 176 | I196: Загрузить | J196: 2 | K196: 2 | L196: 1.71 | M196: 3.32 | N196: 5.44 | O196: 1.59 | P196: 3.74 | Q196: 4.82
A197: SPAIN: Tercera Division - Group 14 - Relegation Group | B197: 2021.04.18 12:00 | C197: Fuente de Cantos | D197: Chinato | E197: 0MPDK8JB | F197: 176 | I197: Загрузить | J197: 3 | K197: 2 | L197: 2.07 | M197: 3.41 | N197: 3.41 | O197: 2.32 | P197: 3.2 | Q197: 2.81
A198: SPAIN: Tercera Division - Group 14 - Relegation Group | B198: 2021.04.18 12:00 | C198: Olivenza | D198: CD Calamonte | E198: 6aQ9Ll45 | F198: 176 | I198: Загрузить | J198: 1 | K198: 1 | L198: 2.28 | M198: 3.37 | N198: 2.98 | O198: 2.22 | P198: 3.24 | Q198: 2.93
A199: SPAIN: Tercera Division - Group 14 - Second stage | B199: 2021.04.18 12:00 | C199: Azuaga | D199: Extremadura UD B | E199: f5Aut1Tb | F199: 176 | I199: Загрузить | J199: 1 | K199: 1
A200: SPAIN: Tercera Division - Group 14 - Second stage | B200: 2021.04.18 12:00 | C200: Miajadas | D200: Aceuchal | E200: jX3lvubB | F200: 176 | I200: Загрузить | J200: 2 | K200: 0 | L200: 1.88 | M200: 3.55 | N200: 3.91 | O200: 1.93 | P200: 3.4 | Q200: 3.46
... 908 more rows

Sheet АнализУПР
A1: =IFERROR(Расчеты!C126,"R") -> CHILE: Primera Division | X1: =SVOD!A1 -> Everton | AU1: =SVOD!A7 -> Colo Colo
A4: =Расчеты!D126 -> 2021.04.18 21:00
AE5: Nx | AP5: =IFERROR(DATA!P26,"ND") -> 2.262423714 | AY5: POISSON
R6: A | Z6: =IFERROR(DATA!P23,"ND") -> 0.846581876 | BJ6: =IFERROR(DATA!Q23,"ND") -> 1.850094877 | BM6: A
A7: МЕСТО ВСЕГО | N7: =IFERROR(SVOD!I2,"ND") -> 6 | AE7: =IFERROR(DATA!P9,"ND") -> 0.8108108108 | AI7: : | AJ7: =IFERROR(DATA!Q9,"ND") -> 2.177419355 | AY7: =DATA!J15 -> 1.5 | BC7: : | BD7: =DATA!J16 -> 1 | BV7: =IFERROR(SVOD!I8,"ND") -> 9 | BY7: МЕСТО ВСЕГО
R8: D | Z8: =IFERROR(DATA!P24,"ND") -> 0.9250474383 | BJ8: =IFERROR(DATA!Q24,"ND") -> 0.846581876 | BM8: D
A10: ОЧКИ ВСЕГО | N10: =IFERROR(SVOD!H2,"ND") -> 5 | R10: XG 90 | Z10: =IFERROR(DATA!P31,"ND") -> 1.054915209 | BJ10: =IFERROR(DATA!Q31,"ND") -> 1.814964158 | BM10: XG 90 | BV10: =IFERROR(SVOD!H8,"ND") -> 4 | BY10: ОЧКИ ВСЕГО
R12: Coef | Z12: =IFERROR(DATA!P25,"ND") -> 0.9189189189 | BJ12: =IFERROR(DATA!Q25,"ND") -> 2.193548387 | BM12: Coef
A13: МЕСТО ДОМА | N13: =IFERROR(SVOD!I6,"ND") -> 11 | AE13: =Лист3!J1 -> 1.085714286 | AI13: : | AJ13: =Лист3!K1 -> 1.314285714 | AO13: =Лист3!L1 -> 2.4 | AU13: =Лист3!AE19 -> 0.4 | BV13: =IFERROR(SVOD!I12,"ND") -> 5 | BY13: МЕСТО В ГОСТЯХ
R14: GD-xGD | Z14: =IFERROR(SVOD!AA57,"ND") -> 0.2 | BJ14: =IFERROR(SVOD!AC57,"ND") -> 0.25 | BM14: GD-xGD
A16: ОЧКИ ДОМА | N16: =IFERROR(SVOD!H6,"ND") -> 7 | R16: IPPM | Z16: =IFERROR(SVOD!S63,"ND") -> -1.18627451 | BJ16: =IFERROR(SVOD!U63,"ND") -> 1.18627451 | BM16: IPPM | BV16: =IFERROR(SVOD!H12,"ND") -> 5 | BY16: ОЧКИ В ГОСТЯХ
R18: PPM | Z18: =IFERROR(SVOD!C52,"ND") -> 1.5 | AH18: Nx & POISSON | BJ18: =IFERROR(SVOD!D52,"ND") -> 2 | BM18: PPM
A19: ФОРМА ДОМА | N19: =IFERROR(SVOD!J6,"ND") -> 1.75 | BV19: =IFERROR(SVOD!J12,"ND") -> 1.25 | BY19: ФОРМА В ГОСТЯХ
Y21: =IFERROR(IF(AND(AE7>AJ7,AI32<2),"ДА",""),"ND") ->  | AA21: =IFERROR(IF(AND(AE7>AJ7,AI32<2),"Ф(0)",""),"ND") ->  | AI21: =IFERROR(SVOD!C44,"ND") -> 0.2844771242 | AP21: =IFERROR(SVOD!C47,"ND") -> 0.1607843137 | AX21: =IFERROR(SVOD!D44,"ND") -> 0.5547385621 | BE21: =IFERROR(IF(AND(AJ7>AE7,AX32<1.7),"Ф(0)",""),"ND") ->  | BK21: =IFERROR(IF(AND(AJ7>AE7,AX32<1.7),"ДА",""),"ND") ->  | BM21: ОБЕ ЗАБЬЮТ
A22: МОТИВАЦИЯ | N22: =IFERROR(Расчеты!I121,"ND") -> 2 | BV22: =IFERROR(Расчеты!J121,"ND") -> 0 | BY22: МОТИВАЦИЯ
Y24: =IFERROR(IF(AND(AE7>AJ7,AI32<1.7,DATA!P29>0.99),"ДА",""),"ND") ->  | AA24: =IFERROR(IF(AND(AE7>AJ7,AI29<1.7,DATA!P29>0.99),"П1",""),"ND") ->  | AI24: =IFERROR(Poisson!B13,"ND") -> 0.4879415858 | AP24: =IFERROR(Poisson!C13,"ND") -> 0.2598473743 | AX24: =IFERROR(Poisson!D13,"ND") -> 0.2522110399 | BE24: =IFERROR(IF(AND(AJ7>AE7,AX29<1.7,DATA!P30>1),"П2",""),"ND") ->  | BK24: =IFERROR(IF(AND(AJ7>AE7,X48<1.7,DATA!P30>1),"ДА",""),"ND") ->  | BM24: =DATA!J28 -> НЕТ
A25: РЕЙТИНГ | N25: =IFERROR(DATA!P28,"ND") -> 4 | BT25: ОЖИДАЕМЫЙ ТОТАЛ
BM26: =DATA!J33 -> НЕТ
Y27: =IFERROR(IF(AND(AE7>AJ7,AE7>=(AJ7+2.09),AND(AI32<1.9)),"ДА",""),"BD") ->  | AA27: =IFERROR(IF(AND(AE7>AJ7,AE7>=(AJ7+2.09),AND(AI29<1.9),N25>3),"ИТ1>1,5",""),"ND") ->  | AI27: КОФФИЦИЕНТЫ 1Х2 | BE27: =IFERROR(IF(AND(AJ7>AE7,AJ7>=(AE7+2.09),AND(AX29<1.9,N25<0)),"ИТ2>1,5",""),"ND") ->  | BK27: =IFERROR(IF(AND(AJ7>AE7,AJ7>=(AE7+2.09),AND(AX32<1.9,)),"ДА",""),"ND") ->  | BT27: =IFERROR(IF(AND((AE7+AJ7)>2.7,Z6+BJ6>1.6),">1,5",""),"ND") -> >1,5 | BX27: =IFERROR(DATA!I29,"") -> НЕТ | CB27: =IFERROR(IF(AND((AE7+AJ7)>3.2,(Z10+BJ10)>2.9,AP5>2.59,(Z6+BJ6)>2.29),">2,5","НЕТ"),"ND") -> НЕТ | CF27: =IFERROR(IF(AND((AE7+AJ7)>3.2,(Z10+BJ10)>2.9,AP5>2.59,(Z6+BJ6)>2.29,AU13>2.15),">3,5","НЕТ"),"ND") -> НЕТ | CJ27: =IFERROR(IF(AND((AE7+AJ7)>3.2,(Z10+BJ10)>2.9,AP5>2.59,(Z6+BJ6)>2.29,AU13>2.2),">4,5","НЕТ"),"ND") -> НЕТ
A28: ПОСЛЕДНИЕ 5 ОЧНЫХ ВСТРЕЧ | BM28: =IFERROR(IF(AND(Z6>1.09,BJ6>1.09,Z12>1,BJ12>1),"ДА","НЕТ"),"ND") -> НЕТ
AI29: =IFERROR(SVOD!S42,"-") -> 2.37 | AP29: =IFERROR(SVOD!T42,"-") -> 3.2 | AX29: =IFERROR(SVOD!U42,"-") -> 2.7
A30: =Результат!D85 -> Colo Colo | G30: =Результат!E85 -> Everton | M30: =Результат!F85 -> 1 : 0 | Y30: =IFERROR(IF(AND(AE7>AJ7,AE7>=(AJ7+2.09),AND(AI32<1.9,DATA!J12>DATA!J13)),"ДА",""),"BD") ->  | AA30: =IFERROR(IF(AND(AE7>AJ7,AE7>=(AJ7+2.09),AND(AI29<1.9,DATA!J12>DATA!J13,N25>10.9)),"Ф-1,5",""),"ND") ->  | BE30: =IFERROR(IF(AND(AJ7>AE7,AJ7>=(AE7+2.09),AND(AX29<1.9,DATA!J13>DATA!J12,N25<0)),"Ф-1,5",""),"ND") ->  | BK30: =IFERROR(IF(AND(AJ7>AE7,AJ7>=(AE7+2.09),AND(AX32<1.9,DATA!J13>DATA!J12)),"ДА",""),"ND") ->  | BT30: =IF(BT27=">1,5","ДА","НЕТ") -> ДА | BX30: =IF(BX27=">2","ДА","НЕТ") -> НЕТ | CB30: =IF(CB27=">2,5","ДА","НЕТ") -> НЕТ | CF30: =IF(CF27=">3,5","ДА","НЕТ") -> НЕТ | CJ30: =IF(CJ27=">4,5","ДА","НЕТ") -> НЕТ | CN30: =IF(CN27="ТМ3,5","ДА","НЕТ") -> НЕТ
A32: =Результат!D86 -> Everton | G32: =Результат!E86 -> Colo Colo | M32: =Результат!F86 -> 1 : 1 | AI32: =IFERROR(SVOD!S47,"-") -> 2.3 | AP32: =IFERROR(SVOD!T47,"-") -> 3.2 | AX32: =IFERROR(SVOD!U47,"-") -> 2.9
A34: =Результат!D87 -> Everton | G34: =Результат!E87 -> Colo Colo | M34: =Результат!F87 -> 1 : 2 | AB34: =IFERROR(IF(AND(AE7>AJ7,AE7>=(AJ7+2.09),AND(AI32<1.9)),"ДА",""),"R") ->  | AI34: КОФФИЦИЕНТЫ > 2,5
A36: =Результат!D88 -> Colo Colo | G36: =Результат!E88 -> Everton | M36: =Результат!F88 -> 2 : 1 | AI36: =SVOD!P42 -> 2 | AX36: =SVOD!R42 -> 2.25
AB37: =IFERROR(IF(AND(AE7>AJ7,AE7>=(AJ7+2.09),AND(AI32<1.9,DATA!J12>DATA!J13)),"ДА",""),"R") -> 
A38: =Результат!D89 -> Colo Colo | G38: =Результат!E89 -> Everton | M38: =Результат!F89 -> 0 : 0

Sheet Таблица (hidden)
A1: Место | B1: Команда | C1: Игр | D1: Выиграно | E1: Ничьих | F1: Проиграно | G1: Забито | H1: Пропущено | I1: Очков | K1: Место | L1: Команда | M1: Игр | N1: Выиграно | O1: Ничьих | P1: Проиграно | Q1: Забито | R1: Пропущено | S1: Очков | U1: Место | V1: Команда | W1: Игр | X1: Выиграно | Y1: Ничьих | Z1: Проиграно | AA1: Забито | AB1: Пропущено | AC1: Очков
A2: 1 | B2: U. Catolica | C2: 4 | D2: 3 | E2: 0 | F2: 1 | G2: 5 | H2: 3 | I2: 9 | K2: 1 | L2: U. Catolica | M2: 2 | N2: 2 | O2: 0 | P2: 0 | Q2: 4 | R2: 2 | S2: 6 | U2: 1 | V2: Antofagasta | W2: 2 | X2: 1 | Y2: 1 | Z2: 0 | AA2: 5 | AB2: 3 | AC2: 4
A3: 2 | B3: A. Italiano | C3: 4 | D3: 2 | E3: 2 | F3: 0 | G3: 4 | H3: 2 | I3: 8 | K3: 2 | L3: A. Italiano | M3: 2 | N3: 2 | O3: 0 | P3: 0 | Q3: 3 | R3: 1 | S3: 6 | U3: 2 | V3: Everton | W3: 2 | X3: 1 | Y3: 1 | Z3: 0 | AA3: 3 | AB3: 2 | AC3: 4
A4: 3 | B4: Union La Calera | C4: 4 | D4: 2 | E4: 2 | F4: 0 | G4: 4 | H4: 2 | I4: 8 | K4: 3 | L4: Huachipato | M4: 2 | N4: 1 | O4: 1 | P4: 0 | Q4: 5 | R4: 3 | S4: 4 | U4: 3 | V4: O'Higgins | W4: 2 | X4: 1 | Y4: 1 | Z4: 0 | AA4: 3 | AB4: 2 | AC4: 4
A5: 4 | B5: O'Higgins | C5: 4 | D5: 1 | E5: 3 | F5: 0 | G5: 3 | H5: 2 | I5: 6 | K5: 4 | L5: Curico Unido | M5: 2 | N5: 1 | O5: 1 | P5: 0 | Q5: 3 | R5: 1 | S5: 4 | U5: 4 | V5: Union La Calera | W5: 2 | X5: 1 | Y5: 1 | Z5: 0 | AA5: 2 | AB5: 1 | AC5: 4
A6: 5 | B6: Huachipato | C6: 3 | D6: 1 | E6: 2 | F6: 0 | G6: 6 | H6: 4 | I6: 5 | K6: 5 | L6: La Serena | M6: 2 | N6: 1 | O6: 1 | P6: 0 | Q6: 2 | R6: 0 | S6: 4 | U6: 5 | V6: Colo Colo | W6: 1 | X6: 1 | Y6: 0 | Z6: 0 | AA6: 2 | AB6: 1 | AC6: 3
A7: 6 | B7: Everton | C7: 3 | D7: 1 | E7: 2 | F7: 0 | G7: 4 | H7: 3 | I7: 5 | K7: 6 | L7: Union La Calera | M7: 2 | N7: 1 | O7: 1 | P7: 0 | Q7: 2 | R7: 1 | S7: 4 | U7: 6 | V7: Melipilla | W7: 2 | X7: 1 | Y7: 0 | Z7: 1 | AA7: 2 | AB7: 2 | AC7: 3
A8: 7 | B8: La Serena | C8: 4 | D8: 1 | E8: 2 | F8: 1 | G8: 3 | H8: 2 | I8: 5 | K8: 7 | L8: Nublense | M8: 2 | N8: 1 | O8: 0 | P8: 1 | Q8: 3 | R8: 2 | S8: 3 | U8: 7 | V8: Palestino | W8: 2 | X8: 1 | Y8: 0 | Z8: 1 | AA8: 2 | AB8: 2 | AC8: 3
A9: 8 | B9: Antofagasta | C9: 3 | D9: 1 | E9: 1 | F9: 1 | G9: 6 | H9: 5 | I9: 4 | K9: 8 | L9: Cobresal | M9: 2 | N9: 1 | O9: 0 | P9: 1 | Q9: 3 | R9: 3 | S9: 3 | U9: 8 | V9: U. Catolica | W9: 2 | X9: 1 | Y9: 0 | Z9: 1 | AA9: 1 | AB9: 1 | AC9: 3
A10: 9 | B10: Colo Colo | C10: 3 | D10: 1 | E10: 1 | F10: 1 | G10: 3 | H10: 3 | I10: 4 | K10: 9 | L10: U. Espanola | M10: 2 | N10: 1 | O10: 0 | P10: 1 | Q10: 3 | R10: 3 | S10: 3 | U10: 9 | V10: A. Italiano | W10: 2 | X10: 0 | Y10: 2 | Z10: 0 | AA10: 1 | AB10: 1 | AC10: 2
A11: 10 | B11: Nublense | C11: 4 | D11: 1 | E11: 1 | F11: 2 | G11: 7 | H11: 8 | I11: 4 | K11: 10 | L11: O'Higgins | M11: 2 | N11: 0 | O11: 2 | P11: 0 | Q11: 0 | R11: 0 | S11: 2 | U11: 10 | V11: Huachipato | W11: 1 | X11: 0 | Y11: 1 | Z11: 0 | AA11: 1 | AB11: 1 | AC11: 1
A12: 11 | B12: Curico Unido | C12: 4 | D12: 1 | E12: 1 | F12: 2 | G12: 4 | H12: 5 | I12: 4 | K12: 11 | L12: Everton | M12: 1 | N12: 0 | O12: 1 | P12: 0 | Q12: 1 | R12: 1 | S12: 1 | U12: 11 | V12: U. De Chile | W12: 1 | X12: 0 | Y12: 1 | Z12: 0 | AA12: 0 | AB12: 0 | AC12: 1
A13: 12 | B13: Melipilla | C13: 4 | D13: 1 | E13: 1 | F13: 2 | G13: 3 | H13: 4 | I13: 4 | K13: 12 | L13: U. De Chile | M13: 1 | N13: 0 | O13: 1 | P13: 0 | Q13: 1 | R13: 1 | S13: 1 | U13: 12 | V13: La Serena | W13: 2 | X13: 0 | Y13: 1 | Z13: 1 | AA13: 1 | AB13: 2 | AC13: 1
A14: 13 | B14: Palestino | C14: 4 | D14: 1 | E14: 1 | F14: 2 | G14: 5 | H14: 7 | I14: 4 | K14: 13 | L14: Colo Colo | M14: 2 | N14: 0 | O14: 1 | P14: 1 | Q14: 1 | R14: 2 | S14: 1 | U14: 13 | V14: Nublense | W14: 2 | X14: 0 | Y14: 1 | Z14: 1 | AA14: 4 | AB14: 6 | AC14: 1
A15: 14 | B15: Cobresal | C15: 4 | D15: 1 | E15: 1 | F15: 2 | G15: 4 | H15: 6 | I15: 4 | K15: 14 | L15: Melipilla | M15: 2 | N15: 0 | O15: 1 | P15: 1 | Q15: 1 | R15: 2 | S15: 1 | U15: 14 | V15: Cobresal | W15: 2 | X15: 0 | Y15: 1 | Z15: 1 | AA15: 1 | AB15: 3 | AC15: 1
A16: 15 | B16: U. Espanola | C16: 3 | D16: 1 | E16: 0 | F16: 2 | G16: 3 | H16: 4 | I16: 3 | K16: 15 | L16: Palestino | M16: 2 | N16: 0 | O16: 1 | P16: 1 | Q16: 3 | R16: 5 | S16: 1 | U16: 15 | V16: U. Espanola | W16: 1 | X16: 0 | Y16: 0 | Z16: 1 | AA16: 0 | AB16: 1 | AC16: 0
A17: 16 | B17: U. De Chile | C17: 2 | D17: 0 | E17: 2 | F17: 0 | G17: 1 | H17: 1 | I17: 2 | K17: 16 | L17: Antofagasta | M17: 1 | N17: 0 | O17: 0 | P17: 1 | Q17: 1 | R17: 2 | S17: 0 | U17: 16 | V17: S. Wanderers | W17: 2 | X17: 0 | Y17: 0 | Z17: 2 | AA17: 2 | AB17: 5 | AC17: 0
A18: 17 | B18: S. Wanderers | C18: 3 | D18: 0 | E18: 0 | F18: 3 | G18: 3 | H18: 7 | I18: 0 | K18: 17 | L18: S. Wanderers | M18: 1 | N18: 0 | O18: 0 | P18: 1 | Q18: 1 | R18: 2 | S18: 0 | U18: 17 | V18: Curico Unido | W18: 2 | X18: 0 | Y18: 0 | Z18: 2 | AA18: 1 | AB18: 4 | AC18: 0

Sheet Форма (hidden)
A1: Место | B1: Команда | C1: Игр | D1: Выиграно | E1: Ничьих | F1: Проиграно | G1: Забито | H1: Пропущено | I1: Очков | K1: Место | L1: Команда | M1: Игр | N1: Выиграно | O1: Ничьих | P1: Проиграно | Q1: Забито | R1: Пропущено | S1: Очков | U1: Место | V1: Команда | W1: Игр | X1: Выиграно | Y1: Ничьих | Z1: Проиграно | AA1: Забито | AB1: Пропущено | AC1: Очков | BA1: Место | BB1: Форма общая | BC1: Игр | BD1: Выиграно | BE1: Ничьих | BF1: Проиграно | BG1: Забито | BH1: Пропущено | BI1: Очков | BK1: Место | BL1: ФОРМА ДОМАШНЯЯ | BM1: Игр | BN1: Выиграно | BO1: Ничьих | BP1: Проиграно | BQ1: Забито | BR1: Пропущено | BS1: Очков | BU1: Место | BV1: ФОРМА ВЫЕЗДНАЯ | BW1: Игр | BX1: Выиграно | BY1: Ничьих | BZ1: Проиграно | CA1: Забито | CB1: Пропущено | CC1: Очков
A2: 1 | B2: U. Catolica | C2: 4 | D2: 3 | E2: 0 | F2: 1 | G2: 5 | H2: 3 | I2: 9 | K2: 1 | L2: U. Catolica | M2: 2 | N2: 2 | O2: 0 | P2: 0 | Q2: 2 | R2: 4 | S2: 6 | U2: 1 | V2: Antofagasta | W2: 2 | X2: 1 | Y2: 1 | Z2: 0 | AA2: 5 | AB2: 3 | AC2: 4 | BA2: =A2 -> 1 | BB2: =B2&C2 -> U. Catolica4 | BC2: =C2 -> 4 | BD2: =D2 -> 3 | BE2: 0 | BF2: 1 | BG2: 5 | BH2: 3 | BI2: 9 | BK2: =K2 -> 1 | BL2: =L2&M2 -> U. Catolica2 | BM2: =M2 -> 2 | BN2: =N2 -> 2 | BO2: 0 | BP2: 0 | BQ2: 2 | BR2: 4 | BS2: 6 | BU2: =U2 -> 1 | BV2: =V2&W2 -> Antofagasta2 | BW2: =W2 -> 2 | BX2: =X2 -> 1 | BY2: 1 | BZ2: 0 | CA2: 5 | CB2: 3 | CC2: 4
A3: 2 | B3: A. Italiano | C3: 4 | D3: 2 | E3: 2 | F3: 0 | G3: 4 | H3: 2 | I3: 8 | K3: 2 | L3: A. Italiano | M3: 2 | N3: 2 | O3: 0 | P3: 0 | Q3: 1 | R3: 3 | S3: 6 | U3: 2 | V3: Everton | W3: 2 | X3: 1 | Y3: 1 | Z3: 0 | AA3: 3 | AB3: 2 | AC3: 4 | BA3: =A3 -> 2 | BB3: =B3&C3 -> A. Italiano4 | BC3: =C3 -> 4 | BD3: =D3 -> 2 | BE3: =E3 -> 2 | BF3: =F3 -> 0 | BG3: =G3 -> 4 | BH3: =H3 -> 2 | BI3: =I3 -> 8 | BK3: =K3 -> 2 | BL3: =L3&M3 -> A. Italiano2 | BM3: =M3 -> 2 | BN3: 2 | BO3: 0 | BP3: 0 | BQ3: 1 | BR3: 3 | BS3: 6 | BU3: =U3 -> 2 | BV3: =V3&W3 -> Everton2 | BW3: =W3 -> 2 | BX3: 1 | BY3: 1 | BZ3: 0 | CA3: 3 | CB3: 2 | CC3: 4
A4: 3 | B4: Union La Calera | C4: 4 | D4: 2 | E4: 2 | F4: 0 | G4: 4 | H4: 2 | I4: 8 | K4: 3 | L4: Huachipato | M4: 2 | N4: 1 | O4: 1 | P4: 0 | Q4: 3 | R4: 5 | S4: 4 | U4: 3 | V4: O'Higgins | W4: 2 | X4: 1 | Y4: 1 | Z4: 0 | AA4: 3 | AB4: 2 | AC4: 4 | BA4: 3 | BB4: Union La Calera4 | BC4: 4 | BD4: 2 | BE4: 2 | BF4: 0 | BG4: 4 | BH4: 2 | BI4: 8 | BK4: 3 | BL4: Huachipato2 | BM4: 2 | BN4: 1 | BO4: 1 | BP4: 0 | BQ4: 3 | BR4: 5 | BS4: 4 | BU4: 3 | BV4: O'Higgins2 | BW4: 2 | BX4: 1 | BY4: 1 | BZ4: 0 | CA4: 3 | CB4: 2 | CC4: 4
A5: 4 | B5: O'Higgins | C5: 4 | D5: 1 | E5: 3 | F5: 0 | G5: 3 | H5: 2 | I5: 6 | K5: 4 | L5: Curico Unido | M5: 2 | N5: 1 | O5: 1 | P5: 0 | Q5: 1 | R5: 3 | S5: 4 | U5: 4 | V5: Union La Calera | W5: 2 | X5: 1 | Y5: 1 | Z5: 0 | AA5: 2 | AB5: 1 | AC5: 4 | BA5: 4 | BB5: O'Higgins4 | BC5: 4 | BD5: 1 | BE5: 3 | BF5: 0 | BG5: 3 | BH5: 2 | BI5: 6 | BK5: 4 | BL5: Curico Unido2 | BM5: 2 | BN5: 1 | BO5: 1 | BP5: 0 | BQ5: 1 | BR5: 3 | BS5: 4 | BU5: 4 | BV5: Union La Calera2 | BW5: 2 | BX5: 1 | BY5: 1 | BZ5: 0 | CA5: 2 | CB5: 1 | CC5: 4
A6: 5 | B6: Huachipato | C6: 3 | D6: 1 | E6: 2 | F6: 0 | G6: 6 | H6: 4 | I6: 5 | K6: 5 | L6: La Serena | M6: 2 | N6: 1 | O6: 1 | P6: 0 | Q6: 0 | R6: 2 | S6: 4 | U6: 5 | V6: Colo Colo | W6: 1 | X6: 1 | Y6: 0 | Z6: 0 | AA6: 2 | AB6: 1 | AC6: 3 | BA6: 5 | BB6: Huachipato3 | BC6: 3 | BD6: 1 | BE6: 2 | BF6: 0 | BG6: 6 | BH6: 4 | BI6: 5 | BK6: 5 | BL6: La Serena2 | BM6: 2 | BN6: 1 | BO6: 1 | BP6: 0 | BQ6: 0 | BR6: 2 | BS6: 4 | BU6: 5 | BV6: Colo Colo1 | BW6: 1 | BX6: 1 | BY6: 0 | BZ6: 0 | CA6: 2 | CB6: 1 | CC6: 3
A7: 6 | B7: Everton | C7: 3 | D7: 1 | E7: 2 | F7: 0 | G7: 4 | H7: 3 | I7: 5 | K7: 6 | L7: Union La Calera | M7: 2 | N7: 1 | O7: 1 | P7: 0 | Q7: 1 | R7: 2 | S7: 4 | U7: 6 | V7: Melipilla | W7: 2 | X7: 1 | Y7: 0 | Z7: 1 | AA7: 2 | AB7: 2 | AC7: 3 | BA7: 6 | BB7: Everton3 | BC7: 3 | BD7: 1 | BE7: 2 | BF7: 0 | BG7: 4 | BH7: 3 | BI7: 5 | BK7: 6 | BL7: Union La Calera2 | BM7: 2 | BN7: 1 | BO7: 1 | BP7: 0 | BQ7: 1 | BR7: 2 | BS7: 4 | BU7: 6 | BV7: Melipilla2 | BW7: 2 | BX7: 1 | BY7: 0 | BZ7: 1 | CA7: 2 | CB7: 2 | CC7: 3
A8: 7 | B8: La Serena | C8: 4 | D8: 1 | E8: 2 | F8: 1 | G8: 3 | H8: 2 | I8: 5 | K8: 7 | L8: Nublense | M8: 2 | N8: 1 | O8: 0 | P8: 1 | Q8: 2 | R8: 3 | S8: 3 | U8: 7 | V8: Palestino | W8: 2 | X8: 1 | Y8: 0 | Z8: 1 | AA8: 2 | AB8: 2 | AC8: 3 | BA8: 7 | BB8: La Serena4 | BC8: 4 | BD8: 1 | BE8: 2 | BF8: 1 | BG8: 3 | BH8: 2 | BI8: 5 | BK8: 7 | BL8: Nublense2 | BM8: 2 | BN8: 1 | BO8: 0 | BP8: 1 | BQ8: 2 | BR8: 3 | BS8: 3 | BU8: 7 | BV8: Palestino2 | BW8: 2 | BX8: 1 | BY8: 0 | BZ8: 1 | CA8: 2 | CB8: 2 | CC8: 3
A9: 8 | B9: Antofagasta | C9: 3 | D9: 1 | E9: 1 | F9: 1 | G9: 6 | H9: 5 | I9: 4 | K9: 8 | L9: Cobresal | M9: 2 | N9: 1 | O9: 0 | P9: 1 | Q9: 3 | R9: 3 | S9: 3 | U9: 8 | V9: U. Catolica | W9: 2 | X9: 1 | Y9: 0 | Z9: 1 | AA9: 1 | AB9: 1 | AC9: 3 | BA9: 8 | BB9: Antofagasta3 | BC9: 3 | BD9: 1 | BE9: 1 | BF9: 1 | BG9: 6 | BH9: 5 | BI9: 4 | BK9: 8 | BL9: Cobresal2 | BM9: 2 | BN9: 1 | BO9: 0 | BP9: 1 | BQ9: 3 | BR9: 3 | BS9: 3 | BU9: 8 | BV9: U. Catolica2 | BW9: 2 | BX9: 1 | BY9: 0 | BZ9: 1 | CA9: 1 | CB9: 1 | CC9: 3
A10: 9 | B10: Colo Colo | C10: 3 | D10: 1 | E10: 1 | F10: 1 | G10: 3 | H10: 3 | I10: 4 | K10: 9 | L10: U. Espanola | M10: 2 | N10: 1 | O10: 0 | P10: 1 | Q10: 3 | R10: 3 | S10: 3 | U10: 9 | V10: A. Italiano | W10: 2 | X10: 0 | Y10: 2 | Z10: 0 | AA10: 1 | AB10: 1 | AC10: 2 | BA10: 9 | BB10: Colo Colo3 | BC10: 3 | BD10: 1 | BE10: 1 | BF10: 1 | BG10: 3 | BH10: 3 | BI10: 4 | BK10: 9 | BL10: U. Espanola2 | BM10: 2 | BN10: 1 | BO10: 0 | BP10: 1 | BQ10: 3 | BR10: 3 | BS10: 3 | BU10: 9 | BV10: A. Italiano2 | BW10: 2 | BX10: 0 | BY10: 2 | BZ10: 0 | CA10: 1 | CB10: 1 | CC10: 2
A11: 10 | B11: Nublense | C11: 4 | D11: 1 | E11: 1 | F11: 2 | G11: 7 | H11: 8 | I11: 4 | K11: 10 | L11: O'Higgins | M11: 2 | N11: 0 | O11: 2 | P11: 0 | Q11: 0 | R11: 0 | S11: 2 | U11: 10 | V11: Huachipato | W11: 1 | X11: 0 | Y11: 1 | Z11: 0 | AA11: 1 | AB11: 1 | AC11: 1 | BA11: 10 | BB11: Nublense4 | BC11: 4 | BD11: 1 | BE11: 1 | BF11: 2 | BG11: 7 | BH11: 8 | BI11: 4 | BK11: 10 | BL11: O'Higgins2 | BM11: 2 | BN11: 0 | BO11: 2 | BP11: 0 | BQ11: 0 | BR11: 0 | BS11: 2 | BU11: 10 | BV11: Huachipato1 | BW11: 1 | BX11: 0 | BY11: 1 | BZ11: 0 | CA11: 1 | CB11: 1 | CC11: 1
A12: 11 | B12: Curico Unido | C12: 4 | D12: 1 | E12: 1 | F12: 2 | G12: 4 | H12: 5 | I12: 4 | K12: 11 | L12: Everton | M12: 1 | N12: 0 | O12: 1 | P12: 0 | Q12: 1 | R12: 1 | S12: 1 | U12: 11 | V12: U. De Chile | W12: 1 | X12: 0 | Y12: 1 | Z12: 0 | AA12: 0 | AB12: 0 | AC12: 1 | BA12: 11 | BB12: Curico Unido4 | BC12: 4 | BD12: 1 | BE12: 1 | BF12: 2 | BG12: 4 | BH12: 5 | BI12: 4 | BK12: 11 | BL12: Everton1 | BM12: 1 | BN12: 0 | BO12: 1 | BP12: 0 | BQ12: 1 | BR12: 1 | BS12: 1 | BU12: 11 | BV12: U. De Chile1 | BW12: 1 | BX12: 0 | BY12: 1 | BZ12: 0 | CA12: 0 | CB12: 0 | CC12: 1
A13: 12 | B13: Melipilla | C13: 4 | D13: 1 | E13: 1 | F13: 2 | G13: 3 | H13: 4 | I13: 4 | K13: 12 | L13: U. De Chile | M13: 1 | N13: 0 | O13: 1 | P13: 0 | Q13: 1 | R13: 1 | S13: 1 | U13: 12 | V13: La Serena | W13: 2 | X13: 0 | Y13: 1 | Z13: 1 | AA13: 1 | AB13: 2 | AC13: 1 | BA13: 12 | BB13: Melipilla4 | BC13: 4 | BD13: 1 | BE13: 1 | BF13: 2 | BG13: 3 | BH13: 4 | BI13: 4 | BK13: 12 | BL13: U. De Chile1 | BM13: 1 | BN13: 0 | BO13: 1 | BP13: 0 | BQ13: 1 | BR13: 1 | BS13: 1 | BU13: 12 | BV13: La Serena2 | BW13: 2 | BX13: 0 | BY13: 1 | BZ13: 1 | CA13: 1 | CB13: 2 | CC13: 1
A14: 13 | B14: Palestino | C14: 4 | D14: 1 | E14: 1 | F14: 2 | G14: 5 | H14: 7 | I14: 4 | K14: 13 | L14: Colo Colo | M14: 2 | N14: 0 | O14: 1 | P14: 1 | Q14: 2 | R14: 1 | S14: 1 | U14: 13 | V14: Nublense | W14: 2 | X14: 0 | Y14: 1 | Z14: 1 | AA14: 4 | AB14: 6 | AC14: 1 | BA14: =A14 -> 13 | BB14: =B14&C14 -> Palestino4 | BC14: =C14 -> 4 | BD14: =D14 -> 1 | BE14: =E14 -> 1 | BF14: =F14 -> 2 | BG14: =G14 -> 5 | BH14: =H14 -> 7 | BI14: =I14 -> 4 | BK14: =K14 -> 13 | BL14: Colo Colo2 | BM14: =M14 -> 2 | BN14: =N14 -> 0 | BO14: =O14 -> 1 | BP14: =P14 -> 1 | BQ14: =Q14 -> 2 | BR14: =R14 -> 1 | BS14: =S14 -> 1 | BU14: =U14 -> 13 | BV14: Nublense2 | BW14: =W14 -> 2 | BX14: =X14 -> 0 | BY14: =Y14 -> 1 | BZ14: =Z14 -> 1 | CA14: =AA14 -> 4 | CB14: =AB14 -> 6 | CC14: =AC14 -> 1
A15: 14 | B15: Cobresal | C15: 4 | D15: 1 | E15: 1 | F15: 2 | G15: 4 | H15: 6 | I15: 4 | K15: 14 | L15: Melipilla | M15: 2 | N15: 0 | O15: 1 | P15: 1 | Q15: 2 | R15: 1 | S15: 1 | U15: 14 | V15: Cobresal | W15: 2 | X15: 0 | Y15: 1 | Z15: 1 | AA15: 1 | AB15: 3 | AC15: 1 | BA15: 14 | BB15: Cobresal4 | BC15: 4 | BD15: 1 | BE15: 1 | BF15: 2 | BG15: 4 | BH15: 6 | BI15: 4 | BK15: 14 | BL15: Melipilla2 | BM15: 2 | BN15: 0 | BO15: 1 | BP15: 1 | BQ15: 2 | BR15: 1 | BS15: 1 | BU15: 14 | BV15: Cobresal2 | BW15: 2 | BX15: 0 | BY15: 1 | BZ15: 1 | CA15: 1 | CB15: 3 | CC15: 1
A16: 15 | B16: U. Espanola | C16: 3 | D16: 1 | E16: 0 | F16: 2 | G16: 3 | H16: 4 | I16: 3 | K16: 15 | L16: Palestino | M16: 2 | N16: 0 | O16: 1 | P16: 1 | Q16: 5 | R16: 3 | S16: 1 | U16: 15 | V16: U. Espanola | W16: 1 | X16: 0 | Y16: 0 | Z16: 1 | AA16: 0 | AB16: 1 | AC16: 0 | BA16: 15 | BB16: U. Espanola3 | BC16: 3 | BD16: 1 | BE16: 0 | BF16: 2 | BG16: 3 | BH16: 4 | BI16: 3 | BK16: 15 | BL16: Palestino2 | BM16: 2 | BN16: 0 | BO16: 1 | BP16: 1 | BQ16: 5 | BR16: 3 | BS16: 1 | BU16: 15 | BV16: U. Espanola1 | BW16: 1 | BX16: 0 | BY16: 0 | BZ16: 1 | CA16: 0 | CB16: 1 | CC16: 0
A17: 16 | B17: U. De Chile | C17: 2 | D17: 0 | E17: 2 | F17: 0 | G17: 1 | H17: 1 | I17: 2 | K17: 16 | L17: Antofagasta | M17: 1 | N17: 0 | O17: 0 | P17: 1 | Q17: 2 | R17: 1 | S17: 0 | U17: 16 | V17: S. Wanderers | W17: 2 | X17: 0 | Y17: 0 | Z17: 2 | AA17: 2 | AB17: 5 | AC17: 0 | BA17: 16 | BB17: U. De Chile2 | BC17: 2 | BD17: 0 | BE17: 2 | BF17: 0 | BG17: 1 | BH17: 1 | BI17: 2 | BK17: 16 | BL17: Antofagasta1 | BM17: 1 | BN17: 0 | BO17: 0 | BP17: 1 | BQ17: 2 | BR17: 1 | BS17: 0 | BU17: 16 | BV17: S. Wanderers2 | BW17: 2 | BX17: 0 | BY17: 0 | BZ17: 2 | CA17: 2 | CB17: 5 | CC17: 0
A18: 17 | B18: S. Wanderers | C18: 3 | D18: 0 | E18: 0 | F18: 3 | G18: 3 | H18: 7 | I18: 0 | K18: 17 | L18: S. Wanderers | M18: 1 | N18: 0 | O18: 0 | P18: 1 | Q18: 2 | R18: 1 | S18: 0 | U18: 17 | V18: Curico Unido | W18: 2 | X18: 0 | Y18: 0 | Z18: 2 | AA18: 1 | AB18: 4 | AC18: 0 | BA18: 17 | BB18: S. Wanderers3 | BC18: 3 | BD18: 0 | BE18: 0 | BF18: 3 | BG18: 3 | BH18: 7 | BI18: 0 | BK18: 17 | BL18: S. Wanderers1 | BM18: 1 | BN18: 0 | BO18: 0 | BP18: 1 | BQ18: 2 | BR18: 1 | BS18: 0 | BU18: 17 | BV18: Curico Unido2 | BW18: 2 | BX18: 0 | BY18: 0 | BZ18: 2 | CA18: 1 | CB18: 4 | CC18: 0
BA19: 0 | BC19: 0 | BD19: 0 | BE19: 0 | BF19: 0 | BG19: 0 | BH19: 0 | BI19: 0 | BK19: 0 | BM19: 0 | BN19: 0 | BO19: 0 | BP19: 0 | BQ19: 0 | BR19: 0 | BS19: 0 | BU19: 0 | BW19: 0 | BX19: 0 | BY19: 0 | BZ19: 0 | CA19: 0 | CB19: 0 | CC19: 0
BA20: 0 | BC20: 0 | BD20: 0 | BE20: 0 | BF20: 0 | BG20: 0 | BH20: 0 | BI20: 0 | BK20: 0 | BM20: 0 | BN20: 0 | BO20: 0 | BP20: 0 | BQ20: 0 | BR20: 0 | BS20: 0 | BU20: 0 | BW20: 0 | BX20: 0 | BY20: 0 | BZ20: 0 | CA20: 0 | CB20: 0 | CC20: 0
BA21: 0 | BC21: 0 | BD21: 0 | BE21: 0 | BF21: 0 | BG21: 0 | BH21: 0 | BI21: 0 | BK21: 0 | BM21: 0 | BN21: 0 | BO21: 0 | BP21: 0 | BQ21: 0 | BR21: 0 | BS21: 0 | BU21: 0 | BW21: 0 | BX21: 0 | BY21: 0 | BZ21: 0 | CA21: 0 | CB21: 0 | CC21: 0
BA22: 0 | BC22: 0 | BD22: 0 | BE22: 0 | BF22: 0 | BG22: 0 | BH22: 0 | BI22: 0 | BK22: 0 | BM22: 0 | BN22: 0 | BO22: 0 | BP22: 0 | BQ22: 0 | BR22: 0 | BS22: 0 | BU22: 0 | BW22: 0 | BX22: 0 | BY22: 0 | BZ22: 0 | CA22: 0 | CB22: 0 | CC22: 0
BA23: 0 | BC23: 0 | BD23: 0 | BE23: 0 | BF23: 0 | BG23: 0 | BH23: 0 | BI23: 0 | BK23: 0 | BM23: 0 | BN23: 0 | BO23: 0 | BP23: 0 | BQ23: 0 | BR23: 0 | BS23: 0 | BU23: 0 | BW23: 0 | BX23: 0 | BY23: 0 | BZ23: 0 | CA23: 0 | CB23: 0 | CC23: 0
BA24: =A24 -> 0 | BB24: =B24&C24 ->  | BC24: =C24 -> 0 | BD24: =D24 -> 0 | BE24: =E24 -> 0 | BF24: =F24 -> 0 | BG24: =G24 -> 0 | BH24: =H24 -> 0 | BI24: =I24 -> 0 | BK24: 0 | BM24: 0 | BN24: 0 | BO24: 0 | BP24: 0 | BQ24: 0 | BR24: 0 | BS24: 0 | BU24: 0 | BW24: 0 | BX24: 0 | BY24: 0 | BZ24: 0 | CA24: 0 | CB24: 0 | CC24: 0
BA25: 0 | BC25: 0 | BD25: 0 | BE25: 0 | BF25: 0 | BG25: 0 | BH25: 0 | BI25: 0 | BK25: 0 | BM25: 0 | BN25: 0 | BO25: 0 | BP25: 0 | BQ25: 0 | BR25: 0 | BS25: 0 | BU25: 0 | BW25: 0 | BX25: 0 | BY25: 0 | BZ25: 0 | CA25: 0 | CB25: 0 | CC25: 0
BA26: 0 | BC26: 0 | BD26: 0 | BE26: 0 | BF26: 0 | BG26: 0 | BH26: 0 | BI26: 0 | BK26: 0 | BM26: 0 | BN26: 0 | BO26: 0 | BP26: 0 | BQ26: 0 | BR26: 0 | BS26: 0 | BU26: 0 | BW26: 0 | BX26: 0 | BY26: 0 | BZ26: 0 | CA26: 0 | CB26: 0 | CC26: 0
BA27: 0 | BC27: 0 | BD27: 0 | BE27: 0 | BF27: 0 | BG27: 0 | BH27: 0 | BI27: 0 | BK27: 0 | BM27: 0 | BN27: 0 | BO27: 0 | BP27: 0 | BQ27: 0 | BR27: 0 | BS27: 0 | BU27: 0 | BW27: 0 | BX27: 0 | BY27: 0 | BZ27: 0 | CA27: 0 | CB27: 0 | CC27: 0
BA28: 0 | BC28: 0 | BD28: 0 | BE28: 0 | BF28: 0 | BG28: 0 | BH28: 0 | BI28: 0 | BK28: 0 | BM28: 0 | BN28: 0 | BO28: 0 | BP28: 0 | BQ28: 0 | BR28: 0 | BS28: 0 | BU28: 0 | BW28: 0 | BX28: 0 | BY28: 0 | BZ28: 0 | CA28: 0 | CB28: 0 | CC28: 0
BA29: 0 | BC29: 0 | BD29: 0 | BE29: 0 | BF29: 0 | BG29: 0 | BH29: 0 | BI29: 0 | BK29: 0 | BM29: 0 | BN29: 0 | BO29: 0 | BP29: 0 | BQ29: 0 | BR29: 0 | BS29: 0 | BU29: 0 | BW29: 0 | BX29: 0 | BY29: 0 | BZ29: 0 | CA29: 0 | CB29: 0 | CC29: 0
BA30: 0 | BC30: 0 | BD30: 0 | BE30: 0 | BF30: 0 | BG30: 0 | BH30: 0 | BI30: 0 | BK30: 0 | BM30: 0 | BN30: 0 | BO30: 0 | BP30: 0 | BQ30: 0 | BR30: 0 | BS30: 0 | BU30: 0 | BW30: 0 | BX30: 0 | BY30: 0 | BZ30: 0 | CA30: 0 | CB30: 0 | CC30: 0
BA31: 0 | BC31: 0 | BD31: 0 | BE31: 0 | BF31: 0 | BG31: 0 | BH31: 0 | BI31: 0 | BK31: 0 | BM31: 0 | BN31: 0 | BO31: 0 | BP31: 0 | BQ31: 0 | BR31: 0 | BS31: 0 | BU31: 0 | BW31: 0 | BX31: 0 | BY31: 0 | BZ31: 0 | CA31: 0 | CB31: 0 | CC31: 0
BA32: 0 | BC32: 0 | BD32: 0 | BE32: 0 | BF32: 0 | BG32: 0 | BH32: 0 | BI32: 0 | BK32: 0 | BM32: 0 | BN32: 0 | BO32: 0 | BP32: 0 | BQ32: 0 | BR32: 0 | BS32: 0 | BU32: 0 | BW32: 0 | BX32: 0 | BY32: 0 | BZ32: 0 | CA32: 0 | CB32: 0 | CC32: 0
BA33: 0 | BC33: 0 | BD33: 0 | BE33: 0 | BF33: 0 | BG33: 0 | BH33: 0 | BI33: 0 | BK33: 0 | BM33: 0 | BN33: 0 | BO33: 0 | BP33: 0 | BQ33: 0 | BR33: 0 | BS33: 0 | BU33: 0 | BW33: 0 | BX33: 0 | BY33: 0 | BZ33: 0 | CA33: 0 | CB33: 0 | CC33: 0
BA34: 0 | BC34: 0 | BD34: 0 | BE34: 0 | BF34: 0 | BG34: 0 | BH34: 0 | BI34: 0 | BK34: 0 | BM34: 0 | BN34: 0 | BO34: 0 | BP34: 0 | BQ34: 0 | BR34: 0 | BS34: 0 | BU34: 0 | BW34: 0 | BX34: 0 | BY34: 0 | BZ34: 0 | CA34: 0 | CB34: 0 | CC34: 0
BA35: 0 | BC35: 0 | BD35: 0 | BE35: 0 | BF35: 0 | BG35: 0 | BH35: 0 | BI35: 0 | BK35: 0 | BM35: 0 | BN35: 0 | BO35: 0 | BP35: 0 | BQ35: 0 | BR35: 0 | BS35: 0 | BU35: 0 | BW35: 0 | BX35: 0 | BY35: 0 | BZ35: 0 | CA35: 0 | CB35: 0 | CC35: 0
BA36: 0 | BC36: 0 | BD36: 0 | BE36: 0 | BF36: 0 | BG36: 0 | BH36: 0 | BI36: 0 | BK36: 0 | BM36: 0 | BN36: 0 | BO36: 0 | BP36: 0 | BQ36: 0 | BR36: 0 | BS36: 0 | BU36: 0 | BW36: 0 | BX36: 0 | BY36: 0 | BZ36: 0 | CA36: 0 | CB36: 0 | CC36: 0
BA37: 0 | BC37: 0 | BD37: 0 | BE37: 0 | BF37: 0 | BG37: 0 | BH37: 0 | BI37: 0 | BK37: 0 | BM37: 0 | BN37: 0 | BO37: 0 | BP37: 0 | BQ37: 0 | BR37: 0 | BS37: 0 | BU37: 0 | BW37: 0 | BX37: 0 | BY37: 0 | BZ37: 0 | CA37: 0 | CB37: 0 | CC37: 0
BA38: 0 | BC38: 0 | BD38: 0 | BE38: 0 | BF38: 0 | BG38: 0 | BH38: 0 | BI38: 0 | BK38: 0 | BM38: 0 | BN38: 0 | BO38: 0 | BP38: 0 | BQ38: 0 | BR38: 0 | BS38: 0 | BU38: 0 | BW38: 0 | BX38: 0 | BY38: 0 | BZ38: 0 | CA38: 0 | CB38: 0 | CC38: 0
BA39: 0 | BC39: 0 | BD39: 0 | BE39: 0 | BF39: 0 | BG39: 0 | BH39: 0 | BI39: 0 | BK39: 0 | BM39: 0 | BN39: 0 | BO39: 0 | BP39: 0 | BQ39: 0 | BR39: 0 | BS39: 0 | BU39: 0 | BW39: 0 | BX39: 0 | BY39: 0 | BZ39: 0 | CA39: 0 | CB39: 0 | CC39: 0
BA40: 0 | BC40: 0 | BD40: 0 | BE40: 0 | BF40: 0 | BG40: 0 | BH40: 0 | BI40: 0 | BK40: 0 | BM40: 0 | BN40: 0 | BO40: 0 | BP40: 0 | BQ40: 0 | BR40: 0 | BS40: 0 | BU40: 0 | BW40: 0 | BX40: 0 | BY40: 0 | BZ40: 0 | CA40: 0 | CB40: 0 | CC40: 0
BA41: 0 | BC41: 0 | BD41: 0 | BE41: 0 | BF41: 0 | BG41: 0 | BH41: 0 | BI41: 0 | BK41: 0 | BM41: 0 | BN41: 0 | BO41: 0 | BP41: 0 | BQ41: 0 | BR41: 0 | BS41: 0 | BU41: 0 | BW41: 0 | BX41: 0 | BY41: 0 | BZ41: 0 | CA41: 0 | CB41: 0 | CC41: 0
BA42: 0 | BC42: 0 | BD42: 0 | BE42: 0 | BF42: 0 | BG42: 0 | BH42: 0 | BI42: 0 | BK42: 0 | BM42: 0 | BN42: 0 | BO42: 0 | BP42: 0 | BQ42: 0 | BR42: 0 | BS42: 0 | BU42: 0 | BW42: 0 | BX42: 0 | BY42: 0 | BZ42: 0 | CA42: 0 | CB42: 0 | CC42: 0
BA43: 0 | BC43: 0 | BD43: 0 | BE43: 0 | BF43: 0 | BG43: 0 | BH43: 0 | BI43: 0 | BK43: 0 | BM43: 0 | BN43: 0 | BO43: 0 | BP43: 0 | BQ43: 0 | BR43: 0 | BS43: 0 | BU43: 0 | BW43: 0 | BX43: 0 | BY43: 0 | BZ43: 0 | CA43: 0 | CB43: 0 | CC43: 0
BA44: 0 | BC44: 0 | BD44: 0 | BE44: 0 | BF44: 0 | BG44: 0 | BH44: 0 | BI44: 0 | BK44: 0 | BM44: 0 | BN44: 0 | BO44: 0 | BP44: 0 | BQ44: 0 | BR44: 0 | BS44: 0 | BU44: 0 | BW44: 0 | BX44: 0 | BY44: 0 | BZ44: 0 | CA44: 0 | CB44: 0 | CC44: 0
BA45: 0 | BC45: 0 | BD45: 0 | BE45: 0 | BF45: 0 | BG45: 0 | BH45: 0 | BI45: 0 | BK45: 0 | BM45: 0 | BN45: 0 | BO45: 0 | BP45: 0 | BQ45: 0 | BR45: 0 | BS45: 0 | BU45: 0 | BW45: 0 | BX45: 0 | BY45: 0 | BZ45: 0 | CA45: 0 | CB45: 0 | CC45: 0
BA46: 0 | BC46: 0 | BD46: 0 | BE46: 0 | BF46: 0 | BG46: 0 | BH46: 0 | BI46: 0 | BK46: 0 | BM46: 0 | BN46: 0 | BO46: 0 | BP46: 0 | BQ46: 0 | BR46: 0 | BS46: 0 | BU46: 0 | BW46: 0 | BX46: 0 | BY46: 0 | BZ46: 0 | CA46: 0 | CB46: 0 | CC46: 0
BA47: 0 | BC47: 0 | BD47: 0 | BE47: 0 | BF47: 0 | BG47: 0 | BH47: 0 | BI47: 0 | BK47: 0 | BM47: 0 | BN47: 0 | BO47: 0 | BP47: 0 | BQ47: 0 | BR47: 0 | BS47: 0 | BU47: 0 | BW47: 0 | BX47: 0 | BY47: 0 | BZ47: 0 | CA47: 0 | CB47: 0 | CC47: 0
BA48: 0 | BC48: 0 | BD48: 0 | BE48: 0 | BF48: 0 | BG48: 0 | BH48: 0 | BI48: 0 | BK48: 0 | BM48: 0 | BN48: 0 | BO48: 0 | BP48: 0 | BQ48: 0 | BR48: 0 | BS48: 0 | BU48: 0 | BW48: 0 | BX48: 0 | BY48: 0 | BZ48: 0 | CA48: 0 | CB48: 0 | CC48: 0
BA49: 0 | BC49: 0 | BD49: 0 | BE49: 0 | BF49: 0 | BG49: 0 | BH49: 0 | BI49: 0 | BK49: 0 | BM49: 0 | BN49: 0 | BO49: 0 | BP49: 0 | BQ49: 0 | BR49: 0 | BS49: 0 | BU49: 0 | BW49: 0 | BX49: 0 | BY49: 0 | BZ49: 0 | CA49: 0 | CB49: 0 | CC49: 0
BA50: 0 | BC50: 0 | BD50: 0 | BE50: 0 | BF50: 0 | BG50: 0 | BH50: 0 | BI50: 0 | BK50: 0 | BM50: 0 | BN50: 0 | BO50: 0 | BP50: 0 | BQ50: 0 | BR50: 0 | BS50: 0 | BU50: 0 | BW50: 0 | BX50: 0 | BY50: 0 | BZ50: 0 | CA50: 0 | CB50: 0 | CC50: 0
BA51: 0 | BC51: 0 | BD51: 0 | BE51: 0 | BF51: 0 | BG51: 0 | BH51: 0 | BI51: 0 | BK51: 0 | BM51: 0 | BN51: 0 | BO51: 0 | BP51: 0 | BQ51: 0 | BR51: 0 | BS51: 0 | BU51: 0 | BW51: 0 | BX51: 0 | BY51: 0 | BZ51: 0 | CA51: 0 | CB51: 0 | CC51: 0
BA52: 0 | BC52: 0 | BD52: 0 | BE52: 0 | BF52: 0 | BG52: 0 | BH52: 0 | BI52: 0 | BK52: 0 | BM52: 0 | BN52: 0 | BO52: 0 | BP52: 0 | BQ52: 0 | BR52: 0 | BS52: 0 | BU52: 0 | BW52: 0 | BX52: 0 | BY52: 0 | BZ52: 0 | CA52: 0 | CB52: 0 | CC52: 0
BA53: 0 | BC53: 0 | BD53: 0 | BE53: 0 | BF53: 0 | BG53: 0 | BH53: 0 | BI53: 0 | BK53: 0 | BM53: 0 | BN53: 0 | BO53: 0 | BP53: 0 | BQ53: 0 | BR53: 0 | BS53: 0 | BU53: 0 | BW53: 0 | BX53: 0 | BY53: 0 | BZ53: 0 | CA53: 0 | CB53: 0 | CC53: 0
BA54: 0 | BC54: 0 | BD54: 0 | BE54: 0 | BF54: 0 | BG54: 0 | BH54: 0 | BI54: 0 | BK54: 0 | BM54: 0 | BN54: 0 | BO54: 0 | BP54: 0 | BQ54: 0 | BR54: 0 | BS54: 0 | BU54: 0 | BW54: 0 | BX54: 0 | BY54: 0 | BZ54: 0 | CA54: 0 | CB54: 0 | CC54: 0
BA55: 0 | BC55: 0 | BD55: 0 | BE55: 0 | BF55: 0 | BG55: 0 | BH55: 0 | BI55: 0 | BK55: 0 | BM55: 0 | BN55: 0 | BO55: 0 | BP55: 0 | BQ55: 0 | BR55: 0 | BS55: 0 | BU55: 0 | BW55: 0 | BX55: 0 | BY55: 0 | BZ55: 0 | CA55: 0 | CB55: 0 | CC55: 0
BA56: 0 | BC56: 0 | BD56: 0 | BE56: 0 | BF56: 0 | BG56: 0 | BH56: 0 | BI56: 0 | BK56: 0 | BM56: 0 | BN56: 0 | BO56: 0 | BP56: 0 | BQ56: 0 | BR56: 0 | BS56: 0 | BU56: 0 | BW56: 0 | BX56: 0 | BY56: 0 | BZ56: 0 | CA56: 0 | CB56: 0 | CC56: 0
BA57: 0 | BC57: 0 | BD57: 0 | BE57: 0 | BF57: 0 | BG57: 0 | BH57: 0 | BI57: 0 | BK57: 0 | BM57: 0 | BN57: 0 | BO57: 0 | BP57: 0 | BQ57: 0 | BR57: 0 | BS57: 0 | BU57: 0 | BW57: 0 | BX57: 0 | BY57: 0 | BZ57: 0 | CA57: 0 | CB57: 0 | CC57: 0
BA58: 0 | BC58: 0 | BD58: 0 | BE58: 0 | BF58: 0 | BG58: 0 | BH58: 0 | BI58: 0 | BK58: 0 | BM58: 0 | BN58: 0 | BO58: 0 | BP58: 0 | BQ58: 0 | BR58: 0 | BS58: 0 | BU58: 0 | BW58: 0 | BX58: 0 | BY58: 0 | BZ58: 0 | CA58: 0 | CB58: 0 | CC58: 0
BA59: 0 | BC59: 0 | BD59: 0 | BE59: 0 | BF59: 0 | BG59: 0 | BH59: 0 | BI59: 0 | BK59: 0 | BM59: 0 | BN59: 0 | BO59: 0 | BP59: 0 | BQ59: 0 | BR59: 0 | BS59: 0 | BU59: 0 | BW59: 0 | BX59: 0 | BY59: 0 | BZ59: 0 | CA59: 0 | CB59: 0 | CC59: 0
BA60: 0 | BC60: 0 | BD60: 0 | BE60: 0 | BF60: 0 | BG60: 0 | BH60: 0 | BI60: 0 | BK60: 0 | BM60: 0 | BN60: 0 | BO60: 0 | BP60: 0 | BQ60: 0 | BR60: 0 | BS60: 0 | BU60: 0 | BW60: 0 | BX60: 0 | BY60: 0 | BZ60: 0 | CA60: 0 | CB60: 0 | CC60: 0
BA61: 0 | BC61: 0 | BD61: 0 | BE61: 0 | BF61: 0 | BG61: 0 | BH61: 0 | BI61: 0 | BK61: 0 | BM61: 0 | BN61: 0 | BO61: 0 | BP61: 0 | BQ61: 0 | BR61: 0 | BS61: 0 | BU61: 0 | BW61: 0 | BX61: 0 | BY61: 0 | BZ61: 0 | CA61: 0 | CB61: 0 | CC61: 0
BA62: 0 | BC62: 0 | BD62: 0 | BE62: 0 | BF62: 0 | BG62: 0 | BH62: 0 | BI62: 0 | BK62: 0 | BM62: 0 | BN62: 0 | BO62: 0 | BP62: 0 | BQ62: 0 | BR62: 0 | BS62: 0 | BU62: 0 | BW62: 0 | BX62: 0 | BY62: 0 | BZ62: 0 | CA62: 0 | CB62: 0 | CC62: 0
BA63: 0 | BC63: 0 | BD63: 0 | BE63: 0 | BF63: 0 | BG63: 0 | BH63: 0 | BI63: 0 | BK63: 0 | BM63: 0 | BN63: 0 | BO63: 0 | BP63: 0 | BQ63: 0 | BR63: 0 | BS63: 0 | BU63: 0 | BW63: 0 | BX63: 0 | BY63: 0 | BZ63: 0 | CA63: 0 | CB63: 0 | CC63: 0
BA64: 0 | BC64: 0 | BD64: 0 | BE64: 0 | BF64: 0 | BG64: 0 | BH64: 0 | BI64: 0 | BK64: 0 | BM64: 0 | BN64: 0 | BO64: 0 | BP64: 0 | BQ64: 0 | BR64: 0 | BS64: 0 | BU64: 0 | BW64: 0 | BX64: 0 | BY64: 0 | BZ64: 0 | CA64: 0 | CB64: 0 | CC64: 0
BA65: 0 | BC65: 0 | BD65: 0 | BE65: 0 | BF65: 0 | BG65: 0 | BH65: 0 | BI65: 0 | BK65: 0 | BM65: 0 | BN65: 0 | BO65: 0 | BP65: 0 | BQ65: 0 | BR65: 0 | BS65: 0 | BU65: 0 | BW65: 0 | BX65: 0 | BY65: 0 | BZ65: 0 | CA65: 0 | CB65: 0 | CC65: 0
BA66: 0 | BC66: 0 | BD66: 0 | BE66: 0 | BF66: 0 | BG66: 0 | BH66: 0 | BI66: 0 | BK66: 0 | BM66: 0 | BN66: 0 | BO66: 0 | BP66: 0 | BQ66: 0 | BR66: 0 | BS66: 0 | BU66: 0 | BW66: 0 | BX66: 0 | BY66: 0 | BZ66: 0 | CA66: 0 | CB66: 0 | CC66: 0
BA67: 0 | BC67: 0 | BD67: 0 | BE67: 0 | BF67: 0 | BG67: 0 | BH67: 0 | BI67: 0 | BK67: 0 | BL67: =L67&M67 ->  | BM67: 0 | BN67: 0 | BO67: 0 | BP67: 0 | BQ67: 0 | BR67: 0 | BS67: 0 | BU67: 0 | BV67: =V67&W67 ->  | BW67: 0 | BX67: 0 | BY67: 0 | BZ67: 0 | CA67: 0 | CB67: 0 | CC67: 0
BA68: 0 | BC68: 0 | BD68: 0 | BE68: 0 | BF68: 0 | BG68: 0 | BH68: 0 | BI68: 0 | BK68: 0 | BM68: 0 | BN68: 0 | BO68: 0 | BP68: 0 | BQ68: 0 | BR68: 0 | BS68: 0 | BU68: 0 | BW68: 0 | BX68: 0 | BY68: 0 | BZ68: 0 | CA68: 0 | CB68: 0 | CC68: 0
BA69: 0 | BC69: 0 | BD69: 0 | BE69: 0 | BF69: 0 | BG69: 0 | BH69: 0 | BI69: 0 | BK69: 0 | BM69: 0 | BN69: 0 | BO69: 0 | BP69: 0 | BQ69: 0 | BR69: 0 | BS69: 0 | BU69: 0 | BW69: 0 | BX69: 0 | BY69: 0 | BZ69: 0 | CA69: 0 | CB69: 0 | CC69: 0
BA70: 0 | BC70: 0 | BD70: 0 | BE70: 0 | BF70: 0 | BG70: 0 | BH70: 0 | BI70: 0 | BK70: 0 | BM70: 0 | BN70: 0 | BO70: 0 | BP70: 0 | BQ70: 0 | BR70: 0 | BS70: 0 | BU70: 0 | BW70: 0 | BX70: 0 | BY70: 0 | BZ70: 0 | CA70: 0 | CB70: 0 | CC70: 0
BA71: 0 | BC71: 0 | BD71: 0 | BE71: 0 | BF71: 0 | BG71: 0 | BH71: 0 | BI71: 0 | BK71: 0 | BM71: 0 | BN71: 0 | BO71: 0 | BP71: 0 | BQ71: 0 | BR71: 0 | BS71: 0 | BU71: 0 | BW71: 0 | BX71: 0 | BY71: 0 | BZ71: 0 | CA71: 0 | CB71: 0 | CC71: 0
BA72: 0 | BC72: 0 | BD72: 0 | BE72: 0 | BF72: 0 | BG72: 0 | BH72: 0 | BI72: 0 | BK72: 0 | BM72: 0 | BN72: 0 | BO72: 0 | BP72: 0 | BQ72: 0 | BR72: 0 | BS72: 0 | BU72: 0 | BW72: 0 | BX72: 0 | BY72: 0 | BZ72: 0 | CA72: 0 | CB72: 0 | CC72: 0
BA73: 0 | BC73: 0 | BD73: 0 | BE73: 0 | BF73: 0 | BG73: 0 | BH73: 0 | BI73: 0 | BK73: 0 | BM73: 0 | BN73: 0 | BO73: 0 | BP73: 0 | BQ73: 0 | BR73: 0 | BS73: 0 | BU73: 0 | BW73: 0 | BX73: 0 | BY73: 0 | BZ73: 0 | CA73: 0 | CB73: 0 | CC73: 0
BA74: 0 | BC74: 0 | BD74: 0 | BE74: 0 | BF74: 0 | BG74: 0 | BH74: 0 | BI74: 0 | BK74: 0 | BM74: 0 | BN74: 0 | BO74: 0 | BP74: 0 | BQ74: 0 | BR74: 0 | BS74: 0 | BU74: 0 | BW74: 0 | BX74: 0 | BY74: 0 | BZ74: 0 | CA74: 0 | CB74: 0 | CC74: 0
BA75: 0 | BC75: 0 | BD75: 0 | BE75: 0 | BF75: 0 | BG75: 0 | BH75: 0 | BI75: 0 | BK75: 0 | BM75: 0 | BN75: 0 | BO75: 0 | BP75: 0 | BQ75: 0 | BR75: 0 | BS75: 0 | BU75: 0 | BW75: 0 | BX75: 0 | BY75: 0 | BZ75: 0 | CA75: 0 | CB75: 0 | CC75: 0
BA76: 0 | BC76: 0 | BD76: 0 | BE76: 0 | BF76: 0 | BG76: 0 | BH76: 0 | BI76: 0 | BK76: 0 | BM76: 0 | BN76: 0 | BO76: 0 | BP76: 0 | BQ76: 0 | BR76: 0 | BS76: 0 | BU76: 0 | BW76: 0 | BX76: 0 | BY76: 0 | BZ76: 0 | CA76: 0 | CB76: 0 | CC76: 0
BA77: 0 | BC77: 0 | BD77: 0 | BE77: 0 | BF77: 0 | BG77: 0 | BH77: 0 | BI77: 0 | BK77: 0 | BM77: 0 | BN77: 0 | BO77: 0 | BP77: 0 | BQ77: 0 | BR77: 0 | BS77: 0 | BU77: 0 | BW77: 0 | BX77: 0 | BY77: 0 | BZ77: 0 | CA77: 0 | CB77: 0 | CC77: 0
BA78: 0 | BC78: 0 | BD78: 0 | BE78: 0 | BF78: 0 | BG78: 0 | BH78: 0 | BI78: 0 | BK78: =K78 -> 0 | BM78: =M78 -> 0 | BN78: =N78 -> 0 | BO78: =O78 -> 0 | BP78: =P78 -> 0 | BQ78: =Q78 -> 0 | BR78: =R78 -> 0 | BS78: =S78 -> 0 | BU78: =U78 -> 0 | BW78: =W78 -> 0 | BX78: =X78 -> 0 | BY78: =Y78 -> 0 | BZ78: =Z78 -> 0 | CA78: =AA78 -> 0 | CB78: =AB78 -> 0 | CC78: =AC78 -> 0
BA79: 0 | BC79: 0 | BD79: 0 | BE79: 0 | BF79: 0 | BG79: 0 | BH79: 0 | BI79: 0 | BK79: 0 | BM79: 0 | BN79: 0 | BO79: 0 | BP79: 0 | BQ79: 0 | BR79: 0 | BS79: 0 | BU79: 0 | BW79: 0 | BX79: 0 | BY79: 0 | BZ79: 0 | CA79: 0 | CB79: 0 | CC79: 0
BA80: 0 | BC80: 0 | BD80: 0 | BE80: 0 | BF80: 0 | BG80: 0 | BH80: 0 | BI80: 0 | BK80: 0 | BM80: 0 | BN80: 0 | BO80: 0 | BP80: 0 | BQ80: 0 | BR80: 0 | BS80: 0 | BU80: 0 | BW80: 0 | BX80: 0 | BY80: 0 | BZ80: 0 | CA80: 0 | CB80: 0 | CC80: 0
BA81: 0 | BC81: 0 | BD81: 0 | BE81: 0 | BF81: 0 | BG81: 0 | BH81: 0 | BI81: 0 | BK81: 0 | BM81: 0 | BN81: 0 | BO81: 0 | BP81: 0 | BQ81: 0 | BR81: 0 | BS81: 0 | BU81: 0 | BW81: 0 | BX81: 0 | BY81: 0 | BZ81: 0 | CA81: 0 | CB81: 0 | CC81: 0
BA82: 0 | BC82: 0 | BD82: 0 | BE82: 0 | BF82: 0 | BG82: 0 | BH82: 0 | BI82: 0 | BK82: 0 | BM82: 0 | BN82: 0 | BO82: 0 | BP82: 0 | BQ82: 0 | BR82: 0 | BS82: 0 | BU82: 0 | BW82: 0 | BX82: 0 | BY82: 0 | BZ82: 0 | CA82: 0 | CB82: 0 | CC82: 0
BA83: 0 | BC83: 0 | BD83: 0 | BE83: 0 | BF83: 0 | BG83: 0 | BH83: 0 | BI83: 0 | BK83: 0 | BM83: 0 | BN83: 0 | BO83: 0 | BP83: 0 | BQ83: 0 | BR83: 0 | BS83: 0 | BU83: 0 | BW83: 0 | BX83: 0 | BY83: 0 | BZ83: 0 | CA83: 0 | CB83: 0 | CC83: 0
BA84: 0 | BC84: 0 | BD84: 0 | BE84: 0 | BF84: 0 | BG84: 0 | BH84: 0 | BI84: 0 | BK84: 0 | BM84: 0 | BN84: 0 | BO84: 0 | BP84: 0 | BQ84: 0 | BR84: 0 | BS84: 0 | BU84: 0 | BW84: 0 | BX84: 0 | BY84: 0 | BZ84: 0 | CA84: 0 | CB84: 0 | CC84: 0
BA85: 0 | BC85: 0 | BD85: 0 | BE85: 0 | BF85: 0 | BG85: 0 | BH85: 0 | BI85: 0 | BK85: 0 | BM85: 0 | BN85: 0 | BO85: 0 | BP85: 0 | BQ85: 0 | BR85: 0 | BS85: 0 | BU85: 0 | BW85: 0 | BX85: 0 | BY85: 0 | BZ85: 0 | CA85: 0 | CB85: 0 | CC85: 0
BA86: 0 | BC86: 0 | BD86: 0 | BE86: 0 | BF86: 0 | BG86: 0 | BH86: 0 | BI86: 0 | BK86: 0 | BM86: 0 | BN86: 0 | BO86: 0 | BP86: 0 | BQ86: 0 | BR86: 0 | BS86: 0 | BU86: 0 | BW86: 0 | BX86: 0 | BY86: 0 | BZ86: 0 | CA86: 0 | CB86: 0 | CC86: 0
BA87: 0 | BC87: 0 | BD87: 0 | BE87: 0 | BF87: 0 | BG87: 0 | BH87: 0 | BI87: 0 | BK87: 0 | BM87: 0 | BN87: 0 | BO87: 0 | BP87: 0 | BQ87: 0 | BR87: 0 | BS87: 0 | BU87: 0 | BW87: 0 | BX87: 0 | BY87: 0 | BZ87: 0 | CA87: 0 | CB87: 0 | CC87: 0
BA88: =A88 -> 0 | BB88: =B88&C88 ->  | BC88: =C88 -> 0 | BD88: =D88 -> 0 | BE88: =E88 -> 0 | BF88: =F88 -> 0 | BG88: =G88 -> 0 | BH88: =H88 -> 0 | BI88: =I88 -> 0 | BK88: 0 | BM88: 0 | BN88: 0 | BO88: 0 | BP88: 0 | BQ88: 0 | BR88: 0 | BS88: 0 | BU88: 0 | BW88: 0 | BX88: 0 | BY88: 0 | BZ88: 0 | CA88: 0 | CB88: 0 | CC88: 0
BA89: 0 | BC89: 0 | BD89: 0 | BE89: 0 | BF89: 0 | BG89: 0 | BH89: 0 | BI89: 0 | BK89: 0 | BM89: 0 | BN89: 0 | BO89: 0 | BP89: 0 | BQ89: 0 | BR89: 0 | BS89: 0 | BU89: 0 | BW89: 0 | BX89: 0 | BY89: 0 | BZ89: 0 | CA89: 0 | CB89: 0 | CC89: 0
BA90: 0 | BC90: 0 | BD90: 0 | BE90: 0 | BF90: 0 | BG90: 0 | BH90: 0 | BI90: 0 | BK90: 0 | BM90: 0 | BN90: 0 | BO90: 0 | BP90: 0 | BQ90: 0 | BR90: 0 | BS90: 0 | BU90: 0 | BW90: 0 | BX90: 0 | BY90: 0 | BZ90: 0 | CA90: 0 | CB90: 0 | CC90: 0
BA91: 0 | BC91: 0 | BD91: 0 | BE91: 0 | BF91: 0 | BG91: 0 | BH91: 0 | BI91: 0 | BK91: 0 | BM91: 0 | BN91: 0 | BO91: 0 | BP91: 0 | BQ91: 0 | BR91: 0 | BS91: 0 | BU91: 0 | BW91: 0 | BX91: 0 | BY91: 0 | BZ91: 0 | CA91: 0 | CB91: 0 | CC91: 0
BA92: 0 | BC92: 0 | BD92: 0 | BE92: 0 | BF92: 0 | BG92: 0 | BH92: 0 | BI92: 0 | BK92: 0 | BM92: 0 | BN92: 0 | BO92: 0 | BP92: 0 | BQ92: 0 | BR92: 0 | BS92: 0 | BU92: 0 | BW92: 0 | BX92: 0 | BY92: 0 | BZ92: 0 | CA92: 0 | CB92: 0 | CC92: 0
BA93: 0 | BC93: 0 | BD93: 0 | BE93: 0 | BF93: 0 | BG93: 0 | BH93: 0 | BI93: 0 | BK93: 0 | BM93: 0 | BN93: 0 | BO93: 0 | BP93: 0 | BQ93: 0 | BR93: 0 | BS93: 0 | BU93: 0 | BW93: 0 | BX93: 0 | BY93: 0 | BZ93: 0 | CA93: 0 | CB93: 0 | CC93: 0
BA94: 0 | BC94: 0 | BD94: 0 | BE94: 0 | BF94: 0 | BG94: 0 | BH94: 0 | BI94: 0 | BK94: 0 | BM94: 0 | BN94: 0 | BO94: 0 | BP94: 0 | BQ94: 0 | BR94: 0 | BS94: 0 | BU94: 0 | BW94: 0 | BX94: 0 | BY94: 0 | BZ94: 0 | CA94: 0 | CB94: 0 | CC94: 0
BA95: 0 | BC95: 0 | BD95: 0 | BE95: 0 | BF95: 0 | BG95: 0 | BH95: 0 | BI95: 0 | BK95: 0 | BM95: 0 | BN95: 0 | BO95: 0 | BP95: 0 | BQ95: 0 | BR95: 0 | BS95: 0 | BU95: 0 | BW95: 0 | BX95: 0 | BY95: 0 | BZ95: 0 | CA95: 0 | CB95: 0 | CC95: 0
BA96: 0 | BC96: 0 | BD96: 0 | BE96: 0 | BF96: 0 | BG96: 0 | BH96: 0 | BI96: 0 | BK96: 0 | BM96: 0 | BN96: 0 | BO96: 0 | BP96: 0 | BQ96: 0 | BR96: 0 | BS96: 0 | BU96: 0 | BW96: 0 | BX96: 0 | BY96: 0 | BZ96: 0 | CA96: 0 | CB96: 0 | CC96: 0
BA97: 0 | BC97: 0 | BD97: 0 | BE97: 0 | BF97: 0 | BG97: 0 | BH97: 0 | BI97: 0 | BK97: 0 | BM97: 0 | BN97: 0 | BO97: 0 | BP97: 0 | BQ97: 0 | BR97: 0 | BS97: 0 | BU97: 0 | BW97: 0 | BX97: 0 | BY97: 0 | BZ97: 0 | CA97: 0 | CB97: 0 | CC97: 0
BA98: 0 | BC98: 0 | BD98: 0 | BE98: 0 | BF98: 0 | BG98: 0 | BH98: 0 | BI98: 0 | BK98: 0 | BM98: 0 | BN98: 0 | BO98: 0 | BP98: 0 | BQ98: 0 | BR98: 0 | BS98: 0 | BU98: 0 | BW98: 0 | BX98: 0 | BY98: 0 | BZ98: 0 | CA98: 0 | CB98: 0 | CC98: 0
BA99: 0 | BC99: 0 | BD99: 0 | BE99: 0 | BF99: 0 | BG99: 0 | BH99: 0 | BI99: 0 | BK99: 0 | BM99: 0 | BN99: 0 | BO99: 0 | BP99: 0 | BQ99: 0 | BR99: 0 | BS99: 0 | BU99: 0 | BW99: 0 | BX99: 0 | BY99: 0 | BZ99: 0 | CA99: 0 | CB99: 0 | CC99: 0
BA100: 0 | BC100: 0 | BD100: 0 | BE100: 0 | BF100: 0 | BG100: 0 | BH100: 0 | BI100: 0 | BK100: 0 | BM100: 0 | BN100: 0 | BO100: 0 | BP100: 0 | BQ100: 0 | BR100: 0 | BS100: 0 | BU100: 0 | BW100: 0 | BX100: 0 | BY100: 0 | BZ100: 0 | CA100: 0 | CB100: 0 | CC100: 0
BA101: 0 | BC101: 0 | BD101: 0 | BE101: 0 | BF101: 0 | BG101: 0 | BH101: 0 | BI101: 0 | BK101: 0 | BM101: 0 | BN101: 0 | BO101: 0 | BP101: 0 | BQ101: 0 | BR101: 0 | BS101: 0 | BU101: 0 | BW101: 0 | BX101: 0 | BY101: 0 | BZ101: 0 | CA101: 0 | CB101: 0 | CC101: 0
BA102: 0 | BC102: 0 | BD102: 0 | BE102: 0 | BF102: 0 | BG102: 0 | BH102: 0 | BI102: 0 | BK102: 0 | BM102: 0 | BN102: 0 | BO102: 0 | BP102: 0 | BQ102: 0 | BR102: 0 | BS102: 0 | BU102: 0 | BW102: 0 | BX102: 0 | BY102: 0 | BZ102: 0 | CA102: 0 | CB102: 0 | CC102: 0
BA103: 0 | BC103: 0 | BD103: 0 | BE103: 0 | BF103: 0 | BG103: 0 | BH103: 0 | BI103: 0 | BK103: 0 | BM103: 0 | BN103: 0 | BO103: 0 | BP103: 0 | BQ103: 0 | BR103: 0 | BS103: 0 | BU103: 0 | BW103: 0 | BX103: 0 | BY103: 0 | BZ103: 0 | CA103: 0 | CB103: 0 | CC103: 0
BA104: 0 | BC104: 0 | BD104: 0 | BE104: 0 | BF104: 0 | BG104: 0 | BH104: 0 | BI104: 0 | BK104: 0 | BM104: 0 | BN104: 0 | BO104: 0 | BP104: 0 | BQ104: 0 | BR104: 0 | BS104: 0 | BU104: 0 | BW104: 0 | BX104: 0 | BY104: 0 | BZ104: 0 | CA104: 0 | CB104: 0 | CC104: 0
BA105: 0 | BC105: 0 | BD105: 0 | BE105: 0 | BF105: 0 | BG105: 0 | BH105: 0 | BI105: 0 | BK105: 0 | BM105: 0 | BN105: 0 | BO105: 0 | BP105: 0 | BQ105: 0 | BR105: 0 | BS105: 0 | BU105: 0 | BW105: 0 | BX105: 0 | BY105: 0 | BZ105: 0 | CA105: 0 | CB105: 0 | CC105: 0
BA106: 0 | BC106: 0 | BD106: 0 | BE106: 0 | BF106: 0 | BG106: 0 | BH106: 0 | BI106: 0 | BK106: 0 | BM106: 0 | BN106: 0 | BO106: 0 | BP106: 0 | BQ106: 0 | BR106: 0 | BS106: 0 | BU106: 0 | BW106: 0 | BX106: 0 | BY106: 0 | BZ106: 0 | CA106: 0 | CB106: 0 | CC106: 0
BA107: 0 | BC107: 0 | BD107: 0 | BE107: 0 | BF107: 0 | BG107: 0 | BH107: 0 | BI107: 0 | BK107: 0 | BM107: 0 | BN107: 0 | BO107: 0 | BP107: 0 | BQ107: 0 | BR107: 0 | BS107: 0 | BU107: 0 | BW107: 0 | BX107: 0 | BY107: 0 | BZ107: 0 | CA107: 0 | CB107: 0 | CC107: 0
BA108: 0 | BC108: 0 | BD108: 0 | BE108: 0 | BF108: 0 | BG108: 0 | BH108: 0 | BI108: 0 | BK108: 0 | BM108: 0 | BN108: 0 | BO108: 0 | BP108: 0 | BQ108: 0 | BR108: 0 | BS108: 0 | BU108: 0 | BW108: 0 | BX108: 0 | BY108: 0 | BZ108: 0 | CA108: 0 | CB108: 0 | CC108: 0
BA109: 0 | BC109: 0 | BD109: 0 | BE109: 0 | BF109: 0 | BG109: 0 | BH109: 0 | BI109: 0 | BK109: 0 | BM109: 0 | BN109: 0 | BO109: 0 | BP109: 0 | BQ109: 0 | BR109: 0 | BS109: 0 | BU109: 0 | BW109: 0 | BX109: 0 | BY109: 0 | BZ109: 0 | CA109: 0 | CB109: 0 | CC109: 0
BA110: 0 | BC110: 0 | BD110: 0 | BE110: 0 | BF110: 0 | BG110: 0 | BH110: 0 | BI110: 0 | BK110: 0 | BM110: 0 | BN110: 0 | BO110: 0 | BP110: 0 | BQ110: 0 | BR110: 0 | BS110: 0 | BU110: 0 | BW110: 0 | BX110: 0 | BY110: 0 | BZ110: 0 | CA110: 0 | CB110: 0 | CC110: 0
BA111: 0 | BC111: 0 | BD111: 0 | BE111: 0 | BF111: 0 | BG111: 0 | BH111: 0 | BI111: 0 | BK111: 0 | BM111: 0 | BN111: 0 | BO111: 0 | BP111: 0 | BQ111: 0 | BR111: 0 | BS111: 0 | BU111: 0 | BW111: 0 | BX111: 0 | BY111: 0 | BZ111: 0 | CA111: 0 | CB111: 0 | CC111: 0
BA112: 0 | BC112: 0 | BD112: 0 | BE112: 0 | BF112: 0 | BG112: 0 | BH112: 0 | BI112: 0 | BK112: 0 | BM112: 0 | BN112: 0 | BO112: 0 | BP112: 0 | BQ112: 0 | BR112: 0 | BS112: 0 | BU112: 0 | BW112: 0 | BX112: 0 | BY112: 0 | BZ112: 0 | CA112: 0 | CB112: 0 | CC112: 0
BA113: 0 | BC113: 0 | BD113: 0 | BE113: 0 | BF113: 0 | BG113: 0 | BH113: 0 | BI113: 0 | BK113: 0 | BM113: 0 | BN113: 0 | BO113: 0 | BP113: 0 | BQ113: 0 | BR113: 0 | BS113: 0 | BU113: 0 | BW113: 0 | BX113: 0 | BY113: 0 | BZ113: 0 | CA113: 0 | CB113: 0 | CC113: 0
BA114: 0 | BC114: 0 | BD114: 0 | BE114: 0 | BF114: 0 | BG114: 0 | BH114: 0 | BI114: 0 | BK114: 0 | BM114: 0 | BN114: 0 | BO114: 0 | BP114: 0 | BQ114: 0 | BR114: 0 | BS114: 0 | BU114: 0 | BW114: 0 | BX114: 0 | BY114: 0 | BZ114: 0 | CA114: 0 | CB114: 0 | CC114: 0
BA115: 0 | BC115: 0 | BD115: 0 | BE115: 0 | BF115: 0 | BG115: 0 | BH115: 0 | BI115: 0 | BK115: 0 | BM115: 0 | BN115: 0 | BO115: 0 | BP115: 0 | BQ115: 0 | BR115: 0 | BS115: 0 | BU115: 0 | BW115: 0 | BX115: 0 | BY115: 0 | BZ115: 0 | CA115: 0 | CB115: 0 | CC115: 0
BA116: 0 | BC116: 0 | BD116: 0 | BE116: 0 | BF116: 0 | BG116: 0 | BH116: 0 | BI116: 0 | BK116: 0 | BM116: 0 | BN116: 0 | BO116: 0 | BP116: 0 | BQ116: 0 | BR116: 0 | BS116: 0 | BU116: 0 | BW116: 0 | BX116: 0 | BY116: 0 | BZ116: 0 | CA116: 0 | CB116: 0 | CC116: 0
BA117: 0 | BC117: 0 | BD117: 0 | BE117: 0 | BF117: 0 | BG117: 0 | BH117: 0 | BI117: 0 | BK117: 0 | BM117: 0 | BN117: 0 | BO117: 0 | BP117: 0 | BQ117: 0 | BR117: 0 | BS117: 0 | BU117: 0 | BW117: 0 | BX117: 0 | BY117: 0 | BZ117: 0 | CA117: 0 | CB117: 0 | CC117: 0
BA118: 0 | BC118: 0 | BD118: 0 | BE118: 0 | BF118: 0 | BG118: 0 | BH118: 0 | BI118: 0 | BK118: 0 | BM118: 0 | BN118: 0 | BO118: 0 | BP118: 0 | BQ118: 0 | BR118: 0 | BS118: 0 | BU118: 0 | BW118: 0 | BX118: 0 | BY118: 0 | BZ118: 0 | CA118: 0 | CB118: 0 | CC118: 0
BA119: 0 | BC119: 0 | BD119: 0 | BE119: 0 | BF119: 0 | BG119: 0 | BH119: 0 | BI119: 0 | BK119: 0 | BM119: 0 | BN119: 0 | BO119: 0 | BP119: 0 | BQ119: 0 | BR119: 0 | BS119: 0 | BU119: 0 | BW119: 0 | BX119: 0 | BY119: 0 | BZ119: 0 | CA119: 0 | CB119: 0 | CC119: 0
BA120: 0 | BC120: 0 | BD120: 0 | BE120: 0 | BF120: 0 | BG120: 0 | BH120: 0 | BI120: 0 | BK120: 0 | BM120: 0 | BN120: 0 | BO120: 0 | BP120: 0 | BQ120: 0 | BR120: 0 | BS120: 0 | BU120: 0 | BW120: 0 | BX120: 0 | BY120: 0 | BZ120: 0 | CA120: 0 | CB120: 0 | CC120: 0
BA121: 0 | BC121: 0 | BD121: 0 | BE121: 0 | BF121: 0 | BG121: 0 | BH121: 0 | BI121: 0 | BK121: 0 | BM121: 0 | BN121: 0 | BO121: 0 | BP121: 0 | BQ121: 0 | BR121: 0 | BS121: 0 | BU121: 0 | BW121: 0 | BX121: 0 | BY121: 0 | BZ121: 0 | CA121: 0 | CB121: 0 | CC121: 0
BA122: 0 | BC122: 0 | BD122: 0 | BE122: 0 | BF122: 0 | BG122: 0 | BH122: 0 | BI122: 0 | BK122: 0 | BM122: 0 | BN122: 0 | BO122: 0 | BP122: 0 | BQ122: 0 | BR122: 0 | BS122: 0 | BU122: 0 | BW122: 0 | BX122: 0 | BY122: 0 | BZ122: 0 | CA122: 0 | CB122: 0 | CC122: 0
BA123: 0 | BC123: 0 | BD123: 0 | BE123: 0 | BF123: 0 | BG123: 0 | BH123: 0 | BI123: 0 | BK123: 0 | BM123: 0 | BN123: 0 | BO123: 0 | BP123: 0 | BQ123: 0 | BR123: 0 | BS123: 0 | BU123: 0 | BW123: 0 | BX123: 0 | BY123: 0 | BZ123: 0 | CA123: 0 | CB123: 0 | CC123: 0
BA124: 0 | BC124: 0 | BD124: 0 | BE124: 0 | BF124: 0 | BG124: 0 | BH124: 0 | BI124: 0 | BK124: 0 | BM124: 0 | BN124: 0 | BO124: 0 | BP124: 0 | BQ124: 0 | BR124: 0 | BS124: 0 | BU124: 0 | BW124: 0 | BX124: 0 | BY124: 0 | BZ124: 0 | CA124: 0 | CB124: 0 | CC124: 0
BA125: 0 | BC125: 0 | BD125: 0 | BE125: 0 | BF125: 0 | BG125: 0 | BH125: 0 | BI125: 0 | BK125: 0 | BM125: 0 | BN125: 0 | BO125: 0 | BP125: 0 | BQ125: 0 | BR125: 0 | BS125: 0 | BU125: 0 | BW125: 0 | BX125: 0 | BY125: 0 | BZ125: 0 | CA125: 0 | CB125: 0 | CC125: 0
BA126: 0 | BC126: 0 | BD126: 0 | BE126: 0 | BF126: 0 | BG126: 0 | BH126: 0 | BI126: 0 | BK126: 0 | BM126: 0 | BN126: 0 | BO126: 0 | BP126: 0 | BQ126: 0 | BR126: 0 | BS126: 0 | BU126: 0 | BW126: 0 | BX126: 0 | BY126: 0 | BZ126: 0 | CA126: 0 | CB126: 0 | CC126: 0
BA127: 0 | BC127: 0 | BD127: 0 | BE127: 0 | BF127: 0 | BG127: 0 | BH127: 0 | BI127: 0 | BK127: 0 | BM127: 0 | BN127: 0 | BO127: 0 | BP127: 0 | BQ127: 0 | BR127: 0 | BS127: 0 | BU127: 0 | BW127: 0 | BX127: 0 | BY127: 0 | BZ127: 0 | CA127: 0 | CB127: 0 | CC127: 0
BA128: 0 | BC128: 0 | BD128: 0 | BE128: 0 | BF128: 0 | BG128: 0 | BH128: 0 | BI128: 0 | BK128: 0 | BM128: 0 | BN128: 0 | BO128: 0 | BP128: 0 | BQ128: 0 | BR128: 0 | BS128: 0 | BU128: 0 | BW128: 0 | BX128: 0 | BY128: 0 | BZ128: 0 | CA128: 0 | CB128: 0 | CC128: 0
BA129: 0 | BC129: 0 | BD129: 0 | BE129: 0 | BF129: 0 | BG129: 0 | BH129: 0 | BI129: 0 | BK129: 0 | BM129: 0 | BN129: 0 | BO129: 0 | BP129: 0 | BQ129: 0 | BR129: 0 | BS129: 0 | BU129: 0 | BW129: 0 | BX129: 0 | BY129: 0 | BZ129: 0 | CA129: 0 | CB129: 0 | CC129: 0
BA130: 0 | BC130: 0 | BD130: 0 | BE130: 0 | BF130: 0 | BG130: 0 | BH130: 0 | BI130: 0 | BK130: 0 | BM130: 0 | BN130: 0 | BO130: 0 | BP130: 0 | BQ130: 0 | BR130: 0 | BS130: 0 | BU130: 0 | BW130: 0 | BX130: 0 | BY130: 0 | BZ130: 0 | CA130: 0 | CB130: 0 | CC130: 0
BA131: 0 | BC131: 0 | BD131: 0 | BE131: 0 | BF131: 0 | BG131: 0 | BH131: 0 | BI131: 0 | BK131: 0 | BL131: =L131&M131 ->  | BM131: 0 | BN131: 0 | BO131: 0 | BP131: 0 | BQ131: 0 | BR131: 0 | BS131: 0 | BU131: 0 | BV131: =V131&W131 ->  | BW131: 0 | BX131: 0 | BY131: 0 | BZ131: 0 | CA131: 0 | CB131: 0 | CC131: 0
BA132: 0 | BC132: 0 | BD132: 0 | BE132: 0 | BF132: 0 | BG132: 0 | BH132: 0 | BI132: 0 | BK132: 0 | BM132: 0 | BN132: 0 | BO132: 0 | BP132: 0 | BQ132: 0 | BR132: 0 | BS132: 0 | BU132: 0 | BW132: 0 | BX132: 0 | BY132: 0 | BZ132: 0 | CA132: 0 | CB132: 0 | CC132: 0
BA133: 0 | BC133: 0 | BD133: 0 | BE133: 0 | BF133: 0 | BG133: 0 | BH133: 0 | BI133: 0 | BK133: 0 | BM133: 0 | BN133: 0 | BO133: 0 | BP133: 0 | BQ133: 0 | BR133: 0 | BS133: 0 | BU133: 0 | BW133: 0 | BX133: 0 | BY133: 0 | BZ133: 0 | CA133: 0 | CB133: 0 | CC133: 0
BA134: 0 | BC134: 0 | BD134: 0 | BE134: 0 | BF134: 0 | BG134: 0 | BH134: 0 | BI134: 0 | BK134: 0 | BM134: 0 | BN134: 0 | BO134: 0 | BP134: 0 | BQ134: 0 | BR134: 0 | BS134: 0 | BU134: 0 | BW134: 0 | BX134: 0 | BY134: 0 | BZ134: 0 | CA134: 0 | CB134: 0 | CC134: 0
BA135: 0 | BC135: 0 | BD135: 0 | BE135: 0 | BF135: 0 | BG135: 0 | BH135: 0 | BI135: 0 | BK135: 0 | BM135: 0 | BN135: 0 | BO135: 0 | BP135: 0 | BQ135: 0 | BR135: 0 | BS135: 0 | BU135: 0 | BW135: 0 | BX135: 0 | BY135: 0 | BZ135: 0 | CA135: 0 | CB135: 0 | CC135: 0
BA136: 0 | BC136: 0 | BD136: 0 | BE136: 0 | BF136: 0 | BG136: 0 | BH136: 0 | BI136: 0 | BK136: 0 | BM136: 0 | BN136: 0 | BO136: 0 | BP136: 0 | BQ136: 0 | BR136: 0 | BS136: 0 | BU136: 0 | BW136: 0 | BX136: 0 | BY136: 0 | BZ136: 0 | CA136: 0 | CB136: 0 | CC136: 0
BA137: 0 | BC137: 0 | BD137: 0 | BE137: 0 | BF137: 0 | BG137: 0 | BH137: 0 | BI137: 0 | BK137: 0 | BM137: 0 | BN137: 0 | BO137: 0 | BP137: 0 | BQ137: 0 | BR137: 0 | BS137: 0 | BU137: 0 | BW137: 0 | BX137: 0 | BY137: 0 | BZ137: 0 | CA137: 0 | CB137: 0 | CC137: 0
BA138: 0 | BC138: 0 | BD138: 0 | BE138: 0 | BF138: 0 | BG138: 0 | BH138: 0 | BI138: 0 | BK138: 0 | BM138: 0 | BN138: 0 | BO138: 0 | BP138: 0 | BQ138: 0 | BR138: 0 | BS138: 0 | BU138: 0 | BW138: 0 | BX138: 0 | BY138: 0 | BZ138: 0 | CA138: 0 | CB138: 0 | CC138: 0
BA139: 0 | BC139: 0 | BD139: 0 | BE139: 0 | BF139: 0 | BG139: 0 | BH139: 0 | BI139: 0 | BK139: 0 | BM139: 0 | BN139: 0 | BO139: 0 | BP139: 0 | BQ139: 0 | BR139: 0 | BS139: 0 | BU139: 0 | BW139: 0 | BX139: 0 | BY139: 0 | BZ139: 0 | CA139: 0 | CB139: 0 | CC139: 0
BA140: 0 | BC140: 0 | BD140: 0 | BE140: 0 | BF140: 0 | BG140: 0 | BH140: 0 | BI140: 0 | BK140: 0 | BM140: 0 | BN140: 0 | BO140: 0 | BP140: 0 | BQ140: 0 | BR140: 0 | BS140: 0 | BU140: 0 | BW140: 0 | BX140: 0 | BY140: 0 | BZ140: 0 | CA140: 0 | CB140: 0 | CC140: 0
BA141: 0 | BC141: 0 | BD141: 0 | BE141: 0 | BF141: 0 | BG141: 0 | BH141: 0 | BI141: 0 | BK141: 0 | BM141: 0 | BN141: 0 | BO141: 0 | BP141: 0 | BQ141: 0 | BR141: 0 | BS141: 0 | BU141: 0 | BW141: 0 | BX141: 0 | BY141: 0 | BZ141: 0 | CA141: 0 | CB141: 0 | CC141: 0
BA142: 0 | BC142: 0 | BD142: 0 | BE142: 0 | BF142: 0 | BG142: 0 | BH142: 0 | BI142: 0 | BK142: =K142 -> 0 | BM142: =M142 -> 0 | BN142: =N142 -> 0 | BO142: =O142 -> 0 | BP142: =P142 -> 0 | BQ142: =Q142 -> 0 | BR142: =R142 -> 0 | BS142: =S142 -> 0 | BU142: =U142 -> 0 | BW142: =W142 -> 0 | BX142: =X142 -> 0 | BY142: =Y142 -> 0 | BZ142: =Z142 -> 0 | CA142: =AA142 -> 0 | CB142: =AB142 -> 0 | CC142: =AC142 -> 0
BA143: 0 | BC143: 0 | BD143: 0 | BE143: 0 | BF143: 0 | BG143: 0 | BH143: 0 | BI143: 0 | BK143: 0 | BM143: 0 | BN143: 0 | BO143: 0 | BP143: 0 | BQ143: 0 | BR143: 0 | BS143: 0 | BU143: 0 | BW143: 0 | BX143: 0 | BY143: 0 | BZ143: 0 | CA143: 0 | CB143: 0 | CC143: 0
BA144: 0 | BC144: 0 | BD144: 0 | BE144: 0 | BF144: 0 | BG144: 0 | BH144: 0 | BI144: 0 | BK144: 0 | BM144: 0 | BN144: 0 | BO144: 0 | BP144: 0 | BQ144: 0 | BR144: 0 | BS144: 0 | BU144: 0 | BW144: 0 | BX144: 0 | BY144: 0 | BZ144: 0 | CA144: 0 | CB144: 0 | CC144: 0
BA145: 0 | BC145: 0 | BD145: 0 | BE145: 0 | BF145: 0 | BG145: 0 | BH145: 0 | BI145: 0 | BK145: 0 | BM145: 0 | BN145: 0 | BO145: 0 | BP145: 0 | BQ145: 0 | BR145: 0 | BS145: 0 | BU145: 0 | BW145: 0 | BX145: 0 | BY145: 0 | BZ145: 0 | CA145: 0 | CB145: 0 | CC145: 0
BA146: 0 | BC146: 0 | BD146: 0 | BE146: 0 | BF146: 0 | BG146: 0 | BH146: 0 | BI146: 0 | BK146: 0 | BM146: 0 | BN146: 0 | BO146: 0 | BP146: 0 | BQ146: 0 | BR146: 0 | BS146: 0 | BU146: 0 | BW146: 0 | BX146: 0 | BY146: 0 | BZ146: 0 | CA146: 0 | CB146: 0 | CC146: 0
BA147: 0 | BC147: 0 | BD147: 0 | BE147: 0 | BF147: 0 | BG147: 0 | BH147: 0 | BI147: 0 | BK147: 0 | BM147: 0 | BN147: 0 | BO147: 0 | BP147: 0 | BQ147: 0 | BR147: 0 | BS147: 0 | BU147: 0 | BW147: 0 | BX147: 0 | BY147: 0 | BZ147: 0 | CA147: 0 | CB147: 0 | CC147: 0
BA148: 0 | BC148: 0 | BD148: 0 | BE148: 0 | BF148: 0 | BG148: 0 | BH148: 0 | BI148: 0 | BK148: 0 | BM148: 0 | BN148: 0 | BO148: 0 | BP148: 0 | BQ148: 0 | BR148: 0 | BS148: 0 | BU148: 0 | BW148: 0 | BX148: 0 | BY148: 0 | BZ148: 0 | CA148: 0 | CB148: 0 | CC148: 0
BA149: 0 | BC149: 0 | BD149: 0 | BE149: 0 | BF149: 0 | BG149: 0 | BH149: 0 | BI149: 0 | BK149: 0 | BM149: 0 | BN149: 0 | BO149: 0 | BP149: 0 | BQ149: 0 | BR149: 0 | BS149: 0 | BU149: 0 | BW149: 0 | BX149: 0 | BY149: 0 | BZ149: 0 | CA149: 0 | CB149: 0 | CC149: 0
BA150: 0 | BC150: 0 | BD150: 0 | BE150: 0 | BF150: 0 | BG150: 0 | BH150: 0 | BI150: 0 | BK150: 0 | BM150: 0 | BN150: 0 | BO150: 0 | BP150: 0 | BQ150: 0 | BR150: 0 | BS150: 0 | BU150: 0 | BW150: 0 | BX150: 0 | BY150: 0 | BZ150: 0 | CA150: 0 | CB150: 0 | CC150: 0
BA151: 0 | BC151: 0 | BD151: 0 | BE151: 0 | BF151: 0 | BG151: 0 | BH151: 0 | BI151: 0 | BK151: 0 | BM151: 0 | BN151: 0 | BO151: 0 | BP151: 0 | BQ151: 0 | BR151: 0 | BS151: 0 | BU151: 0 | BW151: 0 | BX151: 0 | BY151: 0 | BZ151: 0 | CA151: 0 | CB151: 0 | CC151: 0
BA152: =A152 -> 0 | BB152: =B152&C152 ->  | BC152: =C152 -> 0 | BD152: =D152 -> 0 | BE152: =E152 -> 0 | BF152: =F152 -> 0 | BG152: =G152 -> 0 | BH152: =H152 -> 0 | BI152: =I152 -> 0 | BK152: 0 | BM152: 0 | BN152: 0 | BO152: 0 | BP152: 0 | BQ152: 0 | BR152: 0 | BS152: 0 | BU152: 0 | BW152: 0 | BX152: 0 | BY152: 0 | BZ152: 0 | CA152: 0 | CB152: 0 | CC152: 0
BA153: 0 | BC153: 0 | BD153: 0 | BE153: 0 | BF153: 0 | BG153: 0 | BH153: 0 | BI153: 0 | BK153: 0 | BM153: 0 | BN153: 0 | BO153: 0 | BP153: 0 | BQ153: 0 | BR153: 0 | BS153: 0 | BU153: 0 | BW153: 0 | BX153: 0 | BY153: 0 | BZ153: 0 | CA153: 0 | CB153: 0 | CC153: 0
BA154: 0 | BC154: 0 | BD154: 0 | BE154: 0 | BF154: 0 | BG154: 0 | BH154: 0 | BI154: 0 | BK154: 0 | BM154: 0 | BN154: 0 | BO154: 0 | BP154: 0 | BQ154: 0 | BR154: 0 | BS154: 0 | BU154: 0 | BW154: 0 | BX154: 0 | BY154: 0 | BZ154: 0 | CA154: 0 | CB154: 0 | CC154: 0
BA155: 0 | BC155: 0 | BD155: 0 | BE155: 0 | BF155: 0 | BG155: 0 | BH155: 0 | BI155: 0 | BK155: 0 | BM155: 0 | BN155: 0 | BO155: 0 | BP155: 0 | BQ155: 0 | BR155: 0 | BS155: 0 | BU155: 0 | BW155: 0 | BX155: 0 | BY155: 0 | BZ155: 0 | CA155: 0 | CB155: 0 | CC155: 0
BA156: 0 | BC156: 0 | BD156: 0 | BE156: 0 | BF156: 0 | BG156: 0 | BH156: 0 | BI156: 0 | BK156: 0 | BM156: 0 | BN156: 0 | BO156: 0 | BP156: 0 | BQ156: 0 | BR156: 0 | BS156: 0 | BU156: 0 | BW156: 0 | BX156: 0 | BY156: 0 | BZ156: 0 | CA156: 0 | CB156: 0 | CC156: 0
BA157: 0 | BC157: 0 | BD157: 0 | BE157: 0 | BF157: 0 | BG157: 0 | BH157: 0 | BI157: 0 | BK157: 0 | BM157: 0 | BN157: 0 | BO157: 0 | BP157: 0 | BQ157: 0 | BR157: 0 | BS157: 0 | BU157: 0 | BW157: 0 | BX157: 0 | BY157: 0 | BZ157: 0 | CA157: 0 | CB157: 0 | CC157: 0
BA158: 0 | BC158: 0 | BD158: 0 | BE158: 0 | BF158: 0 | BG158: 0 | BH158: 0 | BI158: 0 | BK158: 0 | BM158: 0 | BN158: 0 | BO158: 0 | BP158: 0 | BQ158: 0 | BR158: 0 | BS158: 0 | BU158: 0 | BW158: 0 | BX158: 0 | BY158: 0 | BZ158: 0 | CA158: 0 | CB158: 0 | CC158: 0
BA159: 0 | BC159: 0 | BD159: 0 | BE159: 0 | BF159: 0 | BG159: 0 | BH159: 0 | BI159: 0 | BK159: 0 | BM159: 0 | BN159: 0 | BO159: 0 | BP159: 0 | BQ159: 0 | BR159: 0 | BS159: 0 | BU159: 0 | BW159: 0 | BX159: 0 | BY159: 0 | BZ159: 0 | CA159: 0 | CB159: 0 | CC159: 0
BA160: 0 | BC160: 0 | BD160: 0 | BE160: 0 | BF160: 0 | BG160: 0 | BH160: 0 | BI160: 0 | BK160: 0 | BM160: 0 | BN160: 0 | BO160: 0 | BP160: 0 | BQ160: 0 | BR160: 0 | BS160: 0 | BU160: 0 | BW160: 0 | BX160: 0 | BY160: 0 | BZ160: 0 | CA160: 0 | CB160: 0 | CC160: 0
BA161: 0 | BC161: 0 | BD161: 0 | BE161: 0 | BF161: 0 | BG161: 0 | BH161: 0 | BI161: 0 | BK161: 0 | BM161: 0 | BN161: 0 | BO161: 0 | BP161: 0 | BQ161: 0 | BR161: 0 | BS161: 0 | BU161: 0 | BW161: 0 | BX161: 0 | BY161: 0 | BZ161: 0 | CA161: 0 | CB161: 0 | CC161: 0
BA162: 0 | BC162: 0 | BD162: 0 | BE162: 0 | BF162: 0 | BG162: 0 | BH162: 0 | BI162: 0 | BK162: 0 | BM162: 0 | BN162: 0 | BO162: 0 | BP162: 0 | BQ162: 0 | BR162: 0 | BS162: 0 | BU162: 0 | BW162: 0 | BX162: 0 | BY162: 0 | BZ162: 0 | CA162: 0 | CB162: 0 | CC162: 0
BA163: 0 | BC163: 0 | BD163: 0 | BE163: 0 | BF163: 0 | BG163: 0 | BH163: 0 | BI163: 0 | BK163: 0 | BM163: 0 | BN163: 0 | BO163: 0 | BP163: 0 | BQ163: 0 | BR163: 0 | BS163: 0 | BU163: 0 | BW163: 0 | BX163: 0 | BY163: 0 | BZ163: 0 | CA163: 0 | CB163: 0 | CC163: 0
BA164: 0 | BC164: 0 | BD164: 0 | BE164: 0 | BF164: 0 | BG164: 0 | BH164: 0 | BI164: 0 | BK164: 0 | BM164: 0 | BN164: 0 | BO164: 0 | BP164: 0 | BQ164: 0 | BR164: 0 | BS164: 0 | BU164: 0 | BW164: 0 | BX164: 0 | BY164: 0 | BZ164: 0 | CA164: 0 | CB164: 0 | CC164: 0
BA165: 0 | BC165: 0 | BD165: 0 | BE165: 0 | BF165: 0 | BG165: 0 | BH165: 0 | BI165: 0 | BK165: 0 | BM165: 0 | BN165: 0 | BO165: 0 | BP165: 0 | BQ165: 0 | BR165: 0 | BS165: 0 | BU165: 0 | BW165: 0 | BX165: 0 | BY165: 0 | BZ165: 0 | CA165: 0 | CB165: 0 | CC165: 0
BA166: 0 | BC166: 0 | BD166: 0 | BE166: 0 | BF166: 0 | BG166: 0 | BH166: 0 | BI166: 0 | BK166: 0 | BM166: 0 | BN166: 0 | BO166: 0 | BP166: 0 | BQ166: 0 | BR166: 0 | BS166: 0 | BU166: 0 | BW166: 0 | BX166: 0 | BY166: 0 | BZ166: 0 | CA166: 0 | CB166: 0 | CC166: 0
BA167: 0 | BC167: 0 | BD167: 0 | BE167: 0 | BF167: 0 | BG167: 0 | BH167: 0 | BI167: 0 | BK167: 0 | BM167: 0 | BN167: 0 | BO167: 0 | BP167: 0 | BQ167: 0 | BR167: 0 | BS167: 0 | BU167: 0 | BW167: 0 | BX167: 0 | BY167: 0 | BZ167: 0 | CA167: 0 | CB167: 0 | CC167: 0
BA168: 0 | BC168: 0 | BD168: 0 | BE168: 0 | BF168: 0 | BG168: 0 | BH168: 0 | BI168: 0 | BK168: 0 | BM168: 0 | BN168: 0 | BO168: 0 | BP168: 0 | BQ168: 0 | BR168: 0 | BS168: 0 | BU168: 0 | BW168: 0 | BX168: 0 | BY168: 0 | BZ168: 0 | CA168: 0 | CB168: 0 | CC168: 0
BA169: 0 | BC169: 0 | BD169: 0 | BE169: 0 | BF169: 0 | BG169: 0 | BH169: 0 | BI169: 0 | BK169: 0 | BM169: 0 | BN169: 0 | BO169: 0 | BP169: 0 | BQ169: 0 | BR169: 0 | BS169: 0 | BU169: 0 | BW169: 0 | BX169: 0 | BY169: 0 | BZ169: 0 | CA169: 0 | CB169: 0 | CC169: 0
BA170: 0 | BC170: 0 | BD170: 0 | BE170: 0 | BF170: 0 | BG170: 0 | BH170: 0 | BI170: 0 | BK170: 0 | BM170: 0 | BN170: 0 | BO170: 0 | BP170: 0 | BQ170: 0 | BR170: 0 | BS170: 0 | BU170: 0 | BW170: 0 | BX170: 0 | BY170: 0 | BZ170: 0 | CA170: 0 | CB170: 0 | CC170: 0
BA171: 0 | BC171: 0 | BD171: 0 | BE171: 0 | BF171: 0 | BG171: 0 | BH171: 0 | BI171: 0 | BK171: 0 | BM171: 0 | BN171: 0 | BO171: 0 | BP171: 0 | BQ171: 0 | BR171: 0 | BS171: 0 | BU171: 0 | BW171: 0 | BX171: 0 | BY171: 0 | BZ171: 0 | CA171: 0 | CB171: 0 | CC171: 0
BA172: 0 | BC172: 0 | BD172: 0 | BE172: 0 | BF172: 0 | BG172: 0 | BH172: 0 | BI172: 0 | BK172: 0 | BM172: 0 | BN172: 0 | BO172: 0 | BP172: 0 | BQ172: 0 | BR172: 0 | BS172: 0 | BU172: 0 | BW172: 0 | BX172: 0 | BY172: 0 | BZ172: 0 | CA172: 0 | CB172: 0 | CC172: 0
BA173: 0 | BC173: 0 | BD173: 0 | BE173: 0 | BF173: 0 | BG173: 0 | BH173: 0 | BI173: 0 | BK173: 0 | BM173: 0 | BN173: 0 | BO173: 0 | BP173: 0 | BQ173: 0 | BR173: 0 | BS173: 0 | BU173: 0 | BW173: 0 | BX173: 0 | BY173: 0 | BZ173: 0 | CA173: 0 | CB173: 0 | CC173: 0
BA174: 0 | BC174: 0 | BD174: 0 | BE174: 0 | BF174: 0 | BG174: 0 | BH174: 0 | BI174: 0 | BK174: 0 | BM174: 0 | BN174: 0 | BO174: 0 | BP174: 0 | BQ174: 0 | BR174: 0 | BS174: 0 | BU174: 0 | BW174: 0 | BX174: 0 | BY174: 0 | BZ174: 0 | CA174: 0 | CB174: 0 | CC174: 0
BA175: 0 | BC175: 0 | BD175: 0 | BE175: 0 | BF175: 0 | BG175: 0 | BH175: 0 | BI175: 0 | BK175: 0 | BM175: 0 | BN175: 0 | BO175: 0 | BP175: 0 | BQ175: 0 | BR175: 0 | BS175: 0 | BU175: 0 | BW175: 0 | BX175: 0 | BY175: 0 | BZ175: 0 | CA175: 0 | CB175: 0 | CC175: 0
BA176: 0 | BC176: 0 | BD176: 0 | BE176: 0 | BF176: 0 | BG176: 0 | BH176: 0 | BI176: 0 | BK176: 0 | BM176: 0 | BN176: 0 | BO176: 0 | BP176: 0 | BQ176: 0 | BR176: 0 | BS176: 0 | BU176: 0 | BW176: 0 | BX176: 0 | BY176: 0 | BZ176: 0 | CA176: 0 | CB176: 0 | CC176: 0
BA177: 0 | BC177: 0 | BD177: 0 | BE177: 0 | BF177: 0 | BG177: 0 | BH177: 0 | BI177: 0 | BK177: 0 | BM177: 0 | BN177: 0 | BO177: 0 | BP177: 0 | BQ177: 0 | BR177: 0 | BS177: 0 | BU177: 0 | BW177: 0 | BX177: 0 | BY177: 0 | BZ177: 0 | CA177: 0 | CB177: 0 | CC177: 0
BA178: 0 | BC178: 0 | BD178: 0 | BE178: 0 | BF178: 0 | BG178: 0 | BH178: 0 | BI178: 0 | BK178: 0 | BM178: 0 | BN178: 0 | BO178: 0 | BP178: 0 | BQ178: 0 | BR178: 0 | BS178: 0 | BU178: 0 | BW178: 0 | BX178: 0 | BY178: 0 | BZ178: 0 | CA178: 0 | CB178: 0 | CC178: 0
BA179: 0 | BC179: 0 | BD179: 0 | BE179: 0 | BF179: 0 | BG179: 0 | BH179: 0 | BI179: 0 | BK179: 0 | BM179: 0 | BN179: 0 | BO179: 0 | BP179: 0 | BQ179: 0 | BR179: 0 | BS179: 0 | BU179: 0 | BW179: 0 | BX179: 0 | BY179: 0 | BZ179: 0 | CA179: 0 | CB179: 0 | CC179: 0
BA180: 0 | BC180: 0 | BD180: 0 | BE180: 0 | BF180: 0 | BG180: 0 | BH180: 0 | BI180: 0 | BK180: 0 | BM180: 0 | BN180: 0 | BO180: 0 | BP180: 0 | BQ180: 0 | BR180: 0 | BS180: 0 | BU180: 0 | BW180: 0 | BX180: 0 | BY180: 0 | BZ180: 0 | CA180: 0 | CB180: 0 | CC180: 0
BA181: 0 | BC181: 0 | BD181: 0 | BE181: 0 | BF181: 0 | BG181: 0 | BH181: 0 | BI181: 0 | BK181: 0 | BM181: 0 | BN181: 0 | BO181: 0 | BP181: 0 | BQ181: 0 | BR181: 0 | BS181: 0 | BU181: 0 | BW181: 0 | BX181: 0 | BY181: 0 | BZ181: 0 | CA181: 0 | CB181: 0 | CC181: 0
BA182: 0 | BC182: 0 | BD182: 0 | BE182: 0 | BF182: 0 | BG182: 0 | BH182: 0 | BI182: 0 | BK182: 0 | BM182: 0 | BN182: 0 | BO182: 0 | BP182: 0 | BQ182: 0 | BR182: 0 | BS182: 0 | BU182: 0 | BW182: 0 | BX182: 0 | BY182: 0 | BZ182: 0 | CA182: 0 | CB182: 0 | CC182: 0
BA183: 0 | BC183: 0 | BD183: 0 | BE183: 0 | BF183: 0 | BG183: 0 | BH183: 0 | BI183: 0 | BK183: 0 | BM183: 0 | BN183: 0 | BO183: 0 | BP183: 0 | BQ183: 0 | BR183: 0 | BS183: 0 | BU183: 0 | BW183: 0 | BX183: 0 | BY183: 0 | BZ183: 0 | CA183: 0 | CB183: 0 | CC183: 0
BA184: 0 | BC184: 0 | BD184: 0 | BE184: 0 | BF184: 0 | BG184: 0 | BH184: 0 | BI184: 0 | BK184: 0 | BM184: 0 | BN184: 0 | BO184: 0 | BP184: 0 | BQ184: 0 | BR184: 0 | BS184: 0 | BU184: 0 | BW184: 0 | BX184: 0 | BY184: 0 | BZ184: 0 | CA184: 0 | CB184: 0 | CC184: 0
BA185: 0 | BC185: 0 | BD185: 0 | BE185: 0 | BF185: 0 | BG185: 0 | BH185: 0 | BI185: 0 | BK185: 0 | BM185: 0 | BN185: 0 | BO185: 0 | BP185: 0 | BQ185: 0 | BR185: 0 | BS185: 0 | BU185: 0 | BW185: 0 | BX185: 0 | BY185: 0 | BZ185: 0 | CA185: 0 | CB185: 0 | CC185: 0
BA186: 0 | BC186: 0 | BD186: 0 | BE186: 0 | BF186: 0 | BG186: 0 | BH186: 0 | BI186: 0 | BK186: 0 | BM186: 0 | BN186: 0 | BO186: 0 | BP186: 0 | BQ186: 0 | BR186: 0 | BS186: 0 | BU186: 0 | BW186: 0 | BX186: 0 | BY186: 0 | BZ186: 0 | CA186: 0 | CB186: 0 | CC186: 0
BA187: 0 | BC187: 0 | BD187: 0 | BE187: 0 | BF187: 0 | BG187: 0 | BH187: 0 | BI187: 0 | BK187: 0 | BM187: 0 | BN187: 0 | BO187: 0 | BP187: 0 | BQ187: 0 | BR187: 0 | BS187: 0 | BU187: 0 | BW187: 0 | BX187: 0 | BY187: 0 | BZ187: 0 | CA187: 0 | CB187: 0 | CC187: 0
BA188: 0 | BC188: 0 | BD188: 0 | BE188: 0 | BF188: 0 | BG188: 0 | BH188: 0 | BI188: 0 | BK188: 0 | BM188: 0 | BN188: 0 | BO188: 0 | BP188: 0 | BQ188: 0 | BR188: 0 | BS188: 0 | BU188: 0 | BW188: 0 | BX188: 0 | BY188: 0 | BZ188: 0 | CA188: 0 | CB188: 0 | CC188: 0
BA189: 0 | BC189: 0 | BD189: 0 | BE189: 0 | BF189: 0 | BG189: 0 | BH189: 0 | BI189: 0 | BK189: 0 | BM189: 0 | BN189: 0 | BO189: 0 | BP189: 0 | BQ189: 0 | BR189: 0 | BS189: 0 | BU189: 0 | BW189: 0 | BX189: 0 | BY189: 0 | BZ189: 0 | CA189: 0 | CB189: 0 | CC189: 0
BA190: 0 | BC190: 0 | BD190: 0 | BE190: 0 | BF190: 0 | BG190: 0 | BH190: 0 | BI190: 0 | BK190: 0 | BM190: 0 | BN190: 0 | BO190: 0 | BP190: 0 | BQ190: 0 | BR190: 0 | BS190: 0 | BU190: 0 | BW190: 0 | BX190: 0 | BY190: 0 | BZ190: 0 | CA190: 0 | CB190: 0 | CC190: 0
BA191: 0 | BC191: 0 | BD191: 0 | BE191: 0 | BF191: 0 | BG191: 0 | BH191: 0 | BI191: 0 | BK191: 0 | BM191: 0 | BN191: 0 | BO191: 0 | BP191: 0 | BQ191: 0 | BR191: 0 | BS191: 0 | BU191: 0 | BW191: 0 | BX191: 0 | BY191: 0 | BZ191: 0 | CA191: 0 | CB191: 0 | CC191: 0
BA192: 0 | BC192: 0 | BD192: 0 | BE192: 0 | BF192: 0 | BG192: 0 | BH192: 0 | BI192: 0 | BK192: 0 | BM192: 0 | BN192: 0 | BO192: 0 | BP192: 0 | BQ192: 0 | BR192: 0 | BS192: 0 | BU192: 0 | BW192: 0 | BX192: 0 | BY192: 0 | BZ192: 0 | CA192: 0 | CB192: 0 | CC192: 0
BA193: 0 | BC193: 0 | BD193: 0 | BE193: 0 | BF193: 0 | BG193: 0 | BH193: 0 | BI193: 0 | BK193: 0 | BM193: 0 | BN193: 0 | BO193: 0 | BP193: 0 | BQ193: 0 | BR193: 0 | BS193: 0 | BU193: 0 | BW193: 0 | BX193: 0 | BY193: 0 | BZ193: 0 | CA193: 0 | CB193: 0 | CC193: 0
BA194: 0 | BC194: 0 | BD194: 0 | BE194: 0 | BF194: 0 | BG194: 0 | BH194: 0 | BI194: 0 | BK194: 0 | BM194: 0 | BN194: 0 | BO194: 0 | BP194: 0 | BQ194: 0 | BR194: 0 | BS194: 0 | BU194: 0 | BW194: 0 | BX194: 0 | BY194: 0 | BZ194: 0 | CA194: 0 | CB194: 0 | CC194: 0
BA195: 0 | BC195: 0 | BD195: 0 | BE195: 0 | BF195: 0 | BG195: 0 | BH195: 0 | BI195: 0 | BK195: 0 | BL195: =L195&M195 ->  | BM195: 0 | BN195: 0 | BO195: 0 | BP195: 0 | BQ195: 0 | BR195: 0 | BS195: 0 | BU195: 0 | BV195: =V195&W195 ->  | BW195: 0 | BX195: 0 | BY195: 0 | BZ195: 0 | CA195: 0 | CB195: 0 | CC195: 0
BA196: 0 | BC196: 0 | BD196: 0 | BE196: 0 | BF196: 0 | BG196: 0 | BH196: 0 | BI196: 0 | BK196: 0 | BM196: 0 | BN196: 0 | BO196: 0 | BP196: 0 | BQ196: 0 | BR196: 0 | BS196: 0 | BU196: 0 | BW196: 0 | BX196: 0 | BY196: 0 | BZ196: 0 | CA196: 0 | CB196: 0 | CC196: 0
BA197: 0 | BC197: 0 | BD197: 0 | BE197: 0 | BF197: 0 | BG197: 0 | BH197: 0 | BI197: 0 | BK197: 0 | BM197: 0 | BN197: 0 | BO197: 0 | BP197: 0 | BQ197: 0 | BR197: 0 | BS197: 0 | BU197: 0 | BW197: 0 | BX197: 0 | BY197: 0 | BZ197: 0 | CA197: 0 | CB197: 0 | CC197: 0
BA198: 0 | BC198: 0 | BD198: 0 | BE198: 0 | BF198: 0 | BG198: 0 | BH198: 0 | BI198: 0 | BK198: 0 | BM198: 0 | BN198: 0 | BO198: 0 | BP198: 0 | BQ198: 0 | BR198: 0 | BS198: 0 | BU198: 0 | BW198: 0 | BX198: 0 | BY198: 0 | BZ198: 0 | CA198: 0 | CB198: 0 | CC198: 0
BA199: 0 | BC199: 0 | BD199: 0 | BE199: 0 | BF199: 0 | BG199: 0 | BH199: 0 | BI199: 0 | BK199: 0 | BM199: 0 | BN199: 0 | BO199: 0 | BP199: 0 | BQ199: 0 | BR199: 0 | BS199: 0 | BU199: 0 | BW199: 0 | BX199: 0 | BY199: 0 | BZ199: 0 | CA199: 0 | CB199: 0 | CC199: 0
BA200: 0 | BC200: 0 | BD200: 0 | BE200: 0 | BF200: 0 | BG200: 0 | BH200: 0 | BI200: 0 | BK200: 0 | BM200: 0 | BN200: 0 | BO200: 0 | BP200: 0 | BQ200: 0 | BR200: 0 | BS200: 0 | BU200: 0 | BW200: 0 | BX200: 0 | BY200: 0 | BZ200: 0 | CA200: 0 | CB200: 0 | CC200: 0
... 1079 more rows

Sheet Результат (hidden)
D1: =IF(COUNTIF(D2:D16,D2)>COUNTIF(E2:E16,E2),D2,E2) -> Everton | J1: =D1 -> Everton | Q1: =D17 -> Colo Colo | AA1: Дома/Гости | AC1: Общие | AE1: Очные | BF1: =VLOOKUP(J11,Лист4!A:B,2,FALSE) -> CHILE: Primera Division | BX1: п | BY1: н | BZ1: в | CD1: - | CE1: ср | CF1: + | CH1: =ROUND(CH2,0) -> 1 | DJ1: Забивает | DK1: Пропускает | DM1: ТОТАЛ | DR1: =DS1 -> 1 | DS1: =ROUND(DS2,0) -> 1 | DU1: - | DV1: ср | DW1: + | DY1: =ROUND(DY2,0) -> 1 | EC1: Очки
B2: =IF(ДомаДома!B2="","",ДомаДома!B2) -> 2021.03.27 21:00 | C2: =IF(ДомаДома!A2="","",ДомаДома!A2) -> CHILE: Primera Division | D2: =IF(ДомаДома!C2="","",ДомаДома!C2) -> Everton | E2: =IF(ДомаДома!D2="","",ДомаДома!D2) -> O'Higgins | F2: =IF(ДомаДома!N2="","",CONCATENATE(ДомаДома!L2," : ",ДомаДома!M2)) -> 1 : 1 | G2: =VALUE(LEFT(F2,FIND(":",F2,1)-1)) -> 1 | H2: =VALUE(LEFT(RIGHT(F2,LEN(F2)-FIND(":",F2,1)),4)) -> 1 | Y2: ЛИНИЯ БК | AA2: ТБ | AB2: ТМ | AC2: ТБ | AD2: ТМ | AE2: ТБ | AF2: ТМ | CC2: =AVEDEV(DB2:DB6) -> 0.32 | CD2: =CE2-CC2 -> 0.88 | CE2: =AVERAGE(DB2:DB6) -> 1.2 | CF2: =CE2+CC2 -> 1.52 | CG2: =DB2 -> 1 | CH2: =SUM(CG2:CG12)/11 -> 1.363636364 | CI2: 1 | CJ2: =CG12 -> 1 | DB2: =IF(D2=$D$1,G2,H2) -> 1 | DC2: =IF($Z$3<DB2,1,"") ->  | DE2: =G2+H2 -> 2 | DF2: =IF($Z$6<DE2,1,"") ->  | DG2: =G30+H30 -> 3 | DH2: =IF($Z$6<DG2,1,"") ->  | DI2: 15матчей | DJ2: =IF(D2=$D$1,G2,H2) -> 1 | DK2: =IF(D2=$D$1,H2,G2) -> 1 | DL2: 15матчей | DM2: =DJ2+DJ30 -> 2 | DO2: =DM17 -> 3 | DP2: =DJ17 -> 1 | DR2: =DK2 -> 1 | DS2: =SUM(DR2:DR16)/15 -> 1 | DT2: =AVEDEV(DR2:DR6) -> 0.8 | DU2: =DV2-DT2 -> 0.2 | DV2: =AVERAGE(DR2:DR6) -> 1 | DW2: =DV2+DT2 -> 1.8 | DX2: =DR2 -> 1 | DY2: =SUM(DX2:DX12)/11 -> 1 | DZ2: 1 | EA2: =DX12 -> 1 | EC2: =IF(OR(DJ2="",DK2=""),"",IF(DJ2>DK2,2,IF(DJ2<DK2,0,1))) -> 1 | ED2: =IF(EC2="","",IF(EC2=1,"Н",IF(EC2=0,"П",IF(EC2=2,"В")))) -> Н | EE2: 1 | EF2: =TREND(DJ2:DJ16,EE2:EE16,EE17) -> 0.8666666667 | EH2: =TREND(DK2:DK16,EE2:EE16,EE17) -> 0.8857142857
B3: =IF(ДомаДома!B3="","",ДомаДома!B3) -> 2021.02.14 15:30 | C3: =IF(ДомаДома!A3="","",ДомаДома!A3) -> CHILE: Primera Division | D3: =IF(ДомаДома!C3="","",ДомаДома!C3) -> Everton | E3: =IF(ДомаДома!D3="","",ДомаДома!D3) -> Huachipato | F3: =IF(ДомаДома!N3="","",CONCATENATE(ДомаДома!L3," : ",ДомаДома!M3)) -> 1 : 0 | G3: =VALUE(LEFT(F3,FIND(":",F3,1)-1)) -> 1 | H3: =VALUE(LEFT(RIGHT(F3,LEN(F3)-FIND(":",F3,1)),4)) -> 0 | J3: Дома | L3: =ED2 -> Н | M3: =ED3 -> В | N3: =ED4 -> П | O3: =ED5 -> В | P3: =ED6 -> В | Q3: В Гостях | S3: =ED30 -> П | T3: =ED31 -> В | U3: =ED32 -> Н | V3: =ED33 -> Н | W3: =ED34 -> Н | Y3: ИТ1 | Z3: 1 | AA3: =COUNTIF(DC2:DC16,1)/15 -> 0.3333333333 | AB3: =1-AA3 -> 0.6666666667 | AC3: =COUNTIF(DC53:DC67,1)/15 -> 0.2666666667 | AD3: =1-AC3 -> 0.7333333333 | AE3: =COUNTIF(DE85:DE99,1)/15 -> 0.3333333333 | AF3: =1-AE3 -> 0.6666666667 | BF3: =O27&"/"&R27 -> 1/-2 | BH3: =O28&"/"&R28 -> 1/-2 | CC3: =AVEDEV(DB3:DB7) -> 0.72 | CD3: =CE3-CC3 -> 0.88 | CE3: =AVERAGE(DB3:DB7) -> 1.6 | CF3: =CE3+CC3 -> 2.32 | CG3: =DB3 -> 1 | CI3: 2 | CJ3: =CG11 -> 0 | DB3: =IF(D3=$D$1,G3,H3) -> 1 | DE3: 1 | DG3: 6 | DH3: 1 | DI3: СРЗаб | DJ3: =IF(D3=$D$1,G3,H3) -> 1 | DK3: 0 | DL3: СрПроп | DM3: =DJ3+DJ31 -> 5 | DO3: =DM2 -> 2 | DP3: =DJ2 -> 1 | DR3: =DK3 -> 0 | DT3: =AVEDEV(DR3:DR7) -> 0.96 | DU3: =DV3-DT3 -> -0.16 | DV3: =AVERAGE(DR3:DR7) -> 0.8 | DW3: =DV3+DT3 -> 1.76 | DX3: =DR3 -> 0 | DZ3: 2 | EA3: =DX11 -> 1 | EC3: =IF(OR(DJ3="",DK3=""),"",IF(DJ3>DK3,2,IF(DJ3<DK3,0,1))) -> 2 | ED3: =IF(EC3="","",IF(EC3=1,"Н",IF(EC3=0,"П",IF(EC3=2,"В")))) -> В | EE3: 2 | EF3: =ROUND(EF2,0) -> 1 | EH3: =ROUND(EH2,0) -> 1
B4: =IF(ДомаДома!B4="","",ДомаДома!B4) -> 2021.02.06 22:00 | C4: =IF(ДомаДома!A4="","",ДомаДома!A4) -> CHILE: Primera Division | D4: =IF(ДомаДома!C4="","",ДомаДома!C4) -> Everton | E4: =IF(ДомаДома!D4="","",ДомаДома!D4) -> Palestino | F4: =IF(ДомаДома!N4="","",CONCATENATE(ДомаДома!L4," : ",ДомаДома!M4)) -> 1 : 3 | G4: 1 | H4: 3 | J4: Общие | L4: =ED53 -> Н | M4: =ED54 -> П | N4: =ED55 -> Н | O4: =ED56 -> В | P4: =ED57 -> В | Q4: Общие | S4: =ED69 -> П | T4: =ED70 -> П | U4: =ED71 -> Н | V4: =ED72 -> В | W4: =ED73 -> В | Y4: ИТ2 | Z4: 1 | AA4: =COUNTIF(DC30:DC44,1)/15 -> 0.4666666667 | AB4: =1-AA4 -> 0.5333333333 | AC4: =COUNTIF(DC69:DC83,1)/15 -> 0.2666666667 | AD4: =1-AC4 -> 0.7333333333 | AE4: =COUNTIF(DG85:DG99,1)/15 -> 0.7333333333 | AF4: =1-AE4 -> 0.2666666667 | CC4: 0.72 | CD4: 0.88 | CE4: 1.6 | CF4: 2.32 | CG4: =DB4 -> 1 | CI4: 3 | CJ4: =CG10 -> 1 | CY4: =$Z$3 -> 1 | CZ4: =$Z$4 -> 1 | DA4: =$Z$6 -> 3 | DB4: 1 | DE4: 4 | DF4: 1 | DG4: 2 | DI4: =SUM(DJ2:DJ16)/15 -> 1.266666667 | DJ4: =IF(D4=$D$1,G4,H4) -> 1 | DK4: 3 | DL4: =SUM(DK2:DK16)/15 -> 1 | DM4: 2 | DO4: =DM3 -> 5 | DP4: =DJ3 -> 1 | DR4: 3 | DT4: 1.04 | DU4: 0.16 | DV4: =AVERAGE(DR4:DR8) -> 1.2 | DW4: 2.24 | DX4: 3 | DZ4: 3 | EA4: =DX10 -> 1 | EC4: 0 | ED4: П | EE4: 3
B5: =IF(ДомаДома!B5="","",ДомаДома!B5) -> 2021.01.14 22:00 | C5: =IF(ДомаДома!A5="","",ДомаДома!A5) -> CHILE: Primera Division | D5: =IF(ДомаДома!C5="","",ДомаДома!C5) -> Everton | E5: =IF(ДомаДома!D5="","",ДомаДома!D5) -> A. Italiano | F5: =IF(ДомаДома!N5="","",CONCATENATE(ДомаДома!L5," : ",ДомаДома!M5)) -> 2 : 1 | G5: 2 | H5: 1 | J5: Очные | L5: =EX85 -> П | M5: =EX86 -> Н | N5: =EX87 -> П | O5: =EX88 -> П | P5: =EX89 -> Н | Q5: Очные | S5: =EZ85 -> В | T5: =EZ86 -> Н | U5: =EZ87 -> В | V5: =EZ88 -> В | W5: =EZ89 -> Н | BF5: =Лист3!Q23 -> 0-3 | BG5: =Лист3!W23 -> 0-3 | BH5: =Лист3!I21 -> 1.042857143 | BI5: =Лист3!K21 -> 1.157142857 | BJ5: =Лист3!M21 -> 2.2 | CC5: 0.8 | CD5: 1.2 | CE5: 2 | CF5: 2.8 | CG5: 2 | CI5: 4 | CJ5: =CG9 -> 3 | CY5: 1 | CZ5: 1 | DA5: 3 | DB5: 2 | DC5: 1 | DE5: 3 | DG5: 0 | DI5: 5матчей | DJ5: 2 | DK5: 1 | DL5: 5матчей | DM5: 2 | DO5: 2 | DP5: 1 | DR5: 1 | DT5: 0.64 | DU5: 0.16 | DV5: =AVERAGE(DR5:DR9) -> 0.8 | DW5: 1.44 | DX5: 1 | DZ5: 4 | EA5: =DX9 -> 1 | EC5: 2 | ED5: В | EE5: 4
B6: =IF(ДомаДома!B6="","",ДомаДома!B6) -> 2021.01.02 22:00 | C6: =IF(ДомаДома!A6="","",ДомаДома!A6) -> CHILE: Primera Division | D6: =IF(ДомаДома!C6="","",ДомаДома!C6) -> Everton | E6: =IF(ДомаДома!D6="","",ДомаДома!D6) -> Deportes Iquique | F6: =IF(ДомаДома!N6="","",CONCATENATE(ДомаДома!L6," : ",ДомаДома!M6)) -> 1 : 0 | G6: 1 | H6: 0 | Y6: TOTAL | Z6: 3 | AA6: =(COUNTIF(DF2:DF16,1)+COUNTIF(DH2:DH16,1))/30 -> 0.2666666667 | AB6: =1-AA6 -> 0.7333333333 | AC6: =(COUNTIF(DF53:DF67,1)+COUNTIF(DH53:DH67,1))/30 -> 0.06666666667 | AD6: =1-AC6 -> 0.9333333333 | AE6: =COUNTIF(DI85:DI99,1)/15 -> 0.4666666667 | AF6: =1-AE6 -> 0.5333333333 | CC6: 0.96 | CD6: 0.84 | CE6: 1.8 | CF6: 2.76 | CG6: 1 | CI6: 5 | CJ6: =CG8 -> 1 | CY6: 1 | CZ6: 1 | DA6: 3 | DB6: 1 | DE6: 1 | DG6: 2 | DI6: СРЗаб | DJ6: 1 | DK6: 0 | DL6: СрПроп | DM6: 2 | DO6: 2 | DP6: 2 | DR6: 0 | DT6: 0.64 | DU6: 0.16 | DV6: 0.8 | DW6: 1.44 | DX6: 0 | DZ6: 5 | EA6: =DX8 -> 2 | EC6: 2 | ED6: В | EE6: 5
B7: =IF(ДомаДома!B7="","",ДомаДома!B7) -> 2020.12.22 15:30 | C7: =IF(ДомаДома!A7="","",ДомаДома!A7) -> CHILE: Primera Division | D7: =IF(ДомаДома!C7="","",ДомаДома!C7) -> Everton | E7: =IF(ДомаДома!D7="","",ДомаДома!D7) -> Cobresal | F7: =IF(ДомаДома!N7="","",CONCATENATE(ДомаДома!L7," : ",ДомаДома!M7)) -> 3 : 0 | G7: 3 | H7: 0 | BF7: =IF(AZ44=BO44,AZ44,"-") -> К1 | CC7: 1.12 | CD7: 0.48 | CE7: 1.6 | CF7: 2.72 | CG7: 3 | CI7: 6 | CJ7: =CG7 -> 3 | CY7: 1 | CZ7: 1 | DA7: 3 | DB7: 3 | DC7: 1 | DE7: 3 | DG7: 3 | DI7: =SUM(DJ2:DJ6)/5 -> 1.2 | DJ7: 3 | DK7: 0 | DL7: =SUM(DK2:DK6)/5 -> 1 | DM7: 6 | DO7: 2 | DP7: 1 | DR7: 0 | DT7: 0.4 | DU7: 0.6 | DV7: 1 | DW7: 1.4 | DX7: 0 | DZ7: 6 | EA7: =DX7 -> 0 | EC7: 2 | ED7: В | EE7: 6
B8: =IF(ДомаДома!B8="","",ДомаДома!B8) -> 2020.12.17 01:30 | C8: =IF(ДомаДома!A8="","",ДомаДома!A8) -> CHILE: Primera Division | D8: =IF(ДомаДома!C8="","",ДомаДома!C8) -> Everton | E8: =IF(ДомаДома!D8="","",ДомаДома!D8) -> U. Espanola | F8: =IF(ДомаДома!N8="","",CONCATENATE(ДомаДома!L8," : ",ДомаДома!M8)) -> 1 : 2 | G8: 1 | H8: 2 | N8: =Расчеты!D126 -> 2021.04.18 21:00 | BF8: =Лист3!S24 -> 0-6 | CC8: 0.72 | CD8: 0.48 | CE8: 1.2 | CF8: 1.92 | CG8: 1 | CI8: 7 | CJ8: =CG6 -> 1 | CY8: 1 | CZ8: 1 | DA8: 3 | DB8: 1 | DE8: 3 | DG8: 1 | DJ8: 1 | DK8: 2 | DM8: 1 | DO8: 6 | DP8: 3 | DR8: 2 | DT8: 0.32 | DU8: 0.88 | DV8: 1.2 | DW8: 1.52 | DX8: 2 | DZ8: 7 | EA8: =DX6 -> 0 | EC8: 0 | ED8: П | EE8: 7
B9: =IF(ДомаДома!B9="","",ДомаДома!B9) -> 2020.12.11 02:30 | C9: =IF(ДомаДома!A9="","",ДомаДома!A9) -> CHILE: Primera Division | D9: =IF(ДомаДома!C9="","",ДомаДома!C9) -> Everton | E9: =IF(ДомаДома!D9="","",ДомаДома!D9) -> Curico Unido | F9: =IF(ДомаДома!N9="","",CONCATENATE(ДомаДома!L9," : ",ДомаДома!M9)) -> 3 : 1 | G9: 3 | H9: 1 | J9: =Расчеты!C126 -> CHILE: Primera Division | CC9: 0.88 | CD9: 0.52 | CE9: 1.4 | CF9: 2.28 | CG9: 3 | CI9: 8 | CJ9: =CG5 -> 2 | CY9: 1 | CZ9: 1 | DA9: 3 | DB9: 3 | DC9: 1 | DE9: 4 | DF9: 1 | DG9: 0 | DJ9: 3 | DK9: 1 | DM9: 3 | DO9: 1 | DP9: 1 | DR9: 1 | DT9: 0.32 | DU9: 0.88 | DV9: 1.2 | DW9: 1.52 | DX9: 1 | DZ9: 8 | EA9: =DX5 -> 1 | EC9: 2 | ED9: В | EE9: 8
B10: =IF(ДомаДома!B10="","",ДомаДома!B10) -> 2020.11.23 00:15 | C10: =IF(ДомаДома!A10="","",ДомаДома!A10) -> CHILE: Primera Division | D10: =IF(ДомаДома!C10="","",ДомаДома!C10) -> Everton | E10: =IF(ДомаДома!D10="","",ДомаДома!D10) -> U. De Chile | F10: =IF(ДомаДома!N10="","",CONCATENATE(ДомаДома!L10," : ",ДомаДома!M10)) -> 1 : 1 | G10: 1 | H10: 1 | CC10: 0.64 | CD10: 0.56 | CE10: 1.2 | CF10: 1.84 | CG10: 1 | CI10: 9 | CJ10: =CG4 -> 1 | CY10: 1 | CZ10: 1 | DA10: 3 | DB10: 1 | DE10: 2 | DG10: 3 | DJ10: 1 | DK10: 1 | DM10: 2 | DO10: 3 | DP10: 3 | DR10: 1 | DT10: 0.48 | DU10: 0.92 | DV10: 1.4 | DW10: 1.88 | DX10: 1 | DZ10: 9 | EA10: =DX4 -> 3 | EC10: 1 | ED10: Н | EE10: 9
B11: =IF(ДомаДома!B11="","",ДомаДома!B11) -> 2020.11.13 18:30 | C11: =IF(ДомаДома!A11="","",ДомаДома!A11) -> CHILE: Primera Division | D11: =IF(ДомаДома!C11="","",ДомаДома!C11) -> Everton | E11: =IF(ДомаДома!D11="","",ДомаДома!D11) -> O'Higgins | F11: =IF(ДомаДома!N11="","",CONCATENATE(ДомаДома!L11," : ",ДомаДома!M11)) -> 0 : 1 | G11: 0 | H11: 1 | J11: =AX60 -> Everton | Q11: =AX61 -> Colo Colo | CC11: 0.8 | CD11: 0.2 | CE11: 1 | CF11: 1.8 | CG11: 0 | CI11: 10 | CJ11: =CG3 -> 1 | CY11: 1 | CZ11: 1 | DA11: 3 | DB11: 0 | DE11: 1 | DG11: 4 | DH11: 1 | DJ11: 0 | DK11: 1 | DM11: 2 | DO11: 2 | DP11: 1 | DR11: 1 | DT11: 0.64 | DU11: 0.56 | DV11: 1.2 | DW11: 1.84 | DX11: 1 | DZ11: 10 | EA11: =DX3 -> 0 | EC11: 0 | ED11: П | EE11: 10
B12: =IF(ДомаДома!B12="","",ДомаДома!B12) -> 2020.10.28 21:00 | C12: =IF(ДомаДома!A12="","",ДомаДома!A12) -> CHILE: Primera Division | D12: =IF(ДомаДома!C12="","",ДомаДома!C12) -> Everton | E12: =IF(ДомаДома!D12="","",ДомаДома!D12) -> Colo Colo | F12: =IF(ДомаДома!N12="","",CONCATENATE(ДомаДома!L12," : ",ДомаДома!M12)) -> 1 : 1 | G12: 1 | H12: 1 | CC12: 0.8 | CD12: =CE12-CC12 -> 0.2 | CE12: 1 | CF12: =CE12+CC12 -> 1.8 | CG12: 1 | CH12: =CH13 -> 1.472727273 | CI12: 11 | CJ12: =CG2 -> 1 | CY12: 1 | CZ12: 1 | DA12: 3 | DB12: 1 | DE12: 2 | DG12: 4 | DH12: 1 | DJ12: 1 | DK12: 1 | DM12: 4 | DO12: 2 | DP12: 0 | DR12: 1 | DT12: 0.8 | DU12: =DV12-DT12 -> 0.2 | DV12: 1 | DW12: =DV12+DT12 -> 1.8 | DX12: 1 | DY12: =DY13 -> 1 | DZ12: 11 | EA12: =DX2 -> 1 | EC12: 1 | ED12: Н | EE12: 11
B13: =IF(ДомаДома!B13="","",ДомаДома!B13) -> 2020.10.10 21:00 | C13: =IF(ДомаДома!A13="","",ДомаДома!A13) -> CHILE: Primera Division | D13: =IF(ДомаДома!C13="","",ДомаДома!C13) -> Everton | E13: =IF(ДомаДома!D13="","",ДомаДома!D13) -> S. Wanderers | F13: =IF(ДомаДома!N13="","",CONCATENATE(ДомаДома!L13," : ",ДомаДома!M13)) -> 2 : 2 | G13: 2 | H13: 2 | K13: =IFERROR(BI69,"") -> 0.6304448207 | R13: =IFERROR(BJ69,"") -> 0.3695551793 | CD13: =AVERAGE(CD2:CD12) -> 0.6472727273 | CE13: =AVERAGE(CE2:CE12) -> 1.418181818 | CF13: =AVERAGE(CF2:CF12) -> 2.189090909 | CH13: =TREND(CJ2:CJ12,CI2:CI12,CI13) -> 1.472727273 | CI13: 12 | CY13: 1 | CZ13: 1 | DA13: 3 | DB13: 2 | DC13: 1 | DE13: 4 | DF13: 1 | DG13: 2 | DJ13: 2 | DK13: 2 | DM13: 3 | DO13: 4 | DP13: 1 | DR13: 2 | DU13: =AVERAGE(DU2:DU12) -> 0.4145454545 | DV13: =AVERAGE(DV2:DV12) -> 1.054545455 | DW13: =AVERAGE(DW2:DW12) -> 1.694545455 | DY13: =TREND(EA2:EA12,DZ2:DZ12,DZ13) -> 1 | DZ13: 12 | EC13: 1 | ED13: Н | EE13: 12
B14: =IF(ДомаДома!B14="","",ДомаДома!B14) -> 2020.09.26 21:00 | C14: =IF(ДомаДома!A14="","",ДомаДома!A14) -> CHILE: Primera Division | D14: =IF(ДомаДома!C14="","",ДомаДома!C14) -> Everton | E14: =IF(ДомаДома!D14="","",ДомаДома!D14) -> U. Catolica | F14: =IF(ДомаДома!N14="","",CONCATENATE(ДомаДома!L14," : ",ДомаДома!M14)) -> 2 : 2 | G14: 2 | H14: 2 | CY14: 1 | CZ14: 1 | DA14: 3 | DB14: 2 | DC14: 1 | DE14: 4 | DF14: 1 | DG14: 4 | DH14: 1 | DJ14: 2 | DK14: 2 | DM14: 4 | DO14: 3 | DP14: 2 | DR14: 2 | EC14: 1 | ED14: Н | EE14: 13
B15: =IF(ДомаДома!B15="","",ДомаДома!B15) -> 2020.09.10 23:30 | C15: =IF(ДомаДома!A15="","",ДомаДома!A15) -> CHILE: Primera Division | D15: =IF(ДомаДома!C15="","",ДомаДома!C15) -> Everton | E15: =IF(ДомаДома!D15="","",ДомаДома!D15) -> Antofagasta | F15: =IF(ДомаДома!N15="","",CONCATENATE(ДомаДома!L15," : ",ДомаДома!M15)) -> 0 : 0 | G15: 0 | H15: 0 | K15: =IFERROR(AY74,"") -> 0.25 | R15: =AY75 -> -33.33333333 | CY15: 1 | CZ15: 1 | DA15: 3 | DB15: 0 | DE15: 0 | DG15: 3 | DJ15: 0 | DK15: 0 | DM15: 3 | DO15: 4 | DP15: 2 | DR15: 0 | EC15: 1 | ED15: Н | EE15: 14
B16: =IF(ДомаДома!B16="","",ДомаДома!B16) -> 2020.03.15 01:00 | C16: =IF(ДомаДома!A16="","",ДомаДома!A16) -> CHILE: Primera Division | D16: =IF(ДомаДома!C16="","",ДомаДома!C16) -> Everton | E16: =IF(ДомаДома!D16="","",ДомаДома!D16) -> La Serena | F16: =IF(ДомаДома!N16="","",CONCATENATE(ДомаДома!L16," : ",ДомаДома!M16)) -> 0 : 0 | G16: 0 | H16: 0 | CY16: 1 | CZ16: 1 | DA16: 3 | DB16: 0 | DE16: 0 | DG16: 2 | DI16: =SUM(DJ2:DJ16)/15 -> 1.266666667 | DJ16: 0 | DK16: 0 | DL16: =SUM(DK2:DK16)/15 -> 1 | DM16: 2 | DN16: =SUM(DM2:DM16)/15 -> 2.866666667 | DO16: 3 | DP16: 0 | DR16: 0 | EC16: 1 | ED16: Н | EE16: 15
D17: =IF(COUNTIF(D18:D44,D30)>COUNTIF(E18:E44,E30),D30,E30) -> Colo Colo | K17: =IFERROR(BN74,"") -> 0.25 | R17: =IFERROR(BN75,"") -> -33.33333333 | CD17: - | CF17: + | CH17: =ROUND(CG30,0) -> 1 | CY17: 1 | CZ17: 1 | DA17: 3 | DJ17: =ROUND(DI16,0) -> 1 | DK17: =ROUND(DL16,0) -> 1 | DM17: =ROUND(DN16,0) -> 3 | DO17: 2 | DP17: 0 | DR17: =DS30 -> 1 | EC17: Очки | EE17: 16
CY18: 1 | CZ18: 1 | DA18: 3
K19: ТБ | R19: ТМ | CY19: 1 | CZ19: 1 | DA19: 3
CY20: 1 | CZ20: 1 | DA20: 3
K21: =IFERROR(BL69,"") -> -0.5 | R21: =IFERROR(BM69,"") -> 4.5 | CY21: 1 | CZ21: 1 | DA21: 3
CY22: 1 | CZ22: 1 | DA22: 3
M23: Средний тотал | CY23: 1 | CZ23: 1 | DA23: 3
K24: =Лист3!Q23 -> 0-3 | O24: =BL71 -> 2 | S24: =Лист3!W23 -> 0-3 | CY24: 1 | CZ24: 1 | DA24: 3
CY25: 1 | CZ25: 1 | DA25: 3
M26: Мотивация | CY26: 1 | CZ26: 1 | DA26: 3
O27: =BD84 -> 1 | P27: Общее | R27: =BE84 -> -2 | CY27: 1 | CZ27: 1 | DA27: 3
O28: =BS84 -> 1 | P28: Форма | R28: =BT84 -> -2 | CY28: 1 | CZ28: 1 | DA28: 3
O29: =BF7 -> К1 | CY29: 1 | CZ29: 1 | DA29: 3
B30: =IF(ГостиГости!B2="","",ГостиГости!B2) -> 2021.04.04 01:30 | C30: =IF(ГостиГости!A2="","",ГостиГости!A2) -> CHILE: Primera Division | D30: =IF(ГостиГости!C2="","",ГостиГости!C2) -> Cobresal | E30: =IF(ГостиГости!D2="","",ГостиГости!D2) -> Colo Colo | F30: =IF(ГостиГости!N2="","",CONCATENATE(ГостиГости!L2," : ",ГостиГости!M2)) -> 2 : 1 | G30: =VALUE(LEFT(F30,FIND(":",F30,1)-1)) -> 2 | H30: =VALUE(LEFT(RIGHT(F30,LEN(F30)-FIND(":",F30,1)),4)) -> 1 | CC30: =AVEDEV(DB30:DB34) -> 1.04 | CD30: =CE30-CC30 -> 0.36 | CE30: =AVERAGE(DB30:DB34) -> 1.4 | CF30: =CE30+CC30 -> 2.44 | CG30: =SUM(CH30:CH40)/11 -> 1.454545455 | CH30: =DB30 -> 1 | CI30: 1 | CJ30: =CH40 -> 3 | CV30: =ROUND(CW31,0) -> 2 | CY30: 1 | CZ30: 1 | DA30: 3 | DB30: =IF(D30=$D$17,G30,H30) -> 1 | DC30: =IF($Z$4<DB30,1,"") ->  | DI30: 15матчей | DJ30: =IF(D30=$D$17,G30,H30) -> 1 | DK30: =IF(D30=$D$17,H30,G30) -> 2 | DL30: 15матчей | DM30: =DJ30+DK30 -> 3 | DP30: =DJ52 -> 2 | DR30: =DK30 -> 2 | DS30: =ROUND(DS31,0) -> 1 | DU30: - | DV30: ср | DW30: + | DY30: =ROUND(DY31,0) -> 1 | EC30: =IF(OR(DJ30="",DK30=""),"",IF(DJ30>DK30,2,IF(DJ30<DK30,0,1))) -> 0 | ED30: =IF(EC30="","",IF(EC30=1,"Н",IF(EC30=0,"П",IF(EC30=2,"В")))) -> П
B31: =IF(ГостиГости!B3="","",ГостиГости!B3) -> 2021.03.21 23:00 | C31: =IF(ГостиГости!A3="","",ГостиГости!A3) -> CHILE: Super Cup | D31: =IF(ГостиГости!C3="","",ГостиГости!C3) -> U. Catolica | E31: =IF(ГостиГости!D3="","",ГостиГости!D3) -> Colo Colo | F31: =IF(ГостиГости!N3="","",CONCATENATE(ГостиГости!L3," : ",ГостиГости!M3)) -> 2 : 4 | G31: =VALUE(LEFT(F31,FIND(":",F31,1)-1)) -> 2 | H31: =VALUE(LEFT(RIGHT(F31,LEN(F31)-FIND(":",F31,1)),4)) -> 4 | CC31: =AVEDEV(DB31:DB35) -> 1.36 | CD31: =CE31-CC31 -> 0.44 | CE31: 1.8 | CF31: =CE31+CC31 -> 3.16 | CH31: 4 | CI31: 2 | CJ31: =CH39 -> 2 | CR31: =AVEDEV(G2:H6,G30:H34) -> 0.7 | CS31: =CT31-CR31 -> 1.7 | CT31: =AVERAGE(G2:H6)+AVERAGE(G30:H34) -> 2.4 | CU31: =CT31+CR31 -> 3.1 | CV31: =AVERAGE(G2:H2)+AVERAGE(G30:H30) -> 2.5 | CW31: =SUM(CV31:CV41)/11 -> 2.454545455 | CY31: 1 | CZ31: 1 | DA31: 3 | DB31: 4 | DC31: 1 | DI31: СРЗаб | DJ31: 4 | DK31: 2 | DL31: СрПроп | DM31: =DJ31+DK31 -> 6 | DP31: =DJ30 -> 1 | DR31: =DK31 -> 2 | DS31: =SUM(DR30:DR44)/15 -> 1 | DT31: =AVEDEV(DR30:DR34) -> 0.64 | DU31: =DV31-DT31 -> 0.56 | DV31: =AVERAGE(DR30:DR34) -> 1.2 | DW31: =DV31+DT31 -> 1.84 | DX31: =DR30 -> 2 | DY31: =SUM(DX31:DX41)/11 -> 1.090909091 | DZ31: 1 | EA31: =DX41 -> 1 | EC31: =IF(OR(DJ31="",DK31=""),"",IF(DJ31>DK31,2,IF(DJ31<DK31,0,1))) -> 2 | ED31: =IF(EC31="","",IF(EC31=1,"Н",IF(EC31=0,"П",IF(EC31=2,"В")))) -> В | EF31: =TREND(DJ30:DJ44,EE2:EE16,EE17) -> 2.028571429 | EH31: =TREND(DK30:DK44,EE2:EE16,EE17) -> 0.6571428571
B32: =IF(ГостиГости!B4="","",ГостиГости!B4) -> 2021.02.14 23:00 | C32: =IF(ГостиГости!A4="","",ГостиГости!A4) -> CHILE: Primera Division | D32: =IF(ГостиГости!C4="","",ГостиГости!C4) -> O'Higgins | E32: =IF(ГостиГости!D4="","",ГостиГости!D4) -> Colo Colo | F32: =IF(ГостиГости!N4="","",CONCATENATE(ГостиГости!L4," : ",ГостиГости!M4)) -> 1 : 1 | G32: 1 | H32: 1 | CC32: 0.8 | CD32: 0.2 | CE32: 1 | CF32: 1.8 | CH32: 1 | CI32: 3 | CJ32: =CH38 -> 1 | CR32: =AVEDEV(G3:H7,G31:H35) -> 0.95 | CS32: 1.55 | CT32: 2.5 | CU32: 3.45 | CV32: 3.5 | CY32: 1 | CZ32: 1 | DA32: 3 | DB32: 1 | DI32: =SUM(DJ30:DJ44)/15 -> 1.6 | DJ32: 1 | DK32: 1 | DL32: =SUM(DK30:DK44)/15 -> 1 | DM32: 2 | DP32: 4 | DR32: 1 | DT32: =AVEDEV(DR31:DR35) -> 0.64 | DU32: =DV32-DT32 -> 0.16 | DV32: =AVERAGE(DR31:DR35) -> 0.8 | DW32: =DV32+DT32 -> 1.44 | DX32: =DR31 -> 2 | DZ32: 2 | EA32: =DX40 -> 2 | EC32: 1 | ED32: Н | EF32: =ROUND(EF31,0) -> 2 | EH32: =ROUND(EH31,0) -> 1
B33: =IF(ГостиГости!B5="","",ГостиГости!B5) -> 2021.02.07 02:30 | C33: =IF(ГостиГости!A5="","",ГостиГости!A5) -> CHILE: Primera Division | D33: =IF(ГостиГости!C5="","",ГостиГости!C5) -> Deportes Iquique | E33: =IF(ГостиГости!D5="","",ГостиГости!D5) -> Colo Colo | F33: =IF(ГостиГости!N5="","",CONCATENATE(ГостиГости!L5," : ",ГостиГости!M5)) -> 0 : 0 | G33: 0 | H33: 0 | CC33: 0.96 | CD33: -0.16 | CE33: 0.8 | CF33: 1.76 | CH33: 0 | CI33: 4 | CJ33: =CH37 -> 0 | CR33: 0.75 | CS33: 1.45 | CT33: 2.2 | CU33: 2.95 | CV33: 3 | DB33: 0 | DI33: 5матчей | DJ33: 0 | DK33: 0 | DL33: 5матчей | DM33: 0 | DP33: 1 | DR33: 0 | DT33: 0.48 | DU33: 0.12 | DV33: 0.6 | DW33: 1.08 | DX33: 1 | DZ33: 3 | EA33: =DX39 -> 2 | EC33: 1 | ED33: Н
B34: =IF(ГостиГости!B6="","",ГостиГости!B6) -> 2021.01.13 22:00 | C34: =IF(ГостиГости!A6="","",ГостиГости!A6) -> CHILE: Primera Division | D34: =IF(ГостиГости!C6="","",ГостиГости!C6) -> U. De Concepcion | E34: =IF(ГостиГости!D6="","",ГостиГости!D6) -> Colo Colo | F34: =IF(ГостиГости!N6="","",CONCATENATE(ГостиГости!L6," : ",ГостиГости!M6)) -> 1 : 1 | G34: 1 | H34: 1 | CC34: 0.8 | CD34: 0.2 | CE34: 1 | CF34: 1.8 | CH34: 1 | CI34: 5 | CJ34: =CH36 -> 0 | CR34: 0.8 | CS34: 1.2 | CT34: 2 | CU34: 2.8 | CV34: 1.5 | DB34: 1 | DI34: СРЗаб | DJ34: 1 | DK34: 1 | DL34: СрПроп | DM34: 2 | DP34: 0 | DR34: 1 | DT34: 0.48 | DU34: -0.08 | DV34: 0.4 | DW34: 0.88 | DX34: 0 | DZ34: 4 | EA34: =DX38 -> 0 | EC34: 1 | ED34: Н
B35: =IF(ГостиГости!B7="","",ГостиГости!B7) -> 2021.01.06 15:30 | C35: =IF(ГостиГости!A7="","",ГостиГости!A7) -> CHILE: Primera Division | D35: =IF(ГостиГости!C7="","",ГостиГости!C7) -> S. Wanderers | E35: =IF(ГостиГости!D7="","",ГостиГости!D7) -> Colo Colo | F35: =IF(ГостиГости!N7="","",CONCATENATE(ГостиГости!L7," : ",ГостиГости!M7)) -> 0 : 3 | G35: 0 | H35: 3 | CC35: 1.04 | CD35: 0.16 | CE35: 1.2 | CF35: 2.24 | CH35: 3 | CI35: 6 | CJ35: =CH35 -> 3 | CR35: 0.75 | CS35: 1.45 | CT35: 2.2 | CU35: 2.95 | CV35: 1.5 | DB35: 3 | DC35: 1 | DI35: =SUM(DJ30:DJ34)/5 -> 1.4 | DJ35: 3 | DK35: 0 | DL35: =SUM(DK30:DK34)/5 -> 1.2 | DM35: 3 | DP35: 1 | DR35: 0 | DT35: 0.64 | DU35: 0.16 | DV35: 0.8 | DW35: 1.44 | DX35: 1 | DZ35: 5 | EA35: =DX37 -> 1 | EC35: 2 | ED35: В
B36: =IF(ГостиГости!B8="","",ГостиГости!B8) -> 2021.01.03 15:30 | C36: =IF(ГостиГости!A8="","",ГостиГости!A8) -> CHILE: Primera Division | D36: =IF(ГостиГости!C8="","",ГостиГости!C8) -> Antofagasta | E36: =IF(ГостиГости!D8="","",ГостиГости!D8) -> Colo Colo | F36: =IF(ГостиГости!N8="","",CONCATENATE(ГостиГости!L8," : ",ГостиГости!M8)) -> 1 : 0 | G36: 1 | H36: 0 | CC36: 1.04 | CD36: 0.16 | CE36: 1.2 | CF36: 2.24 | CH36: 0 | CI36: 7 | CJ36: =CH34 -> 1 | CR36: 0.86 | CS36: 1.54 | CT36: 2.4 | CU36: 3.26 | CV36: 3 | DB36: 0 | DJ36: 0 | DK36: 1 | DM36: 1 | DP36: 3 | DR36: 1 | DT36: 0.8 | DU36: 0.2 | DV36: 1 | DW36: 1.8 | DX36: 0 | DZ36: 6 | EA36: =DX36 -> 0 | EC36: 0 | ED36: П
B37: =IF(ГостиГости!B9="","",ГостиГости!B9) -> 2020.12.19 23:00 | C37: =IF(ГостиГости!A9="","",ГостиГости!A9) -> CHILE: Primera Division | D37: =IF(ГостиГости!C9="","",ГостиГости!C9) -> U. Catolica | E37: =IF(ГостиГости!D9="","",ГостиГости!D9) -> Colo Colo | F37: =IF(ГостиГости!N9="","",CONCATENATE(ГостиГости!L9," : ",ГостиГости!M9)) -> 0 : 0 | G37: 0 | H37: 0 | CC37: 0.88 | CD37: 0.52 | CE37: 1.4 | CF37: 2.28 | CH37: 0 | CI37: 8 | CJ37: =CH33 -> 0 | CR37: 0.68 | CS37: 1.72 | CT37: 2.4 | CU37: 3.08 | CV37: 2 | DB37: 0 | DJ37: 0 | DK37: 0 | DM37: 0 | DP37: 0 | DR37: 0 | DT37: 0.64 | DU37: 0.56 | DV37: 1.2 | DW37: 1.84 | DX37: 1 | DZ37: 7 | EA37: =DX35 -> 1 | EC37: 1 | ED37: Н
B38: =IF(ГостиГости!B10="","",ГостиГости!B10) -> 2020.12.12 23:00 | C38: =IF(ГостиГости!A10="","",ГостиГости!A10) -> CHILE: Primera Division | D38: =IF(ГостиГости!C10="","",ГостиГости!C10) -> U. Espanola | E38: =IF(ГостиГости!D10="","",ГостиГости!D10) -> Colo Colo | F38: =IF(ГостиГости!N10="","",CONCATENATE(ГостиГости!L10," : ",ГостиГости!M10)) -> 2 : 1 | G38: 2 | H38: 1 | CC38: 0.64 | CD38: 1.16 | CE38: 1.8 | CF38: 2.44 | CH38: 1 | CI38: 9 | CJ38: =CH32 -> 1 | CR38: 0.69 | CS38: 1.91 | CT38: 2.6 | CU38: 3.29 | CV38: 2 | DB38: 1 | DJ38: 1 | DK38: 2 | DM38: 3 | DP38: 0 | DR38: 2 | DT38: 0.64 | DU38: 0.56 | DV38: 1.2 | DW38: 1.84 | DX38: 0 | DZ38: 8 | EA38: =DX34 -> 0 | EC38: 0 | ED38: П
B39: =IF(ГостиГости!B11="","",ГостиГости!B11) -> 2020.12.05 22:00 | C39: =IF(ГостиГости!A11="","",ГостиГости!A11) -> CHILE: Primera Division | D39: =IF(ГостиГости!C11="","",ГостиГости!C11) -> Huachipato | E39: =IF(ГостиГости!D11="","",ГостиГости!D11) -> Colo Colo | F39: =IF(ГостиГости!N11="","",CONCATENATE(ГостиГости!L11," : ",ГостиГости!M11)) -> 2 : 2 | G39: 2 | H39: 2 | CC39: 0.64 | CD39: 1.56 | CE39: 2.2 | CF39: 2.84 | CH39: 2 | CI39: 10 | CJ39: =CH31 -> 4 | CR39: 0.6 | CS39: 2.4 | CT39: 3 | CU39: 3.6 | CV39: 2.5 | DB39: 2 | DC39: 1 | DJ39: 2 | DK39: 2 | DM39: 4 | DP39: 1 | DR39: 2 | DT39: 0.48 | DU39: 1.12 | DV39: 1.6 | DW39: 2.08 | DX39: 2 | DZ39: 9 | EA39: =DX33 -> 1 | EC39: 1 | ED39: Н
B40: =IF(ГостиГости!B12="","",ГостиГости!B12) -> 2020.11.14 16:00 | C40: =IF(ГостиГости!A12="","",ГостиГости!A12) -> CHILE: Primera Division | D40: =IF(ГостиГости!C12="","",ГостиГости!C12) -> Palestino | E40: =IF(ГостиГости!D12="","",ГостиГости!D12) -> Colo Colo | F40: =IF(ГостиГости!N12="","",CONCATENATE(ГостиГости!L12," : ",ГостиГости!M12)) -> 1 : 3 | G40: 1 | H40: 3 | CC40: 0.64 | CD40: 1.56 | CE40: 2.2 | CF40: 2.84 | CH40: 3 | CI40: 11 | CJ40: =CH30 -> 1 | CR40: 0.8 | CS40: 2 | CT40: 2.8 | CU40: 3.6 | CV40: 2.5 | DB40: 3 | DC40: 1 | DJ40: 3 | DK40: 1 | DM40: 4 | DP40: 2 | DR40: 1 | DT40: 0.64 | DU40: 0.56 | DV40: 1.2 | DW40: 1.84 | DX40: 2 | DZ40: 10 | EA40: =DX32 -> 2 | EC40: 2 | ED40: В
B41: =IF(ГостиГости!B13="","",ГостиГости!B13) -> 2020.10.28 21:00 | C41: =IF(ГостиГости!A13="","",ГостиГости!A13) -> CHILE: Primera Division | D41: =IF(ГостиГости!C13="","",ГостиГости!C13) -> Everton | E41: =IF(ГостиГости!D13="","",ГостиГости!D13) -> Colo Colo | F41: =IF(ГостиГости!N13="","",CONCATENATE(ГостиГости!L13," : ",ГостиГости!M13)) -> 1 : 1 | G41: 1 | H41: 1 | CD41: =AVERAGE(CD30:CD40) -> 0.56 | CE41: =AVERAGE(CE30:CE40) -> 1.454545455 | CF41: =AVERAGE(CF30:CF40) -> 2.349090909 | CG41: =CH41 -> 1.4 | CH41: =TREND(CJ30:CJ40,CI30:CI40,CI41) -> 1.4 | CI41: 12 | CR41: 0.875 | CS41: 1.625 | CT41: 2.5 | CU41: 3.375 | CV41: 3 | DB41: 1 | DJ41: 1 | DK41: 1 | DM41: 2 | DP41: 3 | DR41: 1 | DT41: 0.64 | DU41: =DV41-DT41 -> 0.16 | DV41: 0.8 | DW41: =DV41+DT41 -> 1.44 | DX41: 1 | DY41: =DY42 -> 1.2 | DZ41: 11 | EA41: =DX31 -> 2 | EC41: 1 | ED41: Н
B42: =IF(ГостиГости!B14="","",ГостиГости!B14) -> 2020.10.09 23:00 | C42: =IF(ГостиГости!A14="","",ГостиГости!A14) -> CHILE: Primera Division | D42: =IF(ГостиГости!C14="","",ГостиГости!C14) -> Coquimbo | E42: =IF(ГостиГости!D14="","",ГостиГости!D14) -> Colo Colo | F42: =IF(ГостиГости!N14="","",CONCATENATE(ГостиГости!L14," : ",ГостиГости!M14)) -> 2 : 2 | G42: 2 | H42: 2 | AZ42: =AZ60-AZ61*BA60/BA61 -> 1 | BA42: =AZ61-AZ60*BA61/BA60 -> -1 | BO42: =BO60-BO61*BP60/BP61 -> 1 | BP42: =BO61-BO60*BP61/BP60 -> -1 | CH42: =CH13+CH41 -> 2.872727273 | CS42: =AVERAGE(CS31:CS41) -> 1.685909091 | CT42: =AVERAGE(CT31:CT41) -> 2.454545455 | CU42: =AVERAGE(CU31:CU41) -> 3.223181818 | DB42: 2 | DC42: 1 | DJ42: 2 | DK42: 2 | DM42: 4 | DP42: 1 | DR42: 2 | DU42: =AVERAGE(DU31:DU41) -> 0.3709090909 | DV42: =AVERAGE(DV31:DV41) -> 0.9818181818 | DW42: =AVERAGE(DW31:DW41) -> 1.592727273 | DY42: =TREND(EA31:EA41,DZ31:DZ41,DZ42) -> 1.2 | DZ42: 12 | EC42: 1 | ED42: Н
B43: =IF(ГостиГости!B15="","",ГостиГости!B15) -> 2020.09.30 00:15 | C43: =IF(ГостиГости!A15="","",ГостиГости!A15) -> SOUTH AMERICA: Copa Libertadores | D43: =IF(ГостиГости!C15="","",ГостиГости!C15) -> Penarol | E43: =IF(ГостиГости!D15="","",ГостиГости!D15) -> Colo Colo | F43: =IF(ГостиГости!N15="","",CONCATENATE(ГостиГости!L15," : ",ГостиГости!M15)) -> 0 : 3 | G43: 0 | H43: 3 | DB43: 3 | DC43: 1 | DJ43: 3 | DK43: 0 | DM43: 3 | DP43: 2 | DR43: 0 | EC43: 2 | ED43: В
B44: =IF(ГостиГости!B16="","",ГостиГости!B16) -> 2020.09.24 00:15 | C44: =IF(ГостиГости!A16="","",ГостиГости!A16) -> SOUTH AMERICA: Copa Libertadores | D44: =IF(ГостиГости!C16="","",ГостиГости!C16) -> Athletico-PR | E44: =IF(ГостиГости!D16="","",ГостиГости!D16) -> Colo Colo | F44: =IF(ГостиГости!N16="","",CONCATENATE(ГостиГости!L16," : ",ГостиГости!M16)) -> 0 : 2 | G44: 0 | H44: 2 | AZ44: =IF(AND(AZ42>0,AZ42>BA42),"К1",IF(AND(BA42>0,BA42>AZ42),"К2","-")) -> К1 | BO44: =IF(AND(BO42>0,BO42>BP42),"К1",IF(AND(BP42>0,BP42>BO42),"К2","-")) -> К1 | DB44: 2 | DC44: 1 | DI44: =SUM(DJ30:DJ44)/15 -> 1.6 | DJ44: 2 | DK44: 0 | DL44: =SUM(DK30:DK44)/15 -> 1 | DM44: 2 | DN44: =SUM(DM30:DM44)/15 -> 2.6 | DP44: 3 | DR44: 0 | EC44: 2 | ED44: В
DK45: 0 | DP45: 2
DK46: 0 | DP46: 0
DK47: 0 | DP47: 0
DK48: 0 | DP48: 0
DK49: 0 | DP49: 0
DK50: 0 | DP50: 0
DK51: 0 | DP51: 0
D52: =IF(COUNTIF(D53:D67,D53)>COUNTIF(E53:E67,E53),D53,E53) -> Everton | CD52: - | CE52: ср | CF52: + | CG52: =ROUND(CH52,0) -> 1 | CH52: =SUM(CG53:CG63)/11 -> 1.272727273 | CS52: - | CT52: ср | CU52: + | CV52: =ROUND(CW53,0) -> 2 | DJ52: =ROUND(DI44,0) -> 2 | DK52: =ROUND(DL44,0) -> 1 | DM52: =ROUND(DN44,0) -> 3 | DP52: =DJ44 -> 2 | DR52: =DS53 -> 1 | DU52: - | DV52: ср | DW52: + | DY52: =ROUND(DY53,0) -> 1 | EC52: Очки
B53: =IF(Дома!B2="","",Дома!B2) -> 2021.04.12 21:00 | C53: =IF(Дома!A2="","",Дома!A2) -> CHILE: Primera Division | D53: =IF(Дома!C2="","",Дома!C2) -> Palestino | E53: =IF(Дома!D2="","",Дома!D2) -> Everton | F53: =IF(Дома!N2="","",CONCATENATE(Дома!L2," : ",Дома!M2)) -> 1 : 1 | G53: =VALUE(LEFT(F53,FIND(":",F53,1)-1)) -> 1 | H53: =VALUE(LEFT(RIGHT(F53,LEN(F53)-FIND(":",F53,1)),4)) -> 1 | BZ53: =IF(D53=$D$52,"Дома","В гостях") -> В гостях | CA53: =IFERROR(IF(BZ53="Дома",G53,H53),"") -> 1 | CB53: =IFERROR(IF(BZ53="Дома",H53,G53),"") -> 1 | CC53: =AVEDEV(CA53:CA57) -> 0.64 | CD53: =CE53-CC53 -> 0.76 | CE53: =AVERAGE(CA53:CA57) -> 1.4 | CF53: =CE53+CC53 -> 2.04 | CG53: =DB53 -> 1 | CH53: 1 | CI53: =CG63 -> 1 | CR53: =AVEDEV(CA53:CB57,CA69:CB73) -> 0.78 | CS53: =CT53-CR53 -> 1.62 | CT53: =AVERAGE(CA53:CB57)+AVERAGE(CA69:CB73) -> 2.4 | CU53: =CT53+CR53 -> 3.18 | CV53: =AVERAGE(CA53:CB53)+AVERAGE(CA69:CB69) -> 2.5 | CW53: =SUM(CV53:CV63)/11 -> 2.045454545 | DB53: =CA53 -> 1 | DC53: =IF($Z$3<DB53,1,"") ->  | DE53: =CA53+CB53 -> 2 | DF53: =IF($Z$6<DE53,1,"") ->  | DG53: =CA69+CB69 -> 3 | DH53: =IF($Z$6<DG53,1,"") ->  | DI53: 15матчей | DJ53: =CA53 -> 1 | DK53: 1 | DL53: 15матчей | DM53: =DJ53+DJ69 -> 2 | DO53: =DM68 -> 2 | DP53: =DJ68 -> 1 | DR53: =DK53 -> 1 | DS53: =ROUND(DS54,0) -> 1 | DT53: =AVEDEV(DR53:DR57) -> 0.64 | DU53: =DV53-DT53 -> 0.16 | DV53: =AVERAGE(DR53:DR57) -> 0.8 | DW53: =DV53+DT53 -> 1.44 | DX53: =DR53 -> 1 | DY53: =SUM(DX53:DX63)/11 -> 0.9090909091 | DZ53: 1 | EA53: =DX63 -> 0 | EC53: =IF(OR(DJ53="",DK53=""),"",IF(DJ53>DK53,2,IF(DJ53<DK53,0,1))) -> 1 | ED53: =IF(EC53="","",IF(EC53=1,"Н",IF(EC53=0,"П",IF(EC53=2,"В")))) -> Н | EF53: =TREND(DJ53:DJ67,EE2:EE16,EE17) -> 1.533333333 | EH53: =TREND(DK53:DK67,EE2:EE16,EE17) -> 0.580952381
B54: =IF(Дома!B3="","",Дома!B3) -> 2021.04.02 21:00 | C54: =IF(Дома!A3="","",Дома!A3) -> CHILE: Primera Division | D54: =IF(Дома!C3="","",Дома!C3) -> Antofagasta | E54: =IF(Дома!D3="","",Дома!D3) -> Everton | F54: =IF(Дома!N3="","",CONCATENATE(Дома!L3," : ",Дома!M3)) -> 2 : 1 | G54: =VALUE(LEFT(F54,FIND(":",F54,1)-1)) -> 2 | H54: =VALUE(LEFT(RIGHT(F54,LEN(F54)-FIND(":",F54,1)),4)) -> 1 | BZ54: В гостях | CA54: 1 | CB54: 2 | CC54: 0.64 | CD54: 0.76 | CE54: 1.4 | CF54: 2.04 | CG54: 1 | CH54: 2 | CI54: =CG62 -> 1 | CR54: 0.85 | CS54: =CT54-CR54 -> 1.65 | CT54: 2.5 | CU54: =CT54+CR54 -> 3.35 | CV54: 3 | DB54: 1 | DE54: 3 | DG54: 3 | DI54: СРЗаб | DJ54: 1 | DK54: 2 | DL54: СрПроп | DM54: =DJ54+DJ70 -> 2 | DO54: =DM53 -> 2 | DP54: =DJ53 -> 1 | DR54: =DK54 -> 2 | DS54: =SUM(DR53:DR67)/15 -> 0.8666666667 | DT54: =AVEDEV(DR54:DR58) -> 1.04 | DU54: =DV54-DT54 -> 0.16 | DV54: =AVERAGE(DR54:DR58) -> 1.2 | DW54: =DV54+DT54 -> 2.24 | DX54: =DR54 -> 2 | DZ54: 2 | EA54: =DX62 -> 1 | EC54: =IF(OR(DJ54="",DK54=""),"",IF(DJ54>DK54,2,IF(DJ54<DK54,0,1))) -> 0 | ED54: =IF(EC54="","",IF(EC54=1,"Н",IF(EC54=0,"П",IF(EC54=2,"В")))) -> П | EF54: =ROUND(EF53,0) -> 2 | EH54: =ROUND(EH53,0) -> 1
B55: =IF(Дома!B4="","",Дома!B4) -> 2021.03.27 21:00 | C55: =IF(Дома!A4="","",Дома!A4) -> CHILE: Primera Division | D55: =IF(Дома!C4="","",Дома!C4) -> Everton | E55: =IF(Дома!D4="","",Дома!D4) -> O'Higgins | F55: =IF(Дома!N4="","",CONCATENATE(Дома!L4," : ",Дома!M4)) -> 1 : 1 | G55: 1 | H55: 1 | BZ55: Дома | CA55: 1 | CB55: 1 | CC55: 0.64 | CD55: 0.76 | CE55: 1.4 | CF55: 2.04 | CG55: 1 | CH55: 3 | CI55: =CG61 -> 1 | CR55: 0.78 | CS55: 1.32 | CT55: 2.1 | CU55: 2.88 | CV55: 1 | DB55: 1 | DE55: 2 | DG55: 0 | DI55: =SUM(DJ53:DJ67)/15 -> 1.333333333 | DJ55: 1 | DK55: 1 | DL55: =SUM(DK53:DK67)/15 -> 0.8666666667 | DM55: 1 | DO55: =DM54 -> 2 | DP55: =DJ54 -> 1 | DR55: 1 | DT55: 0.8 | DU55: 0.2 | DV55: 1 | DW55: 1.8 | DX55: 1 | DZ55: 3 | EA55: =DX61 -> 0 | EC55: 1 | ED55: Н
B56: =IF(Дома!B5="","",Дома!B5) -> 2021.02.14 15:30 | C56: =IF(Дома!A5="","",Дома!A5) -> CHILE: Primera Division | D56: =IF(Дома!C5="","",Дома!C5) -> Everton | E56: =IF(Дома!D5="","",Дома!D5) -> Huachipato | F56: =IF(Дома!N5="","",CONCATENATE(Дома!L5," : ",Дома!M5)) -> 1 : 0 | G56: 1 | H56: 0 | BZ56: Дома | CA56: 1 | CB56: 0 | CC56: 0.72 | CD56: 0.88 | CE56: 1.6 | CF56: 2.32 | CG56: 1 | CH56: 4 | CI56: =CG60 -> 2 | CR56: 0.85 | CS56: 1.35 | CT56: 2.2 | CU56: 3.05 | CV56: 3.5 | DB56: 1 | DE56: 1 | DG56: 6 | DH56: 1 | DI56: 5матчей | DJ56: 1 | DK56: 0 | DL56: 5матчей | DM56: 5 | DO56: 1 | DP56: 1 | DR56: 0 | DT56: 0.8 | DU56: 0.2 | DV56: 1 | DW56: 1.8 | DX56: 0 | DZ56: 4 | EA56: =DX60 -> 1 | EC56: 2 | ED56: В
B57: =IF(Дома!B6="","",Дома!B6) -> 2021.02.11 23:30 | C57: =IF(Дома!A6="","",Дома!A6) -> CHILE: Primera Division | D57: =IF(Дома!C6="","",Дома!C6) -> Coquimbo | E57: =IF(Дома!D6="","",Дома!D6) -> Everton | F57: =IF(Дома!N6="","",CONCATENATE(Дома!L6," : ",Дома!M6)) -> 0 : 3 | G57: 0 | H57: 3 | AZ57: =VLOOKUP(AX60,Таблица!B2:I80,6,FALSE) -> 4 | BA57: =VLOOKUP(AX60,Таблица!B2:I80,7,FALSE) -> 3 | BO57: =VLOOKUP(BL60,Форма!B2:I41,6,FALSE) -> 4 | BP57: =VLOOKUP(BL60,Форма!B2:I41,7,FALSE) -> 3 | BZ57: В гостях | CA57: 3 | CB57: 0 | CC57: 0.72 | CD57: 0.88 | CE57: 1.6 | CF57: 2.32 | CG57: 3 | CH57: 5 | CI57: =CG59 -> 1 | CR57: 0.665 | CS57: 1.235 | CT57: 1.9 | CU57: 2.565 | CV57: 2 | DB57: 3 | DC57: 1 | DE57: 3 | DG57: 1 | DI57: СРЗаб | DJ57: 3 | DK57: 0 | DL57: СрПроп | DM57: 4 | DO57: 5 | DP57: 1 | DR57: 0 | DT57: 0.8 | DU57: 0.2 | DV57: 1 | DW57: 1.8 | DX57: 0 | DZ57: 5 | EA57: =DX59 -> 1 | EC57: 2 | ED57: В
B58: =IF(Дома!B7="","",Дома!B7) -> 2021.02.06 22:00 | C58: =IF(Дома!A7="","",Дома!A7) -> CHILE: Primera Division | D58: =IF(Дома!C7="","",Дома!C7) -> Everton | E58: =IF(Дома!D7="","",Дома!D7) -> Palestino | F58: =IF(Дома!N7="","",CONCATENATE(Дома!L7," : ",Дома!M7)) -> 1 : 3 | G58: 1 | H58: 3 | AZ58: =VLOOKUP(AX61,Таблица!B2:I80,6,FALSE) -> 3 | BA58: =VLOOKUP(AX61,Таблица!B2:I80,7,FALSE) -> 3 | BO58: =VLOOKUP(BL61,Форма!B2:I41,6,FALSE) -> 3 | BP58: =VLOOKUP(BL61,Форма!B2:I41,7,FALSE) -> 3 | BZ58: Дома | CA58: 1 | CB58: 3 | CC58: 0.32 | CD58: 0.88 | CE58: 1.2 | CF58: 1.52 | CG58: 1 | CH58: 6 | CI58: =CG58 -> 1 | CR58: 0.5 | CS58: 1.5 | CT58: 2 | CU58: 2.5 | CV58: 3 | DB58: 1 | DE58: 4 | DF58: 1 | DG58: 2 | DI58: =SUM(DJ53:DJ57)/5 -> 1.4 | DJ58: 1 | DK58: 3 | DL58: =SUM(DK53:DK57)/5 -> 0.8 | DM58: 2 | DO58: 4 | DP58: 3 | DR58: 3 | DT58: 0.72 | DU58: 0.48 | DV58: 1.2 | DW58: 1.92 | DX58: 3 | DZ58: 6 | EA58: =DX58 -> 3 | EC58: 0 | ED58: П
B59: =IF(Дома!B8="","",Дома!B8) -> 2021.01.20 00:15 | C59: =IF(Дома!A8="","",Дома!A8) -> CHILE: Primera Division | D59: =IF(Дома!C8="","",Дома!C8) -> U. Catolica | E59: =IF(Дома!D8="","",Дома!D8) -> Everton | F59: =IF(Дома!N8="","",CONCATENATE(Дома!L8," : ",Дома!M8)) -> 1 : 1 | G59: 1 | H59: 1 | AX59: команда | AZ59: з | BA59: пр | BB59: %% | BD59: Игр | BE59: поб | BF59: пр | BL59: команда | BO59: з | BP59: пр | BQ59: %% | BT59: поб | BU59: пр | BZ59: В гостях | CA59: 1 | CB59: 1 | CC59: 0.32 | CD59: 0.88 | CE59: 1.2 | CF59: 1.52 | CG59: 1 | CH59: 7 | CI59: =CG57 -> 3 | CR59: 0.6 | CS59: 0.9 | CT59: 1.5 | CU59: 2.1 | CV59: 1 | DB59: 1 | DE59: 2 | DG59: 0 | DJ59: 1 | DK59: 1 | DM59: 1 | DO59: 2 | DP59: 1 | DR59: 1 | DT59: 0.48 | DU59: 0.12 | DV59: 0.6 | DW59: 1.08 | DX59: 1 | DZ59: 7 | EA59: =DX57 -> 0 | EC59: 1 | ED59: Н
B60: =IF(Дома!B9="","",Дома!B9) -> 2021.01.14 22:00 | C60: =IF(Дома!A9="","",Дома!A9) -> CHILE: Primera Division | D60: =IF(Дома!C9="","",Дома!C9) -> Everton | E60: =IF(Дома!D9="","",Дома!D9) -> A. Italiano | F60: =IF(Дома!N9="","",CONCATENATE(Дома!L9," : ",Дома!M9)) -> 2 : 1 | G60: 2 | H60: 1 | AX60: =SVOD!A1 -> Everton | AZ60: =AZ57 -> 4 | BA60: =BA57 -> 3 | BB60: =VLOOKUP(AX60,Таблица!B2:I80,8,FALSE) -> 5 | BC60: =IF(BB60=0,0.001,BB60) -> 5 | BD60: =VLOOKUP(AX60,Таблица!B2:I80,2,FALSE) -> 3 | BE60: =VLOOKUP(AX60,Таблица!B2:I80,3,FALSE) -> 1 | BF60: =VLOOKUP(AX60,Таблица!B2:I80,4,FALSE) -> 2 | BG60: =BE60*1 -> 1 | BH60: =BF60*1.5 -> 3 | BL60: =AX60 -> Everton | BO60: =BO57 -> 4 | BP60: =BP57 -> 3 | BQ60: =VLOOKUP(AX60,Форма!B2:I31,8,FALSE) -> 5 | BR60: =IF(BQ60=0,0.001,BQ60) -> 5 | BS60: =VLOOKUP(AX60,Форма!B2:I31,2,FALSE) -> 3 | BT60: =VLOOKUP(AX60,Форма!B2:I31,3,FALSE) -> 1 | BU60: =VLOOKUP(AX60,Форма!B2:I31,4,FALSE) -> 2 | BV60: =BT60*1 -> 1 | BW60: =BU60*1.5 -> 3 | BZ60: Дома | CA60: 2 | CB60: 1 | CC60: 0.4 | CD60: 0.6 | CE60: 1 | CF60: 1.4 | CG60: 2 | CH60: 8 | CI60: =CG56 -> 1 | CR60: 0.6 | CS60: 0.9 | CT60: 1.5 | CU60: 2.1 | CV60: 1.5 | DB60: 2 | DC60: 1 | DE60: 3 | DG60: 0 | DJ60: 2 | DK60: 1 | DM60: 2 | DO60: 1 | DP60: 1 | DR60: 1 | DT60: 0.48 | DU60: -0.08 | DV60: 0.4 | DW60: 0.88 | DX60: 1 | DZ60: 8 | EA60: =DX56 -> 0 | EC60: 2 | ED60: В
B61: =IF(Дома!B10="","",Дома!B10) -> 2021.01.10 23:30 | C61: =IF(Дома!A10="","",Дома!A10) -> CHILE: Primera Division | D61: =IF(Дома!C10="","",Дома!C10) -> Colo Colo | E61: =IF(Дома!D10="","",Дома!D10) -> Everton | F61: =IF(Дома!N10="","",CONCATENATE(Дома!L10," : ",Дома!M10)) -> 0 : 1 | G61: 0 | H61: 1 | AX61: =SVOD!A7 -> Colo Colo | AZ61: =AZ58 -> 3 | BA61: =BA58 -> 3 | BB61: =VLOOKUP(AX61,Таблица!B2:I80,8,FALSE) -> 4 | BC61: =IF(BB61=0,0.001,BB61) -> 4 | BD61: =VLOOKUP(AX61,Таблица!B2:I80,2,FALSE) -> 3 | BE61: =VLOOKUP(AX61,Таблица!B2:I80,3,FALSE) -> 1 | BF61: =VLOOKUP(AX61,Таблица!B2:I80,4,FALSE) -> 1 | BG61: =BE61*1 -> 1 | BH61: =BF61*1.5 -> 1.5 | BL61: =AX61 -> Colo Colo | BO61: =BO58 -> 3 | BP61: =BP58 -> 3 | BR61: =IF(BQ61=0,0.001,BQ61) ->  | BS61: =VLOOKUP(AX61,Форма!B2:I31,2,FALSE) -> 3 | BT61: =VLOOKUP(AX61,Форма!B2:I31,3,FALSE) -> 1 | BU61: =VLOOKUP(AX61,Форма!B2:I31,4,FALSE) -> 1 | BV61: =BT61*1 -> 1 | BW61: =BU61*1.5 -> 1.5 | BZ61: В гостях | CA61: 1 | CB61: 0 | CC61: 0.72 | CD61: 0.48 | CE61: 1.2 | CF61: 1.92 | CG61: 1 | CH61: 9 | CI61: =CG55 -> 1 | CR61: 0.64 | CS61: 0.96 | CT61: 1.6 | CU61: 2.24 | CV61: 2 | DB61: 1 | DE61: 1 | DG61: 3 | DJ61: 1 | DK61: 0 | DM61: 3 | DO61: 2 | DP61: 2 | DR61: 0 | DT61: 0.32 | DU61: -0.12 | DV61: 0.2 | DW61: 0.52 | DX61: 0 | DZ61: 9 | EA61: =DX55 -> 1 | EC61: 2 | ED61: В
B62: =IF(Дома!B11="","",Дома!B11) -> 2021.01.06 22:00 | C62: =IF(Дома!A11="","",Дома!A11) -> CHILE: Primera Division | D62: =IF(Дома!C11="","",Дома!C11) -> La Serena | E62: =IF(Дома!D11="","",Дома!D11) -> Everton | F62: =IF(Дома!N11="","",CONCATENATE(Дома!L11," : ",Дома!M11)) -> 1 : 1 | G62: 1 | H62: 1 | BN62: 5 | BZ62: В гостях | CA62: 1 | CB62: 1 | CC62: 0.72 | CD62: 0.48 | CE62: 1.2 | CF62: 1.92 | CG62: 1 | CH62: 10 | CI62: =CG54 -> 1 | CR62: 0.72 | CS62: 1.08 | CT62: 1.8 | CU62: 2.52 | CV62: 2.5 | DB62: 1 | DE62: 2 | DG62: 3 | DJ62: 1 | DK62: 1 | DM62: 3 | DO62: 3 | DP62: 1 | DR62: 1 | DT62: 0.72 | DU62: -0.12 | DV62: 0.6 | DW62: 1.32 | DX62: 1 | DZ62: 10 | EA62: =DX54 -> 2 | EC62: 1 | ED62: Н
B63: =IF(Дома!B12="","",Дома!B12) -> 2021.01.02 22:00 | C63: =IF(Дома!A12="","",Дома!A12) -> CHILE: Primera Division | D63: =IF(Дома!C12="","",Дома!C12) -> Everton | E63: =IF(Дома!D12="","",Дома!D12) -> Deportes Iquique | F63: =IF(Дома!N12="","",CONCATENATE(Дома!L12," : ",Дома!M12)) -> 1 : 0 | G63: 1 | H63: 0 | BZ63: Дома | CA63: 1 | CB63: 0 | CC63: 0.88 | CD63: 0.52 | CE63: 1.4 | CF63: 2.28 | CG63: 1 | CH63: 11 | CI63: =CG53 -> 1 | CR63: 0.765 | CS63: 0.935 | CT63: 1.7 | CU63: 2.465 | CV63: 0.5 | DB63: 1 | DE63: 1 | DG63: 0 | DJ63: 1 | DK63: 0 | DM63: 1 | DO63: 3 | DP63: 1 | DR63: 0 | DT63: 0.72 | DU63: =DV63-DT63 -> -0.12 | DV63: 0.6 | DW63: =DV63+DT63 -> 1.32 | DX63: 0 | DY63: =DY64 -> 1.4 | DZ63: 11 | EA63: =DX53 -> 1 | EC63: 2 | ED63: В
B64: =IF(Дома!B13="","",Дома!B13) -> 2020.12.29 00:30 | C64: =IF(Дома!A13="","",Дома!A13) -> CHILE: Primera Division | D64: =IF(Дома!C13="","",Дома!C13) -> U. De Concepcion | E64: =IF(Дома!D13="","",Дома!D13) -> Everton | F64: =IF(Дома!N13="","",CONCATENATE(Дома!L13," : ",Дома!M13)) -> 0 : 0 | G64: 0 | H64: 0 | AZ64: =AZ60/BD60 -> 1.333333333 | BA64: =BA60/BD60 -> 1 | BC64: =AZ60/(AZ60+BA60) -> 0.5714285714 | BD64: =AZ61/(AZ61+BA61) -> 0.5 | BO64: =BO60/BS60 -> 1.333333333 | BP64: =BP60/BS60 -> 1 | BR64: =BO60/(BO60+BP60) -> 0.5714285714 | BS64: =BO61/(BO61+BP61) -> 0.5 | BZ64: В гостях | CA64: 0 | CB64: 0 | CD64: =AVERAGE(CD53:CD63) -> 0.7163636364 | CE64: =AVERAGE(CE53:CE63) -> 1.327272727 | CF64: =AVERAGE(CF53:CF63) -> 1.938181818 | CG64: =TREND(CI53:CI63,CH53:CH63,CH64) -> 1.272727273 | CH64: 12 | CS64: =AVERAGE(CS53:CS63) -> 1.222727273 | CT64: =AVERAGE(CT53:CT63) -> 1.927272727 | CU64: =AVERAGE(CU53:CU63) -> 2.631818182 | DB64: 0 | DE64: 0 | DG64: 2 | DJ64: 0 | DK64: 0 | DM64: 1 | DO64: 1 | DP64: 1 | DR64: 0 | DU64: =AVERAGE(DU53:DU63) -> 0.09818181818 | DV64: =AVERAGE(DV53:DV63) -> 0.7818181818 | DW64: =AVERAGE(DW53:DW63) -> 1.465454545 | DY64: =TREND(EA53:EA63,DZ53:DZ63,DZ64) -> 1.4 | DZ64: 12 | EC64: 1 | ED64: Н
B65: =IF(Дома!B14="","",Дома!B14) -> 2020.12.22 15:30 | C65: =IF(Дома!A14="","",Дома!A14) -> CHILE: Primera Division | D65: =IF(Дома!C14="","",Дома!C14) -> Everton | E65: =IF(Дома!D14="","",Дома!D14) -> Cobresal | F65: =IF(Дома!N14="","",CONCATENATE(Дома!L14," : ",Дома!M14)) -> 3 : 0 | G65: 3 | H65: 0 | AZ65: =AZ61/BD61 -> 1 | BA65: =BA61/BD61 -> 1 | BC65: =BC64*BC64 -> 0.3265306122 | BD65: =BD64*BD64 -> 0.25 | BO65: =BO61/BS61 -> 1 | BP65: =BP61/BS61 -> 1 | BR65: =BR64*BR64 -> 0.3265306122 | BS65: =BS64*BS64 -> 0.25 | BZ65: Дома | CA65: 3 | CB65: 0 | CG65: =CG64 -> 1.272727273 | DB65: 3 | DC65: 1 | DE65: 3 | DG65: 1 | DJ65: 3 | DK65: 0 | DM65: 4 | DO65: 1 | DP65: 0 | DR65: 0 | EC65: 2 | ED65: В
B66: =IF(Дома!B15="","",Дома!B15) -> 2020.12.17 01:30 | C66: =IF(Дома!A15="","",Дома!A15) -> CHILE: Primera Division | D66: =IF(Дома!C15="","",Дома!C15) -> Everton | E66: =IF(Дома!D15="","",Дома!D15) -> U. Espanola | F66: =IF(Дома!N15="","",CONCATENATE(Дома!L15," : ",Дома!M15)) -> 1 : 2 | G66: 1 | H66: 2 | BC66: =BC65/(BC65+BD65) -> 0.5663716814 | BD66: =BD65/(BD65+BC65) -> 0.4336283186 | BR66: =BR65/(BR65+BS65) -> 0.5663716814 | BS66: =BS65/(BS65+BR65) -> 0.4336283186 | BZ66: Дома | CA66: 1 | CB66: 2 | DB66: 1 | DE66: 3 | DG66: 3 | DJ66: 1 | DK66: 2 | DM66: 4 | DO66: 4 | DP66: 3 | DR66: 2 | EC66: 0 | ED66: П
B67: =IF(Дома!B16="","",Дома!B16) -> 2020.12.14 00:15 | C67: =IF(Дома!A16="","",Дома!A16) -> CHILE: Primera Division | D67: =IF(Дома!C16="","",Дома!C16) -> S. Wanderers | E67: =IF(Дома!D16="","",Дома!D16) -> Everton | F67: =IF(Дома!N16="","",CONCATENATE(Дома!L16," : ",Дома!M16)) -> 1 : 2 | G67: 1 | H67: 2 | AZ67: =AZ64+BA65 -> 2.333333333 | BA67: =AZ65+BA64 -> 2 | BG67: =AVERAGE(AY74,BN74) -> 0.25 | BI67: =(BC66+BR66) -> 1.132743363 | BJ67: =(BD66+BS66) -> 0.8672566372 | BL67: =MIN(AZ69:BA69,BO69:BP69) -> 2 | BM67: =MAX(AZ69:BA69,BO69:BP69) -> 2 | BO67: =BO64+BP65 -> 2.333333333 | BP67: =BO65+BP64 -> 2 | BZ67: В гостях | CA67: 2 | CB67: 1 | DB67: 2 | DC67: 1 | DE67: 3 | DG67: 1 | DI67: =SUM(DJ53:DJ67)/15 -> 1.333333333 | DJ67: 2 | DK67: 1 | DL67: =SUM(DK53:DK67)/15 -> 0.8666666667 | DM67: 2 | DN67: =SUM(DM53:DM67)/15 -> 2.466666667 | DO67: 4 | DP67: 1 | DR67: 1 | EC67: 2 | ED67: В
D68: =IF(COUNTIF(D69:D83,D69)>COUNTIF(E69:E83,E69),D69,E69) -> Colo Colo | AZ68: =AZ67/2 -> 1.166666667 | BA68: =BA67/2 -> 1 | BG68: =AVERAGE(AY75,BN75) -> -33.33333333 | BI68: =BI67*BI67 -> 1.283107526 | BJ68: =BJ67*BJ67 -> 0.7521340747 | BL68: =_xlfn.FLOOR.MATH(BL67,1) -> 2 | BM68: =_xlfn.CEILING.MATH(BM67,1) -> 2 | BO68: =BO67/2 -> 1.166666667 | BP68: =BP67/2 -> 1 | CD68: - | CE68: ср | CF68: + | CG68: =ROUND(CH68,0) -> 1 | CH68: =SUM(CG69:CG79)/11 -> 1.090909091 | DJ68: =ROUND(DI67,0) -> 1 | DK68: =ROUND(DL67,0) -> 1 | DM68: =ROUND(DN67,0) -> 2 | DO68: 2 | DP68: 2 | DR68: =DS69 -> 1 | DU68: - | DV68: ср | DW68: + | DY68: =ROUND(DY69,0) -> 1 | EC68: Очки
B69: =IF(Гости!B2="","",Гости!B2) -> 2021.04.12 02:00 | C69: =IF(Гости!A2="","",Гости!A2) -> CHILE: Primera Division | D69: =IF(Гости!C2="","",Гости!C2) -> Colo Colo | E69: =IF(Гости!D2="","",Гости!D2) -> O'Higgins | F69: =IF(Гости!N2="","",CONCATENATE(Гости!L2," : ",Гости!M2)) -> 1 : 2 | G69: =VALUE(LEFT(F69,FIND(":",F69,1)-1)) -> 1 | H69: =VALUE(LEFT(RIGHT(F69,LEN(F69)-FIND(":",F69,1)),4)) -> 2 | AZ69: =_xlfn.FLOOR.MATH(AZ67) -> 2 | BA69: =_xlfn.FLOOR.MATH(BA67) -> 2 | BI69: =BI68/(BI68+BJ68) -> 0.6304448207 | BJ69: =BJ68/(BJ68+BI68) -> 0.3695551793 | BL69: =BL68-2.5 -> -0.5 | BM69: =BM68+2.5 -> 4.5 | BO69: =_xlfn.FLOOR.MATH(BO67) -> 2 | BP69: =_xlfn.FLOOR.MATH(BP67) -> 2 | BZ69: =IF(D69=$D$68,"Дома","В гостях") -> Дома | CA69: =IFERROR(IF(BZ69="Дома",G69,H69),"") -> 1 | CB69: =IFERROR(IF(BZ69="Дома",H69,G69),"") -> 2 | CC69: =AVEDEV(CA69:CA73) -> 1.04 | CD69: =CE69-CC69 -> 0.36 | CE69: =AVERAGE(CA69:CA73) -> 1.4 | CF69: =CE69+CC69 -> 2.44 | CG69: =DB69 -> 1 | CH69: 1 | CI69: =CG79 -> 0 | DB69: =CA69 -> 1 | DC69: =IF($Z$4<DB69,1,"") ->  | DI69: 15матчей | DJ69: =CA69 -> 1 | DK69: 2 | DL69: 15матчей | DM69: =DJ69+DK69 -> 3 | DO69: =DJ84 -> 1 | DR69: =DK69 -> 2 | DS69: =ROUND(DS70,0) -> 1 | DT69: =AVEDEV(DR69:DR73) -> 0.96 | DU69: =DV69-DT69 -> 0.24 | DV69: =AVERAGE(DR69:DR73) -> 1.2 | DW69: =DV69+DT69 -> 2.16 | DX69: =DR69 -> 2 | DY69: =SUM(DX69:DX79)/11 -> 0.8181818182 | DZ69: 1 | EA69: =DX79 -> 0 | EC69: =IF(OR(DJ69="",DK69=""),"",IF(DJ69>DK69,2,IF(DJ69<DK69,0,1))) -> 0 | ED69: =IF(EC69="","",IF(EC69=1,"Н",IF(EC69=0,"П",IF(EC69=2,"В")))) -> П | EF69: =TREND(DJ69:DJ83,EE2:EE16,EE17) -> 1.104761905 | EH69: =TREND(DK69:DK83,EE2:EE16,EE17) -> 0.1047619048
B70: =IF(Гости!B3="","",Гости!B3) -> 2021.04.04 01:30 | C70: =IF(Гости!A3="","",Гости!A3) -> CHILE: Primera Division | D70: =IF(Гости!C3="","",Гости!C3) -> Cobresal | E70: =IF(Гости!D3="","",Гости!D3) -> Colo Colo | F70: =IF(Гости!N3="","",CONCATENATE(Гости!L3," : ",Гости!M3)) -> 2 : 1 | G70: =VALUE(LEFT(F70,FIND(":",F70,1)-1)) -> 2 | H70: =VALUE(LEFT(RIGHT(F70,LEN(F70)-FIND(":",F70,1)),4)) -> 1 | BZ70: В гостях | CA70: 1 | CB70: 2 | CC70: =AVEDEV(CA70:CA74) -> 1.04 | CD70: =CE70-CC70 -> 0.36 | CE70: =AVERAGE(CA70:CA74) -> 1.4 | CF70: =CE70+CC70 -> 2.44 | CG70: 1 | CH70: 2 | CI70: =CG78 -> 2 | DB70: 1 | DI70: СРЗаб | DJ70: 1 | DK70: 2 | DL70: СрПроп | DM70: =DJ70+DK70 -> 3 | DO70: =DJ69 -> 1 | DR70: =DK70 -> 2 | DS70: =SUM(DR69:DR83)/15 -> 0.7333333333 | DT70: =AVEDEV(DR70:DR74) -> 0.8 | DU70: =DV70-DT70 -> 0.2 | DV70: =AVERAGE(DR70:DR74) -> 1 | DW70: =DV70+DT70 -> 1.8 | DX70: =DR70 -> 2 | DZ70: 2 | EA70: =DX78 -> 1 | EC70: =IF(OR(DJ70="",DK70=""),"",IF(DJ70>DK70,2,IF(DJ70<DK70,0,1))) -> 0 | ED70: =IF(EC70="","",IF(EC70=1,"Н",IF(EC70=0,"П",IF(EC70=2,"В")))) -> П | EF70: =ROUND(EF69,0) -> 1 | EH70: =ROUND(EH69,0) -> 0
B71: =IF(Гости!B4="","",Гости!B4) -> 2021.03.27 23:30 | C71: =IF(Гости!A4="","",Гости!A4) -> CHILE: Primera Division | D71: =IF(Гости!C4="","",Гости!C4) -> Colo Colo | E71: =IF(Гости!D4="","",Гости!D4) -> Union La Calera | F71: =IF(Гости!N4="","",CONCATENATE(Гости!L4," : ",Гости!M4)) -> 0 : 0 | G71: 0 | H71: 0 | BL71: =AVERAGE(BL69:BM69) -> 2 | BZ71: Дома | CA71: 0 | CB71: 0 | CC71: 1.12 | CD71: 0.08 | CE71: 1.2 | CF71: 2.32 | CG71: 0 | CH71: 3 | CI71: =CG77 -> 2 | DB71: 0 | DI71: =SUM(DJ69:DJ83)/15 -> 1.133333333 | DJ71: 0 | DK71: 0 | DL71: =SUM(DK69:DK83)/15 -> 0.7333333333 | DM71: 0 | DO71: =DJ70 -> 1 | DR71: 0 | DT71: 0.72 | DU71: -0.12 | DV71: 0.6 | DW71: 1.32 | DX71: 0 | DZ71: 3 | EA71: =DX77 -> 1 | EC71: 1 | ED71: Н
B72: =IF(Гости!B5="","",Гости!B5) -> 2021.03.21 23:00 | C72: =IF(Гости!A5="","",Гости!A5) -> CHILE: Super Cup | D72: =IF(Гости!C5="","",Гости!C5) -> U. Catolica | E72: =IF(Гости!D5="","",Гости!D5) -> Colo Colo | F72: =IF(Гости!N5="","",CONCATENATE(Гости!L5," : ",Гости!M5)) -> 2 : 4 | G72: 2 | H72: 4 | BZ72: В гостях | CA72: 4 | CB72: 2 | CC72: 1.12 | CD72: 0.08 | CE72: 1.2 | CF72: 2.32 | CG72: 4 | CH72: 4 | CI72: =CG76 -> 0 | DB72: 4 | DC72: 1 | DI72: 5матчей | DJ72: 4 | DK72: 2 | DL72: 5матчей | DM72: 6 | DO72: 0 | DR72: 2 | DT72: 0.72 | DU72: -0.12 | DV72: 0.6 | DW72: 1.32 | DX72: 2 | DZ72: 4 | EA72: =DX76 -> 0 | EC72: 2 | ED72: В
B73: =IF(Гости!B6="","",Гости!B6) -> 2021.02.17 23:00 | C73: =IF(Гости!A6="","",Гости!A6) -> CHILE: Primera Division - Relegation - Play Offs | D73: =IF(Гости!C6="","",Гости!C6) -> Colo Colo | E73: =IF(Гости!D6="","",Гости!D6) -> U. De Concepcion | F73: =IF(Гости!N6="","",CONCATENATE(Гости!L6," : ",Гости!M6)) -> 1 : 0 | G73: 1 | H73: 0 | BZ73: Дома | CA73: 1 | CB73: 0 | CC73: 0.64 | CD73: 0.16 | CE73: 0.8 | CF73: 1.44 | CG73: 1 | CH73: 5 | CI73: =CG75 -> 0 | DB73: 1 | DI73: СРЗаб | DJ73: 1 | DK73: 0 | DL73: СрПроп | DM73: 1 | DO73: 4 | DR73: 0 | DT73: 0.48 | DU73: -0.08 | DV73: 0.4 | DW73: 0.88 | DX73: 0 | DZ73: 5 | EA73: =DX75 -> 0 | EC73: 2 | ED73: В
B74: =IF(Гости!B7="","",Гости!B7) -> 2021.02.14 23:00 | C74: =IF(Гости!A7="","",Гости!A7) -> CHILE: Primera Division | D74: =IF(Гости!C7="","",Гости!C7) -> O'Higgins | E74: =IF(Гости!D7="","",Гости!D7) -> Colo Colo | F74: =IF(Гости!N7="","",CONCATENATE(Гости!L7," : ",Гости!M7)) -> 1 : 1 | G74: 1 | H74: 1 | AY74: =(AZ60-BA60)/AZ60+(BA61-AZ61)/BA61*100 -> 0.25 | BN74: =(BO60-BP60)/BO60+(BP61-BO61)/BP61*100 -> 0.25 | BZ74: В гостях | CA74: 1 | CB74: 1 | CC74: 0.8 | CD74: 0.2 | CE74: 1 | CF74: 1.8 | CG74: 1 | CH74: 6 | CI74: =CG74 -> 1 | DB74: 1 | DI74: =SUM(DJ69:DJ73)/5 -> 1.4 | DJ74: 1 | DK74: 1 | DL74: =SUM(DK69:DK73)/5 -> 1.2 | DM74: 2 | DO74: 1 | DR74: 1 | DT74: 0.48 | DU74: 0.12 | DV74: 0.6 | DW74: 1.08 | DX74: 1 | DZ74: 6 | EA74: =DX74 -> 1 | EC74: 1 | ED74: Н
B75: =IF(Гости!B8="","",Гости!B8) -> 2021.02.11 23:30 | C75: =IF(Гости!A8="","",Гости!A8) -> CHILE: Primera Division | D75: =IF(Гости!C8="","",Гости!C8) -> Colo Colo | E75: =IF(Гости!D8="","",Гости!D8) -> Cobresal | F75: =IF(Гости!N8="","",CONCATENATE(Гости!L8," : ",Гости!M8)) -> 0 : 0 | G75: 0 | H75: 0 | AY75: =(AZ61-BA61)/AZ61+(BA60-AZ60)/BA60*100 -> -33.33333333 | BN75: =(BO61-BP61)/BO61+(BP60-BO60)/BP60*100 -> -33.33333333 | BZ75: Дома | CA75: 0 | CB75: 0 | CC75: 0.96 | CD75: -0.16 | CE75: 0.8 | CF75: 1.76 | CG75: 0 | CH75: 7 | CI75: =CG73 -> 1 | DB75: 0 | DJ75: 0 | DK75: 0 | DM75: 0 | DO75: 1 | DR75: 0 | DT75: 0.48 | DU75: -0.08 | DV75: 0.4 | DW75: 0.88 | DX75: 0 | DZ75: 7 | EA75: =DX73 -> 0 | EC75: 1 | ED75: Н
B76: =IF(Гости!B9="","",Гости!B9) -> 2021.02.07 02:30 | C76: =IF(Гости!A9="","",Гости!A9) -> CHILE: Primera Division | D76: =IF(Гости!C9="","",Гости!C9) -> Deportes Iquique | E76: =IF(Гости!D9="","",Гости!D9) -> Colo Colo | F76: =IF(Гости!N9="","",CONCATENATE(Гости!L9," : ",Гости!M9)) -> 0 : 0 | G76: 0 | H76: 0 | BZ76: В гостях | CA76: 0 | CB76: 0 | CC76: 0.8 | CD76: 0.2 | CE76: 1 | CF76: 1.8 | CG76: 0 | CH76: 8 | CI76: =CG72 -> 4 | DB76: 0 | DJ76: 0 | DK76: 0 | DM76: 0 | DO76: 0 | DR76: 0 | DT76: 0.48 | DU76: 0.12 | DV76: 0.6 | DW76: 1.08 | DX76: 0 | DZ76: 8 | EA76: =DX72 -> 2 | EC76: 1 | ED76: Н
B77: =IF(Гости!B10="","",Гости!B10) -> 2021.01.31 23:30 | C77: =IF(Гости!A10="","",Гости!A10) -> CHILE: Primera Division | D77: =IF(Гости!C10="","",Гости!C10) -> Colo Colo | E77: =IF(Гости!D10="","",Гости!D10) -> Union La Calera | F77: =IF(Гости!N10="","",CONCATENATE(Гости!L10," : ",Гости!M10)) -> 2 : 1 | G77: 2 | H77: 1 | BZ77: Дома | CA77: 2 | CB77: 1 | CC77: 0.64 | CD77: 0.56 | CE77: 1.2 | CF77: 1.84 | CG77: 2 | CH77: 9 | CI77: =CG71 -> 0 | DB77: 2 | DC77: 1 | DJ77: 2 | DK77: 1 | DM77: 3 | DO77: 0 | DR77: 1 | DT77: 0.48 | DU77: 0.12 | DV77: 0.6 | DW77: 1.08 | DX77: 1 | DZ77: 9 | EA77: =DX71 -> 0 | EC77: 2 | ED77: В
B78: =IF(Гости!B11="","",Гости!B11) -> 2021.01.23 23:00 | C78: =IF(Гости!A11="","",Гости!A11) -> CHILE: Primera Division | D78: =IF(Гости!C11="","",Гости!C11) -> Colo Colo | E78: =IF(Гости!D11="","",Гости!D11) -> Coquimbo | F78: =IF(Гости!N11="","",CONCATENATE(Гости!L11," : ",Гости!M11)) -> 2 : 1 | G78: 2 | H78: 1 | BZ78: Дома | CA78: 2 | CB78: 1 | CC78: 0.88 | CD78: 0.52 | CE78: 1.4 | CF78: 2.28 | CG78: 2 | CH78: 10 | CI78: =CG70 -> 1 | DB78: 2 | DC78: 1 | DJ78: 2 | DK78: 1 | DM78: 3 | DO78: 2 | DR78: 1 | DT78: 0.48 | DU78: -0.08 | DV78: 0.4 | DW78: 0.88 | DX78: 1 | DZ78: 10 | EA78: =DX70 -> 2 | EC78: 2 | ED78: В
B79: =IF(Гости!B12="","",Гости!B12) -> 2021.01.17 23:00 | C79: =IF(Гости!A12="","",Гости!A12) -> CHILE: Primera Division | D79: =IF(Гости!C12="","",Гости!C12) -> Colo Colo | E79: =IF(Гости!D12="","",Гости!D12) -> U. De Chile | F79: =IF(Гости!N12="","",CONCATENATE(Гости!L12," : ",Гости!M12)) -> 0 : 0 | G79: 0 | H79: 0 | BZ79: Дома | CA79: 0 | CB79: 0 | CC79: 0.8 | CD79: 0.2 | CE79: 1 | CF79: 1.8 | CG79: 0 | CH79: 11 | CI79: =CG69 -> 1 | DB79: 0 | DJ79: 0 | DK79: 0 | DM79: 0 | DO79: 2 | DR79: 0 | DT79: 0.48 | DU79: =DV79-DT79 -> -0.08 | DV79: 0.4 | DW79: =DV79+DT79 -> 0.88 | DX79: 0 | DY79: =DY80 -> 1.636363636 | DZ79: 11 | EA79: =DX69 -> 2 | EC79: 1 | ED79: Н
B80: =IF(Гости!B13="","",Гости!B13) -> 2021.01.13 22:00 | C80: =IF(Гости!A13="","",Гости!A13) -> CHILE: Primera Division | D80: =IF(Гости!C13="","",Гости!C13) -> U. De Concepcion | E80: =IF(Гости!D13="","",Гости!D13) -> Colo Colo | F80: =IF(Гости!N13="","",CONCATENATE(Гости!L13," : ",Гости!M13)) -> 1 : 1 | G80: 1 | H80: 1 | BZ80: В гостях | CA80: 1 | CB80: 1 | CD80: =AVERAGE(CD69:CD79) -> 0.2327272727 | CE80: =AVERAGE(CE69:CE79) -> 1.127272727 | CF80: =AVERAGE(CF69:CF79) -> 2.021818182 | CG80: =TREND(CI69:CI79,CH69:CH79,CH80) -> 1.309090909 | CH80: 12 | DB80: 1 | DJ80: 1 | DK80: 1 | DM80: 2 | DO80: 0 | DR80: 1 | DU80: =AVERAGE(DU69:DU79) -> 0.02181818182 | DV80: =AVERAGE(DV69:DV79) -> 0.6181818182 | DW80: =AVERAGE(DW69:DW79) -> 1.214545455 | DY80: =TREND(EA69:EA79,DZ69:DZ79,DZ80) -> 1.636363636 | DZ80: 12 | EC80: 1 | ED80: Н
B81: =IF(Гости!B14="","",Гости!B14) -> 2021.01.10 23:30 | C81: =IF(Гости!A14="","",Гости!A14) -> CHILE: Primera Division | D81: =IF(Гости!C14="","",Гости!C14) -> Colo Colo | E81: =IF(Гости!D14="","",Гости!D14) -> Everton | F81: =IF(Гости!N14="","",CONCATENATE(Гости!L14," : ",Гости!M14)) -> 1 : 0 | G81: 1 | H81: 0 | BA81: Мотивация | BP81: Мотивация | BZ81: Дома | CA81: 1 | CB81: 0 | CG81: =CG80 -> 1.309090909 | CI81: =CG64+CG80 -> 2.581818182 | DB81: 1 | DJ81: 1 | DK81: 0 | DM81: 1 | DO81: 1 | DR81: 0 | EC81: 2 | ED81: В
B82: =IF(Гости!B15="","",Гости!B15) -> 2021.01.06 15:30 | C82: =IF(Гости!A15="","",Гости!A15) -> CHILE: Primera Division | D82: =IF(Гости!C15="","",Гости!C15) -> S. Wanderers | E82: =IF(Гости!D15="","",Гости!D15) -> Colo Colo | F82: =IF(Гости!N15="","",CONCATENATE(Гости!L15," : ",Гости!M15)) -> 0 : 3 | G82: 0 | H82: 3 | BA82: общ 6 | BB82: =AZ60 -> 4 | BC82: =BA60 -> 3 | BD82: =AZ61 -> 3 | BE82: =BA61 -> 3 | BP82: общ 6 | BQ82: =BO60 -> 4 | BR82: =BP60 -> 3 | BS82: =BO61 -> 3 | BT82: =BP61 -> 3 | BZ82: В гостях | CA82: 3 | CB82: 0 | DB82: 3 | DC82: 1 | DJ82: 3 | DK82: 0 | DM82: 3 | DO82: 1 | DR82: 0 | EC82: 2 | ED82: В
B83: =IF(Гости!B16="","",Гости!B16) -> 2021.01.03 15:30 | C83: =IF(Гости!A16="","",Гости!A16) -> CHILE: Primera Division | D83: =IF(Гости!C16="","",Гости!C16) -> Antofagasta | E83: =IF(Гости!D16="","",Гости!D16) -> Colo Colo | F83: =IF(Гости!N16="","",CONCATENATE(Гости!L16," : ",Гости!M16)) -> 1 : 0 | G83: 1 | H83: 0 | BZ83: В гостях | CA83: 0 | CB83: 1 | DB83: 0 | DI83: =SUM(DJ69:DJ83)/15 -> 1.133333333 | DJ83: 0 | DK83: 1 | DL83: =SUM(DK69:DK83)/15 -> 0.7333333333 | DM83: 1 | DN83: =SUM(DM69:DM83)/15 -> 1.866666667 | DO83: 3 | DR83: 1 | EC83: 0 | ED83: П
C84: =CONCATENATE(D1," - ",D17) -> Everton - Colo Colo | BD84: =(BB82-BD82)+(BC82-BD82) -> 1 | BE84: =(BD82-BB82)+(BE82-BB82) -> -2 | BS84: =(BQ82-BS82)+(BR82-BS82) -> 1 | BT84: =(BS82-BQ82)+(BT82-BQ82) -> -2 | CD84: - | CE84: ср | CF84: + | CG84: =ROUND(CH84,0) -> 1 | CH84: =SUM(CG85:CG95)/11 -> 1.363636364 | CO84: - | CP84: ср | CQ84: + | CR84: =ROUND(CS84,0) -> 2 | CS84: =SUM(CR85:CR95)/11 -> 2.090909091 | CW84: - | CX84: ср | CY84: + | CZ84: =ROUND(DA84,0) -> 3 | DA84: =SUM(CZ85:CZ95)/11 -> 3.454545455 | DJ84: =ROUND(DI83,0) -> 1 | DK84: =ROUND(DL83,0) -> 1 | DM84: =ROUND(DN83,0) -> 2 | DO84: 0 | DP84: =DQ85 -> 2 | DR84: =DS85 -> 1 | DU84: - | DV84: ср | DW84: + | DY84: =ROUND(DY85,0) -> 2 | ED84: - | EE84: ср | EF84: + | EH84: =ROUND(EH85,0) -> 1 | EL84: =EM85 -> 3 | EO84: - | EP84: ср | EQ84: + | ES84: =ROUND(ES85,0) -> 3 | EW84: Очки | EY84: Очки
B85: =IF(Очные!B2="","",Очные!B2) -> 2021.01.10 | C85: =IF(Очные!A2="","",Очные!A2) -> Primera Division (Chile) | D85: =IF(Очные!C2="","",Очные!C2) -> Colo Colo | E85: =IF(Очные!D2="","",Очные!D2) -> Everton | F85: =IF(Очные!E2="","",CONCATENATE(Очные!E2," : ",Очные!F2)) -> 1 : 0 | G85: =VALUE(LEFT(F85,FIND(":",F85,1)-1)) -> 1 | H85: =VALUE(LEFT(RIGHT(F85,LEN(F85)-FIND(":",F85,1)),4)) -> 0 | BZ85: =IF(D85=$D$1,"Дома","В гостях") -> В гостях | CA85: =IFERROR(IF(BZ85="Дома",G85,H85),"") -> 0 | CB85: =IFERROR(IF(BZ85="Дома",H85,G85),"") -> 1 | CC85: =AVEDEV(CA85:CA89) -> 0.48 | CD85: =CE85-CC85 -> 0.12 | CE85: =AVERAGE(CA85:CA89) -> 0.6 | CF85: =CE85+CC85 -> 1.08 | CG85: =CA85 -> 0 | CH85: 1 | CI85: =CG95 -> 0 | CN85: =AVEDEV(CB85:CB89) -> 0.64 | CO85: =CP85-CN85 -> 0.56 | CP85: =AVERAGE(CB85:CB89) -> 1.2 | CQ85: =CP85+CN85 -> 1.84 | CR85: =CB85 -> 1 | CS85: 1 | CT85: =CR95 -> 4 | CV85: =AVEDEV(CA85:CA89)+AVEDEV(CB85:CB89) -> 1.12 | CW85: =CX85-CV85 -> 0.68 | CX85: =AVERAGE(CA85:CA89)+AVERAGE(CB85:CB89) -> 1.8 | CY85: =CX85+CV85 -> 2.92 | CZ85: =CA85+CB85 -> 1 | DA85: 1 | DB85: =CZ95 -> 4 | DD85: =CA85 -> 0 | DE85: =IF($Z$3<DD85,1,"") ->  | DF85: =CB85 -> 1 | DG85: =IF($Z$4<DF85,1,"") ->  | DH85: =CA85+CB85 -> 1 | DI85: =IF($Z$6<DH85,1,"") ->  | DJ85: =CA85 -> 0 | DK85: 1 | DP85: =DK85 -> 1 | DQ85: =ROUND(DQ86,0) -> 2 | DR85: =DJ85 -> 0 | DS85: =ROUND(DS86,0) -> 1 | DT85: =AVEDEV(DP85:DP89) -> 0.64 | DU85: =DV85-DT85 -> 0.56 | DV85: =AVERAGE(DP85:DP89) -> 1.2 | DW85: =DV85+DT85 -> 1.84 | DX85: =DP85 -> 1 | DY85: =SUM(DX85:DX95)/11 -> 2.090909091 | DZ85: 1 | EA85: =DX95 -> 4 | EC85: =AVEDEV(DR85:DR89) -> 0.48 | ED85: =EE85-EC85 -> 0.12 | EE85: =AVERAGE(DR85:DR89) -> 0.6 | EF85: =EE85+EC85 -> 1.08 | EG85: =DR85 -> 0 | EH85: =SUM(EG85:EG95)/11 -> 1.363636364 | EI85: 1 | EJ85: =EG95 -> 0 | EL85: =DP85+DR85 -> 1 | EM85: =ROUND(EM86,0) -> 3 | EN85: =AVEDEV(EL85:EL89) -> 1.04 | EO85: =EP85-EN85 -> 0.76 | EP85: =AVERAGE(EL85:EL89) -> 1.8 | EQ85: =EP85+EN85 -> 2.84 | ER85: =EL85 -> 1 | ES85: =SUM(ER85:ER95)/11 -> 3.454545455 | ET85: 1 | EU85: =ER95 -> 4 | EW85: =IF(OR(DJ85="",DK85=""),"",IF(DJ85>DK85,2,IF(DJ85<DK85,0,1))) -> 0 | EX85: =IF(EW85="","",IF(EW85=1,"Н",IF(EW85=0,"П",IF(EW85=2,"В")))) -> П | EY85: =IF(OR(DK85="",DK85=""),"",IF(DK85>DJ85,2,IF(DK85<DJ85,0,1))) -> 2 | EZ85: =IF(EY85="","",IF(EY85=1,"Н",IF(EY85=0,"П",IF(EY85=2,"В")))) -> В
B86: =IF(Очные!B3="","",Очные!B3) -> 2020.10.28 | C86: =IF(Очные!A3="","",Очные!A3) -> Primera Division (Chile) | D86: =IF(Очные!C3="","",Очные!C3) -> Everton | E86: =IF(Очные!D3="","",Очные!D3) -> Colo Colo | F86: =IF(Очные!E3="","",CONCATENATE(Очные!E3," : ",Очные!F3)) -> 1 : 1 | G86: 1 | H86: 1 | BZ86: Дома | CA86: 1 | CB86: 1 | CC86: =AVEDEV(CA86:CA90) -> 0.72 | CD86: =CE86-CC86 -> 0.48 | CE86: =AVERAGE(CA86:CA90) -> 1.2 | CF86: =CE86+CC86 -> 1.92 | CG86: =CA86 -> 1 | CH86: 2 | CI86: =CG94 -> 2 | CN86: 0.72 | CO86: =CP86-CN86 -> 0.68 | CP86: 1.4 | CQ86: =CP86+CN86 -> 2.12 | CR86: 1 | CS86: 2 | CT86: =CR94 -> 3 | CV86: 1.44 | CW86: =CX86-CV86 -> 1.16 | CX86: 2.6 | CY86: =CX86+CV86 -> 4.04 | CZ86: 2 | DA86: 2 | DB86: =CZ94 -> 5 | DD86: 1 | DF86: 1 | DH86: 2 | DJ86: 1 | DK86: 1 | DP86: =DK86 -> 1 | DQ86: =SUM(DP85:DP99)/15 -> 2.133333333 | DR86: =DJ86 -> 1 | DS86: =SUM(DR85:DR99)/15 -> 1.2 | DT86: =AVEDEV(DP86:DP90) -> 0.72 | DU86: =DV86-DT86 -> 0.68 | DV86: =AVERAGE(DP86:DP90) -> 1.4 | DW86: =DV86+DT86 -> 2.12 | DX86: =DP86 -> 1 | DZ86: 2 | EA86: =DX94 -> 3 | EC86: =AVEDEV(DR86:DR90) -> 0.72 | ED86: =EE86-EC86 -> 0.48 | EE86: =AVERAGE(DR86:DR90) -> 1.2 | EF86: =EE86+EC86 -> 1.92 | EG86: =DR86 -> 1 | EI86: 2 | EJ86: =EG94 -> 2 | EL86: =DP86+DR86 -> 2 | EM86: =SUM(EL85:EL99)/15 -> 3.333333333 | EN86: =AVEDEV(EL86:EL90) -> 1.28 | EO86: =EP86-EN86 -> 1.32 | EP86: =AVERAGE(EL86:EL90) -> 2.6 | EQ86: =EP86+EN86 -> 3.88 | ER86: =EL86 -> 2 | ET86: 2 | EU86: =ER94 -> 5 | EW86: =IF(OR(DJ86="",DK86=""),"",IF(DJ86>DK86,2,IF(DJ86<DK86,0,1))) -> 1 | EX86: =IF(EW86="","",IF(EW86=1,"Н",IF(EW86=0,"П",IF(EW86=2,"В")))) -> Н | EY86: =IF(OR(DK86="",DK86=""),"",IF(DK86>DJ86,2,IF(DK86<DJ86,0,1))) -> 1 | EZ86: =IF(EY86="","",IF(EY86=1,"Н",IF(EY86=0,"П",IF(EY86=2,"В")))) -> Н
B87: =IF(Очные!B4="","",Очные!B4) -> 2019.10.12 | C87: =IF(Очные!A4="","",Очные!A4) -> Chilean Cup (Chile) | D87: =IF(Очные!C4="","",Очные!C4) -> Everton | E87: =IF(Очные!D4="","",Очные!D4) -> Colo Colo | F87: =IF(Очные!E4="","",CONCATENATE(Очные!E4," : ",Очные!F4)) -> 1 : 2 | G87: 1 | H87: 2 | BZ87: Дома | CA87: 1 | CB87: 2 | CC87: 1.36 | CD87: 0.44 | CE87: 1.8 | CF87: 3.16 | CG87: 1 | CH87: 3 | CI87: =CG93 -> 2 | CN87: 0.64 | CO87: 0.96 | CP87: 1.6 | CQ87: 2.24 | CR87: 2 | CS87: 3 | CT87: =CR93 -> 3 | CV87: 2 | CW87: 1.4 | CX87: 3.4 | CY87: 5.4 | CZ87: 3 | DA87: 3 | DB87: =CZ93 -> 5 | DD87: 1 | DF87: 2 | DG87: 1 | DH87: 3 | DJ87: 1 | DK87: 2 | DP87: 2 | DR87: 1 | DT87: 0.64 | DU87: 0.96 | DV87: 1.6 | DW87: 2.24 | DX87: 2 | DZ87: 3 | EA87: =DX93 -> 3 | EC87: 1.36 | ED87: 0.44 | EE87: 1.8 | EF87: 3.16 | EG87: 1 | EI87: 3 | EJ87: =EG93 -> 2 | EL87: 3 | EN87: 1.68 | EO87: 1.72 | EP87: 3.4 | EQ87: 5.08 | ER87: 3 | ET87: 3 | EU87: =ER93 -> 5 | EW87: 0 | EX87: П | EY87: 2 | EZ87: В
B88: =IF(Очные!B5="","",Очные!B5) -> 2019.09.07 | C88: =IF(Очные!A5="","",Очные!A5) -> Chilean Cup (Chile) | D88: =IF(Очные!C5="","",Очные!C5) -> Colo Colo | E88: =IF(Очные!D5="","",Очные!D5) -> Everton | F88: =IF(Очные!E5="","",CONCATENATE(Очные!E5," : ",Очные!F5)) -> 2 : 1 | G88: 2 | H88: 1 | BZ88: В гостях | CA88: 1 | CB88: 2 | CC88: 1.36 | CD88: 0.44 | CE88: 1.8 | CF88: 3.16 | CG88: 1 | CH88: 4 | CI88: =CG92 -> 1 | CN88: 0.72 | CO88: 1.08 | CP88: 1.8 | CQ88: 2.52 | CR88: 2 | CS88: 4 | CT88: =CR92 -> 3 | CV88: 2.08 | CW88: 1.52 | CX88: 3.6 | CY88: 5.68 | CZ88: 3 | DA88: 4 | DB88: =CZ92 -> 4 | DD88: 1 | DF88: 2 | DG88: 1 | DH88: 3 | DJ88: 1 | DK88: 2 | DP88: 2 | DR88: 1 | DT88: 0.72 | DU88: 1.08 | DV88: 1.8 | DW88: 2.52 | DX88: 2 | DZ88: 4 | EA88: =DX92 -> 3 | EC88: 1.36 | ED88: 0.44 | EE88: 1.8 | EF88: 3.16 | EG88: 1 | EI88: 4 | EJ88: =EG92 -> 1 | EL88: 3 | EN88: 1.68 | EO88: 1.92 | EP88: 3.6 | EQ88: 5.28 | ER88: 3 | ET88: 4 | EU88: =ER92 -> 4 | EW88: 0 | EX88: П | EY88: 2 | EZ88: В
B89: =IF(Очные!B6="","",Очные!B6) -> 2019.07.28 | C89: =IF(Очные!A6="","",Очные!A6) -> Primera Division (Chile) | D89: =IF(Очные!C6="","",Очные!C6) -> Colo Colo | E89: =IF(Очные!D6="","",Очные!D6) -> Everton | F89: =IF(Очные!E6="","",CONCATENATE(Очные!E6," : ",Очные!F6)) -> 0 : 0 | G89: 0 | H89: 0 | BZ89: В гостях | CA89: 0 | CB89: 0 | CC89: 1.2 | CD89: 0.8 | CE89: 2 | CF89: 3.2 | CG89: 0 | CH89: 5 | CI89: =CG91 -> 4 | CN89: 0.8 | CO89: 1.2 | CP89: 2 | CQ89: 2.8 | CR89: 0 | CS89: 5 | CT89: =CR91 -> 2 | CV89: 2 | CW89: 2 | CX89: 4 | CY89: 6 | CZ89: 0 | DA89: 5 | DB89: =CZ91 -> 6 | DD89: 0 | DF89: 0 | DH89: 0 | DJ89: 0 | DK89: 0 | DP89: 0 | DR89: 0 | DT89: 0.8 | DU89: 1.2 | DV89: 2 | DW89: 2.8 | DX89: 0 | DZ89: 5 | EA89: =DX91 -> 2 | EC89: 1.2 | ED89: 0.8 | EE89: 2 | EF89: 3.2 | EG89: 0 | EI89: 5 | EJ89: =EG91 -> 4 | EL89: 0 | EN89: 1.6 | EO89: 2.4 | EP89: 4 | EQ89: 5.6 | ER89: 0 | ET89: 5 | EU89: =ER91 -> 6 | EW89: 1 | EX89: Н | EY89: 1 | EZ89: Н
B90: =IF(Очные!B7="","",Очные!B7) -> 2019.01.30 | C90: =IF(Очные!A7="","",Очные!A7) -> Club Friendly (World) | D90: =IF(Очные!C7="","",Очные!C7) -> Everton | E90: =IF(Очные!D7="","",Очные!D7) -> Colo Colo | F90: =IF(Очные!E7="","",CONCATENATE(Очные!E7," : ",Очные!F7)) -> 3 : 2 | G90: 3 | H90: 2 | BZ90: Дома | CA90: 3 | CB90: 2 | CC90: 0.88 | CD90: 1.52 | CE90: 2.4 | CF90: 3.28 | CG90: 3 | CH90: 6 | CI90: =CG90 -> 3 | CN90: 0.48 | CO90: 2.12 | CP90: 2.6 | CQ90: 3.08 | CR90: 2 | CS90: 6 | CT90: =CR90 -> 2 | CV90: 1.36 | CW90: 3.64 | CX90: 5 | CY90: 6.36 | CZ90: 5 | DA90: 6 | DB90: =CZ90 -> 5 | DD90: 3 | DE90: 1 | DF90: 2 | DG90: 1 | DH90: 5 | DI90: 1 | DJ90: 3 | DK90: 2 | DP90: 2 | DR90: 3 | DT90: 0.48 | DU90: 2.12 | DV90: 2.6 | DW90: 3.08 | DX90: 2 | DZ90: 6 | EA90: =DX90 -> 2 | EC90: 0.88 | ED90: 1.52 | EE90: 2.4 | EF90: 3.28 | EG90: 3 | EI90: 6 | EJ90: =EG90 -> 3 | EL90: 5 | EN90: 0.4 | EO90: 4.6 | EP90: 5 | EQ90: 5.4 | ER90: 5 | ET90: 6 | EU90: =ER90 -> 5 | EW90: 2 | EX90: В | EY90: 0 | EZ90: П
B91: =IF(Очные!B8="","",Очные!B8) -> 2018.09.02 | C91: =IF(Очные!A8="","",Очные!A8) -> Primera Division (Chile) | D91: =IF(Очные!C8="","",Очные!C8) -> Everton | E91: =IF(Очные!D8="","",Очные!D8) -> Colo Colo | F91: =IF(Очные!E8="","",CONCATENATE(Очные!E8," : ",Очные!F8)) -> 4 : 2 | G91: 4 | H91: 2 | BZ91: Дома | CA91: 4 | CB91: 2 | CC91: 1.04 | CD91: 0.76 | CE91: 1.8 | CF91: 2.84 | CG91: 4 | CH91: 7 | CI91: =CG89 -> 0 | CN91: 0.4 | CO91: 2.6 | CP91: 3 | CQ91: 3.4 | CR91: 2 | CS91: 7 | CT91: =CR89 -> 0 | CV91: 1.44 | CW91: 3.36 | CX91: 4.8 | CY91: 6.24 | CZ91: 6 | DA91: 7 | DB91: =CZ89 -> 0 | DD91: 4 | DE91: 1 | DF91: 2 | DG91: 1 | DH91: 6 | DI91: 1 | DJ91: 4 | DK91: 2 | DP91: 2 | DR91: 4 | DT91: 0.4 | DU91: 2.6 | DV91: 3 | DW91: 3.4 | DX91: 2 | DZ91: 7 | EA91: =DX89 -> 0 | EC91: 1.04 | ED91: 0.76 | EE91: 1.8 | EF91: 2.84 | EG91: 4 | EI91: 7 | EJ91: =EG89 -> 0 | EL91: 6 | EN91: 0.64 | EO91: 4.16 | EP91: 4.8 | EQ91: 5.44 | ER91: 6 | ET91: 7 | EU91: =ER89 -> 0 | EW91: 2 | EX91: В | EY91: 0 | EZ91: П
B92: =IF(Очные!B9="","",Очные!B9) -> 2018.05.06 | C92: =IF(Очные!A9="","",Очные!A9) -> Primera Division (Chile) | D92: =IF(Очные!C9="","",Очные!C9) -> Colo Colo | E92: =IF(Очные!D9="","",Очные!D9) -> Everton | F92: =IF(Очные!E9="","",CONCATENATE(Очные!E9," : ",Очные!F9)) -> 3 : 1 | G92: 3 | H92: 1 | BZ92: В гостях | CA92: 1 | CB92: 3 | CC92: 0.72 | CD92: 0.68 | CE92: 1.4 | CF92: 2.12 | CG92: 1 | CH92: 8 | CI92: =CG88 -> 1 | CN92: 0.48 | CO92: 2.92 | CP92: 3.4 | CQ92: 3.88 | CR92: 3 | CS92: 8 | CT92: =CR88 -> 2 | CV92: 1.2 | CW92: 3.6 | CX92: 4.8 | CY92: 6 | CZ92: 4 | DA92: 8 | DB92: =CZ88 -> 3 | DD92: 1 | DF92: 3 | DG92: 1 | DH92: 4 | DI92: 1 | DJ92: 1 | DK92: 3 | DP92: 3 | DR92: 1 | DT92: 0.48 | DU92: 2.92 | DV92: 3.4 | DW92: 3.88 | DX92: 3 | DZ92: 8 | EA92: =DX88 -> 2 | EC92: 0.72 | ED92: 0.68 | EE92: 1.4 | EF92: 2.12 | EG92: 1 | EI92: 8 | EJ92: =EG88 -> 1 | EL92: 4 | EN92: 0.64 | EO92: 4.16 | EP92: 4.8 | EQ92: 5.44 | ER92: 4 | ET92: 8 | EU92: =ER88 -> 3 | EW92: 0 | EX92: П | EY92: 2 | EZ92: В
B93: =IF(Очные!B10="","",Очные!B10) -> 2017.11.26 | C93: =IF(Очные!A10="","",Очные!A10) -> Primera Division (Chile) | D93: =IF(Очные!C10="","",Очные!C10) -> Everton | E93: =IF(Очные!D10="","",Очные!D10) -> Colo Colo | F93: =IF(Очные!E10="","",CONCATENATE(Очные!E10," : ",Очные!F10)) -> 2 : 3 | G93: 2 | H93: 3 | BZ93: Дома | CA93: 2 | CB93: 3 | CC93: 0.96 | CD93: 0.24 | CE93: 1.2 | CF93: 2.16 | CG93: 2 | CH93: 9 | CI93: =CG87 -> 1 | CN93: 0.64 | CO93: 2.56 | CP93: 3.2 | CQ93: 3.84 | CR93: 3 | CS93: 9 | CT93: =CR87 -> 2 | CV93: 1.6 | CW93: 2.8 | CX93: 4.4 | CY93: 6 | CZ93: 5 | DA93: 9 | DB93: =CZ87 -> 3 | DD93: 2 | DE93: 1 | DF93: 3 | DG93: 1 | DH93: 5 | DI93: 1 | DJ93: 2 | DK93: 3 | DP93: 3 | DR93: 2 | DT93: 0.64 | DU93: 2.56 | DV93: 3.2 | DW93: 3.84 | DX93: 3 | DZ93: 9 | EA93: =DX87 -> 2 | EC93: 0.96 | ED93: 0.24 | EE93: 1.2 | EF93: 2.16 | EG93: 2 | EI93: 9 | EJ93: =EG87 -> 1 | EL93: 5 | EN93: 1.12 | EO93: 3.28 | EP93: 4.4 | EQ93: 5.52 | ER93: 5 | ET93: 9 | EU93: =ER87 -> 3 | EW93: 0 | EX93: П | EY93: 2 | EZ93: В
B94: =IF(Очные!B11="","",Очные!B11) -> 2017.05.07 | C94: =IF(Очные!A11="","",Очные!A11) -> Primera Division (Chile) | D94: =IF(Очные!C11="","",Очные!C11) -> Everton | E94: =IF(Очные!D11="","",Очные!D11) -> Colo Colo | F94: =IF(Очные!E11="","",CONCATENATE(Очные!E11," : ",Очные!F11)) -> 2 : 3 | G94: 2 | H94: 3 | BZ94: Дома | CA94: 2 | CB94: 3 | CC94: 0.8 | CD94: 0.2 | CE94: 1 | CF94: 1.8 | CG94: 2 | CH94: 10 | CI94: =CG86 -> 1 | CN94: 1.28 | CO94: 1.32 | CP94: 2.6 | CQ94: 3.88 | CR94: 3 | CS94: 10 | CT94: =CR86 -> 1 | CV94: 2.08 | CW94: 1.52 | CX94: 3.6 | CY94: 5.68 | CZ94: 5 | DA94: 10 | DB94: =CZ86 -> 2 | DD94: 2 | DE94: 1 | DF94: 3 | DG94: 1 | DH94: 5 | DI94: 1 | DJ94: 2 | DK94: 3 | DP94: 3 | DR94: 2 | DT94: 1.28 | DU94: 1.32 | DV94: 2.6 | DW94: 3.88 | DX94: 3 | DZ94: 10 | EA94: =DX86 -> 1 | EC94: 0.8 | ED94: 0.2 | EE94: 1 | EF94: 1.8 | EG94: 2 | EI94: 10 | EJ94: =EG86 -> 1 | EL94: 5 | EN94: 1.68 | EO94: 1.92 | EP94: 3.6 | EQ94: 5.28 | ER94: 5 | ET94: 10 | EU94: =ER86 -> 2 | EW94: 0 | EX94: П | EY94: 2 | EZ94: В
B95: =IF(Очные!B12="","",Очные!B12) -> 2016.12.14 | C95: =IF(Очные!A12="","",Очные!A12) -> Chilean Cup (Chile) | D95: =IF(Очные!C12="","",Очные!C12) -> Colo Colo | E95: =IF(Очные!D12="","",Очные!D12) -> Everton | F95: =IF(Очные!E12="","",CONCATENATE(Очные!E12," : ",Очные!F12)) -> 4 : 0 | G95: 4 | H95: 0 | BZ95: В гостях | CA95: 0 | CB95: 4 | CC95: 0.72 | CD95: -0.12 | CE95: 0.6 | CF95: 1.32 | CG95: 0 | CH95: 11 | CI95: =CG85 -> 0 | CN95: 1.28 | CO95: 1.32 | CP95: 2.6 | CQ95: 3.88 | CR95: 4 | CS95: 11 | CT95: =CR85 -> 1 | CV95: 2 | CW95: 1.2 | CX95: 3.2 | CY95: 5.2 | CZ95: 4 | DA95: 11 | DB95: =CZ85 -> 1 | DD95: 0 | DF95: 4 | DG95: 1 | DH95: 4 | DI95: 1 | DJ95: 0 | DK95: 4 | DP95: 4 | DR95: 0 | DT95: 1.28 | DU95: =DV95-DT95 -> 1.32 | DV95: 2.6 | DW95: =DV95+DT95 -> 3.88 | DX95: 4 | DY95: =DY96 -> 0.4545454545 | DZ95: 11 | EA95: =DX85 -> 1 | EC95: 0.72 | ED95: =EE95-EC95 -> -0.12 | EE95: 0.6 | EF95: =EE95+EC95 -> 1.32 | EG95: 0 | EH95: =EH96 -> 0.7636363636 | EI95: 11 | EJ95: =EG85 -> 0 | EL95: 4 | EN95: 1.44 | EO95: =EP95-EN95 -> 1.76 | EP95: 3.2 | EQ95: =EP95+EN95 -> 4.64 | ER95: 4 | ES95: =ES96 -> 1.218181818 | ET95: 11 | EU95: =ER85 -> 1 | EW95: 0 | EX95: П | EY95: 2 | EZ95: В
B96: =IF(Очные!B13="","",Очные!B13) -> 2016.12.04 | C96: =IF(Очные!A13="","",Очные!A13) -> Primera Division (Chile) | D96: =IF(Очные!C13="","",Очные!C13) -> Colo Colo | E96: =IF(Очные!D13="","",Очные!D13) -> Everton | F96: =IF(Очные!E13="","",CONCATENATE(Очные!E13," : ",Очные!F13)) -> 4 : 2 | G96: 4 | H96: 2 | BZ96: В гостях | CA96: 2 | CB96: 4 | CD96: =AVERAGE(CD85:CD95) -> 0.5054545455 | CE96: =AVERAGE(CE85:CE95) -> 1.436363636 | CF96: =AVERAGE(CF85:CF95) -> 2.367272727 | CG96: =TREND(CI85:CI95,CH85:CH95,CH96) -> 0.7636363636 | CH96: 12 | CO96: =AVERAGE(CO85:CO95) -> 1.574545455 | CP96: =AVERAGE(CP85:CP95) -> 2.309090909 | CQ96: =AVERAGE(CQ85:CQ95) -> 3.043636364 | CR96: =TREND(CT85:CT95,CS85:CS95,CS96) -> 0.4545454545 | CS96: 12 | CW96: =AVERAGE(CW85:CW95) -> 2.08 | CX96: =AVERAGE(CX85:CX95) -> 3.745454545 | CY96: =AVERAGE(CY85:CY95) -> 5.410909091 | CZ96: =TREND(DB85:DB95,DA85:DA95,DA96) -> 1.218181818 | DA96: 12 | DD96: 2 | DE96: 1 | DF96: 4 | DG96: 1 | DH96: 6 | DI96: 1 | DJ96: 2 | DK96: 4 | DP96: 4 | DR96: 2 | DU96: =AVERAGE(DU85:DU95) -> 1.574545455 | DV96: =AVERAGE(DV85:DV95) -> 2.309090909 | DW96: =AVERAGE(DW85:DW95) -> 3.043636364 | DY96: =TREND(EA85:EA95,DZ85:DZ95,DZ96) -> 0.4545454545 | DZ96: 12 | ED96: =AVERAGE(ED85:ED95) -> 0.5054545455 | EE96: =AVERAGE(EE85:EE95) -> 1.436363636 | EF96: =AVERAGE(EF85:EF95) -> 2.367272727 | EH96: =TREND(EJ85:EJ95,EI85:EI95,EI96) -> 0.7636363636 | EI96: 12 | EL96: 6 | EO96: =AVERAGE(EO85:EO95) -> 2.545454545 | EP96: =AVERAGE(EP85:EP95) -> 3.745454545 | EQ96: =AVERAGE(EQ85:EQ95) -> 4.945454545 | ES96: =TREND(EU85:EU95,ET85:ET95,ET96) -> 1.218181818 | ET96: 12 | EW96: 0 | EX96: П | EY96: 2 | EZ96: В
B97: =IF(Очные!B14="","",Очные!B14) -> 2014.01.12 | C97: =IF(Очные!A14="","",Очные!A14) -> Primera Division (Chile) | D97: =IF(Очные!C14="","",Очные!C14) -> Everton | E97: =IF(Очные!D14="","",Очные!D14) -> Colo Colo | F97: =IF(Очные!E14="","",CONCATENATE(Очные!E14," : ",Очные!F14)) -> 0 : 2 | G97: 0 | H97: 2 | BZ97: Дома | CA97: 0 | CB97: 2 | CG97: =CG96 -> 0.7636363636 | CR97: =CR96 -> 0.4545454545 | CZ97: =CZ96 -> 1.218181818 | DD97: 0 | DF97: 2 | DG97: 1 | DH97: 2 | DJ97: 0 | DK97: 2 | DP97: 2 | DR97: 0 | EL97: 2 | EW97: 0 | EX97: П | EY97: 2 | EZ97: В
B98: =IF(Очные!B15="","",Очные!B15) -> 2013.08.04 | C98: =IF(Очные!A15="","",Очные!A15) -> Primera Division (Chile) | D98: =IF(Очные!C15="","",Очные!C15) -> Colo Colo | E98: =IF(Очные!D15="","",Очные!D15) -> Everton | F98: =IF(Очные!E15="","",CONCATENATE(Очные!E15," : ",Очные!F15)) -> 0 : 1 | G98: 0 | H98: 1 | BZ98: В гостях | CA98: 1 | CB98: 0 | DD98: 1 | DF98: 0 | DH98: 1 | DJ98: 1 | DK98: 0 | DP98: 0 | DR98: 1 | EL98: 1 | EW98: 2 | EX98: В | EY98: 0 | EZ98: П
B99: =IF(Очные!B16="","",Очные!B16) -> 2013.04.07 | C99: =IF(Очные!A16="","",Очные!A16) -> Primera Division (Chile) | D99: =IF(Очные!C16="","",Очные!C16) -> Colo Colo | E99: =IF(Очные!D16="","",Очные!D16) -> Everton | F99: =IF(Очные!E16="","",CONCATENATE(Очные!E16," : ",Очные!F16)) -> 3 : 0 | G99: 3 | H99: 0 | BZ99: В гостях | CA99: 0 | CB99: 3 | DD99: 0 | DF99: 3 | DG99: 1 | DH99: 3 | DJ99: 0 | DK99: 3 | DP99: 3 | DR99: 0 | EL99: 3 | EW99: 0 | EX99: П | EY99: 2 | EZ99: В
EF100: =TREND(DJ85:DJ99,EE2:EE16,EE17) -> 1.057142857 | EH100: =TREND(DK85:DK99,EE2:EE16,EE17) -> 3.019047619
DI101: 15матчей | DL101: 15матчей | EF101: =ROUND(EF100,0) -> 1 | EH101: =ROUND(EH100,0) -> 3
DI102: СРЗаб | DL102: СрПроп
DI103: =SUM(DJ85:DJ99)/15 -> 1.2 | DL103: =SUM(DK85:DK99)/15 -> 2.133333333
DI104: 5матчей | DL104: 5матчей
DI105: СРЗаб | DL105: СрПроп
DI106: =SUM(DJ85:DJ89)/5 -> 0.6 | DL106: =SUM(DK85:DK89)/5 -> 1.2

Sheet АрхивУПР
F1: СЧЕТ | G1: Nx | I1: тотал | J1: POISSON | M1: БОЛЛИНЖЕР | X1: ВЕРОЯТНОСТИ | Y1: POISSON | AC1: Nx | AF1: РЕЙТИНГ | AG1: Индикатор ТБ 3 | AH1: X1-X2 | AI1: X2-X1 | AJ1: ХОЗЯЕВА XG | AK1: A | AL1: D | AM1: XG 90 | AN1: Coef | AO1: GD-xGD | AP1: iPPM | AQ1: PPM | AR1: ХОЗЯЕВА ФОРМА | AS1: МОТИВАЦИЯ | AT1: ГОСТИ XG | AU1: A | AV1: D | AW1: XG 90 | AX1: Coef | AY1: GD-xGD | AZ1: iPPM | BA1: PPM | BB1: ГОСТИ ФОРМА | BC1: МОТИВАЦИЯ | BR1: СПРАВОЧНО | BS1: ХОЗЯЕВА | BW1: ГОСТИ | CA1: Nx ПРОГНОЗ | CB1: ОБЕ ЗАБЬЮТ | DI1: БОЛЛИНЖЕР | DP1: КОФФИЦИЕНТЫ | DQ1: КОФФИЦИЕНТЫ | EI1: Ставка | EO1: Прогнозов =>>>
BS2: Место всего | BT2: Очки всего | BU2: Место дома | BV2: Очки дома | BW2: Место всего | BX2: Очки всего | BY2: Место гости | BZ2: Очки гости
CB3: ОЗ ФИЛЬТР 1 | CC3: ОЗ ФИЛЬТР 2 | CD3: ОЗ ФИЛЬТР 3 | CM3: ТБ 1,5 | CN3: ТБ 2,0 | CO3: ТБ 2,5 | CP3: ТБ 3,5 | CQ3: ТБ 4,5 | CR3: ТМ 2,5 | CS3: ТМ 3,5 | CX3: ТОЧНЫЙ СЧЕТ | DB3: ИТ1 | DC3: ИТ2 | DD3: ТБ 1,5 | DE3: ТБ 2,5 | DF3: ТБ 3,5 | DG3: ОЗ ДА | DH3: ОЗ НЕТ | DQ3: СТАРТОВЫЕ | DZ3: АКТУАЛЬНЫЕ
A4: ДАТА | B4: ЛИГА | C4: ХОЗЯЕВА | D4: ГОСТИ | E4: matchID | G4: Т | H4: С | K4: 1 | L4: 2 | M4: 1 | N4: 2 | O4: Тренд | P4: тотал | Y4: 1 | Z4: X | AA4: 2 | AC4: 1 | AD4: X | AE4: 2 | CE4: Ф1(0) | CF4: П1 | CG4: ИТБ1>1,5 | CH4: Ф1(-1,5) | CI4: Ф2(0) | CJ4: П2 | CK4: ИТБ2>1,5 | CL4: Ф2(-1,5) | CX4: ТС 1 | CZ4: ТС 2 | DQ4: П1 | DR4: Х | DS4: П2 | DT4: ТМ2,5 | DU4: ТБ2,5 | DV4: ТБ 3,5 | DW4: ТБ 4,5 | DX4: ОЗДа | DY4: ОЗ Нет | DZ4: П1 | EA4: Х | EB4: П2 | EC4: ТМ2,5 | ED4: ТБ2,5 | EE4: ТБ 3,5 | EF4: ТБ 4,5 | EG4: ОЗДа | EH4: ОЗ Нет | EJ4: +/- | EK4: + | EL4: =ER4/EP4 ->  | EM4: - | EN4: =ES4/EP4 ->  | EP4: =ER4+ES4 -> 0 | ER4: =COUNTIF(EJ$6:EJ$1048576,"+") -> 0 | ES4: =COUNTIF(EJ$6:EJ$1048576,"-") -> 0
A6: 2019.07.25 19:00 | B6: ЭСТОНИЯ: Вторая лига | C6: Раквере | D6: JK Jarve | E6: tj4BWzWH | F6: 2 : 2 | G6: 1.030637255 | H6: 1.530612245 | I6: 1.731192477 | K6: 1.125 | L6: 2.875 | M6: 1.071428571 | N6: 2.642857143 | O6: 1.714285714 | P6: 3.714285714 | Y6: 0.1200424281 | Z6: 0.146643761 | AA6: 0.7333138109 | AC6: 0.25 | AD6: 0.25 | AE6: 0.5 | AF6: -14 | AG6: -9 | AH6: -0.25 | AI6: 0.25 | AK6: 0.5829981565 | AL6: 1.000058143 | AM6: 0.9602941176 | AN6: 0.5914522059 | AO6: -1.09 | AP6: -0.6 | AQ6: 0.6 | AR6: 0.75 | AS6: 14 | AU6: 0.8750508751 | AV6: 0.9539969834 | AW6: 2.120238095 | AX6: 0.9285714286 | AY6: -0.2 | AZ6: 0.6 | BA6: 1.15 | BB6: 1 | BC6: 5 | BS6: 9 | BT6: 17 | BU6: 7 | BV6: 3 | BW6: 4 | BX6: 32 | BY6: 9 | BZ6: 4 | CB6: НЕТ | CC6: НЕТ | CD6: НЕТ | CI6: ДА | CM6: НЕТ | CN6: НЕТ | CO6: НЕТ | DQ6: 3.8 | DR6: 4 | DS6: 1.67 | DT6: 2.8 | DU6: 1.38 | DX6: 1.4 | DY6: 2.75 | DZ6: 3.8 | EA6: 4 | EB6: 1.67 | EC6: 2.8 | ED6: 1.38 | EG6: 1.4 | EH6: 2.75

Sheet Beta8
B2: MyBet_MySkore_v10_11_1 | H2: Wanga-Bet_v1_010_2 | K2: "Динамика" | M2: Altadar
B4: =CONCATENATE(Расчеты!E14," / ",Расчеты!H14) -> 6 / 17 | C4: =Расчеты!F14 -> Everton | E4: =Расчеты!I14 -> Colo Colo | G4: =CONCATENATE(Расчеты!K14," / ",Расчеты!H14) -> 9 / 17 | H4: =C4 -> Everton | I4: - | J4: =E4 -> Colo Colo | K4: =Расчеты!Z50 -> Ф2(+1) | M4: ИСХОДЫ №1 | P4: ДИ №1 | S4: ТОТАЛЫ №1 | U4: ТС | X4: ИТБ №1
B6: Точный Счет "Програмный" | D6: Точный Счет по Миллеру | F6: Точный Счет на ТМ (2А,ЗА) | H6: Точный Счет Матча | K6: "Теория Лиги" | M6: П1 | N6: Х | O6: П2 | P6: 1Х | Q6: 12 | R6: Х2 | S6: ТБ | T6: ТМ | U6: ТС №1 | V6: =Расчеты!G118 -> 1 | W6: =Расчеты!H118 -> 1 | X6: ИТБ1 | Y6: ИТБ2
M7: =Расчеты!C104 -> 0.3442622951 | N7: =Расчеты!D104 -> 0.3606557377 | O7: =Расчеты!E104 -> 0.2950819672 | P7: =Расчеты!C107 -> 0.3524590164 | Q7: =Расчеты!D107 -> 0.3196721311 | R7: =Расчеты!E107 -> 0.3278688525 | S7: =Расчеты!C110 -> 1.9 | T7: =Расчеты!D110 -> 2.083333333 | U7: ТС №2 | V7: =Расчеты!G119 -> 0 | W7: =Расчеты!H119 -> 0 | X7: =Расчеты!C114 -> 0.95 | Y7: =Расчеты!D114 -> 1.791666667
B8: =CONCATENATE(Расчеты!F12," - ",Расчеты!F13) -> 1 - 1 | C8: =CONCATENATE(Расчеты!G12," - ",Расчеты!G13) -> 1 - 1 | D8: =CONCATENATE(Расчеты!N18," - ",Расчеты!N20) -> 1 - 1 | E8: =CONCATENATE(Расчеты!O18," - ",Расчеты!O20) -> 1 - 1 | F8: =CONCATENATE(Расчеты!H12," - ",Расчеты!H13) -> 1 - 0 | G8: =CONCATENATE(Расчеты!I12," - ",Расчеты!I13) -> 1 - 1 | H8: =Расчеты!AE57 -> 1 | I8: : | J8: =Расчеты!AG57 -> 0 | K8: П1 | L8: =Расчеты!T67/100 -> 0.6947368421 | M8: ИСХОДЫ №2 | P8: ДИ №2 | S8: =Расчеты!C111 -> 0.5230125523 | T8: =Расчеты!D111 -> 0.4769874477 | U8: ТС №3 | V8: =Расчеты!G120 -> 0 | W8: =Расчеты!H120 -> 0 | X8: =Расчеты!C115 -> 0.6534954407 | Y8: =Расчеты!D115 -> 0.3465045593
S9: ТОТАЛЫ №2 | U9: ТС №4 | V9: =Расчеты!G121 -> 1 | W9: =Расчеты!H121 -> 1 | X9: ИТБ №2
B10: Первый гол забьёт: | E10: Если условие слабое то 1 гол забьет: | H10: Первый Гол Забьёт: | K10: Х | L10: =Расчеты!U67/100 -> -0.3473684211 | M10: П1 | N10: Х | O10: П2 | P10: 1Х | Q10: 12 | R10: Х2 | U10: ТС №5 | V10: =Расчеты!G122 -> 0 | W10: =Расчеты!H122 -> 0
M11: =Расчеты!F103 -> 0.2857142857 | N11: =Расчеты!G103 -> 0.4285714286 | O11: =Расчеты!H103 -> 0.2857142857 | P11: =Расчеты!F107 -> 0.3571428571 | Q11: =Расчеты!G107 -> 0.2857142857 | R11: =Расчеты!H107 -> 0.3571428571 | S11: ТБ | T11: ТМ | U11: ТС №6 | V11: =Расчеты!G123 -> 2 | W11: =Расчеты!H123 -> 2 | X11: ИТБ1 | Y11: ИТБ2
B12: =Расчеты!J12 -> 0.7692307692 | C12: =IF(Расчеты!K12="К1","Команда 1","Команда 2") -> Команда 2 | E12: =IF(Расчеты!K13="К1","Команда 1","Команда 2") -> Команда 2 | H12: =Расчеты!G87 -> 2 команда | K12: П2 | L12: =Расчеты!V67/100 -> 0.6526315789 | M12: ИСХОДЫ №3 | P12: ДИ №3 | S12: =Расчеты!E110 -> 2.6 | T12: =Расчеты!F110 -> 2.2 | X12: =Расчеты!E114 -> 1.3 | Y12: =Расчеты!F114 -> 0.88
B13: =Расчеты!J13 -> 1.1 | S13: =Расчеты!E111 -> 0.4583333333 | T13: =Расчеты!F111 -> 0.5416666667 | X13: =Расчеты!E115 -> 0.5963302752 | Y13: =Расчеты!F115 -> 0.4036697248
B14: Обе забьют? | D14: =Расчеты!L14 -> Да | E14: Индикатор ТБ 2,5 | G14: =Расчеты!C28 -> Нет ставки | H14: Вероятность забитого гола: | K14: ТБ 2,5 | L14: =Расчеты!X67/100 -> 0.7196721311 | M14: П1 | N14: Х | O14: П2 | P14: 1Х | Q14: 12 | R14: Х2 | S14: ТОТАЛЫ №3 | X14: ИТМ №1
M15: =Расчеты!I104 -> 0.25 | N15: =Расчеты!J104 -> 0.5 | O15: =Расчеты!K104 -> 0.25 | P15: =Расчеты!I107 -> 0.375 | Q15: =Расчеты!J107 -> 0.25 | R15: =Расчеты!K107 -> 0.375
B16: Средние показатели команд за 5 домашних и гостевых матчей | F16: Возможный Тотал матча | G16: =Расчеты!D14 -> 2.475 | H16: Команда 1 | J16: Команда 2 | K16: ТМ 2,5 | L16: =Расчеты!W67/100 -> 0.2803278689 | M16: ИСХОДЫ №4 | P16: ДИ №4 | S16: ="Тотал №1 "&Расчеты!G110 -> Тотал №1 ТМ(2.46) | X16: ИТМ1 | Y16: ИТМ2
B17: Команды: | C17: Тотал | D17: Забито | E17: Пропущено | S17: ="Тотал №2 "&Расчеты!H110 -> Тотал №2 ТМ(3.46) | X17: =Расчеты!G114 -> 1.245833333 | Y17: =Расчеты!H114 -> 1.225
B18: =C4 -> Everton | C18: =Расчеты!J25 -> 2.2 | D18: =Расчеты!K25 -> 1.2 | E18: =Расчеты!L25 -> 1 | F18: % прохода ТБ 2,5 | G18: =Расчеты!M12 -> 0.7071428571 | H18: =Расчеты!R97 -> НЕТ | J18: =Расчеты!S97 -> ДА | K18: Теория "0 голов" | M18: П1 | N18: П2 | P18: =Расчеты!L107 -> Х2 | S18: ="Тотал №3 "&Расчеты!I110 -> Тотал №3 ТМ(1.46) | X18: =Расчеты!G115 -> 0.4957841484 | Y18: =Расчеты!H115 -> 0.5042158516
B19: =E4 -> Colo Colo | C19: =Расчеты!J26 -> 2.6 | D19: =Расчеты!K26 -> 1.2 | E19: =Расчеты!L26 -> 1.4 | F19: Ставка на тотал | G19: =Расчеты!M13 -> Нет | M19: =Расчеты!L104 -> 0.4918032787 | N19: =Расчеты!M104 -> 0.5081967213 | S19: ДОП. ИНФО. ПО ГОЛАХ | X19: ИТМ №2
B20: EW-легкая победа, W-победа простая, D-ничья, L-проигрыш, HL-позорный проигрыш | H20: Обе забьют? | I20: =Расчеты!T97 -> НЕТ | K20: =Расчеты!AB82 -> 0 | L20: =Расчеты!AC82 -> 0 | P20: ФОРА (ИСХОД)
B21: =C4 -> Everton | C21: =Расчеты!Q20 -> D | D21: =Расчеты!R20 -> W | E21: =Расчеты!S20 -> D | F21: =Расчеты!T20 -> W | G21: =Расчеты!U20 -> HL | K21: =Расчеты!AB83 -> 0.3652340258 | L21: =Расчеты!AC83 -> 0.4723665527 | S21: ="В матче будет забито: "&Расчеты!I117&", "&Расчеты!J117&" гола" -> В матче будет забито: 2, 3 гола | X21: ИТМ1 | Y21: ИТМ2
B22: =E4 -> Colo Colo | C22: =Расчеты!V20 -> HL | D22: =Расчеты!W20 -> W | E22: =Расчеты!X20 -> D | F22: =Расчеты!Y20 -> HL | G22: =Расчеты!Z20 -> W | H22: Теория "Синдиката" | K22: =Расчеты!Z75 -> П1 | P22: =Расчеты!M107 -> Ф2(0) | S22: ="ОЗ: "&Расчеты!I119&"/"&Расчеты!J119 -> ОЗ: НЕТ/НЕТ | X22: =Расчеты!I114 -> 0.94 | Y22: =Расчеты!J114 -> 1.15
B23: ВСЕГО | D23: ДОМА | F23: ВЫЕЗД | X23: =Расчеты!I115 -> 0.3465045593 | Y23: =Расчеты!J115 -> 0.6534954407
B24: W/D/L | C24: Забито/Проп. | D24: W/D/L | E24: Забито/Проп. | F24: W/D/L | G24: Забито/Проп. | H24: Тест № 1 | I24: =Расчеты!D76 -> П2 | K24: Теория "П/Т" | S24: ДИСТАНЦИЯ
B25: =Расчеты!H8 -> 3/4/3 | C25: =Расчеты!I8 -> 10/13 | D25: =Расчеты!O8 -> 2/1/1 | E25: =Расчеты!P8 -> 5/5 | F25: =Расчеты!V8 -> 1/3/2 | G25: =Расчеты!W8 -> 5/8 | H25: Тест № 2 | I25: =Расчеты!D77 -> X2
B26: =Расчеты!H9 -> 4/4/2 | C26: =Расчеты!I9 -> 11/10 | D26: =Расчеты!O9 -> 3/2/1 | E26: =Расчеты!P9 -> 6/4 | F26: =Расчеты!V9 -> 1/2/1 | G26: =Расчеты!W9 -> 5/6 | H26: Тест № 3 | I26: =Расчеты!D78 -> П2 | K26: Обе забьют? | S26: ="Больше мотивации в "& Расчеты!I123 -> Больше мотивации в Команда 1
B27: Команды: | C27: Сила атаки | D27: Сила обороны | E27: Серии | F27: ТБ 2,5 | G27: Рейтинг | H27: Тест № 4 | I27: =Расчеты!D79 -> П1 | K27: =Расчеты!AM46 -> Нет
B28: =C4 -> Everton | C28: =Расчеты!Q25 -> 1.043478261 | D28: =Расчеты!R25 -> 1.045454545 | E28: =Расчеты!N12 -> НВНВП | F28: =Расчеты!O12 -> -+--+ | G28: =Расчеты!P12 -> 0.1832010582 | H28: Тотал | I28: =Расчеты!D80 -> ТМ 2,5 | K28: 1 команда | L28: =Расчеты!AF47 -> Гол!
B29: =E4 -> Colo Colo | C29: =Расчеты!Q26 -> 0.9565217391 | D29: =Расчеты!R26 -> 0.9583333333 | E29: =Расчеты!N13 -> ПВНПВ | F29: =Расчеты!O13 -> ++-+- | G29: =Расчеты!P13 -> 0.2658730159 | H29: Счет матча | K29: 2 команда | L29: =Расчеты!AG47 -> Нет
B30: Исход матча | C30: ТБ 2,5 | D30: Мощь | F30: Вероятность гола | K30: New Total Bomb 2016
B31: =Расчеты!W26 -> 1Х | C31: =Расчеты!P14 -> 0 | D31: 1 команда | E31: 2 команда | F31: 1 команда | G31: 2 команда | H31: =CONCATENATE(Расчеты!Q66," - ",Расчеты!Q67) -> 1 - 2
D32: =Расчеты!Q12 -> -0.15 | E32: =Расчеты!Q13 -> -0.275 | F32: =Расчеты!R12 -> Да | G32: =Расчеты!R13 -> Да | K32: К1 | L32: Результат 1 | N32: Результат 2 | P32: ПРОГНОЗ | R32: К2
B33: Линия БК bet365 | C33: П1 | D33: Х | E33: П2 | F33: ТБ 2,5 | G33: ТМ 2,5 | H33: ОЗ "Да" | I33: ОЗ "Нет" | J33: Маржа (%) ТБ: | L33: =Расчеты!V112 -> 0 | M33: =Расчеты!W112 -> 1 | N33: =Расчеты!X112 -> 1 | O33: =Расчеты!Y112 -> 2 | P33: =Расчеты!Z112 -> 2
B34: Коэффициенты: | C34: =Расчеты!E33 -> 2.37 | D34: =Расчеты!F33 -> 3.2 | E34: =Расчеты!G33 -> 2.7 | F34: =Расчеты!J33 -> 2 | G34: =Расчеты!K33 -> 1.8 | H34: =Расчеты!N33 -> 1.72 | I34: =Расчеты!O33 -> 2 | J34: =Расчеты!K31 -> 0.05555555556 | K34: =Расчеты!V120 -> 0.7142857143 | R34: =Расчеты!W120 -> 1.785714286
B35: Вероятность %: | C35: =Расчеты!E34 -> 0.3819122132 | D35: =Расчеты!F34 -> 0.2828537329 | E35: =Расчеты!G34 -> 0.3352340538 | F35: =Расчеты!J34 -> 0.4736842105 | G35: =Расчеты!K34 -> 0.5263157895 | H35: =Расчеты!N34 -> 0.5376344086 | I35: =Расчеты!O34 -> 0.4623655914 | J35: Маржа (%) ОЗ: | M35: 1 | N35: X | O35: 2 | P35: ТБ2,5 | Q35: ТМ2,5
B36: Валуйность %: | C36: =C35-C39 -> 0.03560224397 | D36: =D35-D39 -> 0.01144201315 | E36: =E35-E39 -> -0.04695103746 | F36: =F35-I42 -> 0.02392606027 | G36: =G35-I39 -> -0.02392606027 | H36: =H35-D42 -> 0.03406932541 | I36: =I35-E42 -> -0.03406932541 | J36: =Расчеты!O31 -> 0.08139534884 | K36: % | M36: =Расчеты!X116 -> 14.43779813 | N36: =Расчеты!Y116 -> 22.53006172 | O36: =Расчеты!Z116 -> 62.97870806 | P36: =Расчеты!AB116 -> 45.61868841 | Q36: =Расчеты!AA116 -> 54.38131159
B37: Маржа (%) 1х2: | C37: =Расчеты!G31 -> 0.1048112986 | D37: Вероятность событий и распределение коэффициентов в соответсвии с распределением Пуассона | K37: Кф | M37: =Расчеты!X117 -> 6.926263903 | N37: =Расчеты!Y117 -> 4.438514251 | O37: =Расчеты!Z117 -> 1.587838225 | P37: =Расчеты!AB117 -> 2.192084066 | Q37: =Расчеты!AA117 -> 1.838867013
B38: Исход | C38: П1 | D38: Х | E38: П2 | F38: 1К забьет "Да" | G38: 2К забьет "Да" | H38: ТМ 1,5 | I38: ТМ 2,5 | J38: ТМ 3,5
B39: Вероятность в %: | C39: =Расчеты!AD17/100 -> 0.3463099693 | D39: =Расчеты!AD18/100 -> 0.2714117198 | E39: =Расчеты!AD19/100 -> 0.3821850913 | F39: =Расчеты!AD26/100 -> 0.6988227281 | G39: =Расчеты!AD28/100 -> 0.7205793648 | H39: =Расчеты!AD21/100 -> 0.2924663911 | I39: =Расчеты!AD23/100 -> 0.5502418497 | J39: =Расчеты!AD25/100 -> 0.7629066031
B40: Коэффициенты: | C40: =Расчеты!AE17 -> 2.887586523 | D40: =Расчеты!AE18 -> 3.684439275 | E40: =Расчеты!AE19 -> 2.616533253 | F40: =Расчеты!AE26 -> 1.430978072 | G40: =Расчеты!AE28 -> 1.387772186 | H40: =Расчеты!AE21 -> 3.419196292 | I40: =Расчеты!AE23 -> 1.817382666 | J40: =Расчеты!AE25 -> 1.310776438 | K40: МОЖНО СТАВИТЬ | N40: =Расчеты!Y118 -> OK | O40: =Расчеты!Z118 -> OK | P40: =Расчеты!AA118 -> NO | Q40: =Расчеты!AB118 -> NO | R40: =Расчеты!AC118 -> NO
B41: Вероятный счет | D41: Обе забьют "Да" | E41: Обе забьют "Нет" | F41: 1К забьет "Нет" | G41: 2К забьет "Нет" | H41: ТБ 1,5 | I41: ТБ 2,5 | J41: ТБ 3,5 | K41: % | N41: =Расчеты!Y119 -> 91.79150014 | O41: =Расчеты!Z119 -> 71.27025048 | P41: =Расчеты!AA119 -> 45.61868841 | Q41: =Расчеты!AB119 -> 24.24238669 | R41: =Расчеты!AC119 -> 14.44899564
B42: =Расчеты!S12 -> 1 | C42: =Расчеты!S13 -> 1 | D42: =Расчеты!AD30/100 -> 0.5035650832 | E42: =Расчеты!AD31/100 -> 0.4964349168 | F42: =Расчеты!AD27/100 -> 0.3011772719 | G42: =Расчеты!AD29/100 -> 0.2794206352 | H42: =Расчеты!AD20/100 -> 0.7075336089 | I42: =Расчеты!AD22/100 -> 0.4497581503 | J42: =Расчеты!AD24/100 -> 0.2370933969 | K42: БОЛЬШЕ | N42: 0.5 | O42: 1.5 | P42: 2.5 | Q42: 3.5 | R42: 4.5
D43: =Расчеты!AE30 -> 1.985840626 | E43: =Расчеты!AE31 -> 2.014362742 | F43: =Расчеты!AE27 -> 3.320303666 | G43: =Расчеты!AE29 -> 3.578833751 | H43: =Расчеты!AE20 -> 1.413360422 | I43: =Расчеты!AE22 -> 2.223417184 | J43: =Расчеты!AE24 -> 4.217747154 | K43: Кф | N43: =Расчеты!Y121 -> 1.08942549 | O43: =Расчеты!Z121 -> 1.403109984 | P43: =Расчеты!AA121 -> 2.192084066 | Q43: =Расчеты!AB121 -> 4.12500639 | R43: =Расчеты!AC121 -> 6.920896267
B44: Tyresyas | C44: Показатели | G44: Прогноз
C45: Дома | D45: Гости | E45: Тотал | F45: Дельта | G45: К1 Заб | H45: 2К Заб | I45: ОЗ | J45: Тотал1 | K45: Тотал2 | L45: 1X2 | M45: ОНЗ | N45: Чет/нечет
B46: Вариант1 | C46: =Расчеты!AK66 -> 0.8 | D46: =Расчеты!AL66 -> 1.45 | E46: =Расчеты!AM66 -> 2.25 | F46: =Расчеты!AN66 -> -0.65 | G46: =Расчеты!AO66 -> - | H46: =Расчеты!AP66 -> - | I46: =Расчеты!AQ66 -> - | J46: =Расчеты!AR66 -> - | K46: =Расчеты!AS66 -> - | L46: =Расчеты!AT66 -> - | M46: =Расчеты!AU66 -> - | N46: =Расчеты!AV66 -> Чет
B47: Вариант2 | C47: =Расчеты!AK67 -> 1.042424242 | D47: =Расчеты!AL67 -> 1.175757576 | E47: =Расчеты!AM67 -> 2.218181818 | F47: =Расчеты!AN67 -> -0.1333333333 | G47: =Расчеты!AO67 -> - | H47: =Расчеты!AP67 -> - | I47: =Расчеты!AQ67 -> - | J47: =Расчеты!AR67 -> ТМ2 | K47: =Расчеты!AS67 -> - | L47: =Расчеты!AT67 -> - | M47: =Расчеты!AU67 -> - | N47: =Расчеты!AV67 -> Чет
B48: Вариант3 | C48: =Расчеты!AK68 -> 1.466666667 | D48: =Расчеты!AL68 -> 1.433333333 | E48: =Расчеты!AM68 -> 2.9 | F48: =Расчеты!AN68 -> 0.03333333333 | G48: =Расчеты!AO68 -> - | H48: =Расчеты!AP68 -> - | I48: =Расчеты!AQ68 -> - | J48: =Расчеты!AR68 -> ТБ1.5 | K48: =Расчеты!AS68 -> - | L48: =Расчеты!AT68 -> - | M48: =Расчеты!AU68 -> - | N48: =Расчеты!AV68 -> Нечет
B49: Вариант4 | C49: =Расчеты!AK69 -> 2.45 | D49: =Расчеты!AL69 -> 0.1 | E49: =Расчеты!AM69 -> 2.55 | F49: =Расчеты!AN69 -> 2.35 | G49: =Расчеты!AO69 -> Да | H49: =Расчеты!AP69 -> - | I49: =Расчеты!AQ69 -> - | J49: =Расчеты!AR69 -> ТБ1.5 | K49: =Расчеты!AS69 -> - | L49: =Расчеты!AT69 -> П1 | M49: =Расчеты!AU69 -> - | N49: =Расчеты!AV69 -> Нечет
B50: Вариант5 | C50: =Расчеты!AK70 -> 1.372727273 | D50: =Расчеты!AL70 -> 1.054545455 | E50: =Расчеты!AM70 -> 2.427272727 | F50: =Расчеты!AN70 -> 0.3181818182 | G50: =Расчеты!AO70 -> - | H50: =Расчеты!AP70 -> - | I50: =Расчеты!AQ70 -> - | J50: =Расчеты!AR70 -> ТМ2 | K50: =Расчеты!AS70 -> - | L50: =Расчеты!AT70 -> - | M50: =Расчеты!AU70 -> - | N50: =Расчеты!AV70 -> Чет
B51: Вариант6 | C51: =Расчеты!AK71 -> 1.6 | D51: =Расчеты!AL71 -> 1.1 | E51: =Расчеты!AM71 -> 2.7 | F51: =Расчеты!AN71 -> 0.5 | G51: =Расчеты!AO71 -> Да | H51: =Расчеты!AP71 -> - | I51: =Расчеты!AQ71 -> - | J51: =Расчеты!AR71 -> ТБ1.5 | K51: =Расчеты!AS71 -> - | L51: =Расчеты!AT71 -> - | M51: =Расчеты!AU71 -> - | N51: =Расчеты!AV71 -> Нечет
B52: Вариант7 | C52: =Расчеты!AK89 -> 0.6 | D52: =Расчеты!AL89 -> 1.6 | E52: =Расчеты!AM89 -> 2.2 | F52: =Расчеты!AN89 -> -1 | G52: =Расчеты!AO89 -> - | H52: =Расчеты!AP89 -> Да | I52: =Расчеты!AQ89 -> - | J52: =Расчеты!AR89 -> - | K52: =Расчеты!AS89 -> - | L52: =Расчеты!AT89 -> - | M52: =Расчеты!AU89 -> - | N52: =Расчеты!AV89 -> Чет
B53: Вариант8 | C53: =Расчеты!AK90 -> 0.9575757576 | D53: =Расчеты!AL90 -> 1.124242424 | E53: =Расчеты!AM90 -> 2.081818182 | F53: =Расчеты!AN90 -> -0.1666666667 | G53: =Расчеты!AO90 -> - | H53: =Расчеты!AP90 -> - | I53: =Расчеты!AQ90 -> - | J53: =Расчеты!AR90 -> ТМ2 | K53: =Расчеты!AS90 -> - | L53: =Расчеты!AT90 -> - | M53: =Расчеты!AU90 -> - | N53: =Расчеты!AV90 -> Чет
B54: Вариант9 | C54: =Расчеты!AK91 -> 0.5333333333 | D54: =Расчеты!AL91 -> 0.8666666667 | E54: =Расчеты!AM91 -> 1.4 | F54: =Расчеты!AN91 -> -0.3333333333 | G54: =Расчеты!AO91 -> - | H54: =Расчеты!AP91 -> - | I54: =Расчеты!AQ91 -> - | J54: =Расчеты!AR91 -> ТМ3.5 | K54: =Расчеты!AS91 -> - | L54: =Расчеты!AT91 -> - | M54: =Расчеты!AU91 -> - | N54: =Расчеты!AV91 -> Чет
B55: Вариант10 | C55: =Расчеты!AK92 -> 0.85 | D55: =Расчеты!AL92 -> 0.35 | E55: =Расчеты!AM92 -> 1.2 | F55: =Расчеты!AN92 -> 0.5 | G55: =Расчеты!AO92 -> - | H55: =Расчеты!AP92 -> - | I55: =Расчеты!AQ92 -> - | J55: =Расчеты!AR92 -> ТМ3.5 | K55: =Расчеты!AS92 -> - | L55: =Расчеты!AT92 -> - | M55: =Расчеты!AU92 -> - | N55: =Расчеты!AV92 -> Чет
B56: Вариант11 | C56: =Расчеты!AK93 -> 1.327272727 | D56: =Расчеты!AL93 -> 1.045454545 | E56: =Расчеты!AM93 -> 2.372727273 | F56: =Расчеты!AN93 -> 0.2818181818 | G56: =Расчеты!AO93 -> - | H56: =Расчеты!AP93 -> - | I56: =Расчеты!AQ93 -> - | J56: =Расчеты!AR93 -> ТМ2 | K56: =Расчеты!AS93 -> - | L56: =Расчеты!AT93 -> - | M56: =Расчеты!AU93 -> - | N56: =Расчеты!AV93 -> Нечет
B57: Вариант12 | C57: =Расчеты!AK94 -> 1.1 | D57: =Расчеты!AL94 -> 1 | E57: =Расчеты!AM94 -> 2.1 | F57: =Расчеты!AN94 -> 0.1 | G57: =Расчеты!AO94 -> - | H57: =Расчеты!AP94 -> - | I57: =Расчеты!AQ94 -> - | J57: =Расчеты!AR94 -> - | K57: =Расчеты!AS94 -> - | L57: =Расчеты!AT94 -> - | M57: =Расчеты!AU94 -> - | N57: =Расчеты!AV94 -> Нечет

Sheet расчет банка
C1: Начальный депозит | D1: 10000 | G1: ЯНВАРЬ | L1: Текущий банк | M1: =D1+M2 -> 10000 | X1: мах
A2: № п/п | B2: Дата | C2: Событие (необязат) | D2: ставка (необязат) | E2: ставка * | F2: кэф | G2: Доступно | H2: итог | I2: доход | J2: Текущий банк | L2: Доход от депо | M2: =SUM(I:I) -> 0 | N2: =M2/D1 -> 0 | V2: кэф | W2: ставки | X2: =MAX(B:B) -> 5
G3: для вывода | L3: Доход, от % с оборота ** | N3: =M2/W1004 ->  | V3: с рез-ми | W3: с рез-ми
A4: 1 | B4: 1 | E4: 1000 | F4: 2.04 | Q4: дата | R4: Доход, руб | S4: Доход, % | T4: Депозит | V4: =IF(H4="","",F4) ->  | W4: =IF(H4="","",E4) ->  | X4: янв
A5: 2 | B5: 1 | L5: Проходимость ставок *** | Q5: 0 | S5: от текущ. | T5: =D1 -> 10000 | W5: =IF(H5="","",E5) ->  | X5: февр
A6: 3 | B6: 1 | L6: плюс | M6: =COUNTIF(H:H,"+") -> 0 | N6: =IF(M7=0,"",M6/(M6+M7)) ->  | O6: =M6/M$9 ->  | Q6: 1 | R6: =IF(COUNTIF(B:B,Q6)=0,"",SUMIF(B:B,Q6,I:I)) -> 0 | S6: =IF(R6="","",R6/T5) -> 0 | T6: =IF(R6="",D1,R6+D1) -> 10000 | X6: март
A7: 4 | B7: 1 | L7: минус | M7: =COUNTIF(H:H,"-") -> 0 | O7: =M7/M$9 ->  | Q7: 2 | R7: =IF(COUNTIF(B:B,Q7)=0,"",SUMIF(B:B,Q7,I:I)) -> 0 | S7: =IF(R7="","",R7/T6) -> 0 | T7: =IF(R7="",T6,T6+R7) -> 10000 | X7: апр
A8: 5 | B8: 2 | L8: ничья | M8: =COUNTIF(H:H,"н") -> 0 | O8: =M8/M$9 ->  | Q8: 3 | R8: 0 | S8: 0 | T8: =IF(R8="",T7,T7+R8) -> 10000 | V8: =IF(H8="","",F8) ->  | X8: май
A9: 6 | B9: 2 | L9: всех | M9: =SUM(M6:M8) -> 0 | Q9: 4 | R9: 0 | S9: 0 | T9: 10000 | X9: июнь
A10: 7 | B10: 2 | G10: =IF(OR(E10="",H9="",J9="",J9="Приплыли!"),"",J9-E10) ->  | I10: =IF(OR(E10="",F10="",H10="",G10="",G10<0),"",IF(H10="+",E10*(F10-1),IF(H10="н",0,-E10))) ->  | J10: =IF(G10<0,"Приплыли!",IF(I10="","",J9+I10)) ->  | Q10: 5 | R10: 0 | S10: 0 | T10: 10000 | X10: июль
A11: 8 | B11: 3 | L11: Средний кэф "+" ставок | N11: =IF(M6=0,"",SUMIF(H:H,"+",F:F)/M6) ->  | Q11: 6 | T11: 10000 | X11: авг
A12: 9 | B12: 3 | L12: Средний кэф "-" ставок | N12: =IF(M7=0,"",SUMIF(H:H,"-",F:F)/M7) ->  | Q12: 7 | T12: 10000 | X12: сент
A13: 10 | B13: 3 | L13: Средн кэф всех ставок | N13: =IF(M9=0,"",SUM(V:V)/M9) ->  | Q13: 8 | T13: 10000 | X13: окт
A14: 11 | B14: 3 | Q14: 9 | T14: 10000 | X14: нбр
A15: 12 | B15: 4 | Q15: 10 | T15: 10000 | X15: дек
A16: 13 | B16: 4 | Q16: 11 | T16: 10000
A17: 14 | B17: 4 | Q17: 12 | T17: 10000 | X17: 1
A18: 15 | B18: 5 | Q18: 13 | T18: 10000 | X18: 2
A19: 16 | B19: 5 | Q19: 14 | T19: 10000 | X19: 3
A20: 17 | B20: 5 | Q20: 15 | T20: 10000 | X20: 4
A21: 18 | B21: 5 | Q21: 16 | T21: 10000 | X21: 5
A22: 19 | B22: 5 | Q22: 17 | T22: 10000 | X22: 6
A23: 20 | B23: 5 | Q23: 18 | T23: 10000 | X23: 7
A24: 21 | B24: 5 | Q24: 19 | T24: 10000 | X24: 8
A25: 22 | B25: 5 | Q25: 20 | T25: 10000 | X25: 9
A26: 23 | Q26: 21 | T26: 10000 | X26: 10
A27: 24 | Q27: 22 | T27: 10000 | X27: 11
A28: 25 | Q28: 23 | T28: 10000 | X28: 12
A29: 26 | Q29: 24 | T29: 10000 | X29: 13
A30: 27 | Q30: 25 | T30: 10000 | X30: 14
A31: 28 | L31: * - ставка не может быть больше банка! | Q31: 26 | T31: 10000 | X31: 15
A32: 29 | L32: ** - деление дохода на общую сумму ставок | Q32: 27 | T32: 10000 | X32: 16
A33: 30 | L33: *** - при подсчёте плюса в %, ничья не учитывается! | Q33: 28 | T33: 10000 | X33: 17
A34: 31 | Q34: 29 | T34: 10000 | X34: 18
A35: 32 | Q35: 30 | T35: 10000 | X35: 19
A36: 33 | Q36: 31 | T36: 10000 | X36: 20
A37: 34 | X37: 21
A38: 35 | X38: 22
A39: 36 | X39: 23
A40: 37 | X40: 24
A41: 38 | X41: 25
A42: 39 | X42: 26
A43: 40 | X43: 27
A44: 41 | X44: 28
A45: 42 | X45: 29
A46: 43 | X46: 30
A47: 44 | X47: 31
A48: 45
A49: 46 | J49: =IF(G49<0,"Приплыли!",IF(I49="","",J48+I49)) -> 
A50: 47 | J50: =IF(G50<0,"Приплыли!",IF(I50="","",J49+I50)) -> 
A51: 48 | J51: =IF(G51<0,"Приплыли!",IF(I51="","",J50+I51)) -> 
A52: 49 | J52: =IF(G52<0,"Приплыли!",IF(I52="","",J51+I52)) -> 
A53: 50
A54: 51
A55: 52
A56: 53
A57: 54
A58: 55
A59: 56
A60: 57
A61: 58
A62: 59
A63: 60
A64: 61
A65: 62
A66: 63
A67: 64
A68: 65 | V68: =IF(H68="","",F68) -> 
A69: 66 | G69: =IF(OR(E69="",H68="",J68="",J68="Приплыли!"),"",J68-E69) ->  | W69: =IF(H69="","",E69) -> 
A70: 67 | I70: =IF(OR(E70="",F70="",H70="",G70="",G70<0),"",IF(H70="+",E70*(F70-1),IF(H70="н",0,-E70))) -> 
A71: 68
A72: 69
A73: 70
A74: 71
A75: 72
A76: 73 | L76: 40р
A77: 74
A78: 75
A79: 76
A80: 77
A81: 78
A82: 79
A83: 80
A84: 81
A85: 82
A86: 83
A87: 84
A88: 85
A89: 86
A90: 87
A91: 88
A92: 89
A93: 90
A94: 91
A95: 92
A96: 93
A97: 94
A98: 95
A99: 96
A100: 97
A101: 98
A102: 99
A103: 100
A104: 101
A105: 102
A106: 103
A107: 104
A108: 105
A109: 106
A110: 107
A111: 108
A112: 109
A113: 110
A114: 111
A115: 112
A116: 113 | J116: =IF(G116<0,"Приплыли!",IF(I116="","",J115+I116)) -> 
A117: 114
A118: 115
A119: 116
A120: 117
A121: 118
A122: 119
A123: 120
A124: 121
A125: 122
A126: 123
A127: 124
A128: 125
A129: 126
A130: 127
A131: 128
A132: 129 | V132: =IF(H132="","",F132) -> 
A133: 130 | G133: =IF(OR(E133="",H132="",J132="",J132="Приплыли!"),"",J132-E133) ->  | W133: =IF(H133="","",E133) -> 
A134: 131 | I134: =IF(OR(E134="",F134="",H134="",G134="",G134<0),"",IF(H134="+",E134*(F134-1),IF(H134="н",0,-E134))) -> 
A135: 132
A136: 133
A137: 134
A138: 135
A139: 136
A140: 137
A141: 138
A142: 139
A143: 140
A144: 141
A145: 142
A146: 143
A147: 144
A148: 145
A149: 146
A150: 147
A151: 148
A152: 149
A153: 150
A154: 151
A155: 152
A156: 153
A157: 154
A158: 155
A159: 156
A160: 157
A161: 158
A162: 159
A163: 160
A164: 161
A165: 162
A166: 163
A167: 164
A168: 165
A169: 166
A170: 167
A171: 168
A172: 169
A173: 170
A174: 171
A175: 172
A176: 173
A177: 174
A178: 175
A179: 176
A180: 177 | J180: =IF(G180<0,"Приплыли!",IF(I180="","",J179+I180)) -> 
A181: 178
A182: 179
A183: 180
A184: 181
A185: 182
A186: 183
A187: 184
A188: 185
A189: 186
A190: 187
A191: 188
A192: 189
A193: 190
A194: 191
A195: 192
A196: 193 | V196: =IF(H196="","",F196) -> 
A197: 194 | G197: =IF(OR(E197="",H196="",J196="",J196="Приплыли!"),"",J196-E197) ->  | W197: =IF(H197="","",E197) -> 
A198: 195 | I198: =IF(OR(E198="",F198="",H198="",G198="",G198<0),"",IF(H198="+",E198*(F198-1),IF(H198="н",0,-E198))) -> 
A199: 196
A200: 197
... 804 more rows

Sheet SVOD (hidden)
A1: =Очные!A1 -> Everton | B1: Игр ХОЗЯЕВ | C1: В | D1: Н | E1: П | F1: Заб | G1: Проп | H1: Очки | I1: Место | K1: ОЧНЫЕ ХОЗЯЕВ | L1: В | M1: Н | N1: П | O1: Заб | P1: Проп
A2: Общая | B2: =IF($I$2="","",VLOOKUP($A$1,Таблица!$B:$I,COLUMN(),FALSE)) -> 3 | C2: =IF($I$2="","",VLOOKUP($A$1,Таблица!$B:$I,COLUMN(),FALSE)) -> 1 | D2: =IF($I$2="","",VLOOKUP($A$1,Таблица!$B:$I,COLUMN(),FALSE)) -> 2 | E2: =IF($I$2="","",VLOOKUP($A$1,Таблица!$B:$I,COLUMN(),FALSE)) -> 0 | F2: =IF($I$2="","",VLOOKUP($A$1,Таблица!$B:$I,COLUMN(),FALSE)) -> 4 | G2: =IF($I$2="","",VLOOKUP($A$1,Таблица!$B:$I,COLUMN(),FALSE)) -> 3 | H2: =IF($I$2="","",VLOOKUP($A$1,Таблица!$B:$I,COLUMN(),FALSE)) -> 5 | I2: =IFERROR(MATCH(A1,Таблица!B:B,0)-1,"") -> 6 | J2: Общая | K2: =K3+K4 -> 35 | L2: =COUNTIFS(Очные!G:G,"В") -> 8 | M2: =COUNTIFS(Очные!G:G,"Н") -> 5 | N2: =COUNTIFS(Очные!G:G,"П") -> 22 | O2: =MAXA(Очные!H:H) -> 46 | P2: =MAXA(Очные!I:I) -> 76
A3: Дом | B3: =IF($I$3="","",VLOOKUP($A$1,Таблица!$L:$S,COLUMN(),FALSE)) -> 1 | C3: =IF($I$3="","",VLOOKUP($A$1,Таблица!$L:$S,COLUMN(),FALSE)) -> 0 | D3: =IF($I$3="","",VLOOKUP($A$1,Таблица!$L:$S,COLUMN(),FALSE)) -> 1 | E3: =IF($I$3="","",VLOOKUP($A$1,Таблица!$L:$S,COLUMN(),FALSE)) -> 0 | F3: =IF($I$3="","",VLOOKUP($A$1,Таблица!$L:$S,COLUMN(),FALSE)) -> 1 | G3: =IF($I$3="","",VLOOKUP($A$1,Таблица!$L:$S,COLUMN(),FALSE)) -> 1 | H3: =IF($I$3="","",VLOOKUP($A$1,Таблица!$L:$S,COLUMN(),FALSE)) -> 1 | I3: =IFERROR(MATCH(A1,Таблица!L:L,0)-1,"") -> 11 | J3: Дома | K3: =COUNTIF(Очные!S:S,"Дома") -> 17 | L3: =COUNTIFS(Очные!T:T,"В") -> 6 | M3: =COUNTIFS(Очные!T:T,"Н") -> 1 | N3: =COUNTIFS(Очные!T:T,"П") -> 10 | O3: =SUM(Очные!U:U) -> 28 | P3: =SUM(Очные!V:V) -> 33 | S3: Тотал | T3: =(E45+E46+O45+O46)/2 -> 2.829520697
A4: Гости | B4: =IF($I$4="","",VLOOKUP($A$1,Таблица!$V:$AC,COLUMN(),FALSE)) -> 2 | C4: =IF($I$4="","",VLOOKUP($A$1,Таблица!$V:$AC,COLUMN(),FALSE)) -> 1 | D4: =IF($I$4="","",VLOOKUP($A$1,Таблица!$V:$AC,COLUMN(),FALSE)) -> 1 | E4: =IF($I$4="","",VLOOKUP($A$1,Таблица!$V:$AC,COLUMN(),FALSE)) -> 0 | F4: =IF($I$4="","",VLOOKUP($A$1,Таблица!$V:$AC,COLUMN(),FALSE)) -> 3 | G4: =IF($I$4="","",VLOOKUP($A$1,Таблица!$V:$AC,COLUMN(),FALSE)) -> 2 | H4: =IF($I$4="","",VLOOKUP($A$1,Таблица!$V:$AC,COLUMN(),FALSE)) -> 4 | I4: =IFERROR(MATCH(A1,Таблица!V:V,0)-1,"") -> 2 | J4: В Гостях | K4: =COUNTIF(Очные!S:S,"В Гостях") -> 18 | L4: =COUNTIFS(Очные!W:W,"В") -> 2 | M4: =COUNTIFS(Очные!W:W,"Н") -> 4 | N4: =COUNTIFS(Очные!W:W,"П") -> 12 | O4: =SUM(Очные!X:X) -> 18 | P4: =SUM(Очные!Y:Y) -> 43 | S4: Прогноз 1 | W4: Прогноз 2 | AA4: Прогноз 3
A5: Форма 4 Общ | B5: =Дома!O5 -> 4 | C5: =Дома!P5 -> 2 | D5: =Дома!Q5 -> 2 | E5: =Дома!R5 -> 0 | F5: =Дома!S5 -> 5 | G5: =Дома!T5 -> 3 | H5: =Дома!U5 -> 8 | I5: =IFERROR(MATCH(A1,Форма!B:B,0)-1,"") -> 6 | J5: =C5/B5 -> 0.5 | K5: =J5/100 -> 0.005 | S5: 1 | T5: Х | U5: 2 | W5: 1 | X5: Х | Y5: 2 | AA5: 1 | AB5: Х | AC5: 2
A6: Форма 4 дом | B6: =ДомаДома!O5 -> 4 | C6: =ДомаДома!P5 -> 2 | D6: =ДомаДома!Q5 -> 1 | E6: =ДомаДома!R5 -> 1 | F6: =ДомаДома!S5 -> 5 | G6: =ДомаДома!T5 -> 5 | H6: =ДомаДома!U5 -> 7 | I6: =IFERROR(MATCH(A1,Форма!L:L,0)-1,"") -> 11 | J6: =H6/B6 -> 1.75 | S6: =T32+T34 -> 0.185474537 | T6: =U32+T34 -> 0.3530092593 | U6: =V32+T34 -> 0.4615162037 | V6: =SUM(S6:U6) -> 1 | W6: =W13+Z11 -> 0.2478213508 | X6: =X13+Z11 -> 0.2821350763 | Y6: =Y13+Z11 -> 0.470043573 | Z6: =SUM(W6:Y6) -> 1 | AA6: =AB32 -> 0.5 | AB6: =AB34 -> -0.5 | AC6: =AB33 -> 1
A7: =Очные!B1 -> Colo Colo | B7: Игр ГОСТЕЙ | C7: В | D7: Н | E7: П | F7: Заб | G7: Проп | H7: Очки | I7: Место | K7: ОЧНЫЕ ГОСТЕЙ | L7: В | M7: Н | N7: П | O7: Заб | P7: Проп
A8: Общая | B8: =IF($I$8="","",VLOOKUP($A$7,Таблица!$B:$I,COLUMN(),FALSE)) -> 3 | C8: =IF($I$8="","",VLOOKUP($A$7,Таблица!$B:$I,COLUMN(),FALSE)) -> 1 | D8: =IF($I$8="","",VLOOKUP($A$7,Таблица!$B:$I,COLUMN(),FALSE)) -> 1 | E8: =IF($I$8="","",VLOOKUP($A$7,Таблица!$B:$I,COLUMN(),FALSE)) -> 1 | F8: =IF($I$8="","",VLOOKUP($A$7,Таблица!$B:$I,COLUMN(),FALSE)) -> 3 | G8: =IF($I$8="","",VLOOKUP($A$7,Таблица!$B:$I,COLUMN(),FALSE)) -> 3 | H8: =IF($I$8="","",VLOOKUP($A$7,Таблица!$B:$I,COLUMN(),FALSE)) -> 4 | I8: =IFERROR(MATCH(A7,Таблица!B:B,0)-1,"") -> 9 | J8: Общая | K8: =K9+K10 -> 35 | L8: =COUNTIFS(Очные!M:M,"В") -> 22 | M8: =COUNTIFS(Очные!M:M,"Н") -> 5 | N8: =COUNTIFS(Очные!M:M,"П") -> 8 | O8: =MAXA(Очные!N:N) -> 76 | P8: =MAXA(Очные!O:O) -> 46 | S8: 1К | T8: ТС | U8: 2К | W8: =G16*G20+G24*G28+G33*G37+G41*G28/8 -> 0.3376167134 | X8: =L16*L20+L24*L28+L33*L37+L41*L28/8 -> 0.7110585901 | AB8: =((F5+G5)/2)/B5 -> 1 | AC8: =AB8+AB9 -> 2.5
A9: Дом | B9: =IF($I$9="","",VLOOKUP($A$7,Таблица!$L:$S,COLUMN(),FALSE)) -> 2 | C9: =IF($I$9="","",VLOOKUP($A$7,Таблица!$L:$S,COLUMN(),FALSE)) -> 0 | D9: =IF($I$9="","",VLOOKUP($A$7,Таблица!$L:$S,COLUMN(),FALSE)) -> 1 | E9: =IF($I$9="","",VLOOKUP($A$7,Таблица!$L:$S,COLUMN(),FALSE)) -> 1 | F9: =IF($I$9="","",VLOOKUP($A$7,Таблица!$L:$S,COLUMN(),FALSE)) -> 1 | G9: =IF($I$9="","",VLOOKUP($A$7,Таблица!$L:$S,COLUMN(),FALSE)) -> 2 | H9: =IF($I$9="","",VLOOKUP($A$7,Таблица!$L:$S,COLUMN(),FALSE)) -> 1 | I9: =IFERROR(MATCH(A7,Таблица!L:L,0)-1,"") -> 13 | J9: Дома | K9: =COUNTIF(Очные!S:S,"Дома") -> 17 | L9: =COUNTIFS(Очные!AA:AA,"В") -> 12 | M9: =COUNTIFS(Очные!AA:AA,"Н") -> 4 | N9: =COUNTIFS(Очные!AA:AA,"П") -> 2 | O9: =SUM(Очные!AB:AB) -> 43 | P9: =SUM(Очные!AC:AC) -> 18 | S9: =E45 -> 1.299019608 | U9: =O45 -> 1.694444444 | W9: =G17*G21+G25*G29 -> 0.9166666667 | X9: =L17*L21+L25*L29 -> 0.1666666667 | AB9: =((F11+G11)/2)/B11 -> 1.5 | AC9: =IF(AB12>=2,"ДА","НЕТ") -> НЕТ
A10: Гости | B10: =IF($I$10="","",VLOOKUP($A$7,Таблица!$V:$AC,COLUMN(),FALSE)) -> 1 | C10: =IF($I$10="","",VLOOKUP($A$7,Таблица!$V:$AC,COLUMN(),FALSE)) -> 1 | D10: =IF($I$10="","",VLOOKUP($A$7,Таблица!$V:$AC,COLUMN(),FALSE)) -> 0 | E10: =IF($I$10="","",VLOOKUP($A$7,Таблица!$V:$AC,COLUMN(),FALSE)) -> 0 | F10: =IF($I$10="","",VLOOKUP($A$7,Таблица!$V:$AC,COLUMN(),FALSE)) -> 2 | G10: =IF($I$10="","",VLOOKUP($A$7,Таблица!$V:$AC,COLUMN(),FALSE)) -> 1 | H10: =IF($I$10="","",VLOOKUP($A$7,Таблица!$V:$AC,COLUMN(),FALSE)) -> 3 | I10: =IFERROR(MATCH(A7,Таблица!V:V,0)-1,"") -> 5 | J10: В Гостях | K10: =COUNTIF(Очные!S:S,"В Гостях") -> 18 | L10: =COUNTIFS(Очные!AD:AD,"В") -> 10 | M10: =COUNTIFS(Очные!AD:AD,"Н") -> 1 | N10: =COUNTIFS(Очные!AD:AD,"П") -> 6 | O10: =SUM(Очные!AE:AE) -> 33 | P10: =SUM(Очные!AF:AF) -> 28 | W10: =G18*G22+G26*G30 -> 0 | X10: =L18*L22+L26*L30 -> 0.1666666667 | AB10: =IF(AB8>=1.7,"1","0") -> 0 | AC10: =IF(AB9>=1.8,"1","0") -> 0
A11: Форма 4 Общ | B11: =Гости!O5 -> 4 | C11: =Гости!P5 -> 1 | D11: =Гости!Q5 -> 1 | E11: =Гости!R5 -> 2 | F11: =Гости!S5 -> 5 | G11: =Гости!T5 -> 7 | H11: =Гости!U5 -> 4 | I11: =IFERROR(MATCH(A7,Форма!B:B,0)-1,"") -> 9 | J11: =C11/B11 -> 0.25 | K11: =J11/100 -> 0.0025 | S11: Pa(B1)= | T11: P(B1)*PB1(A) | Z11: =Z12/3 -> -0.08551198257 | AB11: =AB10 -> 0 | AC11: =AC10 -> 0
A12: Форма4 гости | B12: =ГостиГости!O5 -> 4 | C12: =ГостиГости!P5 -> 1 | D12: =ГостиГости!Q5 -> 2 | E12: =ГостиГости!R5 -> 1 | F12: =ГостиГости!S5 -> 5 | G12: =ГостиГости!T5 -> 6 | H12: =ГостиГости!U5 -> 5 | I12: =IFERROR(MATCH(A7,Форма!V:V,0)-1,"") -> 5 | J12: =H12/B12 -> 1.25 | T12: P(A) | W12: =MEDIAN(G17,G21,G25,G29,G34,G38,G42) -> 0.5 | Y12: =MEDIAN(L17,L21,L25,L29,L34,L38,L42) -> 0.2352941176 | Z12: =100%-Z13 -> -0.2565359477 | AB12: =AB11+AC11 -> 0
S13: P(A)=P(B1)*PB1(A)+P(B2)*PB2(A) | W13: =MEDIAN(G16,G20,G24,G28,G33,G37,G41) -> 0.3333333333 | X13: =(W12+Y12)/2 -> 0.3676470588 | Y13: =MEDIAN(L16,L20,L24,L28,L33,L37,L41) -> 0.5555555556 | Z13: =SUM(W13:Y13) -> 1.256535948
G14: =AVERAGE(G28:H29,G24:H25,G20:H21,G16:H17) -> 0.5 | H14: =AVERAGE(G30,G26,G22,G18) -> 0 | L14: =AVERAGE(L28:M29,L24:M25,L20:M21,L16:M17) -> 0.3333333333 | M14: =AVERAGE(L30,L26,L22,L18) -> 0.3333333333
B15: 1 Команда | D15: 2 Команда | G15: =A1 -> Everton | J15: =A2 -> Общая | L15: =A7 -> Colo Colo | O15: =J15 -> Общая | P15: 1 | Q15: Х | R15: 2 | T15: 1 | U15: Х | V15: 2
A16: 10 | B16: 10 | C16: =B16*G16/100 -> 0.03333333333 | D16: =E16*L16/100 -> 0.03333333333 | E16: 10 | F16: 10 | G16: =C2/B2 -> 0.3333333333 | J16: Побед | L16: =C8/B8 -> 0.3333333333 | P16: =(G16+G20+G24+G28)/4 -> 0.3333333333 | Q16: =(G17+G21+G25+G29+L29+L25+L21+L17)/8 -> 0.46875 | R16: =(L16+L20+L24+L28)/4 -> 0.3958333333 | T16: =(P16+P20+P24+P28)/4 -> 0.3333333333 | U16: =(Q16+Q20+Q24+Q28)/4 -> 0.4609375 | V16: =(R16+R20+R24+R28)/4 -> 0.4114583333 | W16: =SUM(T16:V16) -> 1.205729167
G17: =D2/B2 -> 0.6666666667 | J17: Ничья | L17: =D8/B8 -> 0.3333333333 | Y17: =S6*100 -> 18.5474537 | Z17: =T6*100 -> 35.30092593 | AA17: =U6*100 -> 46.15162037
